Workbook

Sheet Notes
A1: CandlesticksCondensed.xlsm
A2: Coded beginning 2014-Dec-07 by Ronald McAllister (rpmac_xltt@sprynet.com)
B3: For publication with the February 2015 issue
A5: This Workbook demonstrates an EXCEL version of the ideas presented
A6: by David Cline in an article titled "Candlestciks Condensed"
A7: which appeared in the February 2015 issue of
A8: "Technical Analysis of Stocks and Commodities" magazine.
A10: CalculationsAndCharts construction Notes:
A12: Data for this EXCEL example:
A18: Development Notes:
A19: 1 | C19: This workbook contains and uses VBA macros.
A20: 2 | C20: Input Data
C21: The data in this workbook is sorted date descending (most recent date at the top). All formulas and
C22: VBA routines are built accordingly.
A24: Calculation and Chart Worksheet Usage Comments:
A25: 1 | C25: In General, Items in Bolded BLUE are items you may freely change to play what-if games.
C26: Be sure to have a backup copy of the spreadsheet before you alter anything else.
A27: 2 | C27: Several of the column formulas begin with "IF" logic that determines when there is sufficient data
C28: available for the subsequent calculations to be relevant. The cell will calculate to blank or the
C29: result of the calculation.
C30: In a couple of cases, this "IF" logic also sets starter values for subsequent smoothing calculations.
A31: 3 | C31: Data windowing can be performed by changing cell A11. Positive values logically "Pan" the
C32: data window represented by the Calculation sheet down the input sheet and back in time.
C33: This can have two side effects: First, data may fall outside of the fixed Y-axis scales and be clipped
C34: or fall well inside the Y-axis scales wasting a lot of chart vertical space. Second, you may move far
C35: enough back that you do not have sufficient data points to fill the left of the chart.
A36: 4 | C36: The VBA macros behind the SetChart button address these Data Windowing problems and also
C37: resizes and vertically aligns all charts on the work sheet to match the Price chart and then
C38: horizontally adjusts the X-axis positions of all charts on the work sheet so that the corresponding
C39: data points align vertically.
C40: The macros behind the SetChart button are sensitive to the user control values in cells A11 and
C41: A12, and also uses the computed values in cells A8, F11, and F12

Sheet InputPriceData
A1: Caseys General St (CASY) -NasdaqNM (Daily)
A2: Last Trade: | B2: 2014-12-11 | C2: 83.38 | D2: 87 | E2: 83.38 | F2: 86.55 | G2: 103711 | H2: 10:37am | L2: Notes: | M2: Online Yahoo Finance Query Interfaces used in the VBA code to obtain this data:
A3: Request Online Yahoo History for: | M3: A.) Price History Only: "http://ichart.finance.yahoo.com/table.csv"
A4: Symbol | B4: CASY | D4: Valid | M4: B.) Price History w/ imbedded divs n splits: "http://ichart.finance.yahoo.com/x"
A5: From | B5: 1977-01-07 | D5: Data
A6: To | B6: =TODAY() -> 2014-12-11 | D6: Types | M6: C.) Fundamentals (in this case name and exchange):
A7: Data Type | B7: Daily | D7: Daily | M7: "http://download.finance.yahoo.com/d/quotes.csv?"
D8: Weekly | M8: For some how-to doc regarding this particular interface, including a list of the
A9: Available Data | D9: Monthly | M9: specific fields you can include in a request to this interface see:
A10: Bar Count: | B10: =COUNTA(B15:B52642)-1 -> 7855 | M10: http://www.gummy-stuff.org/Yahoo-data.htm
A11: From: | B11: =IF(B10<=0,"",OFFSET(B15,B10,IF(HistReqDataType="v",1,0),1,1)) -> 1983-10-20 | M11: This web site includes a downloadable working EXCEL/VBA example | W11: Trailing 12 Month Dividend Returns
A12: To: | B12: =IF(B10<=0,"",IF(HistReqDataType="v",OFFSET(B15,2,1,1,1),OFFSET(B15,1,0,1,1))) -> 2014-12-11 | M12: of the capabilities of this interface. | W12: Raw Close price on Dividend date | X12: Looking for year ago Div date | Y12: Year ago Div Date we found | Z12: row offset to year ago div Date | AA12: Same month flag | AB12: Trailing 12 Div Total | AC12: Trailing 12 Div return
Q13: Split History | S13: =COUNT(Q16:Q10996) -> 4 | T13: Running | U13: Dividend History
B14: Raw Data Values | H14: Adjusted | I14: Price Adjust | J14: Vol Adjust | K14: Adjusted Values | P14: Last | Q14: Effective | R14: Shares | T14: Vol Adjust | V14: =COUNT(U16:U10996) -> 98
A15: RelRow | B15: Date | C15: Open | D15: High | E15: Low | F15: Close | G15: Volume | H15: Close | I15: Factor | J15: Factor | K15: Open | L15: High | M15: Low | N15: Close | O15: Volume | P15: Trade | Q15: 41985 | R15: New | S15: Old | T15: 1 | U15: Date | V15: $ / Share
A16: 1 | B16: 2014-12-11 | C16: 83.38 | D16: 87 | E16: 83.38 | F16: 86.55 | G16: 103711 | H16: 86.55 | I16: =H16/F16 -> 1 | J16: =INDEX(OFFSET($T$15,0,0,$S$13+1,1),MATCH(B16,OFFSET($Q$15,0,0,$S$13+1,1),-1)) -> 1 | K16: =ROUND($I16*C16,2) -> 83.38 | L16: =ROUND($I16*D16,2) -> 87 | M16: =ROUND($I16*E16,2) -> 83.38 | N16: =ROUND($I16*F16,2) -> 86.55 | O16: =G16*J16 -> 103711 | P16: 10:37am | Q16: 1998-02-17 | R16: 2 | S16: 1 | T16: 2 | U16: 2014-10-30 | V16: 0.2 | W16: =(INDEX(OFFSET($F$15,1,0,$B$10,1),MATCH(U16,OFFSET($B$15,1,0,$B$10,1),-1))) -> 81.06 | X16: =IF(MONTH(DATE(YEAR(U16)-1,MONTH(U16),DAY(U16)))<>MONTH(U16),DATE(YEAR(U16)-1,MONTH(U16),DAY(U16-1)),DATE(YEAR(U16)-1,MONTH(U16),DAY(U16))) -> 2013-10-30 | Y16: =OFFSET(U15,Z16,0,1,1) -> 2013-10-30 | Z16: =MATCH(X16,OFFSET($U$15,A16,0,$V$14+1-A16,1),-1) -> 5 | AA16: =IF(MONTH(U16)=MONTH(Y16),1,0) -> 1 | AB16: =(V16+IFERROR(SUM(OFFSET(V16,1,0,Z16-AA16-1,1)),0)) -> 0.76 | AC16: =(V16+IFERROR(SUM(OFFSET(V16,1,0,Z16-AA16-1,1)),0))/(INDEX(OFFSET($F$15,1,0,$B$10,1),MATCH(U16,OFFSET($B$15,1,0,$B$10,1),-1))) -> 0.009375771034
A17: 2 | B17: 2014-12-10 | C17: 83.68 | D17: 84.32 | E17: 82.43 | F17: 82.7 | G17: 226700 | H17: 82.7 | I17: =H17/F17 -> 1 | J17: =INDEX(OFFSET($T$15,0,0,$S$13+1,1),MATCH(B17,OFFSET($Q$15,0,0,$S$13+1,1),-1)) -> 1 | K17: =ROUND($I17*C17,2) -> 83.68 | L17: =ROUND($I17*D17,2) -> 84.32 | M17: =ROUND($I17*E17,2) -> 82.43 | N17: =ROUND($I17*F17,2) -> 82.7 | O17: =G17*J17 -> 226700 | Q17: 1994-02-16 | R17: 2 | S17: 1 | T17: 4 | U17: 2014-07-30 | V17: 0.2 | W17: =(INDEX(OFFSET($F$15,1,0,$B$10,1),MATCH(U17,OFFSET($B$15,1,0,$B$10,1),-1))) -> 66.78 | X17: =IF(MONTH(DATE(YEAR(U17)-1,MONTH(U17),DAY(U17)))<>MONTH(U17),DATE(YEAR(U17)-1,MONTH(U17),DAY(U17-1)),DATE(YEAR(U17)-1,MONTH(U17),DAY(U17))) -> 2013-07-30 | Y17: =OFFSET(U16,Z17,0,1,1) -> 2013-07-30 | Z17: =MATCH(X17,OFFSET($U$15,A17,0,$V$14+1-A17,1),-1) -> 5 | AA17: =IF(MONTH(U17)=MONTH(Y17),1,0) -> 1 | AB17: =(V17+IFERROR(SUM(OFFSET(V17,1,0,Z17-AA17-1,1)),0)) -> 0.74 | AC17: =(V17+IFERROR(SUM(OFFSET(V17,1,0,Z17-AA17-1,1)),0))/(INDEX(OFFSET($F$15,1,0,$B$10,1),MATCH(U17,OFFSET($B$15,1,0,$B$10,1),-1))) -> 0.01108116202
A18: 3 | B18: 2014-12-09 | C18: 82.06 | D18: 83.9 | E18: 81.65 | F18: 83.67 | G18: 273100 | H18: 83.67 | I18: =H18/F18 -> 1 | J18: =INDEX(OFFSET($T$15,0,0,$S$13+1,1),MATCH(B18,OFFSET($Q$15,0,0,$S$13+1,1),-1)) -> 1 | K18: =ROUND($I18*C18,2) -> 82.06 | L18: =ROUND($I18*D18,2) -> 83.9 | M18: =ROUND($I18*E18,2) -> 81.65 | N18: =ROUND($I18*F18,2) -> 83.67 | O18: =G18*J18 -> 273100 | Q18: 1986-08-05 | R18: 2 | S18: 1 | T18: 8 | U18: 2014-04-29 | V18: 0.18 | W18: 67.81 | X18: 2013-04-29 | Y18: 2013-04-29 | Z18: 5 | AA18: 1 | AB18: 0.72 | AC18: 0.01061790296
A19: 4 | B19: 2014-12-08 | C19: 82.28 | D19: 84.12 | E19: 82.28 | F19: 82.88 | G19: 258100 | H19: 82.88 | I19: 1 | J19: 1 | K19: =ROUND($I19*C19,2) -> 82.28 | L19: =ROUND($I19*D19,2) -> 84.12 | M19: =ROUND($I19*E19,2) -> 82.28 | N19: =ROUND($I19*F19,2) -> 82.88 | O19: 258100 | Q19: 1985-06-25 | R19: 3 | S19: 2 | T19: 12 | U19: 2014-01-30 | V19: 0.18 | W19: 68.87 | X19: 2013-01-30 | Y19: 2013-01-30 | Z19: 5 | AA19: 1 | AB19: 0.705 | AC19: 0.0102366778
A20: 5 | B20: 2014-12-05 | C20: 82.4 | D20: 83.15 | E20: 82.4 | F20: 82.63 | G20: 162300 | H20: 82.63 | I20: 1 | J20: 1 | K20: =ROUND($I20*C20,2) -> 82.4 | L20: =ROUND($I20*D20,2) -> 83.15 | M20: =ROUND($I20*E20,2) -> 82.4 | N20: =ROUND($I20*F20,2) -> 82.63 | O20: 162300 | U20: 2013-10-30 | V20: 0.18 | W20: 73.14 | X20: 2012-10-30 | Y20: 2012-10-31 | Z20: 5 | AA20: 1 | AB20: 0.69 | AC20: 0.009433962264
A21: 6 | B21: 2014-12-04 | C21: 82.62 | D21: 83.11 | E21: 81.63 | F21: 82.5 | G21: 204400 | H21: 82.5 | I21: 1 | J21: 1 | K21: =ROUND($I21*C21,2) -> 82.62 | L21: =ROUND($I21*D21,2) -> 83.11 | M21: =ROUND($I21*E21,2) -> 81.63 | N21: =ROUND($I21*F21,2) -> 82.5 | O21: 204400 | U21: 2013-07-30 | V21: 0.18 | W21: 66.21 | X21: 2012-07-30 | Y21: 2012-07-30 | Z21: 5 | AA21: 1 | AB21: 0.675 | AC21: 0.01019483462
A22: 7 | B22: 2014-12-03 | C22: 82.5 | D22: 83.32 | E22: 81.97 | F22: 82.49 | G22: 153900 | H22: 82.49 | I22: 1 | J22: 1 | K22: =ROUND($I22*C22,2) -> 82.5 | L22: =ROUND($I22*D22,2) -> 83.32 | M22: =ROUND($I22*E22,2) -> 81.97 | N22: =ROUND($I22*F22,2) -> 82.49 | O22: 153900 | U22: 2013-04-29 | V22: 0.165 | W22: 58.08 | X22: 2012-04-29 | Y22: 2012-07-30 | Z22: 4 | AA22: 0 | AB22: 0.66 | AC22: 0.01136363636
A23: 8 | B23: 2014-12-02 | C23: 82.75 | D23: 83.4 | E23: 81.87 | F23: 82.52 | G23: 197200 | H23: 82.52 | I23: 1 | J23: 1 | K23: =ROUND($I23*C23,2) -> 82.75 | L23: =ROUND($I23*D23,2) -> 83.4 | M23: =ROUND($I23*E23,2) -> 81.87 | N23: =ROUND($I23*F23,2) -> 82.52 | O23: 197200 | U23: 2013-01-30 | V23: 0.165 | W23: 54.43 | X23: 2012-01-30 | Y23: 2012-01-30 | Z23: 5 | AA23: 1 | AB23: 0.645 | AC23: 0.01185008267
A24: 9 | B24: 2014-12-01 | C24: 83.34 | D24: 84.39 | E24: 82.33 | F24: 82.53 | G24: 223600 | H24: 82.53 | I24: 1 | J24: 1 | K24: =ROUND($I24*C24,2) -> 83.34 | L24: =ROUND($I24*D24,2) -> 84.39 | M24: =ROUND($I24*E24,2) -> 82.33 | N24: =ROUND($I24*F24,2) -> 82.53 | O24: 223600 | U24: 2012-10-31 | V24: 0.165 | W24: 51.55 | X24: 2011-10-31 | Y24: 2012-01-30 | Z24: 4 | AA24: 0 | AB24: 0.63 | AC24: 0.01222114452
A25: 10 | B25: 2014-11-28 | C25: 83.6 | D25: 84.89 | E25: 83.46 | F25: 83.72 | G25: 164100 | H25: 83.72 | I25: 1 | J25: 1 | K25: =ROUND($I25*C25,2) -> 83.6 | L25: =ROUND($I25*D25,2) -> 84.89 | M25: =ROUND($I25*E25,2) -> 83.46 | N25: =ROUND($I25*F25,2) -> 83.72 | O25: 164100 | U25: 2012-07-30 | V25: 0.165 | W25: 59.65 | X25: 2011-07-30 | Y25: 2011-10-28 | Z25: 4 | AA25: 0 | AB25: 0.615 | AC25: 0.0103101425
A26: 11 | B26: 2014-11-26 | C26: 80.34 | D26: 84.28 | E26: 80.1 | F26: 83.47 | G26: 279200 | H26: 83.47 | I26: 1 | J26: 1 | K26: =ROUND($I26*C26,2) -> 80.34 | L26: =ROUND($I26*D26,2) -> 84.28 | M26: =ROUND($I26*E26,2) -> 80.1 | N26: =ROUND($I26*F26,2) -> 83.47 | O26: 279200 | U26: 2012-04-27 | V26: 0.15 | W26: 57.33 | X26: 2011-04-27 | Y26: 2011-04-28 | Z26: 5 | AA26: 1 | AB26: 0.6 | AC26: 0.01046572475
A27: 12 | B27: 2014-11-25 | C27: 85.84 | D27: 85.84 | E27: 79.2 | F27: 80.83 | G27: 896200 | H27: 80.83 | I27: 1 | J27: 1 | K27: =ROUND($I27*C27,2) -> 85.84 | L27: =ROUND($I27*D27,2) -> 85.84 | M27: =ROUND($I27*E27,2) -> 79.2 | N27: =ROUND($I27*F27,2) -> 80.83 | O27: 896200 | U27: 2012-01-30 | V27: 0.15 | W27: 51.12 | X27: 2011-01-30 | Y27: 2011-04-28 | Z27: 4 | AA27: 0 | AB27: 0.585 | AC27: 0.01144366197
A28: 13 | B28: 2014-11-24 | C28: 87.2 | D28: 88.66 | E28: 86.68 | F28: 87.87 | G28: 308400 | H28: 87.87 | I28: 1 | J28: 1 | K28: =ROUND($I28*C28,2) -> 87.2 | L28: =ROUND($I28*D28,2) -> 88.66 | M28: =ROUND($I28*E28,2) -> 86.68 | N28: =ROUND($I28*F28,2) -> 87.87 | O28: 308400 | U28: 2011-10-28 | V28: 0.15 | W28: 49.49 | X28: 2010-10-28 | Y28: 2010-10-28 | Z28: 5 | AA28: 1 | AB28: 0.57 | AC28: 0.01151747828
A29: 14 | B29: 2014-11-21 | C29: 86.45 | D29: 87.63 | E29: 85.62 | F29: 87.22 | G29: 294000 | H29: 87.22 | I29: 1 | J29: 1 | K29: =ROUND($I29*C29,2) -> 86.45 | L29: =ROUND($I29*D29,2) -> 87.63 | M29: =ROUND($I29*E29,2) -> 85.62 | N29: =ROUND($I29*F29,2) -> 87.22 | O29: 294000 | U29: 2011-07-28 | V29: 0.15 | W29: 44.76 | X29: 2010-07-28 | Y29: 2010-07-29 | Z29: 5 | AA29: 1 | AB29: 0.555 | AC29: 0.01239946381
A30: 15 | B30: 2014-11-20 | C30: 83.21 | D30: 85.9 | E30: 82.78 | F30: 85.55 | G30: 250600 | H30: 85.55 | I30: 1 | J30: 1 | K30: =ROUND($I30*C30,2) -> 83.21 | L30: =ROUND($I30*D30,2) -> 85.9 | M30: =ROUND($I30*E30,2) -> 82.78 | N30: =ROUND($I30*F30,2) -> 85.55 | O30: 250600 | U30: 2011-04-28 | V30: 0.135 | W30: 39.14 | X30: 2010-04-28 | Y30: 2010-04-29 | Z30: 5 | AA30: 1 | AB30: 0.505 | AC30: 0.01290240164
A31: 16 | B31: 2014-11-19 | C31: 82.05 | D31: 83.81 | E31: 81.46 | F31: 83.56 | G31: 268800 | H31: 83.56 | I31: 1 | J31: 1 | K31: =ROUND($I31*C31,2) -> 82.05 | L31: =ROUND($I31*D31,2) -> 83.81 | M31: =ROUND($I31*E31,2) -> 81.46 | N31: =ROUND($I31*F31,2) -> 83.56 | O31: 268800 | U31: 2011-01-28 | V31: 0.135 | W31: 42.76 | X31: 2010-01-28 | Y31: 2010-01-28 | Z31: 5 | AA31: 1 | AB31: 0.455 | AC31: 0.01064078578
A32: 17 | B32: 2014-11-18 | C32: 81.62 | D32: 82.83 | E32: 81 | F32: 82.26 | G32: 157000 | H32: 82.26 | I32: 1 | J32: 1 | K32: =ROUND($I32*C32,2) -> 81.62 | L32: =ROUND($I32*D32,2) -> 82.83 | M32: =ROUND($I32*E32,2) -> 81 | N32: =ROUND($I32*F32,2) -> 82.26 | O32: 157000 | U32: 2010-10-28 | V32: 0.135 | W32: 41.05 | X32: 2009-10-28 | Y32: 2009-10-29 | Z32: 5 | AA32: 1 | AB32: 0.405 | AC32: 0.009866017052
A33: 18 | B33: 2014-11-17 | C33: 82.47 | D33: 82.63 | E33: 81.3 | F33: 81.37 | G33: 161700 | H33: 81.37 | I33: 1 | J33: 1 | K33: =ROUND($I33*C33,2) -> 82.47 | L33: =ROUND($I33*D33,2) -> 82.63 | M33: =ROUND($I33*E33,2) -> 81.3 | N33: =ROUND($I33*F33,2) -> 81.37 | O33: 161700 | U33: 2010-07-29 | V33: 0.1 | W33: 38.04 | X33: 2009-07-29 | Y33: 2009-07-30 | Z33: 5 | AA33: 1 | AB33: 0.355 | AC33: 0.009332281809
A34: 19 | B34: 2014-11-14 | C34: 83.4 | D34: 83.8 | E34: 82.42 | F34: 82.48 | G34: 154100 | H34: 82.48 | I34: 1 | J34: 1 | K34: =ROUND($I34*C34,2) -> 83.4 | L34: =ROUND($I34*D34,2) -> 83.8 | M34: =ROUND($I34*E34,2) -> 82.42 | N34: =ROUND($I34*F34,2) -> 82.48 | O34: 154100 | U34: 2010-04-29 | V34: 0.085 | W34: 38.99 | X34: 2009-04-29 | Y34: 2009-04-29 | Z34: 5 | AA34: 1 | AB34: 0.34 | AC34: 0.008720184663
A35: 20 | B35: 2014-11-13 | C35: 83.91 | D35: 84 | E35: 83.41 | F35: 83.55 | G35: 99400 | H35: 83.55 | I35: 1 | J35: 1 | K35: =ROUND($I35*C35,2) -> 83.91 | L35: =ROUND($I35*D35,2) -> 84 | M35: =ROUND($I35*E35,2) -> 83.41 | N35: =ROUND($I35*F35,2) -> 83.55 | O35: 99400 | U35: 2010-01-28 | V35: 0.085 | W35: 30.87 | X35: 2009-01-28 | Y35: 2009-01-29 | Z35: 5 | AA35: 1 | AB35: 0.33 | AC35: 0.01068999028
A36: 21 | B36: 2014-11-12 | C36: 83.45 | D36: 83.97 | E36: 83.16 | F36: 83.65 | G36: 181600 | H36: 83.65 | I36: 1 | J36: 1 | K36: =ROUND($I36*C36,2) -> 83.45 | L36: =ROUND($I36*D36,2) -> 83.97 | M36: =ROUND($I36*E36,2) -> 83.16 | N36: =ROUND($I36*F36,2) -> 83.65 | O36: 181600 | U36: 2009-10-29 | V36: 0.085 | W36: 32.01 | X36: 2008-10-29 | Y36: 2008-10-30 | Z36: 5 | AA36: 1 | AB36: 0.32 | AC36: 0.009996875976
A37: 22 | B37: 2014-11-11 | C37: 84.23 | D37: 84.23 | E37: 83.08 | F37: 83.68 | G37: 190500 | H37: 83.68 | I37: 1 | J37: 1 | K37: =ROUND($I37*C37,2) -> 84.23 | L37: =ROUND($I37*D37,2) -> 84.23 | M37: =ROUND($I37*E37,2) -> 83.08 | N37: =ROUND($I37*F37,2) -> 83.68 | O37: 190500 | U37: 2009-07-30 | V37: 0.085 | W37: 27.58 | X37: 2008-07-30 | Y37: 2008-07-30 | Z37: 5 | AA37: 1 | AB37: 0.31 | AC37: 0.01124002901
A38: 23 | B38: 2014-11-10 | C38: 83.66 | D38: 84.54 | E38: 83.23 | F38: 83.98 | G38: 170600 | H38: 83.98 | I38: 1 | J38: 1 | K38: =ROUND($I38*C38,2) -> 83.66 | L38: =ROUND($I38*D38,2) -> 84.54 | M38: =ROUND($I38*E38,2) -> 83.23 | N38: =ROUND($I38*F38,2) -> 83.98 | O38: 170600 | U38: 2009-04-29 | V38: 0.075 | W38: 27.43 | X38: 2008-04-29 | Y38: 2008-04-29 | Z38: 5 | AA38: 1 | AB38: 0.3 | AC38: 0.01093693037
A39: 24 | B39: 2014-11-07 | C39: 82.88 | D39: 83.57 | E39: 81.99 | F39: 83.52 | G39: 168100 | H39: 83.52 | I39: 1 | J39: 1 | K39: =ROUND($I39*C39,2) -> 82.88 | L39: =ROUND($I39*D39,2) -> 83.57 | M39: =ROUND($I39*E39,2) -> 81.99 | N39: =ROUND($I39*F39,2) -> 83.52 | O39: 168100 | U39: 2009-01-29 | V39: 0.075 | W39: 22.07 | X39: 2008-01-29 | Y39: 2008-01-30 | Z39: 5 | AA39: 1 | AB39: 0.29 | AC39: 0.01314000906
A40: 25 | B40: 2014-11-06 | C40: 81.64 | D40: 82.8 | E40: 81.27 | F40: 82.74 | G40: 222900 | H40: 82.74 | I40: 1 | J40: 1 | K40: =ROUND($I40*C40,2) -> 81.64 | L40: =ROUND($I40*D40,2) -> 82.8 | M40: =ROUND($I40*E40,2) -> 81.27 | N40: =ROUND($I40*F40,2) -> 82.74 | O40: 222900 | U40: 2008-10-30 | V40: 0.075 | W40: 30.26 | X40: 2007-10-30 | Y40: 2007-10-30 | Z40: 5 | AA40: 1 | AB40: 0.28 | AC40: 0.009253139458
A41: 26 | B41: 2014-11-05 | C41: 81.59 | D41: 82.41 | E41: 80.95 | F41: 81.46 | G41: 174300 | H41: 81.46 | I41: 1 | J41: 1 | K41: =ROUND($I41*C41,2) -> 81.59 | L41: =ROUND($I41*D41,2) -> 82.41 | M41: =ROUND($I41*E41,2) -> 80.95 | N41: =ROUND($I41*F41,2) -> 81.46 | O41: 174300 | U41: 2008-07-30 | V41: 0.075 | W41: 24.85 | X41: 2007-07-30 | Y41: 2007-07-30 | Z41: 5 | AA41: 1 | AB41: 0.27 | AC41: 0.01086519115
A42: 27 | B42: 2014-11-04 | C42: 80.71 | D42: 81.87 | E42: 80.26 | F42: 81.2 | G42: 212600 | H42: 81.2 | I42: 1 | J42: 1 | K42: =ROUND($I42*C42,2) -> 80.71 | L42: =ROUND($I42*D42,2) -> 81.87 | M42: =ROUND($I42*E42,2) -> 80.26 | N42: =ROUND($I42*F42,2) -> 81.2 | O42: 212600 | U42: 2008-04-29 | V42: 0.065 | W42: 22.26 | X42: 2007-04-29 | Y42: 2007-07-30 | Z42: 4 | AA42: 0 | AB42: 0.26 | AC42: 0.01168014376
A43: 28 | B43: 2014-11-03 | C43: 81.87 | D43: 81.9 | E43: 80.51 | F43: 80.76 | G43: 177900 | H43: 80.76 | I43: 1 | J43: 1 | K43: =ROUND($I43*C43,2) -> 81.87 | L43: =ROUND($I43*D43,2) -> 81.9 | M43: =ROUND($I43*E43,2) -> 80.51 | N43: =ROUND($I43*F43,2) -> 80.76 | O43: 177900 | U43: 2008-01-30 | V43: 0.065 | W43: 24.99 | X43: 2007-01-30 | Y43: 2007-01-30 | Z43: 5 | AA43: 1 | AB43: 0.245 | AC43: 0.009803921569
A44: 29 | B44: 2014-10-31 | C44: 82.19 | D44: 82.44 | E44: 81.48 | F44: 81.87 | G44: 220800 | H44: 81.87 | I44: 1 | J44: 1 | K44: =ROUND($I44*C44,2) -> 82.19 | L44: =ROUND($I44*D44,2) -> 82.44 | M44: =ROUND($I44*E44,2) -> 81.48 | N44: =ROUND($I44*F44,2) -> 81.87 | O44: 220800 | U44: 2007-10-30 | V44: 0.065 | W44: 28.07 | X44: 2006-10-30 | Y44: 2006-10-30 | Z44: 5 | AA44: 1 | AB44: 0.23 | AC44: 0.008193801211
A45: 30 | B45: 2014-10-30 | C45: 79.83 | D45: 81.48 | E45: 79.81 | F45: 81.06 | G45: 215900 | H45: 81.06 | I45: 1 | J45: 1 | K45: =ROUND($I45*C45,2) -> 79.83 | L45: =ROUND($I45*D45,2) -> 81.48 | M45: =ROUND($I45*E45,2) -> 79.81 | N45: =ROUND($I45*F45,2) -> 81.06 | O45: 215900 | U45: 2007-07-30 | V45: 0.065 | W45: 24 | X45: 2006-07-30 | Y45: 2006-10-30 | Z45: 4 | AA45: 0 | AB45: 0.215 | AC45: 0.008958333333
A46: 31 | B46: 2014-10-29 | C46: 80.55 | D46: 81.22 | E46: 79.56 | F46: 80.53 | G46: 187600 | H46: 80.33 | I46: 0.9975164535 | J46: 1 | K46: =ROUND($I46*C46,2) -> 80.35 | L46: =ROUND($I46*D46,2) -> 81.02 | M46: =ROUND($I46*E46,2) -> 79.36 | N46: =ROUND($I46*F46,2) -> 80.33 | O46: 187600 | U46: 2007-04-27 | V46: 0.05 | W46: 25.99 | X46: 2006-04-27 | Y46: 2006-04-27 | Z46: 5 | AA46: 1 | AB46: 0.2 | AC46: 0.007695267411
A47: 32 | B47: 2014-10-28 | C47: 77.85 | D47: 80.28 | E47: 77.82 | F47: 80.09 | G47: 259200 | H47: 79.89 | I47: 0.9975028093 | J47: 1 | K47: =ROUND($I47*C47,2) -> 77.66 | L47: =ROUND($I47*D47,2) -> 80.08 | M47: =ROUND($I47*E47,2) -> 77.63 | N47: =ROUND($I47*F47,2) -> 79.89 | O47: 259200 | U47: 2007-01-30 | V47: 0.05 | W47: 25.49 | X47: 2006-01-30 | Y47: 2006-01-30 | Z47: 5 | AA47: 1 | AB47: 0.195 | AC47: 0.007650058847
A48: 33 | B48: 2014-10-27 | C48: 77.48 | D48: 77.97 | E48: 77.17 | F48: 77.73 | G48: 170700 | H48: 77.54 | I48: 0.9975556413 | J48: 1 | K48: =ROUND($I48*C48,2) -> 77.29 | L48: =ROUND($I48*D48,2) -> 77.78 | M48: =ROUND($I48*E48,2) -> 76.98 | N48: =ROUND($I48*F48,2) -> 77.54 | O48: 170700 | U48: 2006-10-30 | V48: 0.05 | W48: 24.25 | X48: 2005-10-30 | Y48: 2006-01-30 | Z48: 4 | AA48: 0 | AB48: 0.19 | AC48: 0.007835051546
A49: 34 | B49: 2014-10-24 | C49: 78.21 | D49: 78.79 | E49: 77.23 | F49: 77.79 | G49: 171900 | H49: 77.6 | I49: 0.9975575267 | J49: 1 | K49: =ROUND($I49*C49,2) -> 78.02 | L49: =ROUND($I49*D49,2) -> 78.6 | M49: =ROUND($I49*E49,2) -> 77.04 | N49: =ROUND($I49*F49,2) -> 77.6 | O49: 171900 | U49: 2006-07-28 | V49: 0.05 | W49: 22.74 | X49: 2005-07-28 | Y49: 2005-07-28 | Z49: 5 | AA49: 1 | AB49: 0.185 | AC49: 0.008135444151
A50: 35 | B50: 2014-10-23 | C50: 77.48 | D50: 78.88 | E50: 76.52 | F50: 77.98 | G50: 330200 | H50: 77.79 | I50: 0.9975634778 | J50: 1 | K50: =ROUND($I50*C50,2) -> 77.29 | L50: =ROUND($I50*D50,2) -> 78.69 | M50: =ROUND($I50*E50,2) -> 76.33 | N50: =ROUND($I50*F50,2) -> 77.79 | O50: 330200 | U50: 2006-04-27 | V50: 0.045 | W50: 20.64 | X50: 2005-04-27 | Y50: 2005-04-28 | Z50: 5 | AA50: 1 | AB50: 0.18 | AC50: 0.008720930233
A51: 36 | B51: 2014-10-22 | C51: 77.01 | D51: 78.11 | E51: 76.46 | F51: 76.65 | G51: 240300 | H51: 76.46 | I51: 0.9975212003 | J51: 1 | K51: =ROUND($I51*C51,2) -> 76.82 | L51: =ROUND($I51*D51,2) -> 77.92 | M51: =ROUND($I51*E51,2) -> 76.27 | N51: =ROUND($I51*F51,2) -> 76.46 | O51: 240300 | U51: 2006-01-30 | V51: 0.045 | W51: 25.11 | X51: 2005-01-30 | Y51: 2005-04-28 | Z51: 4 | AA51: 0 | AB51: 0.175 | AC51: 0.006969334926
A52: 37 | B52: 2014-10-21 | C52: 77.16 | D52: 77.77 | E52: 76.26 | F52: 76.79 | G52: 228300 | H52: 76.6 | I52: 0.9975257195 | J52: 1 | K52: =ROUND($I52*C52,2) -> 76.97 | L52: =ROUND($I52*D52,2) -> 77.58 | M52: =ROUND($I52*E52,2) -> 76.07 | N52: =ROUND($I52*F52,2) -> 76.6 | O52: 228300 | U52: 2005-10-28 | V52: 0.045 | W52: 21.06 | X52: 2004-10-28 | Y52: 2004-10-28 | Z52: 5 | AA52: 1 | AB52: 0.17 | AC52: 0.008072174739
A53: 38 | B53: 2014-10-20 | C53: 75.64 | D53: 76.74 | E53: 75.39 | F53: 76.73 | G53: 220700 | H53: 76.54 | I53: 0.9975237847 | J53: 1 | K53: =ROUND($I53*C53,2) -> 75.45 | L53: =ROUND($I53*D53,2) -> 76.55 | M53: =ROUND($I53*E53,2) -> 75.2 | N53: =ROUND($I53*F53,2) -> 76.54 | O53: 220700 | U53: 2005-07-28 | V53: 0.045 | W53: 21.75 | X53: 2004-07-28 | Y53: 2004-07-29 | Z53: 5 | AA53: 1 | AB53: 0.165 | AC53: 0.007586206897
A54: 39 | B54: 2014-10-17 | C54: 79.72 | D54: 79.74 | E54: 75.06 | F54: 75.98 | G54: 346400 | H54: 75.79 | I54: 0.9974993419 | J54: 1 | K54: =ROUND($I54*C54,2) -> 79.52 | L54: =ROUND($I54*D54,2) -> 79.54 | M54: =ROUND($I54*E54,2) -> 74.87 | N54: =ROUND($I54*F54,2) -> 75.79 | O54: 346400 | U54: 2005-04-28 | V54: 0.04 | W54: 16.85 | X54: 2004-04-28 | Y54: 2004-04-29 | Z54: 5 | AA54: 1 | AB54: 0.16 | AC54: 0.009495548961
A55: 40 | B55: 2014-10-16 | C55: 77.31 | D55: 79.14 | E55: 76.72 | F55: 78.66 | G55: 330500 | H55: 78.46 | I55: 0.9974574116 | J55: 1 | K55: =ROUND($I55*C55,2) -> 77.11 | L55: =ROUND($I55*D55,2) -> 78.94 | M55: =ROUND($I55*E55,2) -> 76.52 | N55: =ROUND($I55*F55,2) -> 78.46 | O55: 330500 | U55: 2005-01-28 | V55: 0.04 | W55: 17.19 | X55: 2004-01-28 | Y55: 2004-01-29 | Z55: 5 | AA55: 1 | AB55: 0.155 | AC55: 0.009016870273
A56: 41 | B56: 2014-10-15 | C56: 79 | D56: 79.46 | E56: 77.13 | F56: 78.01 | G56: 350100 | H56: 77.82 | I56: 0.9975644148 | J56: 1 | K56: =ROUND($I56*C56,2) -> 78.81 | L56: =ROUND($I56*D56,2) -> 79.27 | M56: =ROUND($I56*E56,2) -> 76.94 | N56: =ROUND($I56*F56,2) -> 77.82 | O56: 350100 | U56: 2004-10-28 | V56: 0.04 | W56: 18.08 | X56: 2003-10-28 | Y56: 2003-10-30 | Z56: 5 | AA56: 1 | AB56: 0.15 | AC56: 0.008296460177
A57: 42 | B57: 2014-10-14 | C57: 78.11 | D57: 79.98 | E57: 76.94 | F57: 79.67 | G57: 644200 | H57: 79.47 | I57: 0.9974896448 | J57: 1 | K57: =ROUND($I57*C57,2) -> 77.91 | L57: =ROUND($I57*D57,2) -> 79.78 | M57: =ROUND($I57*E57,2) -> 76.75 | N57: =ROUND($I57*F57,2) -> 79.47 | O57: 644200 | U57: 2004-07-29 | V57: 0.04 | W57: 16.47 | X57: 2003-07-29 | Y57: 2003-07-30 | Z57: 5 | AA57: 1 | AB57: 0.145 | AC57: 0.008803885853
A58: 43 | B58: 2014-10-13 | C58: 75.79 | D58: 78.17 | E58: 75.36 | F58: 77.22 | G58: 365300 | H58: 77.03 | I58: 0.9975394975 | J58: 1 | K58: =ROUND($I58*C58,2) -> 75.6 | L58: =ROUND($I58*D58,2) -> 77.98 | M58: =ROUND($I58*E58,2) -> 75.17 | N58: =ROUND($I58*F58,2) -> 77.03 | O58: 365300 | U58: 2004-04-29 | V58: 0.035 | W58: 16.58 | X58: 2003-04-29 | Y58: 2003-04-29 | Z58: 5 | AA58: 1 | AB58: 0.14 | AC58: 0.008443908323
A59: 44 | B59: 2014-10-10 | C59: 74.27 | D59: 75.97 | E59: 74.03 | F59: 75.59 | G59: 324800 | H59: 75.4 | I59: 0.99748644 | J59: 1 | K59: =ROUND($I59*C59,2) -> 74.08 | L59: =ROUND($I59*D59,2) -> 75.78 | M59: =ROUND($I59*E59,2) -> 73.84 | N59: =ROUND($I59*F59,2) -> 75.4 | O59: 324800 | U59: 2004-01-29 | V59: 0.035 | W59: 16.91 | X59: 2003-01-29 | Y59: 2003-01-30 | Z59: 5 | AA59: 1 | AB59: 0.13 | AC59: 0.007687758723
A60: 45 | B60: 2014-10-09 | C60: 75 | D60: 75.71 | E60: 74.58 | F60: 74.66 | G60: 274200 | H60: 74.47 | I60: 0.9974551299 | J60: 1 | K60: =ROUND($I60*C60,2) -> 74.81 | L60: =ROUND($I60*D60,2) -> 75.52 | M60: =ROUND($I60*E60,2) -> 74.39 | N60: =ROUND($I60*F60,2) -> 74.47 | O60: 274200 | U60: 2003-10-30 | V60: 0.035 | W60: 15.24 | X60: 2002-10-30 | Y60: 2002-10-30 | Z60: 5 | AA60: 1 | AB60: 0.12 | AC60: 0.007874015748
A61: 46 | B61: 2014-10-08 | C61: 73.8 | D61: 75.52 | E61: 73.4 | F61: 75.28 | G61: 279600 | H61: 75.09 | I61: 0.9974760893 | J61: 1 | K61: =ROUND($I61*C61,2) -> 73.61 | L61: =ROUND($I61*D61,2) -> 75.33 | M61: =ROUND($I61*E61,2) -> 73.21 | N61: =ROUND($I61*F61,2) -> 75.09 | O61: 279600 | U61: 2003-07-30 | V61: 0.035 | W61: 15.28 | X61: 2002-07-30 | Y61: 2002-07-30 | Z61: 5 | AA61: 1 | AB61: 0.11 | AC61: 0.00719895288
A62: 47 | B62: 2014-10-07 | C62: 73.37 | D62: 73.99 | E62: 73.06 | F62: 73.8 | G62: 206100 | H62: 73.62 | I62: 0.9975609756 | J62: 1 | K62: =ROUND($I62*C62,2) -> 73.19 | L62: =ROUND($I62*D62,2) -> 73.81 | M62: =ROUND($I62*E62,2) -> 72.88 | N62: =ROUND($I62*F62,2) -> 73.62 | O62: 206100 | U62: 2003-04-29 | V62: 0.025 | W62: 12.96 | X62: 2002-04-29 | Y62: 2002-04-29 | Z62: 5 | AA62: 1 | AB62: 0.1 | AC62: 0.007716049383
A63: 48 | B63: 2014-10-06 | C63: 73.56 | D63: 74.08 | E63: 73.26 | F63: 73.69 | G63: 236200 | H63: 73.51 | I63: 0.9975573348 | J63: 1 | K63: =ROUND($I63*C63,2) -> 73.38 | L63: =ROUND($I63*D63,2) -> 73.9 | M63: =ROUND($I63*E63,2) -> 73.08 | N63: =ROUND($I63*F63,2) -> 73.51 | O63: 236200 | U63: 2003-01-30 | V63: 0.025 | W63: 11.4 | X63: 2002-01-30 | Y63: 2002-01-30 | Z63: 5 | AA63: 1 | AB63: 0.1 | AC63: 0.008771929825
A64: 49 | B64: 2014-10-03 | C64: 72.92 | D64: 73.65 | E64: 72.79 | F64: 73.49 | G64: 182500 | H64: 73.31 | I64: 0.9975506872 | J64: 1 | K64: =ROUND($I64*C64,2) -> 72.74 | L64: =ROUND($I64*D64,2) -> 73.47 | M64: =ROUND($I64*E64,2) -> 72.61 | N64: =ROUND($I64*F64,2) -> 73.31 | O64: 182500 | U64: 2002-10-30 | V64: 0.025 | W64: 11.65 | X64: 2001-10-30 | Y64: 2001-10-30 | Z64: 5 | AA64: 1 | AB64: 0.1 | AC64: 0.008583690987
A65: 50 | B65: 2014-10-02 | C65: 71.28 | D65: 73.04 | E65: 71.28 | F65: 72.16 | G65: 284200 | H65: 71.98 | I65: 0.9975055432 | J65: 1 | K65: =ROUND($I65*C65,2) -> 71.1 | L65: =ROUND($I65*D65,2) -> 72.86 | M65: =ROUND($I65*E65,2) -> 71.1 | N65: =ROUND($I65*F65,2) -> 71.98 | O65: 284200 | U65: 2002-07-30 | V65: 0.025 | W65: 11.75 | X65: 2001-07-30 | Y65: 2001-07-30 | Z65: 5 | AA65: 1 | AB65: 0.095 | AC65: 0.008085106383
A66: 51 | B66: 2014-10-01 | C66: 71.48 | D66: 72.05 | E66: 71.08 | F66: 71.38 | G66: 278300 | H66: 71.2 | I66: 0.9974782852 | J66: 1 | K66: =ROUND($I66*C66,2) -> 71.3 | L66: =ROUND($I66*D66,2) -> 71.87 | M66: =ROUND($I66*E66,2) -> 70.9 | N66: =ROUND($I66*F66,2) -> 71.2 | O66: 278300 | U66: 2002-04-29 | V66: 0.025 | W66: 12.67 | X66: 2001-04-29 | Y66: 2001-07-30 | Z66: 4 | AA66: 0 | AB66: 0.09 | AC66: 0.007103393844
A67: 52 | B67: 2014-09-30 | C67: 71.15 | D67: 72.39 | E67: 70.64 | F67: 71.7 | G67: 410100 | H67: 71.52 | I67: 0.9974895397 | J67: 1 | K67: =ROUND($I67*C67,2) -> 70.97 | L67: =ROUND($I67*D67,2) -> 72.21 | M67: =ROUND($I67*E67,2) -> 70.46 | N67: =ROUND($I67*F67,2) -> 71.52 | O67: 410100 | U67: 2002-01-30 | V67: 0.025 | W67: 14.89 | X67: 2001-01-30 | Y67: 2001-01-30 | Z67: 5 | AA67: 1 | AB67: 0.085 | AC67: 0.005708529214
A68: 53 | B68: 2014-09-29 | C68: 69.84 | D68: 71.47 | E68: 69.29 | F68: 71.23 | G68: 193200 | H68: 71.05 | I68: 0.9974729749 | J68: 1 | K68: =ROUND($I68*C68,2) -> 69.66 | L68: =ROUND($I68*D68,2) -> 71.29 | M68: =ROUND($I68*E68,2) -> 69.11 | N68: =ROUND($I68*F68,2) -> 71.05 | O68: 193200 | U68: 2001-10-30 | V68: 0.02 | W68: 12.5 | X68: 2000-10-30 | Y68: 2000-10-30 | Z68: 5 | AA68: 1 | AB68: 0.08 | AC68: 0.0064
A69: 54 | B69: 2014-09-26 | C69: 70.22 | D69: 70.75 | E69: 69.76 | F69: 70.44 | G69: 122200 | H69: 70.27 | I69: 0.9975865985 | J69: 1 | K69: =ROUND($I69*C69,2) -> 70.05 | L69: =ROUND($I69*D69,2) -> 70.58 | M69: =ROUND($I69*E69,2) -> 69.59 | N69: =ROUND($I69*F69,2) -> 70.27 | O69: 122200 | U69: 2001-07-30 | V69: 0.02 | W69: 13.66 | X69: 2000-07-30 | Y69: 2000-10-30 | Z69: 4 | AA69: 0 | AB69: 0.08 | AC69: 0.005856515373
A70: 55 | B70: 2014-09-25 | C70: 70.62 | D70: 71.03 | E70: 69.49 | F70: 70.16 | G70: 168600 | H70: 69.99 | I70: 0.9975769669 | J70: 1 | K70: =ROUND($I70*C70,2) -> 70.45 | L70: =ROUND($I70*D70,2) -> 70.86 | M70: =ROUND($I70*E70,2) -> 69.32 | N70: =ROUND($I70*F70,2) -> 69.99 | O70: 168600 | U70: 2001-04-27 | V70: 0.02 | W70: 11.94 | X70: 2000-04-27 | Y70: 2000-04-27 | Z70: 5 | AA70: 1 | AB70: 0.08 | AC70: 0.006700167504
A71: 56 | B71: 2014-09-24 | C71: 70.6 | D71: 71.16 | E71: 70.29 | F71: 70.78 | G71: 190600 | H71: 70.6 | I71: 0.9974569087 | J71: 1 | K71: =ROUND($I71*C71,2) -> 70.42 | L71: =ROUND($I71*D71,2) -> 70.98 | M71: =ROUND($I71*E71,2) -> 70.11 | N71: =ROUND($I71*F71,2) -> 70.6 | O71: 190600 | U71: 2001-01-30 | V71: 0.02 | W71: 12.06 | X71: 2000-01-30 | Y71: 2000-04-27 | Z71: 4 | AA71: 0 | AB71: 0.075 | AC71: 0.006218905473
A72: 57 | B72: 2014-09-23 | C72: 70.45 | D72: 71.01 | E72: 70.04 | F72: 70.27 | G72: 221100 | H72: 70.1 | I72: 0.9975807599 | J72: 1 | K72: =ROUND($I72*C72,2) -> 70.28 | L72: =ROUND($I72*D72,2) -> 70.84 | M72: =ROUND($I72*E72,2) -> 69.87 | N72: =ROUND($I72*F72,2) -> 70.1 | O72: 221100 | U72: 2000-10-30 | V72: 0.02 | W72: 12.06 | X72: 1999-10-30 | Y72: 2000-01-28 | Z72: 4 | AA72: 0 | AB72: 0.07 | AC72: 0.005804311774
A73: 58 | B73: 2014-09-22 | C73: 70.57 | D73: 70.82 | E73: 70.18 | F73: 70.47 | G73: 190400 | H73: 70.29 | I73: 0.9974457216 | J73: 1 | K73: =ROUND($I73*C73,2) -> 70.39 | L73: =ROUND($I73*D73,2) -> 70.64 | M73: =ROUND($I73*E73,2) -> 70 | N73: =ROUND($I73*F73,2) -> 70.29 | O73: 190400 | U73: 2000-07-28 | V73: 0.02 | W73: 11.62 | X73: 1999-07-28 | Y73: 1999-07-29 | Z73: 5 | AA73: 1 | AB73: 0.065 | AC73: 0.005593803787
A74: 59 | B74: 2014-09-19 | C74: 71.47 | D74: 71.99 | E74: 70.61 | F74: 70.95 | G74: 536500 | H74: 70.77 | I74: 0.9974630021 | J74: 1 | K74: =ROUND($I74*C74,2) -> 71.29 | L74: =ROUND($I74*D74,2) -> 71.81 | M74: =ROUND($I74*E74,2) -> 70.43 | N74: =ROUND($I74*F74,2) -> 70.77 | O74: 536500 | U74: 2000-04-27 | V74: 0.015 | W74: 11.38 | X74: 1999-04-27 | Y74: 1999-04-29 | Z74: 5 | AA74: 1 | AB74: 0.06 | AC74: 0.005272407733
A75: 60 | B75: 2014-09-18 | C75: 71 | D75: 71.57 | E75: 70.79 | F75: 71.27 | G75: 192900 | H75: 71.09 | I75: 0.9974743932 | J75: 1 | K75: =ROUND($I75*C75,2) -> 70.82 | L75: =ROUND($I75*D75,2) -> 71.39 | M75: =ROUND($I75*E75,2) -> 70.61 | N75: =ROUND($I75*F75,2) -> 71.09 | O75: 192900 | U75: 2000-01-28 | V75: 0.015 | W75: 10.12 | X75: 1999-01-28 | Y75: 1999-01-28 | Z75: 5 | AA75: 1 | AB75: 0.06 | AC75: 0.005928853755
A76: 61 | B76: 2014-09-17 | C76: 68.9 | D76: 70.97 | E76: 68.51 | F76: 70.93 | G76: 355600 | H76: 70.75 | I76: 0.9974622868 | J76: 1 | K76: =ROUND($I76*C76,2) -> 68.73 | L76: =ROUND($I76*D76,2) -> 70.79 | M76: =ROUND($I76*E76,2) -> 68.34 | N76: =ROUND($I76*F76,2) -> 70.75 | O76: 355600 | U76: 1999-10-28 | V76: 0.015 | W76: 12.88 | X76: 1998-10-28 | Y76: 1998-10-29 | Z76: 5 | AA76: 1 | AB76: 0.06 | AC76: 0.004658385093
A77: 62 | B77: 2014-09-16 | C77: 68.44 | D77: 68.83 | E77: 68.06 | F77: 68.57 | G77: 276900 | H77: 68.4 | I77: 0.9975207817 | J77: 1 | K77: =ROUND($I77*C77,2) -> 68.27 | L77: =ROUND($I77*D77,2) -> 68.66 | M77: =ROUND($I77*E77,2) -> 67.89 | N77: =ROUND($I77*F77,2) -> 68.4 | O77: 276900 | U77: 1999-07-29 | V77: 0.015 | W77: 15.03 | X77: 1998-07-29 | Y77: 1998-07-30 | Z77: 5 | AA77: 1 | AB77: 0.06 | AC77: 0.003992015968
A78: 63 | B78: 2014-09-15 | C78: 68.55 | D78: 68.89 | E78: 67.78 | F78: 68.42 | G78: 240600 | H78: 68.25 | I78: 0.9975153464 | J78: 1 | K78: =ROUND($I78*C78,2) -> 68.38 | L78: =ROUND($I78*D78,2) -> 68.72 | M78: =ROUND($I78*E78,2) -> 67.61 | N78: =ROUND($I78*F78,2) -> 68.25 | O78: 240600 | U78: 1999-04-29 | V78: 0.015 | W78: 13.53 | X78: 1998-04-29 | Y78: 1998-04-29 | Z78: 5 | AA78: 1 | AB78: 0.06 | AC78: 0.0044345898
A79: 64 | B79: 2014-09-12 | C79: 70.55 | D79: 70.55 | E79: 68.64 | F79: 68.75 | G79: 227600 | H79: 68.58 | I79: 0.9975272727 | J79: 1 | K79: =ROUND($I79*C79,2) -> 70.38 | L79: =ROUND($I79*D79,2) -> 70.38 | M79: =ROUND($I79*E79,2) -> 68.47 | N79: =ROUND($I79*F79,2) -> 68.58 | O79: 227600 | U79: 1999-01-28 | V79: 0.015 | W79: 13.44 | X79: 1998-01-28 | Y79: 1998-01-29 | Z79: 5 | AA79: 1 | AB79: 0.06 | AC79: 0.004464285714
A80: 65 | B80: 2014-09-11 | C80: 70.32 | D80: 70.87 | E80: 70.17 | F80: 70.43 | G80: 223900 | H80: 70.26 | I80: 0.9975862559 | J80: 1 | K80: =ROUND($I80*C80,2) -> 70.15 | L80: =ROUND($I80*D80,2) -> 70.7 | M80: =ROUND($I80*E80,2) -> 70 | N80: =ROUND($I80*F80,2) -> 70.26 | O80: 223900 | U80: 1998-10-29 | V80: 0.015 | W80: 13.25 | X80: 1997-10-29 | Y80: 1997-10-30 | Z80: 5 | AA80: 1 | AB80: 0.06 | AC80: 0.004528301887
A81: 66 | B81: 2014-09-10 | C81: 69.8 | D81: 70.54 | E81: 68.75 | F81: 70.49 | G81: 381900 | H81: 70.31 | I81: 0.9974464463 | J81: 1 | K81: =ROUND($I81*C81,2) -> 69.62 | L81: =ROUND($I81*D81,2) -> 70.36 | M81: =ROUND($I81*E81,2) -> 68.57 | N81: =ROUND($I81*F81,2) -> 70.31 | O81: 381900 | U81: 1998-07-30 | V81: 0.015 | W81: =(INDEX(OFFSET($F$15,1,0,$B$10,1),MATCH(U81,OFFSET($B$15,1,0,$B$10,1),-1))) -> 15.5 | X81: =IF(MONTH(DATE(YEAR(U81)-1,MONTH(U81),DAY(U81)))<>MONTH(U81),DATE(YEAR(U81)-1,MONTH(U81),DAY(U81-1)),DATE(YEAR(U81)-1,MONTH(U81),DAY(U81))) -> 1997-07-30 | Y81: =OFFSET(U80,Z81,0,1,1) -> 1997-07-30 | Z81: =MATCH(X81,OFFSET($U$15,A81,0,$V$14+1-A81,1),-1) -> 5 | AA81: =IF(MONTH(U81)=MONTH(Y81),1,0) -> 1 | AB81: =(V81+IFERROR(SUM(OFFSET(V81,1,0,Z81-AA81-1,1)),0)) -> 0.06 | AC81: =(V81+IFERROR(SUM(OFFSET(V81,1,0,Z81-AA81-1,1)),0))/(INDEX(OFFSET($F$15,1,0,$B$10,1),MATCH(U81,OFFSET($B$15,1,0,$B$10,1),-1))) -> 0.003870967742
A82: 67 | B82: 2014-09-09 | C82: 73 | D82: 73 | E82: 68.06 | F82: 69.22 | G82: 577500 | H82: 69.05 | I82: =H82/F82 -> 0.9975440624 | J82: =INDEX(OFFSET($T$15,0,0,$S$13+1,1),MATCH(B82,OFFSET($Q$15,0,0,$S$13+1,1),-1)) -> 1 | K82: =ROUND($I82*C82,2) -> 72.82 | L82: =ROUND($I82*D82,2) -> 72.82 | M82: =ROUND($I82*E82,2) -> 67.89 | N82: =ROUND($I82*F82,2) -> 69.05 | O82: =G82*J82 -> 577500 | U82: 1998-04-29 | V82: 0.015 | W82: 15.38 | X82: 1997-04-29 | Y82: 1997-04-29 | Z82: 5 | AA82: 1 | AB82: 0.06 | AC82: 0.003901170351
A83: 68 | B83: 2014-09-08 | C83: 70.8 | D83: 71.43 | E83: 70.17 | F83: 70.5 | G83: 320900 | H83: 70.32 | I83: 0.9974468085 | J83: 1 | K83: =ROUND($I83*C83,2) -> 70.62 | L83: =ROUND($I83*D83,2) -> 71.25 | M83: =ROUND($I83*E83,2) -> 69.99 | N83: =ROUND($I83*F83,2) -> 70.32 | O83: 320900 | U83: 1998-01-29 | V83: 0.015 | W83: 28.62 | X83: 1997-01-29 | Y83: 1997-01-30 | Z83: 5 | AA83: 1 | AB83: 0.0575 | AC83: 0.002009084556
A84: 69 | B84: 2014-09-05 | C84: 70.71 | D84: 71.4 | E84: 70.34 | F84: 70.88 | G84: 219000 | H84: 70.7 | I84: 0.9974604966 | J84: 1 | K84: =ROUND($I84*C84,2) -> 70.53 | L84: =ROUND($I84*D84,2) -> 71.22 | M84: =ROUND($I84*E84,2) -> 70.16 | N84: =ROUND($I84*F84,2) -> 70.7 | O84: 219000 | U84: 1997-10-30 | V84: 0.015 | W84: 23.75 | X84: 1996-10-30 | Y84: 1996-10-30 | Z84: 5 | AA84: 1 | AB84: 0.055 | AC84: 0.002315789474
A85: 70 | B85: 2014-09-04 | C85: 72.02 | D85: 72.35 | E85: 70.75 | F85: 71.08 | G85: 163800 | H85: 70.9 | I85: 0.9974676421 | J85: 1 | K85: =ROUND($I85*C85,2) -> 71.84 | L85: =ROUND($I85*D85,2) -> 72.17 | M85: =ROUND($I85*E85,2) -> 70.57 | N85: =ROUND($I85*F85,2) -> 70.9 | O85: 163800 | U85: 1997-07-30 | V85: 0.015 | W85: 22.62 | X85: 1996-07-30 | Y85: 1996-07-30 | Z85: 5 | AA85: 1 | AB85: 0.0525 | AC85: 0.002320954907
A86: 71 | B86: 2014-09-03 | C86: 72 | D86: 72.5 | E86: 71.68 | F86: 71.99 | G86: 179000 | H86: 71.81 | I86: 0.9974996527 | J86: 1 | K86: =ROUND($I86*C86,2) -> 71.82 | L86: =ROUND($I86*D86,2) -> 72.32 | M86: =ROUND($I86*E86,2) -> 71.5 | N86: =ROUND($I86*F86,2) -> 71.81 | O86: 179000 | U86: 1997-04-29 | V86: 0.0125 | W86: 19.12 | X86: 1996-04-29 | Y86: 1996-04-29 | Z86: 5 | AA86: 1 | AB86: 0.05 | AC86: 0.002615062762
A87: 72 | B87: 2014-09-02 | C87: 71.81 | D87: 71.81 | E87: 70.59 | F87: 71.55 | G87: 151100 | H87: 71.37 | I87: 0.9974842767 | J87: 1 | K87: =ROUND($I87*C87,2) -> 71.63 | L87: =ROUND($I87*D87,2) -> 71.63 | M87: =ROUND($I87*E87,2) -> 70.41 | N87: =ROUND($I87*F87,2) -> 71.37 | O87: 151100 | U87: 1997-01-30 | V87: 0.0125 | W87: 17.62 | X87: 1996-01-30 | Y87: 1996-01-30 | Z87: 5 | AA87: 1 | AB87: 0.05 | AC87: 0.002837684449
A88: 73 | B88: 2014-08-29 | C88: 71.05 | D88: 71.99 | E88: 70.66 | F88: 71.69 | G88: 167100 | H88: 71.51 | I88: 0.9974891896 | J88: 1 | K88: =ROUND($I88*C88,2) -> 70.87 | L88: =ROUND($I88*D88,2) -> 71.81 | M88: =ROUND($I88*E88,2) -> 70.48 | N88: =ROUND($I88*F88,2) -> 71.51 | O88: 167100 | U88: 1996-10-30 | V88: 0.0125 | W88: 17.62 | X88: 1995-10-30 | Y88: 1995-10-30 | Z88: 5 | AA88: 1 | AB88: 0.05 | AC88: 0.002837684449
A89: 74 | B89: 2014-08-28 | C89: 71.77 | D89: 71.77 | E89: 70.4 | F89: 71.01 | G89: 183300 | H89: 70.83 | I89: 0.9974651458 | J89: 1 | K89: =ROUND($I89*C89,2) -> 71.59 | L89: =ROUND($I89*D89,2) -> 71.59 | M89: =ROUND($I89*E89,2) -> 70.22 | N89: =ROUND($I89*F89,2) -> 70.83 | O89: 183300 | U89: 1996-07-30 | V89: 0.0125 | W89: 17.12 | X89: 1995-07-30 | Y89: 1995-10-30 | Z89: 4 | AA89: 0 | AB89: 0.05 | AC89: 0.002920560748
A90: 75 | B90: 2014-08-27 | C90: 72.89 | D90: 72.94 | E90: 71.73 | F90: 71.87 | G90: 212000 | H90: 71.69 | I90: 0.9974954779 | J90: 1 | K90: =ROUND($I90*C90,2) -> 72.71 | L90: =ROUND($I90*D90,2) -> 72.76 | M90: =ROUND($I90*E90,2) -> 71.55 | N90: =ROUND($I90*F90,2) -> 71.69 | O90: 212000 | U90: 1996-04-29 | V90: 0.0125 | W90: 21.38 | X90: 1995-04-29 | Y90: 1995-07-28 | Z90: 4 | AA90: 0 | AB90: 0.05 | AC90: 0.002338634238
A91: 76 | B91: 2014-08-26 | C91: 72.37 | D91: 73.09 | E91: 72.04 | F91: 72.65 | G91: 209800 | H91: 72.47 | I91: 0.9975223675 | J91: 1 | K91: =ROUND($I91*C91,2) -> 72.19 | L91: =ROUND($I91*D91,2) -> 72.91 | M91: =ROUND($I91*E91,2) -> 71.86 | N91: =ROUND($I91*F91,2) -> 72.47 | O91: 209800 | U91: 1996-01-30 | V91: 0.0125 | W91: 23 | X91: 1995-01-30 | Y91: 1995-04-25 | Z91: 4 | AA91: 0 | AB91: 0.0475 | AC91: 0.002065217391
A92: 77 | B92: 2014-08-25 | C92: 72.26 | D92: 73.05 | E92: 71.84 | F92: 72.15 | G92: 202100 | H92: 71.97 | I92: 0.9975051975 | J92: 1 | K92: =ROUND($I92*C92,2) -> 72.08 | L92: =ROUND($I92*D92,2) -> 72.87 | M92: =ROUND($I92*E92,2) -> 71.66 | N92: =ROUND($I92*F92,2) -> 71.97 | O92: 202100 | U92: 1995-10-30 | V92: 0.0125 | W92: 23 | X92: 1994-10-30 | Y92: 1995-01-26 | Z92: 4 | AA92: 0 | AB92: 0.045 | AC92: 0.001956521739
A93: 78 | B93: 2014-08-22 | C93: 70.88 | D93: 71.93 | E93: 70.5 | F93: 71.74 | G93: 162600 | H93: 71.56 | I93: 0.9974909395 | J93: 1 | K93: =ROUND($I93*C93,2) -> 70.7 | L93: =ROUND($I93*D93,2) -> 71.75 | M93: =ROUND($I93*E93,2) -> 70.32 | N93: =ROUND($I93*F93,2) -> 71.56 | O93: 162600 | U93: 1995-07-28 | V93: 0.0125 | W93: 20.12 | X93: 1994-07-28 | Y93: 1994-10-26 | Z93: 4 | AA93: 0 | AB93: 0.0425 | AC93: 0.002112326044
A94: 79 | B94: 2014-08-21 | C94: 70.58 | D94: 70.9 | E94: 69.96 | F94: 70.8 | G94: 161100 | H94: 70.62 | I94: 0.9974576271 | J94: 1 | K94: =ROUND($I94*C94,2) -> 70.4 | L94: =ROUND($I94*D94,2) -> 70.72 | M94: =ROUND($I94*E94,2) -> 69.78 | N94: =ROUND($I94*F94,2) -> 70.62 | O94: 161100 | U94: 1995-04-25 | V94: 0.01 | W94: 17.5 | X94: 1994-04-25 | Y94: 1994-04-26 | Z94: 5 | AA94: 1 | AB94: 0.04 | AC94: 0.002285714286
A95: 80 | B95: 2014-08-20 | C95: 71.24 | D95: 71.24 | E95: 70.03 | F95: 70.73 | G95: 131700 | H95: 70.55 | I95: 0.997455111 | J95: 1 | K95: =ROUND($I95*C95,2) -> 71.06 | L95: =ROUND($I95*D95,2) -> 71.06 | M95: =ROUND($I95*E95,2) -> 69.85 | N95: =ROUND($I95*F95,2) -> 70.55 | O95: 131700 | U95: 1995-01-26 | V95: 0.01 | W95: 14.88 | X95: 1994-01-26 | Y95: 1994-01-26 | Z95: 5 | AA95: 1 | AB95: 0.04 | AC95: 0.002688172043
A96: 81 | B96: 2014-08-19 | C96: 70.98 | D96: 71.67 | E96: 70.79 | F96: 71.31 | G96: 137300 | H96: 71.13 | I96: 0.9974758098 | J96: 1 | K96: =ROUND($I96*C96,2) -> 70.8 | L96: =ROUND($I96*D96,2) -> 71.49 | M96: =ROUND($I96*E96,2) -> 70.61 | N96: =ROUND($I96*F96,2) -> 71.13 | O96: 137300 | U96: 1994-10-26 | V96: 0.01 | W96: 13.88 | X96: 1993-10-26 | Y96: 1993-10-26 | Z96: 5 | AA96: 1 | AB96: 0.03925 | AC96: 0.002827809798
A97: 82 | B97: 2014-08-18 | C97: 70 | D97: 71.26 | E97: 69.65 | F97: 70.97 | G97: 172000 | H97: 70.79 | I97: 0.9974637171 | J97: 1 | K97: =ROUND($I97*C97,2) -> 69.82 | L97: =ROUND($I97*D97,2) -> 71.08 | M97: =ROUND($I97*E97,2) -> 69.47 | N97: =ROUND($I97*F97,2) -> 70.79 | O97: 172000 | U97: 1994-07-26 | V97: 0.01 | W97: 12.25 | X97: 1993-07-26 | Y97: 1993-07-27 | Z97: 5 | AA97: 1 | AB97: 0.0385 | AC97: 0.003142857143
A98: 83 | B98: 2014-08-15 | C98: 69.97 | D98: 69.97 | E98: 68.7 | F98: 69.47 | G98: 218400 | H98: 69.3 | I98: 0.9975529005 | J98: 1 | K98: =ROUND($I98*C98,2) -> 69.8 | L98: =ROUND($I98*D98,2) -> 69.8 | M98: =ROUND($I98*E98,2) -> 68.53 | N98: =ROUND($I98*F98,2) -> 69.3 | O98: 218400 | U98: 1994-04-26 | V98: 0.01 | W98: 12.38 | X98: 1993-04-26 | Y98: 1993-04-27 | Z98: 5 | AA98: 1 | AB98: 0.03775 | AC98: 0.003049273021
A99: 84 | B99: 2014-08-14 | C99: 68.76 | D99: 69.4 | E99: 68.36 | F99: 69.06 | G99: 97000 | H99: 68.89 | I99: 0.9975383724 | J99: 1 | K99: =ROUND($I99*C99,2) -> 68.59 | L99: =ROUND($I99*D99,2) -> 69.23 | M99: =ROUND($I99*E99,2) -> 68.19 | N99: =ROUND($I99*F99,2) -> 68.89 | O99: 97000 | U99: 1994-01-26 | V99: 0.00925 | W99: 25.25 | X99: 1993-01-26 | Y99: 1993-01-26 | Z99: 5 | AA99: 1 | AB99: 0.03525 | AC99: 0.001396039604
A100: 85 | B100: 2014-08-13 | C100: 68.01 | D100: 69.1 | E100: 67.08 | F100: 68.66 | G100: 132700 | H100: 68.49 | I100: 0.9975240315 | J100: 1 | K100: =ROUND($I100*C100,2) -> 67.84 | L100: =ROUND($I100*D100,2) -> 68.93 | M100: =ROUND($I100*E100,2) -> 66.91 | N100: =ROUND($I100*F100,2) -> 68.49 | O100: 132700 | U100: 1993-10-26 | V100: 0.00925 | W100: 21.62 | X100: 1992-10-26 | Y100: 1992-10-27 | Z100: 5 | AA100: 1 | AB100: 0.0335 | AC100: 0.001549491212
A101: 86 | B101: 2014-08-12 | C101: 68.54 | D101: 68.95 | E101: 67.74 | F101: 67.99 | G101: 94100 | H101: 67.82 | I101: 0.9974996323 | J101: 1 | K101: =ROUND($I101*C101,2) -> 68.37 | L101: =ROUND($I101*D101,2) -> 68.78 | M101: =ROUND($I101*E101,2) -> 67.57 | N101: =ROUND($I101*F101,2) -> 67.82 | O101: 94100 | U101: 1993-07-27 | V101: 0.00925 | W101: 19.5 | X101: 1992-07-27 | Y101: 1992-07-28 | Z101: 5 | AA101: 1 | AB101: 0.03175 | AC101: 0.001628205128
A102: 87 | B102: 2014-08-11 | C102: 68.07 | D102: 69.52 | E102: 67.85 | F102: 68.65 | G102: 138600 | H102: 68.48 | I102: 0.9975236708 | J102: 1 | K102: =ROUND($I102*C102,2) -> 67.9 | L102: =ROUND($I102*D102,2) -> 69.35 | M102: =ROUND($I102*E102,2) -> 67.68 | N102: =ROUND($I102*F102,2) -> 68.48 | O102: 138600 | U102: 1993-04-27 | V102: 0.0075 | W102: 16 | X102: 1992-04-27 | Y102: 1992-04-27 | Z102: 5 | AA102: 1 | AB102: 0.03 | AC102: 0.001875
A103: 88 | B103: 2014-08-08 | C103: 66.14 | D103: 68.04 | E103: 66.05 | F103: 67.9 | G103: 186000 | H103: 67.73 | I103: 0.9974963181 | J103: 1 | K103: =ROUND($I103*C103,2) -> 65.97 | L103: =ROUND($I103*D103,2) -> 67.87 | M103: =ROUND($I103*E103,2) -> 65.88 | N103: =ROUND($I103*F103,2) -> 67.73 | O103: 186000 | U103: 1993-01-26 | V103: 0.0075 | W103: 16.88 | X103: 1992-01-26 | Y103: 1992-01-28 | Z103: 5 | AA103: 1 | AB103: 0.03 | AC103: 0.001777251185
A104: 89 | B104: 2014-08-07 | C104: 66.81 | D104: 67.48 | E104: 66.06 | F104: 66.2 | G104: 158700 | H104: 66.04 | I104: 0.9975830816 | J104: 1 | K104: =ROUND($I104*C104,2) -> 66.65 | L104: =ROUND($I104*D104,2) -> 67.32 | M104: =ROUND($I104*E104,2) -> 65.9 | N104: =ROUND($I104*F104,2) -> 66.04 | O104: 158700 | U104: 1992-10-27 | V104: 0.0075 | W104: 16.75 | X104: 1991-10-27 | Y104: 1991-10-28 | Z104: 5 | AA104: 1 | AB104: 0.03 | AC104: 0.001791044776
A105: 90 | B105: 2014-08-06 | C105: 66.45 | D105: 67.54 | E105: 66.3 | F105: 66.62 | G105: 189800 | H105: 66.45 | I105: 0.9974482137 | J105: 1 | K105: =ROUND($I105*C105,2) -> 66.28 | L105: =ROUND($I105*D105,2) -> 67.37 | M105: =ROUND($I105*E105,2) -> 66.13 | N105: =ROUND($I105*F105,2) -> 66.45 | O105: 189800 | U105: 1992-07-28 | V105: 0.0075 | W105: 14.62 | X105: 1991-07-28 | Y105: 1991-10-28 | Z105: 4 | AA105: 0 | AB105: 0.03 | AC105: 0.002051983584
A106: 91 | B106: 2014-08-05 | C106: 66.51 | D106: 67.77 | E106: 66.26 | F106: 66.67 | G106: 164200 | H106: 66.5 | I106: 0.9974501275 | J106: 1 | K106: =ROUND($I106*C106,2) -> 66.34 | L106: =ROUND($I106*D106,2) -> 67.6 | M106: =ROUND($I106*E106,2) -> 66.09 | N106: =ROUND($I106*F106,2) -> 66.5 | O106: 164200 | U106: 1992-04-27 | V106: 0.0075 | W106: 15.62 | X106: 1991-04-27 | Y106: 1991-07-26 | Z106: 4 | AA106: 0 | AB106: 0.03 | AC106: 0.001920614597
A107: 92 | B107: 2014-08-04 | C107: 67.04 | D107: 67.33 | E107: 66.5 | F107: 66.79 | G107: 143300 | H107: 66.62 | I107: 0.9974547088 | J107: 1 | K107: =ROUND($I107*C107,2) -> 66.87 | L107: =ROUND($I107*D107,2) -> 67.16 | M107: =ROUND($I107*E107,2) -> 66.33 | N107: =ROUND($I107*F107,2) -> 66.62 | O107: 143300 | U107: 1992-01-28 | V107: 0.0075 | W107: 15.62 | X107: 1991-01-28 | Y107: 1991-01-28 | Z107: 5 | AA107: 1 | AB107: 0.02875 | AC107: 0.001840588988
A108: 93 | B108: 2014-08-01 | C108: 66.39 | D108: 67.2 | E108: 65.97 | F108: 66.7 | G108: 165500 | H108: 66.53 | I108: 0.9974512744 | J108: 1 | K108: =ROUND($I108*C108,2) -> 66.22 | L108: =ROUND($I108*D108,2) -> 67.03 | M108: =ROUND($I108*E108,2) -> 65.8 | N108: =ROUND($I108*F108,2) -> 66.53 | O108: 165500 | U108: 1991-10-28 | V108: 0.0075 | W108: 16 | X108: 1990-10-28 | Y108: 1991-01-28 | Z108: 4 | AA108: 0 | AB108: 0.0275 | AC108: 0.00171875
A109: 94 | B109: 2014-07-31 | C109: 66.29 | D109: 67.01 | E109: 65.7 | F109: 66.17 | G109: 225100 | H109: 66.01 | I109: 0.9975819858 | J109: 1 | K109: =ROUND($I109*C109,2) -> 66.13 | L109: =ROUND($I109*D109,2) -> 66.85 | M109: =ROUND($I109*E109,2) -> 65.54 | N109: =ROUND($I109*F109,2) -> 66.01 | O109: 225100 | U109: 1991-07-26 | V109: 0.0075 | W109: 9.62 | X109: 1990-07-26 | Y109: 1990-07-26 | Z109: 5 | AA109: 1 | AB109: 0.02625 | AC109: 0.002728690229
A110: 95 | B110: 2014-07-30 | C110: 66.88 | D110: 67.68 | E110: 66.31 | F110: 66.78 | G110: 160500 | H110: 66.61 | I110: 0.9974543276 | J110: 1 | K110: =ROUND($I110*C110,2) -> 66.71 | L110: =ROUND($I110*D110,2) -> 67.51 | M110: =ROUND($I110*E110,2) -> 66.14 | N110: =ROUND($I110*F110,2) -> 66.61 | O110: 160500 | U110: 1991-04-25 | V110: 0.00625 | W110: 9 | X110: 1990-04-25 | Y110: 1990-07-26 | Z110: 4 | AA110: 0 | AB110: 0.025 | AC110: 0.002777777778
A111: 96 | B111: 2014-07-29 | C111: 66.85 | D111: 67.38 | E111: 66.58 | F111: 66.81 | G111: 257600 | H111: 66.44 | I111: 0.9944619069 | J111: 1 | K111: =ROUND($I111*C111,2) -> 66.48 | L111: =ROUND($I111*D111,2) -> 67.01 | M111: =ROUND($I111*E111,2) -> 66.21 | N111: =ROUND($I111*F111,2) -> 66.44 | O111: 257600 | U111: 1991-01-28 | V111: 0.00625 | W111: 7.62 | X111: 1990-01-28 | Y111: 1990-07-26 | Z111: 3 | AA111: 0 | AB111: 0.01875 | AC111: 0.002460629921
A112: 97 | B112: 2014-07-28 | C112: 66.49 | D112: 66.86 | E112: 65.95 | F112: 66.58 | G112: 175700 | H112: 66.22 | I112: 0.9945929709 | J112: 1 | K112: =ROUND($I112*C112,2) -> 66.13 | L112: =ROUND($I112*D112,2) -> 66.5 | M112: =ROUND($I112*E112,2) -> 65.59 | N112: =ROUND($I112*F112,2) -> 66.22 | O112: 175700 | U112: 1990-10-26 | V112: 0.00625 | W112: 5.62 | X112: 1989-10-26 | Y112: 1990-07-26 | Z112: 2 | AA112: 0 | AB112: 0.0125 | AC112: 0.002224199288
A113: 98 | B113: 2014-07-25 | C113: 67.15 | D113: 67.45 | E113: 66.38 | F113: 66.5 | G113: 123900 | H113: 66.14 | I113: 0.9945864662 | J113: 1 | K113: =ROUND($I113*C113,2) -> 66.79 | L113: =ROUND($I113*D113,2) -> 67.08 | M113: =ROUND($I113*E113,2) -> 66.02 | N113: =ROUND($I113*F113,2) -> 66.14 | O113: 123900 | U113: 1990-07-26 | V113: 0.00625 | W113: 8 | X113: 1989-07-26 | Y113: 1990-07-26 | Z113: 1 | AA113: 1 | AB113: 0.00625 | AC113: 0.00078125
A114: 99 | B114: 2014-07-24 | C114: 67.55 | D114: 68.67 | E114: 67.39 | F114: 67.55 | G114: 156400 | H114: 67.18 | I114: 0.9945225759 | J114: 1 | K114: =ROUND($I114*C114,2) -> 67.18 | L114: =ROUND($I114*D114,2) -> 68.29 | M114: =ROUND($I114*E114,2) -> 67.02 | N114: =ROUND($I114*F114,2) -> 67.18 | O114: 156400
A115: 100 | B115: 2014-07-23 | C115: 67.47 | D115: 67.84 | E115: 67.03 | F115: 67.25 | G115: 100400 | H115: 66.88 | I115: 0.9944981413 | J115: 1 | K115: =ROUND($I115*C115,2) -> 67.1 | L115: =ROUND($I115*D115,2) -> 67.47 | M115: =ROUND($I115*E115,2) -> 66.66 | N115: =ROUND($I115*F115,2) -> 66.88 | O115: 100400
A116: 101 | B116: 2014-07-22 | C116: 67.94 | D116: 68.08 | E116: 67.23 | F116: 67.53 | G116: 121100 | H116: 67.16 | I116: 0.9945209537 | J116: 1 | K116: =ROUND($I116*C116,2) -> 67.57 | L116: =ROUND($I116*D116,2) -> 67.71 | M116: =ROUND($I116*E116,2) -> 66.86 | N116: =ROUND($I116*F116,2) -> 67.16 | O116: 121100
A117: 102 | B117: 2014-07-21 | C117: 68.16 | D117: 68.29 | E117: 67.31 | F117: 67.59 | G117: 98700 | H117: 67.22 | I117: 0.9945258174 | J117: 1 | K117: =ROUND($I117*C117,2) -> 67.79 | L117: =ROUND($I117*D117,2) -> 67.92 | M117: =ROUND($I117*E117,2) -> 66.94 | N117: =ROUND($I117*F117,2) -> 67.22 | O117: 98700
A118: 103 | B118: 2014-07-18 | C118: 66.56 | D118: 68.78 | E118: 66.56 | F118: 68.46 | G118: 181500 | H118: 68.09 | I118: 0.9945953842 | J118: 1 | K118: =ROUND($I118*C118,2) -> 66.2 | L118: =ROUND($I118*D118,2) -> 68.41 | M118: =ROUND($I118*E118,2) -> 66.2 | N118: =ROUND($I118*F118,2) -> 68.09 | O118: 181500
A119: 104 | B119: 2014-07-17 | C119: 66.65 | D119: 67.61 | E119: 66.65 | F119: 66.77 | G119: 169300 | H119: 66.4 | I119: 0.9944585892 | J119: 1 | K119: =ROUND($I119*C119,2) -> 66.28 | L119: =ROUND($I119*D119,2) -> 67.24 | M119: =ROUND($I119*E119,2) -> 66.28 | N119: =ROUND($I119*F119,2) -> 66.4 | O119: 169300
A120: 105 | B120: 2014-07-16 | C120: 67.73 | D120: 68.23 | E120: 66.84 | F120: 66.91 | G120: 247000 | H120: 66.54 | I120: 0.9944701838 | J120: 1 | K120: =ROUND($I120*C120,2) -> 67.36 | L120: =ROUND($I120*D120,2) -> 67.85 | M120: =ROUND($I120*E120,2) -> 66.47 | N120: =ROUND($I120*F120,2) -> 66.54 | O120: 247000
A121: 106 | B121: 2014-07-15 | C121: 68.98 | D121: 69.26 | E121: 67.18 | F121: 67.29 | G121: 213200 | H121: 66.92 | I121: 0.9945014118 | J121: 1 | K121: =ROUND($I121*C121,2) -> 68.6 | L121: =ROUND($I121*D121,2) -> 68.88 | M121: =ROUND($I121*E121,2) -> 66.81 | N121: =ROUND($I121*F121,2) -> 66.92 | O121: 213200
A122: 107 | B122: 2014-07-14 | C122: 69.44 | D122: 69.6 | E122: 68.72 | F122: 69.03 | G122: 105300 | H122: 68.65 | I122: 0.994495147 | J122: 1 | K122: =ROUND($I122*C122,2) -> 69.06 | L122: =ROUND($I122*D122,2) -> 69.22 | M122: =ROUND($I122*E122,2) -> 68.34 | N122: =ROUND($I122*F122,2) -> 68.65 | O122: 105300
A123: 108 | B123: 2014-07-11 | C123: 68.71 | D123: 69.03 | E123: 68.29 | F123: 68.89 | G123: 132800 | H123: 68.51 | I123: 0.9944839599 | J123: 1 | K123: =ROUND($I123*C123,2) -> 68.33 | L123: =ROUND($I123*D123,2) -> 68.65 | M123: =ROUND($I123*E123,2) -> 67.91 | N123: =ROUND($I123*F123,2) -> 68.51 | O123: 132800
A124: 109 | B124: 2014-07-10 | C124: 69 | D124: 69.53 | E124: 68.87 | F124: 68.95 | G124: 138300 | H124: 68.57 | I124: 0.99448876 | J124: 1 | K124: =ROUND($I124*C124,2) -> 68.62 | L124: =ROUND($I124*D124,2) -> 69.15 | M124: =ROUND($I124*E124,2) -> 68.49 | N124: =ROUND($I124*F124,2) -> 68.57 | O124: 138300
A125: 110 | B125: 2014-07-09 | C125: 70.31 | D125: 70.75 | E125: 69.45 | F125: 70.09 | G125: 159400 | H125: 69.71 | I125: 0.9945783992 | J125: 1 | K125: =ROUND($I125*C125,2) -> 69.93 | L125: =ROUND($I125*D125,2) -> 70.37 | M125: =ROUND($I125*E125,2) -> 69.07 | N125: =ROUND($I125*F125,2) -> 69.71 | O125: 159400
A126: 111 | B126: 2014-07-08 | C126: 70.64 | D126: 70.95 | E126: 69.85 | F126: 70.01 | G126: 154200 | H126: 69.63 | I126: 0.994572204 | J126: 1 | K126: =ROUND($I126*C126,2) -> 70.26 | L126: =ROUND($I126*D126,2) -> 70.56 | M126: =ROUND($I126*E126,2) -> 69.47 | N126: =ROUND($I126*F126,2) -> 69.63 | O126: 154200
A127: 112 | B127: 2014-07-07 | C127: 70.72 | D127: 71.27 | E127: 70.52 | F127: 70.76 | G127: 144000 | H127: 70.37 | I127: 0.9944884115 | J127: 1 | K127: =ROUND($I127*C127,2) -> 70.33 | L127: =ROUND($I127*D127,2) -> 70.88 | M127: =ROUND($I127*E127,2) -> 70.13 | N127: =ROUND($I127*F127,2) -> 70.37 | O127: 144000
A128: 113 | B128: 2014-07-03 | C128: 70.51 | D128: 71.41 | E128: 69.98 | F128: 70.68 | G128: 58000 | H128: 70.29 | I128: 0.9944821732 | J128: 1 | K128: =ROUND($I128*C128,2) -> 70.12 | L128: =ROUND($I128*D128,2) -> 71.02 | M128: =ROUND($I128*E128,2) -> 69.59 | N128: =ROUND($I128*F128,2) -> 70.29 | O128: 58000
A129: 114 | B129: 2014-07-02 | C129: 70.68 | D129: 71.06 | E129: 70.08 | F129: 70.23 | G129: 162500 | H129: 69.85 | I129: 0.9945892069 | J129: 1 | K129: =ROUND($I129*C129,2) -> 70.3 | L129: =ROUND($I129*D129,2) -> 70.68 | M129: =ROUND($I129*E129,2) -> 69.7 | N129: =ROUND($I129*F129,2) -> 69.85 | O129: 162500
A130: 115 | B130: 2014-07-01 | C130: 70.67 | D130: 71.48 | E130: 70.41 | F130: 70.98 | G130: 178100 | H130: 70.59 | I130: 0.9945054945 | J130: 1 | K130: =ROUND($I130*C130,2) -> 70.28 | L130: =ROUND($I130*D130,2) -> 71.09 | M130: =ROUND($I130*E130,2) -> 70.02 | N130: =ROUND($I130*F130,2) -> 70.59 | O130: 178100
A131: 116 | B131: 2014-06-30 | C131: 70.03 | D131: 70.86 | E131: 69.4 | F131: 70.29 | G131: 208400 | H131: 69.91 | I131: 0.9945938256 | J131: 1 | K131: =ROUND($I131*C131,2) -> 69.65 | L131: =ROUND($I131*D131,2) -> 70.48 | M131: =ROUND($I131*E131,2) -> 69.02 | N131: =ROUND($I131*F131,2) -> 69.91 | O131: 208400
A132: 117 | B132: 2014-06-27 | C132: 69.4 | D132: 70.19 | E132: 69.4 | F132: 69.95 | G132: 212400 | H132: 69.57 | I132: 0.9945675482 | J132: 1 | K132: =ROUND($I132*C132,2) -> 69.02 | L132: =ROUND($I132*D132,2) -> 69.81 | M132: =ROUND($I132*E132,2) -> 69.02 | N132: =ROUND($I132*F132,2) -> 69.57 | O132: 212400
A133: 118 | B133: 2014-06-26 | C133: 69.4 | D133: 69.71 | E133: 69.13 | F133: 69.48 | G133: 145400 | H133: 69.1 | I133: 0.9945308002 | J133: 1 | K133: =ROUND($I133*C133,2) -> 69.02 | L133: =ROUND($I133*D133,2) -> 69.33 | M133: =ROUND($I133*E133,2) -> 68.75 | N133: =ROUND($I133*F133,2) -> 69.1 | O133: 145400
A134: 119 | B134: 2014-06-25 | C134: 68.69 | D134: 69.74 | E134: 68.69 | F134: 69.5 | G134: 174400 | H134: 69.12 | I134: 0.9945323741 | J134: 1 | K134: =ROUND($I134*C134,2) -> 68.31 | L134: =ROUND($I134*D134,2) -> 69.36 | M134: =ROUND($I134*E134,2) -> 68.31 | N134: =ROUND($I134*F134,2) -> 69.12 | O134: 174400
A135: 120 | B135: 2014-06-24 | C135: 69.88 | D135: 70.48 | E135: 69.08 | F135: 69.11 | G135: 155000 | H135: 68.73 | I135: 0.9945015193 | J135: 1 | K135: =ROUND($I135*C135,2) -> 69.5 | L135: =ROUND($I135*D135,2) -> 70.09 | M135: =ROUND($I135*E135,2) -> 68.7 | N135: =ROUND($I135*F135,2) -> 68.73 | O135: 155000
A136: 121 | B136: 2014-06-23 | C136: 69.88 | D136: 70.3 | E136: 68.98 | F136: 70.13 | G136: 290200 | H136: 69.75 | I136: 0.9945814915 | J136: 1 | K136: =ROUND($I136*C136,2) -> 69.5 | L136: =ROUND($I136*D136,2) -> 69.92 | M136: =ROUND($I136*E136,2) -> 68.61 | N136: =ROUND($I136*F136,2) -> 69.75 | O136: 290200
A137: 122 | B137: 2014-06-20 | C137: 70.88 | D137: 71.31 | E137: 69.45 | F137: 69.6 | G137: 523800 | H137: 69.22 | I137: 0.9945402299 | J137: 1 | K137: =ROUND($I137*C137,2) -> 70.49 | L137: =ROUND($I137*D137,2) -> 70.92 | M137: =ROUND($I137*E137,2) -> 69.07 | N137: =ROUND($I137*F137,2) -> 69.22 | O137: 523800
A138: 123 | B138: 2014-06-19 | C138: 72.55 | D138: 73.04 | E138: 70.94 | F138: 71.03 | G138: 195900 | H138: 70.64 | I138: 0.9945093622 | J138: 1 | K138: =ROUND($I138*C138,2) -> 72.15 | L138: =ROUND($I138*D138,2) -> 72.64 | M138: =ROUND($I138*E138,2) -> 70.55 | N138: =ROUND($I138*F138,2) -> 70.64 | O138: 195900
A139: 124 | B139: 2014-06-18 | C139: 72.15 | D139: 72.49 | E139: 71.5 | F139: 72.25 | G139: 159800 | H139: 71.85 | I139: 0.9944636678 | J139: 1 | K139: =ROUND($I139*C139,2) -> 71.75 | L139: =ROUND($I139*D139,2) -> 72.09 | M139: =ROUND($I139*E139,2) -> 71.1 | N139: =ROUND($I139*F139,2) -> 71.85 | O139: 159800
A140: 125 | B140: 2014-06-17 | C140: 72.9 | D140: 73.07 | E140: 71.91 | F140: 72.03 | G140: 208300 | H140: 71.64 | I140: 0.9945855893 | J140: 1 | K140: =ROUND($I140*C140,2) -> 72.51 | L140: =ROUND($I140*D140,2) -> 72.67 | M140: =ROUND($I140*E140,2) -> 71.52 | N140: =ROUND($I140*F140,2) -> 71.64 | O140: 208300
A141: 126 | B141: 2014-06-16 | C141: 72.5 | D141: 72.95 | E141: 72.14 | F141: 72.8 | G141: 106200 | H141: 72.4 | I141: 0.9945054945 | J141: 1 | K141: =ROUND($I141*C141,2) -> 72.1 | L141: =ROUND($I141*D141,2) -> 72.55 | M141: =ROUND($I141*E141,2) -> 71.74 | N141: =ROUND($I141*F141,2) -> 72.4 | O141: 106200
A142: 127 | B142: 2014-06-13 | C142: 74.02 | D142: 74.02 | E142: 72.41 | F142: 72.68 | G142: 125400 | H142: 72.28 | I142: 0.9944964227 | J142: 1 | K142: =ROUND($I142*C142,2) -> 73.61 | L142: =ROUND($I142*D142,2) -> 73.61 | M142: =ROUND($I142*E142,2) -> 72.01 | N142: =ROUND($I142*F142,2) -> 72.28 | O142: 125400
A143: 128 | B143: 2014-06-12 | C143: 74.68 | D143: 74.71 | E143: 73.1 | F143: 73.66 | G143: 196200 | H143: 73.26 | I143: 0.9945696443 | J143: 1 | K143: =ROUND($I143*C143,2) -> 74.27 | L143: =ROUND($I143*D143,2) -> 74.3 | M143: =ROUND($I143*E143,2) -> 72.7 | N143: =ROUND($I143*F143,2) -> 73.26 | O143: 196200
A144: 129 | B144: 2014-06-11 | C144: 75.02 | D144: 75.49 | E144: 74.75 | F144: 75.03 | G144: 306000 | H144: 74.62 | I144: 0.9945355191 | J144: 1 | K144: =ROUND($I144*C144,2) -> 74.61 | L144: =ROUND($I144*D144,2) -> 75.08 | M144: =ROUND($I144*E144,2) -> 74.34 | N144: =ROUND($I144*F144,2) -> 74.62 | O144: 306000
A145: 130 | B145: 2014-06-10 | C145: 71.57 | D145: 75.79 | E145: 70.21 | F145: 75.12 | G145: 413300 | H145: 74.71 | I145: 0.994542066 | J145: 1 | K145: =ROUND($I145*C145,2) -> 71.18 | L145: =ROUND($I145*D145,2) -> 75.38 | M145: =ROUND($I145*E145,2) -> 69.83 | N145: =ROUND($I145*F145,2) -> 74.71 | O145: 413300
A146: 131 | B146: 2014-06-09 | C146: 71.98 | D146: 74.87 | E146: 71.55 | F146: 74.77 | G146: 305100 | H146: 74.36 | I146: =H146/F146 -> 0.9945165173 | J146: =INDEX(OFFSET($T$15,0,0,$S$13+1,1),MATCH(B146,OFFSET($Q$15,0,0,$S$13+1,1),-1)) -> 1 | K146: =ROUND($I146*C146,2) -> 71.59 | L146: =ROUND($I146*D146,2) -> 74.46 | M146: =ROUND($I146*E146,2) -> 71.16 | N146: =ROUND($I146*F146,2) -> 74.36 | O146: =G146*J146 -> 305100
A147: 132 | B147: 2014-06-06 | C147: 72.1 | D147: 72.96 | E147: 72.02 | F147: 72.35 | G147: 206300 | H147: 71.95 | I147: 0.99447132 | J147: 1 | K147: =ROUND($I147*C147,2) -> 71.7 | L147: =ROUND($I147*D147,2) -> 72.56 | M147: =ROUND($I147*E147,2) -> 71.62 | N147: =ROUND($I147*F147,2) -> 71.95 | O147: 206300
A148: 133 | B148: 2014-06-05 | C148: 71.32 | D148: 72.79 | E148: 70.76 | F148: 72.11 | G148: 170200 | H148: 71.72 | I148: 0.9945915962 | J148: 1 | K148: =ROUND($I148*C148,2) -> 70.93 | L148: =ROUND($I148*D148,2) -> 72.4 | M148: =ROUND($I148*E148,2) -> 70.38 | N148: =ROUND($I148*F148,2) -> 71.72 | O148: 170200
A149: 134 | B149: 2014-06-04 | C149: 70.47 | D149: 71.3 | E149: 70.47 | F149: 71.16 | G149: 112000 | H149: 70.77 | I149: 0.9945193929 | J149: 1 | K149: =ROUND($I149*C149,2) -> 70.08 | L149: =ROUND($I149*D149,2) -> 70.91 | M149: =ROUND($I149*E149,2) -> 70.08 | N149: =ROUND($I149*F149,2) -> 70.77 | O149: 112000
A150: 135 | B150: 2014-06-03 | C150: 70.81 | D150: 71.22 | E150: 70.54 | F150: 70.72 | G150: 200900 | H150: 70.33 | I150: 0.9944852941 | J150: 1 | K150: =ROUND($I150*C150,2) -> 70.42 | L150: =ROUND($I150*D150,2) -> 70.83 | M150: =ROUND($I150*E150,2) -> 70.15 | N150: =ROUND($I150*F150,2) -> 70.33 | O150: 200900
A151: 136 | B151: 2014-06-02 | C151: 71.36 | D151: 71.55 | E151: 70.68 | F151: 71.09 | G151: 171200 | H151: 70.7 | I151: 0.9945139963 | J151: 1 | K151: =ROUND($I151*C151,2) -> 70.97 | L151: =ROUND($I151*D151,2) -> 71.16 | M151: =ROUND($I151*E151,2) -> 70.29 | N151: =ROUND($I151*F151,2) -> 70.7 | O151: 171200
A152: 137 | B152: 2014-05-30 | C152: 70.34 | D152: 71.39 | E152: 70.31 | F152: 71.23 | G152: 168800 | H152: 70.84 | I152: 0.9945247789 | J152: 1 | K152: =ROUND($I152*C152,2) -> 69.95 | L152: =ROUND($I152*D152,2) -> 71 | M152: =ROUND($I152*E152,2) -> 69.93 | N152: =ROUND($I152*F152,2) -> 70.84 | O152: 168800
A153: 138 | B153: 2014-05-29 | C153: 70.08 | D153: 70.25 | E153: 69.51 | F153: 70.08 | G153: 193500 | H153: 69.7 | I153: 0.9945776256 | J153: 1 | K153: =ROUND($I153*C153,2) -> 69.7 | L153: =ROUND($I153*D153,2) -> 69.87 | M153: =ROUND($I153*E153,2) -> 69.13 | N153: =ROUND($I153*F153,2) -> 69.7 | O153: 193500
A154: 139 | B154: 2014-05-28 | C154: 69.5 | D154: 70.21 | E154: 69.12 | F154: 69.62 | G154: 243200 | H154: 69.24 | I154: 0.9945417983 | J154: 1 | K154: =ROUND($I154*C154,2) -> 69.12 | L154: =ROUND($I154*D154,2) -> 69.83 | M154: =ROUND($I154*E154,2) -> 68.74 | N154: =ROUND($I154*F154,2) -> 69.24 | O154: 243200
A155: 140 | B155: 2014-05-27 | C155: 68.39 | D155: 69.92 | E155: 68.07 | F155: 69.69 | G155: 152000 | H155: 69.31 | I155: 0.9945472808 | J155: 1 | K155: =ROUND($I155*C155,2) -> 68.02 | L155: =ROUND($I155*D155,2) -> 69.54 | M155: =ROUND($I155*E155,2) -> 67.7 | N155: =ROUND($I155*F155,2) -> 69.31 | O155: 152000
A156: 141 | B156: 2014-05-23 | C156: 67.54 | D156: 67.94 | E156: 67.06 | F156: 67.81 | G156: 81300 | H156: 67.44 | I156: 0.9945435776 | J156: 1 | K156: =ROUND($I156*C156,2) -> 67.17 | L156: =ROUND($I156*D156,2) -> 67.57 | M156: =ROUND($I156*E156,2) -> 66.69 | N156: =ROUND($I156*F156,2) -> 67.44 | O156: 81300
A157: 142 | B157: 2014-05-22 | C157: 66.57 | D157: 69 | E157: 66.57 | F157: 67.36 | G157: 204000 | H157: 66.99 | I157: 0.9945071259 | J157: 1 | K157: =ROUND($I157*C157,2) -> 66.2 | L157: =ROUND($I157*D157,2) -> 68.62 | M157: =ROUND($I157*E157,2) -> 66.2 | N157: =ROUND($I157*F157,2) -> 66.99 | O157: 204000
A158: 143 | B158: 2014-05-21 | C158: 66.25 | D158: 66.83 | E158: 64.86 | F158: 66.43 | G158: 163700 | H158: 66.07 | I158: 0.9945807617 | J158: 1 | K158: =ROUND($I158*C158,2) -> 65.89 | L158: =ROUND($I158*D158,2) -> 66.47 | M158: =ROUND($I158*E158,2) -> 64.51 | N158: =ROUND($I158*F158,2) -> 66.07 | O158: 163700
A159: 144 | B159: 2014-05-20 | C159: 66.23 | D159: 66.86 | E159: 64.12 | F159: 65.93 | G159: 334300 | H159: 65.57 | I159: 0.9945396633 | J159: 1 | K159: =ROUND($I159*C159,2) -> 65.87 | L159: =ROUND($I159*D159,2) -> 66.49 | M159: =ROUND($I159*E159,2) -> 63.77 | N159: =ROUND($I159*F159,2) -> 65.57 | O159: 334300
A160: 145 | B160: 2014-05-19 | C160: 66.51 | D160: 67.03 | E160: 66.06 | F160: 66.66 | G160: 126500 | H160: 66.3 | I160: 0.9945994599 | J160: 1 | K160: =ROUND($I160*C160,2) -> 66.15 | L160: =ROUND($I160*D160,2) -> 66.67 | M160: =ROUND($I160*E160,2) -> 65.7 | N160: =ROUND($I160*F160,2) -> 66.3 | O160: 126500
A161: 146 | B161: 2014-05-16 | C161: 66.89 | D161: 66.89 | E161: 66.1 | F161: 66.82 | G161: 129000 | H161: 66.45 | I161: 0.9944627357 | J161: 1 | K161: =ROUND($I161*C161,2) -> 66.52 | L161: =ROUND($I161*D161,2) -> 66.52 | M161: =ROUND($I161*E161,2) -> 65.73 | N161: =ROUND($I161*F161,2) -> 66.45 | O161: 129000
A162: 147 | B162: 2014-05-15 | C162: 67.14 | D162: 67.3 | E162: 65.45 | F162: 67.03 | G162: 214200 | H162: 66.66 | I162: 0.9944800835 | J162: 1 | K162: =ROUND($I162*C162,2) -> 66.77 | L162: =ROUND($I162*D162,2) -> 66.93 | M162: =ROUND($I162*E162,2) -> 65.09 | N162: =ROUND($I162*F162,2) -> 66.66 | O162: 214200
A163: 148 | B163: 2014-05-14 | C163: 68.88 | D163: 68.9 | E163: 67.34 | F163: 67.39 | G163: 143100 | H163: 67.02 | I163: 0.9945095712 | J163: 1 | K163: =ROUND($I163*C163,2) -> 68.5 | L163: =ROUND($I163*D163,2) -> 68.52 | M163: =ROUND($I163*E163,2) -> 66.97 | N163: =ROUND($I163*F163,2) -> 67.02 | O163: 143100
A164: 149 | B164: 2014-05-13 | C164: 69.8 | D164: 70.74 | E164: 69.09 | F164: 69.15 | G164: 225400 | H164: 68.77 | I164: 0.9945046999 | J164: 1 | K164: =ROUND($I164*C164,2) -> 69.42 | L164: =ROUND($I164*D164,2) -> 70.35 | M164: =ROUND($I164*E164,2) -> 68.71 | N164: =ROUND($I164*F164,2) -> 68.77 | O164: 225400
A165: 150 | B165: 2014-05-12 | C165: 68.6 | D165: 70.34 | E165: 68.15 | F165: 69.76 | G165: 209400 | H165: 69.38 | I165: 0.9945527523 | J165: 1 | K165: =ROUND($I165*C165,2) -> 68.23 | L165: =ROUND($I165*D165,2) -> 69.96 | M165: =ROUND($I165*E165,2) -> 67.78 | N165: =ROUND($I165*F165,2) -> 69.38 | O165: 209400
A166: 151 | B166: 2014-05-09 | C166: 66.47 | D166: 68.42 | E166: 66.25 | F166: 68.36 | G166: 159700 | H166: 67.99 | I166: 0.9945874781 | J166: 1 | K166: =ROUND($I166*C166,2) -> 66.11 | L166: =ROUND($I166*D166,2) -> 68.05 | M166: =ROUND($I166*E166,2) -> 65.89 | N166: =ROUND($I166*F166,2) -> 67.99 | O166: 159700
A167: 152 | B167: 2014-05-08 | C167: 67.32 | D167: 68.44 | E167: 66.62 | F167: 66.71 | G167: 157700 | H167: 66.35 | I167: 0.9946035077 | J167: 1 | K167: =ROUND($I167*C167,2) -> 66.96 | L167: =ROUND($I167*D167,2) -> 68.07 | M167: =ROUND($I167*E167,2) -> 66.26 | N167: =ROUND($I167*F167,2) -> 66.35 | O167: 157700
A168: 153 | B168: 2014-05-07 | C168: 67.71 | D168: 67.71 | E168: 66.42 | F168: 67.23 | G168: 264800 | H168: 66.86 | I168: 0.9944965045 | J168: 1 | K168: =ROUND($I168*C168,2) -> 67.34 | L168: =ROUND($I168*D168,2) -> 67.34 | M168: =ROUND($I168*E168,2) -> 66.05 | N168: =ROUND($I168*F168,2) -> 66.86 | O168: 264800
A169: 154 | B169: 2014-05-06 | C169: 67.73 | D169: 68.09 | E169: 67 | F169: 67.44 | G169: 204600 | H169: 67.07 | I169: 0.9945136418 | J169: 1 | K169: =ROUND($I169*C169,2) -> 67.36 | L169: =ROUND($I169*D169,2) -> 67.72 | M169: =ROUND($I169*E169,2) -> 66.63 | N169: =ROUND($I169*F169,2) -> 67.07 | O169: 204600
A170: 155 | B170: 2014-05-05 | C170: 67.5 | D170: 68.3 | E170: 66.84 | F170: 67.84 | G170: 183500 | H170: 67.47 | I170: 0.9945459906 | J170: 1 | K170: =ROUND($I170*C170,2) -> 67.13 | L170: =ROUND($I170*D170,2) -> 67.93 | M170: =ROUND($I170*E170,2) -> 66.48 | N170: =ROUND($I170*F170,2) -> 67.47 | O170: 183500
A171: 156 | B171: 2014-05-02 | C171: 68.54 | D171: 69.46 | E171: 67.75 | F171: 67.84 | G171: 187400 | H171: 67.47 | I171: 0.9945459906 | J171: 1 | K171: =ROUND($I171*C171,2) -> 68.17 | L171: =ROUND($I171*D171,2) -> 69.08 | M171: =ROUND($I171*E171,2) -> 67.38 | N171: =ROUND($I171*F171,2) -> 67.47 | O171: 187400
A172: 157 | B172: 2014-05-01 | C172: 68.38 | D172: 68.74 | E172: 67.34 | F172: 68.41 | G172: 190300 | H172: 68.04 | I172: 0.994591434 | J172: 1 | K172: =ROUND($I172*C172,2) -> 68.01 | L172: =ROUND($I172*D172,2) -> 68.37 | M172: =ROUND($I172*E172,2) -> 66.98 | N172: =ROUND($I172*F172,2) -> 68.04 | O172: 190300
A173: 158 | B173: 2014-04-30 | C173: 67.59 | D173: 68.71 | E173: 67 | F173: 68.66 | G173: 181200 | H173: 68.28 | I173: 0.9944654821 | J173: 1 | K173: =ROUND($I173*C173,2) -> 67.22 | L173: =ROUND($I173*D173,2) -> 68.33 | M173: =ROUND($I173*E173,2) -> 66.63 | N173: =ROUND($I173*F173,2) -> 68.28 | O173: 181200
A174: 159 | B174: 2014-04-29 | C174: 67.76 | D174: 68.49 | E174: 67.09 | F174: 67.81 | G174: 187600 | H174: 67.44 | I174: 0.9945435776 | J174: 1 | K174: =ROUND($I174*C174,2) -> 67.39 | L174: =ROUND($I174*D174,2) -> 68.12 | M174: =ROUND($I174*E174,2) -> 66.72 | N174: =ROUND($I174*F174,2) -> 67.44 | O174: 187600
A175: 160 | B175: 2014-04-28 | C175: 65.78 | D175: 68.24 | E175: 65.78 | F175: 67.79 | G175: 272500 | H175: 67.24 | I175: 0.991886709 | J175: 1 | K175: =ROUND($I175*C175,2) -> 65.25 | L175: =ROUND($I175*D175,2) -> 67.69 | M175: =ROUND($I175*E175,2) -> 65.25 | N175: =ROUND($I175*F175,2) -> 67.24 | O175: 272500
A176: 161 | B176: 2014-04-25 | C176: 66.3 | D176: 66.32 | E176: 65 | F176: 65.34 | G176: 124000 | H176: 64.81 | I176: 0.9918885828 | J176: 1 | K176: =ROUND($I176*C176,2) -> 65.76 | L176: =ROUND($I176*D176,2) -> 65.78 | M176: =ROUND($I176*E176,2) -> 64.47 | N176: =ROUND($I176*F176,2) -> 64.81 | O176: 124000
A177: 162 | B177: 2014-04-24 | C177: 66.67 | D177: 67.25 | E177: 65.82 | F177: 66.72 | G177: 93900 | H177: 66.18 | I177: 0.9919064748 | J177: 1 | K177: =ROUND($I177*C177,2) -> 66.13 | L177: =ROUND($I177*D177,2) -> 66.71 | M177: =ROUND($I177*E177,2) -> 65.29 | N177: =ROUND($I177*F177,2) -> 66.18 | O177: 93900
A178: 163 | B178: 2014-04-23 | C178: 66.37 | D178: 66.92 | E178: 65.96 | F178: 66.42 | G178: 146300 | H178: 65.88 | I178: 0.9918699187 | J178: 1 | K178: =ROUND($I178*C178,2) -> 65.83 | L178: =ROUND($I178*D178,2) -> 66.38 | M178: =ROUND($I178*E178,2) -> 65.42 | N178: =ROUND($I178*F178,2) -> 65.88 | O178: 146300
A179: 164 | B179: 2014-04-22 | C179: 66.89 | D179: 67.77 | E179: 66.31 | F179: 66.53 | G179: 98400 | H179: 65.99 | I179: 0.9918833609 | J179: 1 | K179: =ROUND($I179*C179,2) -> 66.35 | L179: =ROUND($I179*D179,2) -> 67.22 | M179: =ROUND($I179*E179,2) -> 65.77 | N179: =ROUND($I179*F179,2) -> 65.99 | O179: 98400
A180: 165 | B180: 2014-04-21 | C180: 66.86 | D180: 67.29 | E180: 66.36 | F180: 66.98 | G180: 72000 | H180: 66.44 | I180: 0.9919378919 | J180: 1 | K180: =ROUND($I180*C180,2) -> 66.32 | L180: =ROUND($I180*D180,2) -> 66.75 | M180: =ROUND($I180*E180,2) -> 65.82 | N180: =ROUND($I180*F180,2) -> 66.44 | O180: 72000
A181: 166 | B181: 2014-04-17 | C181: 66.33 | D181: 67.1 | E181: 65.82 | F181: 66.69 | G181: 119200 | H181: 66.15 | I181: 0.991902834 | J181: 1 | K181: =ROUND($I181*C181,2) -> 65.79 | L181: =ROUND($I181*D181,2) -> 66.56 | M181: =ROUND($I181*E181,2) -> 65.29 | N181: =ROUND($I181*F181,2) -> 66.15 | O181: 119200
A182: 167 | B182: 2014-04-16 | C182: 67.51 | D182: 67.9 | E182: 65.74 | F182: 66.45 | G182: 150300 | H182: 65.91 | I182: 0.9918735892 | J182: 1 | K182: =ROUND($I182*C182,2) -> 66.96 | L182: =ROUND($I182*D182,2) -> 67.35 | M182: =ROUND($I182*E182,2) -> 65.21 | N182: =ROUND($I182*F182,2) -> 65.91 | O182: 150300
A183: 168 | B183: 2014-04-15 | C183: 67.95 | D183: 68.14 | E183: 66.09 | F183: 67.2 | G183: 168300 | H183: 66.65 | I183: 0.9918154762 | J183: 1 | K183: =ROUND($I183*C183,2) -> 67.39 | L183: =ROUND($I183*D183,2) -> 67.58 | M183: =ROUND($I183*E183,2) -> 65.55 | N183: =ROUND($I183*F183,2) -> 66.65 | O183: 168300
A184: 169 | B184: 2014-04-14 | C184: 68.58 | D184: 68.71 | E184: 67.05 | F184: 67.66 | G184: 129100 | H184: 67.11 | I184: 0.9918711203 | J184: 1 | K184: =ROUND($I184*C184,2) -> 68.02 | L184: =ROUND($I184*D184,2) -> 68.15 | M184: =ROUND($I184*E184,2) -> 66.5 | N184: =ROUND($I184*F184,2) -> 67.11 | O184: 129100
A185: 170 | B185: 2014-04-11 | C185: 66.8 | D185: 68.04 | E185: 66.11 | F185: 67.84 | G185: 194900 | H185: 67.29 | I185: 0.9918926887 | J185: 1 | K185: =ROUND($I185*C185,2) -> 66.26 | L185: =ROUND($I185*D185,2) -> 67.49 | M185: =ROUND($I185*E185,2) -> 65.57 | N185: =ROUND($I185*F185,2) -> 67.29 | O185: 194900
A186: 171 | B186: 2014-04-10 | C186: 69.07 | D186: 69.32 | E186: 67.04 | F186: 67.5 | G186: 199600 | H186: 66.95 | I186: 0.9918518519 | J186: 1 | K186: =ROUND($I186*C186,2) -> 68.51 | L186: =ROUND($I186*D186,2) -> 68.76 | M186: =ROUND($I186*E186,2) -> 66.49 | N186: =ROUND($I186*F186,2) -> 66.95 | O186: 199600
A187: 172 | B187: 2014-04-09 | C187: 68.5 | D187: 69.16 | E187: 68.29 | F187: 69.01 | G187: 151700 | H187: 68.45 | I187: 0.991885234 | J187: 1 | K187: =ROUND($I187*C187,2) -> 67.94 | L187: =ROUND($I187*D187,2) -> 68.6 | M187: =ROUND($I187*E187,2) -> 67.74 | N187: =ROUND($I187*F187,2) -> 68.45 | O187: 151700
A188: 173 | B188: 2014-04-08 | C188: 67.01 | D188: 68.98 | E188: 67.01 | F188: 68.36 | G188: 212500 | H188: 67.81 | I188: 0.9919543593 | J188: 1 | K188: =ROUND($I188*C188,2) -> 66.47 | L188: =ROUND($I188*D188,2) -> 68.43 | M188: =ROUND($I188*E188,2) -> 66.47 | N188: =ROUND($I188*F188,2) -> 67.81 | O188: 212500
A189: 174 | B189: 2014-04-07 | C189: 67.62 | D189: 67.93 | E189: 66.66 | F189: 66.84 | G189: 318300 | H189: 66.3 | I189: 0.9919210054 | J189: 1 | K189: =ROUND($I189*C189,2) -> 67.07 | L189: =ROUND($I189*D189,2) -> 67.38 | M189: =ROUND($I189*E189,2) -> 66.12 | N189: =ROUND($I189*F189,2) -> 66.3 | O189: 318300
A190: 175 | B190: 2014-04-04 | C190: 69.28 | D190: 69.78 | E190: 67.45 | F190: 67.99 | G190: 209600 | H190: 67.44 | I190: 0.9919105751 | J190: 1 | K190: =ROUND($I190*C190,2) -> 68.72 | L190: =ROUND($I190*D190,2) -> 69.22 | M190: =ROUND($I190*E190,2) -> 66.9 | N190: =ROUND($I190*F190,2) -> 67.44 | O190: 209600
A191: 176 | B191: 2014-04-03 | C191: 69.98 | D191: 70.15 | E191: 68.43 | F191: 68.84 | G191: 208600 | H191: 68.28 | I191: 0.9918651947 | J191: 1 | K191: =ROUND($I191*C191,2) -> 69.41 | L191: =ROUND($I191*D191,2) -> 69.58 | M191: =ROUND($I191*E191,2) -> 67.87 | N191: =ROUND($I191*F191,2) -> 68.28 | O191: 208600
A192: 177 | B192: 2014-04-02 | C192: 68.83 | D192: 69.9 | E192: 68.19 | F192: 69.84 | G192: 130300 | H192: 69.27 | I192: 0.991838488 | J192: 1 | K192: =ROUND($I192*C192,2) -> 68.27 | L192: =ROUND($I192*D192,2) -> 69.33 | M192: =ROUND($I192*E192,2) -> 67.63 | N192: =ROUND($I192*F192,2) -> 69.27 | O192: 130300
A193: 178 | B193: 2014-04-01 | C193: 67.74 | D193: 68.84 | E193: 67.15 | F193: 68.74 | G193: 243000 | H193: 68.18 | I193: 0.9918533605 | J193: 1 | K193: =ROUND($I193*C193,2) -> 67.19 | L193: =ROUND($I193*D193,2) -> 68.28 | M193: =ROUND($I193*E193,2) -> 66.6 | N193: =ROUND($I193*F193,2) -> 68.18 | O193: 243000
A194: 179 | B194: 2014-03-31 | C194: 67.74 | D194: 68.13 | E194: 66.62 | F194: 67.59 | G194: 374700 | H194: 67.04 | I194: 0.9918627016 | J194: 1 | K194: =ROUND($I194*C194,2) -> 67.19 | L194: =ROUND($I194*D194,2) -> 67.58 | M194: =ROUND($I194*E194,2) -> 66.08 | N194: =ROUND($I194*F194,2) -> 67.04 | O194: 374700
A195: 180 | B195: 2014-03-28 | C195: 66.42 | D195: 67.99 | E195: 66.42 | F195: 67.58 | G195: 167100 | H195: 67.03 | I195: 0.9918614975 | J195: 1 | K195: =ROUND($I195*C195,2) -> 65.88 | L195: =ROUND($I195*D195,2) -> 67.44 | M195: =ROUND($I195*E195,2) -> 65.88 | N195: =ROUND($I195*F195,2) -> 67.03 | O195: 167100
A196: 181 | B196: 2014-03-27 | C196: 67 | D196: 67.48 | E196: 66.22 | F196: 66.54 | G196: 216800 | H196: 66 | I196: 0.9918845807 | J196: 1 | K196: =ROUND($I196*C196,2) -> 66.46 | L196: =ROUND($I196*D196,2) -> 66.93 | M196: =ROUND($I196*E196,2) -> 65.68 | N196: =ROUND($I196*F196,2) -> 66 | O196: 216800
A197: 182 | B197: 2014-03-26 | C197: 68.68 | D197: 68.68 | E197: 66.98 | F197: 66.98 | G197: 163500 | H197: 66.44 | I197: 0.9919378919 | J197: 1 | K197: =ROUND($I197*C197,2) -> 68.13 | L197: =ROUND($I197*D197,2) -> 68.13 | M197: =ROUND($I197*E197,2) -> 66.44 | N197: =ROUND($I197*F197,2) -> 66.44 | O197: 163500
A198: 183 | B198: 2014-03-25 | C198: 69.07 | D198: 69.53 | E198: 68.15 | F198: 68.22 | G198: 139900 | H198: 67.67 | I198: 0.9919378481 | J198: 1 | K198: =ROUND($I198*C198,2) -> 68.51 | L198: =ROUND($I198*D198,2) -> 68.97 | M198: =ROUND($I198*E198,2) -> 67.6 | N198: =ROUND($I198*F198,2) -> 67.67 | O198: 139900
A199: 184 | B199: 2014-03-24 | C199: 70.1 | D199: 70.26 | E199: 67.96 | F199: 68.72 | G199: 206100 | H199: 68.16 | I199: 0.9918509895 | J199: 1 | K199: =ROUND($I199*C199,2) -> 69.53 | L199: =ROUND($I199*D199,2) -> 69.69 | M199: =ROUND($I199*E199,2) -> 67.41 | N199: =ROUND($I199*F199,2) -> 68.16 | O199: 206100
A200: 185 | B200: 2014-03-21 | C200: 70 | D200: 70.67 | E200: 69.65 | F200: 69.82 | G200: 340400 | H200: 69.25 | I200: 0.9918361501 | J200: 1 | K200: =ROUND($I200*C200,2) -> 69.43 | L200: =ROUND($I200*D200,2) -> 70.09 | M200: =ROUND($I200*E200,2) -> 69.08 | N200: =ROUND($I200*F200,2) -> 69.25 | O200: 340400
... 4300 more rows

Sheet Follow
A1: Stocks and Indexes I wish to follow
A3: To ease following a stock, enter a Yahoo Finance acceptable symbol in column "A" anywhere below cell "A9".
A4: Thereafter you may doubleclick the cell containing a symbol of interest to initiate data retrieval and charting for that symbol.
A7: Symbol
A8: To | B8: Description | C8: Last Trade as of most recent check
A9: Follow | C9: Date | D9: Time | E9: Open | F9: High | G9: Low | H9: Close | I9: Volume
A10: F | B10: Ford Motor Compan (F) -NYSE (Daily) | C10: 2014-05-09 | D10: 16:00:00 | E10: 15.73 | F10: 15.9 | G10: 15.73 | H10: 15.77 | I10: 25172568
A11: MCD | B11: McDonald's Corpor (MCD) -NYSE (Daily) | C11: 2014-08-07 | D11: 11:39:00 | E11: 93.83 | F11: 94 | G11: 93.47 | H11: 93.54 | I11: 1106835
A12: JNJ | B12: Johnson & Johnson (JNJ) -NYSE | C12: 2014-02-03 | D12: 16:01:00 | E12: 88.75 | F12: 88.78 | G12: 86.61 | H12: 86.78 | I12: 13953268
A13: AAL | B13: American Airlines (AAL) -NasdaqNM | C13: 2014-02-03 | D13: 16:00:00 | E13: 34.04 | F13: 34.48 | G13: 33.05 | H13: 33.96 | I13: 21748284
A14: CIEN | B14: Ciena Corporation (CIEN) -NYSE | C14: 2014-02-03 | D14: 16:02:00 | E14: 23.31 | F14: 23.38 | G14: 21.9 | H14: 22.09 | I14: 4433923
A15: SONC | B15: Sonic Corp. (SONC) -NasdaqNM | C15: 2014-02-03 | D15: 16:00:00 | E15: 17.7 | F15: 18 | G15: 16.92 | H15: 17.28 | I15: 918579
A16: HTLD | B16: Heartland Express (HTLD) -NasdaqNM | C16: 2014-02-03 | D16: 16:00:00 | E16: 21.05 | F16: 21.23 | G16: 20.17 | H16: 20.21 | I16: 589750
A17: ADM | B17: Archer-Daniels-Mi (ADM) -NYSE (Daily) | C17: 2014-04-04 | D17: 16:01:00 | E17: 43.59 | F17: 43.66 | G17: 43.03 | H17: 43.05 | I17: 4416020
A18: A | B18: Agilent Technolog (A) -NYSE | C18: 2014-02-03 | D18: 16:02:00 | E18: 58.15 | F18: 58.48 | G18: 56.075 | H18: 56.15 | I18: 2929252
A19: PSEC | B19: Prospect Capital (PSEC) -NasdaqNM (Daily) | C19: 2014-11-07 | D19: 16:00:00 | E19: 9.55 | F19: 9.67 | G19: 9.49 | H19: 9.53 | I19: 5870263
A20: RTN | B20: Raytheon Company (RTN) -NYSE (Daily) | C20: 2014-12-09 | D20: 16:05:00 | E20: 107.15 | F20: 108.83 | G20: 107.03 | H20: 108.53 | I20: 1838009
A21: CASY | B21: Caseys General St (CASY) -NasdaqNM (Daily) | C21: 2014-12-11 | D21: 10:37:00 | E21: 83.38 | F21: 87 | G21: 83.38 | H21: 86.55 | I21: 103711
A22: SPY | B22: SPDR S&P 500 (SPY) -PCX (Daily) | C22: 2014-08-08 | D22: 16:00:00 | E22: 191.46 | F22: 193.37 | G22: 190.95 | H22: 193.24 | I22: 116996440
A23: ^GSPC | B23: S&P 500 (^GSPC) -SNP (Daily) | C23: 2014-08-08 | D23: 16:31:00 | E23: 1910.35 | F23: 1932.38 | G23: 1909.01 | H23: 1931.59 | I23: 456088512
A24: QQQ | B24: PowerShares QQQ T (QQQ) -NGM (Daily) | C24: 2014-04-07 | D24: 11:33:00 | E24: 85.83 | F24: 86.63 | G24: 85.55 | H24: 86.07 | I24: 40146792

Sheet CandleStatControls
A1: Controls for Condensed Candle data base building process.
D4: Valid
D5: Data
D6: Types | E6: =VLOOKUP(B7,D7:E10,2,FALSE) -> d
A7: Data Type | B7: Daily | D7: Daily | E7: d
D8: Weekly | E8: w
D9: Monthly | E9: m
B12: 41984.41543 | C12: Start time | F12: You may specify as many symbols as you like in column A.
B13: 41984.41612 | C13: End time | F13: But the more you specify, the longer the build will take.
B14: =B13-B12 -> 00:01:00 | C14: Elapsed | F14: Do not leave gaps. The first empty or blank cell in the
F15: symbol column stops the scan process
A16: Data base build user controls
A17: 10 | B17: Weight Periods (SMA Length) | F17: The elapsed time includes the time it takes to download the
A18: 4 | B18: Segment Count | F18: historical data for each symbol and the necessary calculation time.
F20: The weight periods value has little effect on run time but can change
C21: Total Bars Evaluated: | D21: =SUM(D24:D5000) -> 38993 | F21: the way a bar is characterized
A22: =COUNTA(A24:A5000) -> 10 | B22: Signature Sourcing Securities
A23: Symbol | B23: Name (Symbol) -Market (Frequency) | D23: Bar Count | F23: Segment count can have a dramatic effect on the number of bars found
A24: XLB | B24: Materials Select (XLB) -PCX (Daily) | D24: 4019 | F24: and some impact on the elapsed time required to find them.
A25: XLE | B25: SPDR Select Secto (XLE) -PCX (Daily) | D25: 4019
A26: XLF | B26: SPDR Select Secto (XLF) -PCX (Daily) | D26: 4019
A27: XLI | B27: SPDR Select Secto (XLI) -PCX (Daily) | D27: 4019
A28: XLK | B28: SPDR Select Secto (XLK) -PCX (Daily) | D28: 4019
A29: XLP | B29: SPDR Select Secto (XLP) -PCX (Daily) | D29: 4019
A30: XLU | B30: SPDR Select Secto (XLU) -PCX (Daily) | D30: 4019
A31: XLV | B31: SPDR Select Secto (XLV) -PCX (Daily) | D31: 4019
A32: XLY | B32: SPDR Select Secto (XLY) -PCX (Daily) | D32: 4019
A33: AGG | B33: iShares Core U.S. (AGG) -PCX (Daily) | D33: 2822

Sheet CalculationsAndCharts
A1: Candlesticks Condensed
B2: =InputPriceData!A1 -> Caseys General St (CASY) -NasdaqNM (Daily)
A4: User Charting Controls
A5: Data Control
A6: =InputPriceData!$B$10 -> 7855 | B6: Available Input Data Rows | E6: Earliest: | F6: =OFFSET(InputPriceData!B15,CalculationsAndCharts!A6,0,1,1) -> 1983-10-20
B7: Use Close Adjusted: | C7: TRUE | E7: Latest: | F7: =OFFSET(InputPriceData!B15,1,0,1,1) -> 2014-12-11
A8: =MIN(A6-A11,COUNTA(B33:B9983)) -> 2800 | B8: Logically Available for Calc / Plot
A10: Price Chart Windowing Controls | F10: Y-axis Range
A11: 0 | B11: Input Data Offset (Pan) | E11: Max High+ | F11: =CEILING(MAX(OFFSET($E$33,0,0,$A$12,1))+2*F14,0.1) -> 91.3
A12: 201 | B12: Data Points to Plot (Zoom) | E12: Min Low- | F12: =FLOOR(MIN(OFFSET($F$33,0,0,$A$12,1))-2*F14,0.1) -> 61.1
B13: First: | C13: =OFFSET(B32,A12,0,1,1) -> 2014-02-27 | E13: White space %: | F13: 0.05
B14: ="Last: "&OFFSET(InputPriceData!P15,1+A11,0,1,1) -> Last: 10:37am | C14: =B33 -> 2014-12-11 | E14: Allowance: | F14: =FLOOR((CEILING(MAX(OFFSET($E$33,0,0,$A$12,1)),1)-FLOOR(MIN(OFFSET($F$33,0,0,$A$12,1)),1))*$F$13,0.01) -> 1.3
A15: Help! I would like to plot data
A16: From | B16: 2013-10-04 | C16: =OFFSET(InputPriceData!$A$15,MATCH(B16,OFFSET(InputPriceData!B15,1,0,InputPriceData!$B$10,1),0),0,1,1)-C17 -> 201 | E16: 114
A17: To | B17: 2014-07-23 | C17: =OFFSET(InputPriceData!$A$15,MATCH(B17,OFFSET(InputPriceData!$B$15,1,0,InputPriceData!$B$10,1),0),0,1,1)-1 -> 99 | E17: =$A$12-$E$16+1 -> 88
A19: To use:
A20: 1. Go to CandleStatControls tab to begin building the
A21: Signatures Data base. Select stocks and index
A22: symbols you would like to use to populate the | H22: Date and prices @ Cursor => | I22: =OFFSET(A32,$E$17,0,1,1)&"(RR)" -> 88(RR) | J22: =OFFSET($B$32,E17,0,1,1) -> 2014-08-08 | K22: =TEXT(OFFSET(C32,$E$17,0,1,1),"#,##0")&"(v)" -> 186,000(v) | L22: =TEXT(OFFSET(D32,$E$17,0,1,1),"#,##0.00")&"(o)" -> 65.97(o) | M22: =TEXT(OFFSET(E32,$E$17,0,1,1),"#,##0.00")&"(h)" -> 67.87(h) | N22: =TEXT(OFFSET(F32,$E$17,0,1,1),"#,##0.00")&"(l)" -> 65.88(l) | O22: =TEXT(OFFSET(G32,$E$17,0,1,1),"#,##0.00")&"(c)" -> 67.73(c)
A23: signatures DB. | E23: Candle Signature for bar at cursor: | G23: =OFFSET(W32,$E$17,0,1,1) -> 4_0_0 | H23: DB Statistics for this Signature ==> | J23: ="@ Bars Forward" -> @ Bars Forward | K23: DB Bars That Match Pattern | L23: % of time Forward Bar was up | N23: Average % Gain
A24: 2. After building the signatures data base (see
A25: CondensedCandleStats tab), go to the Follow or the | E25: Candle DB Index for this Signature: | G25: =MATCH(G23,OFFSET(CondensedCandleStats!A7,1,0,CondensedCandleStats!A2,1),0) -> 71 | J25: 1 | K25: =OFFSET(CondensedCandleStats!$A$7,$G$25,($J25-1)*6+1,1,1) -> 1665 | L25: =OFFSET(CondensedCandleStats!$A$7,$G$25,($J25-1)*6+3,1,1) -> 49.54954955 | N25: =OFFSET(CondensedCandleStats!$A$7,$G$25,($J25-1)*6+5,1,1) -> -0.03276196928
A26: InputPriceData tab to select a symbol you would like | J26: 2 | K26: =OFFSET(CondensedCandleStats!$A$7,$G$25,($J26-1)*6+1,1,1) -> 1665 | L26: =OFFSET(CondensedCandleStats!$A$7,$G$25,($J26-1)*6+3,1,1) -> 52.73273273 | N26: =OFFSET(CondensedCandleStats!$A$7,$G$25,($J26-1)*6+5,1,1) -> -0.001947090688
A27: to evaluate with respect to the signatures you have | F27: =IF(ISERROR(G25),"No matching signature in data base","") ->  | J27: 3 | K27: =OFFSET(CondensedCandleStats!$A$7,$G$25,($J27-1)*6+1,1,1) -> 1665 | L27: =OFFSET(CondensedCandleStats!$A$7,$G$25,($J27-1)*6+3,1,1) -> 52.91291291 | N27: =OFFSET(CondensedCandleStats!$A$7,$G$25,($J27-1)*6+5,1,1) -> -0.001232631219
A28: accumulated in the DB and to asses their predictive | J28: 4 | K28: =OFFSET(CondensedCandleStats!$A$7,$G$25,($J28-1)*6+1,1,1) -> 1665 | L28: =OFFSET(CondensedCandleStats!$A$7,$G$25,($J28-1)*6+3,1,1) -> 52.61261261 | N28: =OFFSET(CondensedCandleStats!$A$7,$G$25,($J28-1)*6+5,1,1) -> 0.05713602293
A29: capabilities with respect to your stock. | L29: ="Candle Signature Calculations for " & B2 -> Candle Signature Calculations for Caseys General St (CASY) -NasdaqNM (Daily)
L30: Candle Range | M30: ="SMA(" & CandleStatControls!$A$17 & ") of Candle Range" -> SMA(10) of Candle Range | N30: Range Multiplier | O30: Capped Range Multiplier | P30: Factor | Q30: HO Range | R30: HO | S30: HC Range | T30: HC | U30: OL Range | V30: OL | W30: Candle Signature
A31: Rel Row | B31: Stock Prices | H31: P Cursor | I31: P Cursor Min | J31: Vol Cursor | K31: P Cursor Min
B32: Date | C32: Volume | D32: Open | E32: High | F32: Low | G32: Close | H32: =$F$11 -> 91.3 | I32: =$F$12 -> 61.1 | J32: =MAX(OFFSET(C32,1,0,A12,1)) -> 896200 | K32: 0
A33: 1 | B33: =OFFSET(InputPriceData!$B$15,CalculationsAndCharts!$A33+$A$11,0,1,1) -> 2014-12-11 | C33: =OFFSET(InputPriceData!G$15,CalculationsAndCharts!$A33+$A$11,IF($C$7,8,0),1,1) -> 103711 | D33: =OFFSET(InputPriceData!$C$15,CalculationsAndCharts!$A33+$A$11,IF($C$7,8,0),1,1) -> 83.38 | E33: =OFFSET(InputPriceData!$D$15,CalculationsAndCharts!$A33+$A$11,IF($C$7,8,0),1,1) -> 87 | F33: =OFFSET(InputPriceData!$E$15,CalculationsAndCharts!$A33+$A$11,IF($C$7,8,0),1,1) -> 83.38 | G33: =OFFSET(InputPriceData!$F$15,CalculationsAndCharts!$A33+$A$11,IF($C$7,8,0),1,1) -> 86.55 | H33: =$E$17 -> 88 | I33: =H32 -> 91.3 | J33: =$E$17 -> 88 | K33: =10^INT(LOG10(J32))*0.9+J32 -> 986200 | L33: =E33-F33 -> 3.62 | M33: =AVERAGE(OFFSET(L33,0,0,CandleStatControls!$A$17,1)) -> 1.82 | N33: =L33/M33 -> 1.989010989 | O33: =IF(N33>1,1,N33) -> 1 | P33: =1/(L33/100)*O33/(100/CandleStatControls!$A$18) -> 1.104972376 | Q33: =E33-D33 -> 3.62 | R33: =ROUND($P33*Q33,0) -> 4 | S33: =E33-G33 -> 0.45 | T33: =ROUND($P33*S33,0) -> 0 | U33: =D33-F33 -> 0 | V33: =ROUND($P33*U33,0) -> 0 | W33: =IF(L33=0,"0_0_0",R33 & "_" & T33 & "_" & V33) -> 4_0_0
A34: 2 | B34: =OFFSET(InputPriceData!B$15,CalculationsAndCharts!$A34+$A$11,0,1,1) -> 2014-12-10 | C34: =OFFSET(InputPriceData!G$15,CalculationsAndCharts!$A34+$A$11,IF($C$7,8,0),1,1) -> 226700 | D34: =OFFSET(InputPriceData!C$15,CalculationsAndCharts!$A34+$A$11,IF($C$7,8,0),1,1) -> 83.68 | E34: =OFFSET(InputPriceData!D$15,CalculationsAndCharts!$A34+$A$11,IF($C$7,8,0),1,1) -> 84.32 | F34: =OFFSET(InputPriceData!E$15,CalculationsAndCharts!$A34+$A$11,IF($C$7,8,0),1,1) -> 82.43 | G34: =OFFSET(InputPriceData!F$15,CalculationsAndCharts!$A34+$A$11,IF($C$7,8,0),1,1) -> 82.7 | H34: =$E$17 -> 88 | I34: =I32 -> 61.1 | J34: =$E$17 -> 88 | K34: =K32 -> 0 | L34: =E34-F34 -> 1.89 | M34: =AVERAGE(OFFSET(L34,0,0,CandleStatControls!$A$17,1)) -> 1.876 | N34: =L34/M34 -> 1.007462687 | O34: =IF(N34>1,1,N34) -> 1 | P34: =1/(L34/100)*O34/(100/CandleStatControls!$A$18) -> 2.116402116 | Q34: =E34-D34 -> 0.64 | R34: =ROUND($P34*Q34,0) -> 1 | S34: =E34-G34 -> 1.62 | T34: =ROUND($P34*S34,0) -> 3 | U34: =D34-F34 -> 1.25 | V34: =ROUND($P34*U34,0) -> 3 | W34: =IF(L34=0,"0_0_0",R34 & "_" & T34 & "_" & V34) -> 1_3_3
A35: 3 | B35: =OFFSET(InputPriceData!B$15,CalculationsAndCharts!$A35+$A$11,0,1,1) -> 2014-12-09 | C35: =OFFSET(InputPriceData!G$15,CalculationsAndCharts!$A35+$A$11,IF($C$7,8,0),1,1) -> 273100 | D35: =OFFSET(InputPriceData!C$15,CalculationsAndCharts!$A35+$A$11,IF($C$7,8,0),1,1) -> 82.06 | E35: =OFFSET(InputPriceData!D$15,CalculationsAndCharts!$A35+$A$11,IF($C$7,8,0),1,1) -> 83.9 | F35: =OFFSET(InputPriceData!E$15,CalculationsAndCharts!$A35+$A$11,IF($C$7,8,0),1,1) -> 81.65 | G35: =OFFSET(InputPriceData!F$15,CalculationsAndCharts!$A35+$A$11,IF($C$7,8,0),1,1) -> 83.67 | L35: 2.25 | M35: =AVERAGE(OFFSET(L35,0,0,CandleStatControls!$A$17,1)) -> 2.351 | N35: 0.9570395576 | O35: 0.9570395576 | P35: =1/(L35/100)*O35/(100/CandleStatControls!$A$18) -> 1.701403658 | Q35: 1.84 | R35: 3 | S35: 0.23 | T35: 0 | U35: 0.41 | V35: 1 | W35: 3_0_1
A36: 4 | B36: =OFFSET(InputPriceData!B$15,CalculationsAndCharts!$A36+$A$11,0,1,1) -> 2014-12-08 | C36: =OFFSET(InputPriceData!G$15,CalculationsAndCharts!$A36+$A$11,IF($C$7,8,0),1,1) -> 258100 | D36: =OFFSET(InputPriceData!C$15,CalculationsAndCharts!$A36+$A$11,IF($C$7,8,0),1,1) -> 82.28 | E36: =OFFSET(InputPriceData!D$15,CalculationsAndCharts!$A36+$A$11,IF($C$7,8,0),1,1) -> 84.12 | F36: =OFFSET(InputPriceData!E$15,CalculationsAndCharts!$A36+$A$11,IF($C$7,8,0),1,1) -> 82.28 | G36: =OFFSET(InputPriceData!F$15,CalculationsAndCharts!$A36+$A$11,IF($C$7,8,0),1,1) -> 82.88 | L36: 1.84 | M36: =AVERAGE(OFFSET(L36,0,0,CandleStatControls!$A$17,1)) -> 2.324 | N36: 0.7917383821 | O36: 0.7917383821 | P36: =1/(L36/100)*O36/(100/CandleStatControls!$A$18) -> 1.721170396 | Q36: 1.84 | R36: 3 | S36: 1.24 | T36: 2 | U36: 0 | V36: 0 | W36: 3_2_0
A37: 5 | B37: =OFFSET(InputPriceData!B$15,CalculationsAndCharts!$A37+$A$11,0,1,1) -> 2014-12-05 | C37: =OFFSET(InputPriceData!G$15,CalculationsAndCharts!$A37+$A$11,IF($C$7,8,0),1,1) -> 162300 | D37: =OFFSET(InputPriceData!C$15,CalculationsAndCharts!$A37+$A$11,IF($C$7,8,0),1,1) -> 82.4 | E37: =OFFSET(InputPriceData!D$15,CalculationsAndCharts!$A37+$A$11,IF($C$7,8,0),1,1) -> 83.15 | F37: =OFFSET(InputPriceData!E$15,CalculationsAndCharts!$A37+$A$11,IF($C$7,8,0),1,1) -> 82.4 | G37: =OFFSET(InputPriceData!F$15,CalculationsAndCharts!$A37+$A$11,IF($C$7,8,0),1,1) -> 82.63 | L37: 0.75 | M37: =AVERAGE(OFFSET(L37,0,0,CandleStatControls!$A$17,1)) -> 2.341 | N37: 0.3203759077 | O37: 0.3203759077 | P37: =1/(L37/100)*O37/(100/CandleStatControls!$A$18) -> 1.708671508 | Q37: 0.75 | R37: 1 | S37: 0.52 | T37: 1 | U37: 0 | V37: 0 | W37: 1_1_0
A38: 6 | B38: =OFFSET(InputPriceData!B$15,CalculationsAndCharts!$A38+$A$11,0,1,1) -> 2014-12-04 | C38: =OFFSET(InputPriceData!G$15,CalculationsAndCharts!$A38+$A$11,IF($C$7,8,0),1,1) -> 204400 | D38: =OFFSET(InputPriceData!C$15,CalculationsAndCharts!$A38+$A$11,IF($C$7,8,0),1,1) -> 82.62 | E38: =OFFSET(InputPriceData!D$15,CalculationsAndCharts!$A38+$A$11,IF($C$7,8,0),1,1) -> 83.11 | F38: =OFFSET(InputPriceData!E$15,CalculationsAndCharts!$A38+$A$11,IF($C$7,8,0),1,1) -> 81.63 | G38: =OFFSET(InputPriceData!F$15,CalculationsAndCharts!$A38+$A$11,IF($C$7,8,0),1,1) -> 82.5 | L38: 1.48 | M38: =AVERAGE(OFFSET(L38,0,0,CandleStatControls!$A$17,1)) -> 2.578 | N38: 0.5740884407 | O38: 0.5740884407 | P38: =1/(L38/100)*O38/(100/CandleStatControls!$A$18) -> 1.55159038 | Q38: 0.49 | R38: 1 | S38: 0.61 | T38: 1 | U38: 0.99 | V38: 2 | W38: 1_1_2
A39: 7 | B39: =OFFSET(InputPriceData!B$15,CalculationsAndCharts!$A39+$A$11,0,1,1) -> 2014-12-03 | C39: =OFFSET(InputPriceData!G$15,CalculationsAndCharts!$A39+$A$11,IF($C$7,8,0),1,1) -> 153900 | D39: =OFFSET(InputPriceData!C$15,CalculationsAndCharts!$A39+$A$11,IF($C$7,8,0),1,1) -> 82.5 | E39: =OFFSET(InputPriceData!D$15,CalculationsAndCharts!$A39+$A$11,IF($C$7,8,0),1,1) -> 83.32 | F39: =OFFSET(InputPriceData!E$15,CalculationsAndCharts!$A39+$A$11,IF($C$7,8,0),1,1) -> 81.97 | G39: =OFFSET(InputPriceData!F$15,CalculationsAndCharts!$A39+$A$11,IF($C$7,8,0),1,1) -> 82.49 | L39: 1.35 | M39: =AVERAGE(OFFSET(L39,0,0,CandleStatControls!$A$17,1)) -> 2.665 | N39: 0.5065666041 | O39: 0.5065666041 | P39: =1/(L39/100)*O39/(100/CandleStatControls!$A$18) -> 1.500938086 | Q39: 0.82 | R39: 1 | S39: 0.83 | T39: 1 | U39: 0.53 | V39: 1 | W39: 1_1_1
A40: 8 | B40: =OFFSET(InputPriceData!B$15,CalculationsAndCharts!$A40+$A$11,0,1,1) -> 2014-12-02 | C40: =OFFSET(InputPriceData!G$15,CalculationsAndCharts!$A40+$A$11,IF($C$7,8,0),1,1) -> 197200 | D40: =OFFSET(InputPriceData!C$15,CalculationsAndCharts!$A40+$A$11,IF($C$7,8,0),1,1) -> 82.75 | E40: =OFFSET(InputPriceData!D$15,CalculationsAndCharts!$A40+$A$11,IF($C$7,8,0),1,1) -> 83.4 | F40: =OFFSET(InputPriceData!E$15,CalculationsAndCharts!$A40+$A$11,IF($C$7,8,0),1,1) -> 81.87 | G40: =OFFSET(InputPriceData!F$15,CalculationsAndCharts!$A40+$A$11,IF($C$7,8,0),1,1) -> 82.52 | L40: 1.53 | M40: =AVERAGE(OFFSET(L40,0,0,CandleStatControls!$A$17,1)) -> 2.713 | N40: 0.5639513454 | O40: 0.5639513454 | P40: =1/(L40/100)*O40/(100/CandleStatControls!$A$18) -> 1.474382602 | Q40: 0.65 | R40: 1 | S40: 0.88 | T40: 1 | U40: 0.88 | V40: 1 | W40: 1_1_1
A41: 9 | B41: =OFFSET(InputPriceData!B$15,CalculationsAndCharts!$A41+$A$11,0,1,1) -> 2014-12-01 | C41: =OFFSET(InputPriceData!G$15,CalculationsAndCharts!$A41+$A$11,IF($C$7,8,0),1,1) -> 223600 | D41: =OFFSET(InputPriceData!C$15,CalculationsAndCharts!$A41+$A$11,IF($C$7,8,0),1,1) -> 83.34 | E41: =OFFSET(InputPriceData!D$15,CalculationsAndCharts!$A41+$A$11,IF($C$7,8,0),1,1) -> 84.39 | F41: =OFFSET(InputPriceData!E$15,CalculationsAndCharts!$A41+$A$11,IF($C$7,8,0),1,1) -> 82.33 | G41: =OFFSET(InputPriceData!F$15,CalculationsAndCharts!$A41+$A$11,IF($C$7,8,0),1,1) -> 82.53 | L41: 2.06 | M41: =AVERAGE(OFFSET(L41,0,0,CandleStatControls!$A$17,1)) -> 2.693 | N41: 0.7649461567 | O41: 0.7649461567 | P41: =1/(L41/100)*O41/(100/CandleStatControls!$A$18) -> 1.485332343 | Q41: 1.05 | R41: 2 | S41: 1.86 | T41: 3 | U41: 1.01 | V41: 2 | W41: 2_3_2
A42: 10 | B42: =OFFSET(InputPriceData!B$15,CalculationsAndCharts!$A42+$A$11,0,1,1) -> 2014-11-28 | C42: =OFFSET(InputPriceData!G$15,CalculationsAndCharts!$A42+$A$11,IF($C$7,8,0),1,1) -> 164100 | D42: =OFFSET(InputPriceData!C$15,CalculationsAndCharts!$A42+$A$11,IF($C$7,8,0),1,1) -> 83.6 | E42: =OFFSET(InputPriceData!D$15,CalculationsAndCharts!$A42+$A$11,IF($C$7,8,0),1,1) -> 84.89 | F42: =OFFSET(InputPriceData!E$15,CalculationsAndCharts!$A42+$A$11,IF($C$7,8,0),1,1) -> 83.46 | G42: =OFFSET(InputPriceData!F$15,CalculationsAndCharts!$A42+$A$11,IF($C$7,8,0),1,1) -> 83.72 | L42: 1.43 | M42: =AVERAGE(OFFSET(L42,0,0,CandleStatControls!$A$17,1)) -> 2.625 | N42: 0.5447619048 | O42: 0.5447619048 | P42: =1/(L42/100)*O42/(100/CandleStatControls!$A$18) -> 1.523809524 | Q42: 1.29 | R42: 2 | S42: 1.17 | T42: 2 | U42: 0.14 | V42: 0 | W42: 2_2_0
A43: 11 | B43: =OFFSET(InputPriceData!B$15,CalculationsAndCharts!$A43+$A$11,0,1,1) -> 2014-11-26 | C43: =OFFSET(InputPriceData!G$15,CalculationsAndCharts!$A43+$A$11,IF($C$7,8,0),1,1) -> 279200 | D43: =OFFSET(InputPriceData!C$15,CalculationsAndCharts!$A43+$A$11,IF($C$7,8,0),1,1) -> 80.34 | E43: =OFFSET(InputPriceData!D$15,CalculationsAndCharts!$A43+$A$11,IF($C$7,8,0),1,1) -> 84.28 | F43: =OFFSET(InputPriceData!E$15,CalculationsAndCharts!$A43+$A$11,IF($C$7,8,0),1,1) -> 80.1 | G43: =OFFSET(InputPriceData!F$15,CalculationsAndCharts!$A43+$A$11,IF($C$7,8,0),1,1) -> 83.47 | L43: 4.18 | M43: =AVERAGE(OFFSET(L43,0,0,CandleStatControls!$A$17,1)) -> 2.541 | N43: 1.645021645 | O43: 1 | P43: =1/(L43/100)*O43/(100/CandleStatControls!$A$18) -> 0.956937799 | Q43: 3.94 | R43: 4 | S43: 0.81 | T43: 1 | U43: 0.24 | V43: 0 | W43: 4_1_0
A44: 12 | B44: =OFFSET(InputPriceData!B$15,CalculationsAndCharts!$A44+$A$11,0,1,1) -> 2014-11-25 | C44: =OFFSET(InputPriceData!G$15,CalculationsAndCharts!$A44+$A$11,IF($C$7,8,0),1,1) -> 896200 | D44: =OFFSET(InputPriceData!C$15,CalculationsAndCharts!$A44+$A$11,IF($C$7,8,0),1,1) -> 85.84 | E44: =OFFSET(InputPriceData!D$15,CalculationsAndCharts!$A44+$A$11,IF($C$7,8,0),1,1) -> 85.84 | F44: =OFFSET(InputPriceData!E$15,CalculationsAndCharts!$A44+$A$11,IF($C$7,8,0),1,1) -> 79.2 | G44: =OFFSET(InputPriceData!F$15,CalculationsAndCharts!$A44+$A$11,IF($C$7,8,0),1,1) -> 80.83 | L44: 6.64 | M44: =AVERAGE(OFFSET(L44,0,0,CandleStatControls!$A$17,1)) -> 2.204 | N44: 3.012704174 | O44: 1 | P44: =1/(L44/100)*O44/(100/CandleStatControls!$A$18) -> 0.6024096386 | Q44: 0 | R44: 0 | S44: 5.01 | T44: 3 | U44: 6.64 | V44: 4 | W44: 0_3_4
A45: 13 | B45: =OFFSET(InputPriceData!B$15,CalculationsAndCharts!$A45+$A$11,0,1,1) -> 2014-11-24 | C45: =OFFSET(InputPriceData!G$15,CalculationsAndCharts!$A45+$A$11,IF($C$7,8,0),1,1) -> 308400 | D45: =OFFSET(InputPriceData!C$15,CalculationsAndCharts!$A45+$A$11,IF($C$7,8,0),1,1) -> 87.2 | E45: =OFFSET(InputPriceData!D$15,CalculationsAndCharts!$A45+$A$11,IF($C$7,8,0),1,1) -> 88.66 | F45: =OFFSET(InputPriceData!E$15,CalculationsAndCharts!$A45+$A$11,IF($C$7,8,0),1,1) -> 86.68 | G45: =OFFSET(InputPriceData!F$15,CalculationsAndCharts!$A45+$A$11,IF($C$7,8,0),1,1) -> 87.87 | L45: 1.98 | M45: =AVERAGE(OFFSET(L45,0,0,CandleStatControls!$A$17,1)) -> 1.655 | N45: 1.196374622 | O45: 1 | P45: =1/(L45/100)*O45/(100/CandleStatControls!$A$18) -> 2.02020202 | Q45: 1.46 | R45: 3 | S45: 0.79 | T45: 2 | U45: 0.52 | V45: 1 | W45: 3_2_1
A46: 14 | B46: =OFFSET(InputPriceData!B$15,CalculationsAndCharts!$A46+$A$11,0,1,1) -> 2014-11-21 | C46: =OFFSET(InputPriceData!G$15,CalculationsAndCharts!$A46+$A$11,IF($C$7,8,0),1,1) -> 294000 | D46: =OFFSET(InputPriceData!C$15,CalculationsAndCharts!$A46+$A$11,IF($C$7,8,0),1,1) -> 86.45 | E46: =OFFSET(InputPriceData!D$15,CalculationsAndCharts!$A46+$A$11,IF($C$7,8,0),1,1) -> 87.63 | F46: =OFFSET(InputPriceData!E$15,CalculationsAndCharts!$A46+$A$11,IF($C$7,8,0),1,1) -> 85.62 | G46: =OFFSET(InputPriceData!F$15,CalculationsAndCharts!$A46+$A$11,IF($C$7,8,0),1,1) -> 87.22 | L46: 2.01 | M46: =AVERAGE(OFFSET(L46,0,0,CandleStatControls!$A$17,1)) -> 1.588 | N46: 1.265743073 | O46: 1 | P46: =1/(L46/100)*O46/(100/CandleStatControls!$A$18) -> 1.990049751 | Q46: 1.18 | R46: 2 | S46: 0.41 | T46: 1 | U46: 0.83 | V46: 2 | W46: 2_1_2
A47: 15 | B47: =OFFSET(InputPriceData!B$15,CalculationsAndCharts!$A47+$A$11,0,1,1) -> 2014-11-20 | C47: =OFFSET(InputPriceData!G$15,CalculationsAndCharts!$A47+$A$11,IF($C$7,8,0),1,1) -> 250600 | D47: =OFFSET(InputPriceData!C$15,CalculationsAndCharts!$A47+$A$11,IF($C$7,8,0),1,1) -> 83.21 | E47: =OFFSET(InputPriceData!D$15,CalculationsAndCharts!$A47+$A$11,IF($C$7,8,0),1,1) -> 85.9 | F47: =OFFSET(InputPriceData!E$15,CalculationsAndCharts!$A47+$A$11,IF($C$7,8,0),1,1) -> 82.78 | G47: =OFFSET(InputPriceData!F$15,CalculationsAndCharts!$A47+$A$11,IF($C$7,8,0),1,1) -> 85.55 | L47: 3.12 | M47: =AVERAGE(OFFSET(L47,0,0,CandleStatControls!$A$17,1)) -> 1.545 | N47: 2.019417476 | O47: 1 | P47: =1/(L47/100)*O47/(100/CandleStatControls!$A$18) -> 1.282051282 | Q47: 2.69 | R47: 3 | S47: 0.35 | T47: 0 | U47: 0.43 | V47: 1 | W47: 3_0_1
A48: 16 | B48: =OFFSET(InputPriceData!B$15,CalculationsAndCharts!$A48+$A$11,0,1,1) -> 2014-11-19 | C48: =OFFSET(InputPriceData!G$15,CalculationsAndCharts!$A48+$A$11,IF($C$7,8,0),1,1) -> 268800 | D48: =OFFSET(InputPriceData!C$15,CalculationsAndCharts!$A48+$A$11,IF($C$7,8,0),1,1) -> 82.05 | E48: =OFFSET(InputPriceData!D$15,CalculationsAndCharts!$A48+$A$11,IF($C$7,8,0),1,1) -> 83.81 | F48: =OFFSET(InputPriceData!E$15,CalculationsAndCharts!$A48+$A$11,IF($C$7,8,0),1,1) -> 81.46 | G48: =OFFSET(InputPriceData!F$15,CalculationsAndCharts!$A48+$A$11,IF($C$7,8,0),1,1) -> 83.56 | L48: 2.35 | M48: =AVERAGE(OFFSET(L48,0,0,CandleStatControls!$A$17,1)) -> 1.386 | N48: 1.695526696 | O48: 1 | P48: =1/(L48/100)*O48/(100/CandleStatControls!$A$18) -> 1.70212766 | Q48: 1.76 | R48: 3 | S48: 0.25 | T48: 0 | U48: 0.59 | V48: 1 | W48: 3_0_1
A49: 17 | B49: =OFFSET(InputPriceData!B$15,CalculationsAndCharts!$A49+$A$11,0,1,1) -> 2014-11-18 | C49: =OFFSET(InputPriceData!G$15,CalculationsAndCharts!$A49+$A$11,IF($C$7,8,0),1,1) -> 157000 | D49: =OFFSET(InputPriceData!C$15,CalculationsAndCharts!$A49+$A$11,IF($C$7,8,0),1,1) -> 81.62 | E49: =OFFSET(InputPriceData!D$15,CalculationsAndCharts!$A49+$A$11,IF($C$7,8,0),1,1) -> 82.83 | F49: =OFFSET(InputPriceData!E$15,CalculationsAndCharts!$A49+$A$11,IF($C$7,8,0),1,1) -> 81 | G49: =OFFSET(InputPriceData!F$15,CalculationsAndCharts!$A49+$A$11,IF($C$7,8,0),1,1) -> 82.26 | L49: 1.83 | M49: =AVERAGE(OFFSET(L49,0,0,CandleStatControls!$A$17,1)) -> 1.297 | N49: 1.410948342 | O49: 1 | P49: =1/(L49/100)*O49/(100/CandleStatControls!$A$18) -> 2.18579235 | Q49: 1.21 | R49: 3 | S49: 0.57 | T49: 1 | U49: 0.62 | V49: 1 | W49: 3_1_1
A50: 18 | B50: =OFFSET(InputPriceData!B$15,CalculationsAndCharts!$A50+$A$11,0,1,1) -> 2014-11-17 | C50: =OFFSET(InputPriceData!G$15,CalculationsAndCharts!$A50+$A$11,IF($C$7,8,0),1,1) -> 161700 | D50: =OFFSET(InputPriceData!C$15,CalculationsAndCharts!$A50+$A$11,IF($C$7,8,0),1,1) -> 82.47 | E50: =OFFSET(InputPriceData!D$15,CalculationsAndCharts!$A50+$A$11,IF($C$7,8,0),1,1) -> 82.63 | F50: =OFFSET(InputPriceData!E$15,CalculationsAndCharts!$A50+$A$11,IF($C$7,8,0),1,1) -> 81.3 | G50: =OFFSET(InputPriceData!F$15,CalculationsAndCharts!$A50+$A$11,IF($C$7,8,0),1,1) -> 81.37 | L50: 1.33 | M50: =AVERAGE(OFFSET(L50,0,0,CandleStatControls!$A$17,1)) -> 1.275 | N50: 1.043137255 | O50: 1 | P50: =1/(L50/100)*O50/(100/CandleStatControls!$A$18) -> 3.007518797 | Q50: 0.16 | R50: 0 | S50: 1.26 | T50: 4 | U50: 1.17 | V50: 4 | W50: 0_4_4
A51: 19 | B51: =OFFSET(InputPriceData!B$15,CalculationsAndCharts!$A51+$A$11,0,1,1) -> 2014-11-14 | C51: =OFFSET(InputPriceData!G$15,CalculationsAndCharts!$A51+$A$11,IF($C$7,8,0),1,1) -> 154100 | D51: =OFFSET(InputPriceData!C$15,CalculationsAndCharts!$A51+$A$11,IF($C$7,8,0),1,1) -> 83.4 | E51: =OFFSET(InputPriceData!D$15,CalculationsAndCharts!$A51+$A$11,IF($C$7,8,0),1,1) -> 83.8 | F51: =OFFSET(InputPriceData!E$15,CalculationsAndCharts!$A51+$A$11,IF($C$7,8,0),1,1) -> 82.42 | G51: =OFFSET(InputPriceData!F$15,CalculationsAndCharts!$A51+$A$11,IF($C$7,8,0),1,1) -> 82.48 | L51: 1.38 | M51: =AVERAGE(OFFSET(L51,0,0,CandleStatControls!$A$17,1)) -> 1.281 | N51: 1.077283372 | O51: 1 | P51: =1/(L51/100)*O51/(100/CandleStatControls!$A$18) -> 2.898550725 | Q51: 0.4 | R51: 1 | S51: 1.32 | T51: 4 | U51: 0.98 | V51: 3 | W51: 1_4_3
A52: 20 | B52: =OFFSET(InputPriceData!B$15,CalculationsAndCharts!$A52+$A$11,0,1,1) -> 2014-11-13 | C52: =OFFSET(InputPriceData!G$15,CalculationsAndCharts!$A52+$A$11,IF($C$7,8,0),1,1) -> 99400 | D52: =OFFSET(InputPriceData!C$15,CalculationsAndCharts!$A52+$A$11,IF($C$7,8,0),1,1) -> 83.91 | E52: =OFFSET(InputPriceData!D$15,CalculationsAndCharts!$A52+$A$11,IF($C$7,8,0),1,1) -> 84 | F52: =OFFSET(InputPriceData!E$15,CalculationsAndCharts!$A52+$A$11,IF($C$7,8,0),1,1) -> 83.41 | G52: =OFFSET(InputPriceData!F$15,CalculationsAndCharts!$A52+$A$11,IF($C$7,8,0),1,1) -> 83.55 | L52: 0.59 | M52: =AVERAGE(OFFSET(L52,0,0,CandleStatControls!$A$17,1)) -> 1.239 | N52: 0.4761904762 | O52: 0.4761904762 | P52: =1/(L52/100)*O52/(100/CandleStatControls!$A$18) -> 3.228410008 | Q52: 0.09 | R52: 0 | S52: 0.45 | T52: 1 | U52: 0.5 | V52: 2 | W52: 0_1_2
A53: 21 | B53: =OFFSET(InputPriceData!B$15,CalculationsAndCharts!$A53+$A$11,0,1,1) -> 2014-11-12 | C53: =OFFSET(InputPriceData!G$15,CalculationsAndCharts!$A53+$A$11,IF($C$7,8,0),1,1) -> 181600 | D53: =OFFSET(InputPriceData!C$15,CalculationsAndCharts!$A53+$A$11,IF($C$7,8,0),1,1) -> 83.45 | E53: =OFFSET(InputPriceData!D$15,CalculationsAndCharts!$A53+$A$11,IF($C$7,8,0),1,1) -> 83.97 | F53: =OFFSET(InputPriceData!E$15,CalculationsAndCharts!$A53+$A$11,IF($C$7,8,0),1,1) -> 83.16 | G53: =OFFSET(InputPriceData!F$15,CalculationsAndCharts!$A53+$A$11,IF($C$7,8,0),1,1) -> 83.65 | L53: 0.81 | M53: =AVERAGE(OFFSET(L53,0,0,CandleStatControls!$A$17,1)) -> 1.347 | N53: 0.6013363029 | O53: 0.6013363029 | P53: =1/(L53/100)*O53/(100/CandleStatControls!$A$18) -> 2.96956199 | Q53: 0.52 | R53: 2 | S53: 0.32 | T53: 1 | U53: 0.29 | V53: 1 | W53: 2_1_1
A54: 22 | B54: =OFFSET(InputPriceData!B$15,CalculationsAndCharts!$A54+$A$11,0,1,1) -> 2014-11-11 | C54: =OFFSET(InputPriceData!G$15,CalculationsAndCharts!$A54+$A$11,IF($C$7,8,0),1,1) -> 190500 | D54: =OFFSET(InputPriceData!C$15,CalculationsAndCharts!$A54+$A$11,IF($C$7,8,0),1,1) -> 84.23 | E54: =OFFSET(InputPriceData!D$15,CalculationsAndCharts!$A54+$A$11,IF($C$7,8,0),1,1) -> 84.23 | F54: =OFFSET(InputPriceData!E$15,CalculationsAndCharts!$A54+$A$11,IF($C$7,8,0),1,1) -> 83.08 | G54: =OFFSET(InputPriceData!F$15,CalculationsAndCharts!$A54+$A$11,IF($C$7,8,0),1,1) -> 83.68 | L54: 1.15 | M54: =AVERAGE(OFFSET(L54,0,0,CandleStatControls!$A$17,1)) -> 1.432 | N54: 0.8030726257 | O54: 0.8030726257 | P54: =1/(L54/100)*O54/(100/CandleStatControls!$A$18) -> 2.793296089 | Q54: 0 | R54: 0 | S54: 0.55 | T54: 2 | U54: 1.15 | V54: 3 | W54: 0_2_3
A55: 23 | B55: =OFFSET(InputPriceData!B$15,CalculationsAndCharts!$A55+$A$11,0,1,1) -> 2014-11-10 | C55: =OFFSET(InputPriceData!G$15,CalculationsAndCharts!$A55+$A$11,IF($C$7,8,0),1,1) -> 170600 | D55: =OFFSET(InputPriceData!C$15,CalculationsAndCharts!$A55+$A$11,IF($C$7,8,0),1,1) -> 83.66 | E55: =OFFSET(InputPriceData!D$15,CalculationsAndCharts!$A55+$A$11,IF($C$7,8,0),1,1) -> 84.54 | F55: =OFFSET(InputPriceData!E$15,CalculationsAndCharts!$A55+$A$11,IF($C$7,8,0),1,1) -> 83.23 | G55: =OFFSET(InputPriceData!F$15,CalculationsAndCharts!$A55+$A$11,IF($C$7,8,0),1,1) -> 83.98 | L55: 1.31 | M55: =AVERAGE(OFFSET(L55,0,0,CandleStatControls!$A$17,1)) -> 1.562 | N55: 0.8386683739 | O55: 0.8386683739 | P55: =1/(L55/100)*O55/(100/CandleStatControls!$A$18) -> 2.560819462 | Q55: 0.88 | R55: 2 | S55: 0.56 | T55: 1 | U55: 0.43 | V55: 1 | W55: 2_1_1
A56: 24 | B56: =OFFSET(InputPriceData!B$15,CalculationsAndCharts!$A56+$A$11,0,1,1) -> 2014-11-07 | C56: =OFFSET(InputPriceData!G$15,CalculationsAndCharts!$A56+$A$11,IF($C$7,8,0),1,1) -> 168100 | D56: =OFFSET(InputPriceData!C$15,CalculationsAndCharts!$A56+$A$11,IF($C$7,8,0),1,1) -> 82.88 | E56: =OFFSET(InputPriceData!D$15,CalculationsAndCharts!$A56+$A$11,IF($C$7,8,0),1,1) -> 83.57 | F56: =OFFSET(InputPriceData!E$15,CalculationsAndCharts!$A56+$A$11,IF($C$7,8,0),1,1) -> 81.99 | G56: =OFFSET(InputPriceData!F$15,CalculationsAndCharts!$A56+$A$11,IF($C$7,8,0),1,1) -> 83.52 | L56: 1.58 | M56: =AVERAGE(OFFSET(L56,0,0,CandleStatControls!$A$17,1)) -> 1.511 | N56: 1.045665122 | O56: 1 | P56: =1/(L56/100)*O56/(100/CandleStatControls!$A$18) -> 2.53164557 | Q56: 0.69 | R56: 2 | S56: 0.05 | T56: 0 | U56: 0.89 | V56: 2 | W56: 2_0_2
A57: 25 | B57: =OFFSET(InputPriceData!B$15,CalculationsAndCharts!$A57+$A$11,0,1,1) -> 2014-11-06 | C57: =OFFSET(InputPriceData!G$15,CalculationsAndCharts!$A57+$A$11,IF($C$7,8,0),1,1) -> 222900 | D57: =OFFSET(InputPriceData!C$15,CalculationsAndCharts!$A57+$A$11,IF($C$7,8,0),1,1) -> 81.64 | E57: =OFFSET(InputPriceData!D$15,CalculationsAndCharts!$A57+$A$11,IF($C$7,8,0),1,1) -> 82.8 | F57: =OFFSET(InputPriceData!E$15,CalculationsAndCharts!$A57+$A$11,IF($C$7,8,0),1,1) -> 81.27 | G57: =OFFSET(InputPriceData!F$15,CalculationsAndCharts!$A57+$A$11,IF($C$7,8,0),1,1) -> 82.74 | L57: 1.53 | M57: =AVERAGE(OFFSET(L57,0,0,CandleStatControls!$A$17,1)) -> 1.509 | N57: 1.013916501 | O57: 1 | P57: =1/(L57/100)*O57/(100/CandleStatControls!$A$18) -> 2.614379085 | Q57: 1.16 | R57: 3 | S57: 0.06 | T57: 0 | U57: 0.37 | V57: 1 | W57: 3_0_1
A58: 26 | B58: =OFFSET(InputPriceData!B$15,CalculationsAndCharts!$A58+$A$11,0,1,1) -> 2014-11-05 | C58: =OFFSET(InputPriceData!G$15,CalculationsAndCharts!$A58+$A$11,IF($C$7,8,0),1,1) -> 174300 | D58: =OFFSET(InputPriceData!C$15,CalculationsAndCharts!$A58+$A$11,IF($C$7,8,0),1,1) -> 81.59 | E58: =OFFSET(InputPriceData!D$15,CalculationsAndCharts!$A58+$A$11,IF($C$7,8,0),1,1) -> 82.41 | F58: =OFFSET(InputPriceData!E$15,CalculationsAndCharts!$A58+$A$11,IF($C$7,8,0),1,1) -> 80.95 | G58: =OFFSET(InputPriceData!F$15,CalculationsAndCharts!$A58+$A$11,IF($C$7,8,0),1,1) -> 81.46 | L58: 1.46 | M58: =AVERAGE(OFFSET(L58,0,0,CandleStatControls!$A$17,1)) -> 1.592 | N58: 0.9170854271 | O58: 0.9170854271 | P58: =1/(L58/100)*O58/(100/CandleStatControls!$A$18) -> 2.512562814 | Q58: 0.82 | R58: 2 | S58: 0.95 | T58: 2 | U58: 0.64 | V58: 2 | W58: 2_2_2
A59: 27 | B59: =OFFSET(InputPriceData!B$15,CalculationsAndCharts!$A59+$A$11,0,1,1) -> 2014-11-04 | C59: =OFFSET(InputPriceData!G$15,CalculationsAndCharts!$A59+$A$11,IF($C$7,8,0),1,1) -> 212600 | D59: =OFFSET(InputPriceData!C$15,CalculationsAndCharts!$A59+$A$11,IF($C$7,8,0),1,1) -> 80.71 | E59: =OFFSET(InputPriceData!D$15,CalculationsAndCharts!$A59+$A$11,IF($C$7,8,0),1,1) -> 81.87 | F59: =OFFSET(InputPriceData!E$15,CalculationsAndCharts!$A59+$A$11,IF($C$7,8,0),1,1) -> 80.26 | G59: =OFFSET(InputPriceData!F$15,CalculationsAndCharts!$A59+$A$11,IF($C$7,8,0),1,1) -> 81.2 | L59: 1.61 | M59: =AVERAGE(OFFSET(L59,0,0,CandleStatControls!$A$17,1)) -> 1.611 | N59: 0.9993792675 | O59: 0.9993792675 | P59: =1/(L59/100)*O59/(100/CandleStatControls!$A$18) -> 2.482929857 | Q59: 1.16 | R59: 3 | S59: 0.67 | T59: 2 | U59: 0.45 | V59: 1 | W59: 3_2_1
A60: 28 | B60: =OFFSET(InputPriceData!B$15,CalculationsAndCharts!$A60+$A$11,0,1,1) -> 2014-11-03 | C60: =OFFSET(InputPriceData!G$15,CalculationsAndCharts!$A60+$A$11,IF($C$7,8,0),1,1) -> 177900 | D60: =OFFSET(InputPriceData!C$15,CalculationsAndCharts!$A60+$A$11,IF($C$7,8,0),1,1) -> 81.87 | E60: =OFFSET(InputPriceData!D$15,CalculationsAndCharts!$A60+$A$11,IF($C$7,8,0),1,1) -> 81.9 | F60: =OFFSET(InputPriceData!E$15,CalculationsAndCharts!$A60+$A$11,IF($C$7,8,0),1,1) -> 80.51 | G60: =OFFSET(InputPriceData!F$15,CalculationsAndCharts!$A60+$A$11,IF($C$7,8,0),1,1) -> 80.76 | L60: 1.39 | M60: =AVERAGE(OFFSET(L60,0,0,CandleStatControls!$A$17,1)) -> 1.601 | N60: 0.8682073704 | O60: 0.8682073704 | P60: =1/(L60/100)*O60/(100/CandleStatControls!$A$18) -> 2.498438476 | Q60: 0.03 | R60: 0 | S60: 1.14 | T60: 3 | U60: 1.36 | V60: 3 | W60: 0_3_3
A61: 29 | B61: =OFFSET(InputPriceData!B$15,CalculationsAndCharts!$A61+$A$11,0,1,1) -> 2014-10-31 | C61: =OFFSET(InputPriceData!G$15,CalculationsAndCharts!$A61+$A$11,IF($C$7,8,0),1,1) -> 220800 | D61: =OFFSET(InputPriceData!C$15,CalculationsAndCharts!$A61+$A$11,IF($C$7,8,0),1,1) -> 82.19 | E61: =OFFSET(InputPriceData!D$15,CalculationsAndCharts!$A61+$A$11,IF($C$7,8,0),1,1) -> 82.44 | F61: =OFFSET(InputPriceData!E$15,CalculationsAndCharts!$A61+$A$11,IF($C$7,8,0),1,1) -> 81.48 | G61: =OFFSET(InputPriceData!F$15,CalculationsAndCharts!$A61+$A$11,IF($C$7,8,0),1,1) -> 81.87 | L61: 0.96 | M61: =AVERAGE(OFFSET(L61,0,0,CandleStatControls!$A$17,1)) -> 1.597 | N61: 0.6011271133 | O61: 0.6011271133 | P61: =1/(L61/100)*O61/(100/CandleStatControls!$A$18) -> 2.504696306 | Q61: 0.25 | R61: 1 | S61: 0.57 | T61: 1 | U61: 0.71 | V61: 2 | W61: 1_1_2
A62: 30 | B62: =OFFSET(InputPriceData!B$15,CalculationsAndCharts!$A62+$A$11,0,1,1) -> 2014-10-30 | C62: =OFFSET(InputPriceData!G$15,CalculationsAndCharts!$A62+$A$11,IF($C$7,8,0),1,1) -> 215900 | D62: =OFFSET(InputPriceData!C$15,CalculationsAndCharts!$A62+$A$11,IF($C$7,8,0),1,1) -> 79.83 | E62: =OFFSET(InputPriceData!D$15,CalculationsAndCharts!$A62+$A$11,IF($C$7,8,0),1,1) -> 81.48 | F62: =OFFSET(InputPriceData!E$15,CalculationsAndCharts!$A62+$A$11,IF($C$7,8,0),1,1) -> 79.81 | G62: =OFFSET(InputPriceData!F$15,CalculationsAndCharts!$A62+$A$11,IF($C$7,8,0),1,1) -> 81.06 | L62: 1.67 | M62: =AVERAGE(OFFSET(L62,0,0,CandleStatControls!$A$17,1)) -> 1.968 | N62: 0.8485772358 | O62: 0.8485772358 | P62: =1/(L62/100)*O62/(100/CandleStatControls!$A$18) -> 2.032520325 | Q62: 1.65 | R62: 3 | S62: 0.42 | T62: 1 | U62: 0.02 | V62: 0 | W62: 3_1_0
A63: 31 | B63: =OFFSET(InputPriceData!B$15,CalculationsAndCharts!$A63+$A$11,0,1,1) -> 2014-10-29 | C63: =OFFSET(InputPriceData!G$15,CalculationsAndCharts!$A63+$A$11,IF($C$7,8,0),1,1) -> 187600 | D63: =OFFSET(InputPriceData!C$15,CalculationsAndCharts!$A63+$A$11,IF($C$7,8,0),1,1) -> 80.35 | E63: =OFFSET(InputPriceData!D$15,CalculationsAndCharts!$A63+$A$11,IF($C$7,8,0),1,1) -> 81.02 | F63: =OFFSET(InputPriceData!E$15,CalculationsAndCharts!$A63+$A$11,IF($C$7,8,0),1,1) -> 79.36 | G63: =OFFSET(InputPriceData!F$15,CalculationsAndCharts!$A63+$A$11,IF($C$7,8,0),1,1) -> 80.33 | L63: 1.66 | M63: =AVERAGE(OFFSET(L63,0,0,CandleStatControls!$A$17,1)) -> 2.043 | N63: 0.8125305923 | O63: 0.8125305923 | P63: =1/(L63/100)*O63/(100/CandleStatControls!$A$18) -> 1.957905042 | Q63: 0.67 | R63: 1 | S63: 0.69 | T63: 1 | U63: 0.99 | V63: 2 | W63: 1_1_2
A64: 32 | B64: =OFFSET(InputPriceData!B$15,CalculationsAndCharts!$A64+$A$11,0,1,1) -> 2014-10-28 | C64: =OFFSET(InputPriceData!G$15,CalculationsAndCharts!$A64+$A$11,IF($C$7,8,0),1,1) -> 259200 | D64: =OFFSET(InputPriceData!C$15,CalculationsAndCharts!$A64+$A$11,IF($C$7,8,0),1,1) -> 77.66 | E64: =OFFSET(InputPriceData!D$15,CalculationsAndCharts!$A64+$A$11,IF($C$7,8,0),1,1) -> 80.08 | F64: =OFFSET(InputPriceData!E$15,CalculationsAndCharts!$A64+$A$11,IF($C$7,8,0),1,1) -> 77.63 | G64: =OFFSET(InputPriceData!F$15,CalculationsAndCharts!$A64+$A$11,IF($C$7,8,0),1,1) -> 79.89 | L64: 2.45 | M64: =AVERAGE(OFFSET(L64,0,0,CandleStatControls!$A$17,1)) -> 2.11 | N64: 1.161137441 | O64: 1 | P64: =1/(L64/100)*O64/(100/CandleStatControls!$A$18) -> 1.632653061 | Q64: 2.42 | R64: 4 | S64: 0.19 | T64: 0 | U64: 0.03 | V64: 0 | W64: 4_0_0
A65: 33 | B65: =OFFSET(InputPriceData!B$15,CalculationsAndCharts!$A65+$A$11,0,1,1) -> 2014-10-27 | C65: =OFFSET(InputPriceData!G$15,CalculationsAndCharts!$A65+$A$11,IF($C$7,8,0),1,1) -> 170700 | D65: =OFFSET(InputPriceData!C$15,CalculationsAndCharts!$A65+$A$11,IF($C$7,8,0),1,1) -> 77.29 | E65: =OFFSET(InputPriceData!D$15,CalculationsAndCharts!$A65+$A$11,IF($C$7,8,0),1,1) -> 77.78 | F65: =OFFSET(InputPriceData!E$15,CalculationsAndCharts!$A65+$A$11,IF($C$7,8,0),1,1) -> 76.98 | G65: =OFFSET(InputPriceData!F$15,CalculationsAndCharts!$A65+$A$11,IF($C$7,8,0),1,1) -> 77.54 | L65: 0.8 | M65: =AVERAGE(OFFSET(L65,0,0,CandleStatControls!$A$17,1)) -> 2.168 | N65: 0.36900369 | O65: 0.36900369 | P65: =1/(L65/100)*O65/(100/CandleStatControls!$A$18) -> 1.84501845 | Q65: 0.49 | R65: 1 | S65: 0.24 | T65: 0 | U65: 0.31 | V65: 1 | W65: 1_0_1
A66: 34 | B66: =OFFSET(InputPriceData!B$15,CalculationsAndCharts!$A66+$A$11,0,1,1) -> 2014-10-24 | C66: =OFFSET(InputPriceData!G$15,CalculationsAndCharts!$A66+$A$11,IF($C$7,8,0),1,1) -> 171900 | D66: =OFFSET(InputPriceData!C$15,CalculationsAndCharts!$A66+$A$11,IF($C$7,8,0),1,1) -> 78.02 | E66: =OFFSET(InputPriceData!D$15,CalculationsAndCharts!$A66+$A$11,IF($C$7,8,0),1,1) -> 78.6 | F66: =OFFSET(InputPriceData!E$15,CalculationsAndCharts!$A66+$A$11,IF($C$7,8,0),1,1) -> 77.04 | G66: =OFFSET(InputPriceData!F$15,CalculationsAndCharts!$A66+$A$11,IF($C$7,8,0),1,1) -> 77.6 | L66: 1.56 | M66: =AVERAGE(OFFSET(L66,0,0,CandleStatControls!$A$17,1)) -> 2.369 | N66: 0.6585056986 | O66: 0.6585056986 | P66: =1/(L66/100)*O66/(100/CandleStatControls!$A$18) -> 1.68847615 | Q66: 0.58 | R66: 1 | S66: 1 | T66: 2 | U66: 0.98 | V66: 2 | W66: 1_2_2
A67: 35 | B67: =OFFSET(InputPriceData!B$15,CalculationsAndCharts!$A67+$A$11,0,1,1) -> 2014-10-23 | C67: =OFFSET(InputPriceData!G$15,CalculationsAndCharts!$A67+$A$11,IF($C$7,8,0),1,1) -> 330200 | D67: =OFFSET(InputPriceData!C$15,CalculationsAndCharts!$A67+$A$11,IF($C$7,8,0),1,1) -> 77.29 | E67: =OFFSET(InputPriceData!D$15,CalculationsAndCharts!$A67+$A$11,IF($C$7,8,0),1,1) -> 78.69 | F67: =OFFSET(InputPriceData!E$15,CalculationsAndCharts!$A67+$A$11,IF($C$7,8,0),1,1) -> 76.33 | G67: =OFFSET(InputPriceData!F$15,CalculationsAndCharts!$A67+$A$11,IF($C$7,8,0),1,1) -> 77.79 | L67: 2.36 | M67: =AVERAGE(OFFSET(L67,0,0,CandleStatControls!$A$17,1)) -> 2.407 | N67: 0.9804736186 | O67: 0.9804736186 | P67: =1/(L67/100)*O67/(100/CandleStatControls!$A$18) -> 1.661819693 | Q67: 1.4 | R67: 2 | S67: 0.9 | T67: 1 | U67: 0.96 | V67: 2 | W67: 2_1_2
A68: 36 | B68: =OFFSET(InputPriceData!B$15,CalculationsAndCharts!$A68+$A$11,0,1,1) -> 2014-10-22 | C68: =OFFSET(InputPriceData!G$15,CalculationsAndCharts!$A68+$A$11,IF($C$7,8,0),1,1) -> 240300 | D68: =OFFSET(InputPriceData!C$15,CalculationsAndCharts!$A68+$A$11,IF($C$7,8,0),1,1) -> 76.82 | E68: =OFFSET(InputPriceData!D$15,CalculationsAndCharts!$A68+$A$11,IF($C$7,8,0),1,1) -> 77.92 | F68: =OFFSET(InputPriceData!E$15,CalculationsAndCharts!$A68+$A$11,IF($C$7,8,0),1,1) -> 76.27 | G68: =OFFSET(InputPriceData!F$15,CalculationsAndCharts!$A68+$A$11,IF($C$7,8,0),1,1) -> 76.46 | L68: 1.65 | M68: =AVERAGE(OFFSET(L68,0,0,CandleStatControls!$A$17,1)) -> 2.284 | N68: 0.7224168126 | O68: 0.7224168126 | P68: =1/(L68/100)*O68/(100/CandleStatControls!$A$18) -> 1.751313485 | Q68: 1.1 | R68: 2 | S68: 1.46 | T68: 3 | U68: 0.55 | V68: 1 | W68: 2_3_1
A69: 37 | B69: =OFFSET(InputPriceData!B$15,CalculationsAndCharts!$A69+$A$11,0,1,1) -> 2014-10-21 | C69: =OFFSET(InputPriceData!G$15,CalculationsAndCharts!$A69+$A$11,IF($C$7,8,0),1,1) -> 228300 | D69: =OFFSET(InputPriceData!C$15,CalculationsAndCharts!$A69+$A$11,IF($C$7,8,0),1,1) -> 76.97 | E69: =OFFSET(InputPriceData!D$15,CalculationsAndCharts!$A69+$A$11,IF($C$7,8,0),1,1) -> 77.58 | F69: =OFFSET(InputPriceData!E$15,CalculationsAndCharts!$A69+$A$11,IF($C$7,8,0),1,1) -> 76.07 | G69: =OFFSET(InputPriceData!F$15,CalculationsAndCharts!$A69+$A$11,IF($C$7,8,0),1,1) -> 76.6 | L69: 1.51 | M69: =AVERAGE(OFFSET(L69,0,0,CandleStatControls!$A$17,1)) -> 2.331 | N69: 0.6477906478 | O69: 0.6477906478 | P69: =1/(L69/100)*O69/(100/CandleStatControls!$A$18) -> 1.716001716 | Q69: 0.61 | R69: 1 | S69: 0.98 | T69: 2 | U69: 0.9 | V69: 2 | W69: 1_2_2
A70: 38 | B70: =OFFSET(InputPriceData!B$15,CalculationsAndCharts!$A70+$A$11,0,1,1) -> 2014-10-20 | C70: =OFFSET(InputPriceData!G$15,CalculationsAndCharts!$A70+$A$11,IF($C$7,8,0),1,1) -> 220700 | D70: =OFFSET(InputPriceData!C$15,CalculationsAndCharts!$A70+$A$11,IF($C$7,8,0),1,1) -> 75.45 | E70: =OFFSET(InputPriceData!D$15,CalculationsAndCharts!$A70+$A$11,IF($C$7,8,0),1,1) -> 76.55 | F70: =OFFSET(InputPriceData!E$15,CalculationsAndCharts!$A70+$A$11,IF($C$7,8,0),1,1) -> 75.2 | G70: =OFFSET(InputPriceData!F$15,CalculationsAndCharts!$A70+$A$11,IF($C$7,8,0),1,1) -> 76.54 | L70: 1.35 | M70: =AVERAGE(OFFSET(L70,0,0,CandleStatControls!$A$17,1)) -> 2.273 | N70: 0.5939287286 | O70: 0.5939287286 | P70: =1/(L70/100)*O70/(100/CandleStatControls!$A$18) -> 1.759788825 | Q70: 1.1 | R70: 2 | S70: 0.01 | T70: 0 | U70: 0.25 | V70: 0 | W70: 2_0_0
A71: 39 | B71: =OFFSET(InputPriceData!B$15,CalculationsAndCharts!$A71+$A$11,0,1,1) -> 2014-10-17 | C71: =OFFSET(InputPriceData!G$15,CalculationsAndCharts!$A71+$A$11,IF($C$7,8,0),1,1) -> 346400 | D71: =OFFSET(InputPriceData!C$15,CalculationsAndCharts!$A71+$A$11,IF($C$7,8,0),1,1) -> 79.52 | E71: =OFFSET(InputPriceData!D$15,CalculationsAndCharts!$A71+$A$11,IF($C$7,8,0),1,1) -> 79.54 | F71: =OFFSET(InputPriceData!E$15,CalculationsAndCharts!$A71+$A$11,IF($C$7,8,0),1,1) -> 74.87 | G71: =OFFSET(InputPriceData!F$15,CalculationsAndCharts!$A71+$A$11,IF($C$7,8,0),1,1) -> 75.79 | L71: 4.67 | M71: =AVERAGE(OFFSET(L71,0,0,CandleStatControls!$A$17,1)) -> 2.22 | N71: 2.103603604 | O71: 1 | P71: =1/(L71/100)*O71/(100/CandleStatControls!$A$18) -> 0.8565310493 | Q71: 0.02 | R71: 0 | S71: 3.75 | T71: 3 | U71: 4.65 | V71: 4 | W71: 0_3_4
A72: 40 | B72: =OFFSET(InputPriceData!B$15,CalculationsAndCharts!$A72+$A$11,0,1,1) -> 2014-10-16 | C72: =OFFSET(InputPriceData!G$15,CalculationsAndCharts!$A72+$A$11,IF($C$7,8,0),1,1) -> 330500 | D72: =OFFSET(InputPriceData!C$15,CalculationsAndCharts!$A72+$A$11,IF($C$7,8,0),1,1) -> 77.11 | E72: =OFFSET(InputPriceData!D$15,CalculationsAndCharts!$A72+$A$11,IF($C$7,8,0),1,1) -> 78.94 | F72: =OFFSET(InputPriceData!E$15,CalculationsAndCharts!$A72+$A$11,IF($C$7,8,0),1,1) -> 76.52 | G72: =OFFSET(InputPriceData!F$15,CalculationsAndCharts!$A72+$A$11,IF($C$7,8,0),1,1) -> 78.46 | L72: 2.42 | M72: =AVERAGE(OFFSET(L72,0,0,CandleStatControls!$A$17,1)) -> 1.839 | N72: 1.315932572 | O72: 1 | P72: =1/(L72/100)*O72/(100/CandleStatControls!$A$18) -> 1.652892562 | Q72: 1.83 | R72: 3 | S72: 0.48 | T72: 1 | U72: 0.59 | V72: 1 | W72: 3_1_1
A73: 41 | B73: =OFFSET(InputPriceData!B$15,CalculationsAndCharts!$A73+$A$11,0,1,1) -> 2014-10-15 | C73: =OFFSET(InputPriceData!G$15,CalculationsAndCharts!$A73+$A$11,IF($C$7,8,0),1,1) -> 350100 | D73: =OFFSET(InputPriceData!C$15,CalculationsAndCharts!$A73+$A$11,IF($C$7,8,0),1,1) -> 78.81 | E73: =OFFSET(InputPriceData!D$15,CalculationsAndCharts!$A73+$A$11,IF($C$7,8,0),1,1) -> 79.27 | F73: =OFFSET(InputPriceData!E$15,CalculationsAndCharts!$A73+$A$11,IF($C$7,8,0),1,1) -> 76.94 | G73: =OFFSET(InputPriceData!F$15,CalculationsAndCharts!$A73+$A$11,IF($C$7,8,0),1,1) -> 77.82 | L73: 2.33 | M73: =AVERAGE(OFFSET(L73,0,0,CandleStatControls!$A$17,1)) -> 1.773 | N73: 1.314156796 | O73: 1 | P73: =1/(L73/100)*O73/(100/CandleStatControls!$A$18) -> 1.716738197 | Q73: 0.46 | R73: 1 | S73: 1.45 | T73: 2 | U73: 1.87 | V73: 3 | W73: 1_2_3
A74: 42 | B74: =OFFSET(InputPriceData!B$15,CalculationsAndCharts!$A74+$A$11,0,1,1) -> 2014-10-14 | C74: =OFFSET(InputPriceData!G$15,CalculationsAndCharts!$A74+$A$11,IF($C$7,8,0),1,1) -> 644200 | D74: =OFFSET(InputPriceData!C$15,CalculationsAndCharts!$A74+$A$11,IF($C$7,8,0),1,1) -> 77.91 | E74: =OFFSET(InputPriceData!D$15,CalculationsAndCharts!$A74+$A$11,IF($C$7,8,0),1,1) -> 79.78 | F74: =OFFSET(InputPriceData!E$15,CalculationsAndCharts!$A74+$A$11,IF($C$7,8,0),1,1) -> 76.75 | G74: =OFFSET(InputPriceData!F$15,CalculationsAndCharts!$A74+$A$11,IF($C$7,8,0),1,1) -> 79.47 | L74: 3.03 | M74: =AVERAGE(OFFSET(L74,0,0,CandleStatControls!$A$17,1)) -> 1.637 | N74: 1.850946854 | O74: 1 | P74: =1/(L74/100)*O74/(100/CandleStatControls!$A$18) -> 1.320132013 | Q74: 1.87 | R74: 2 | S74: 0.31 | T74: 0 | U74: 1.16 | V74: 2 | W74: 2_0_2
A75: 43 | B75: =OFFSET(InputPriceData!B$15,CalculationsAndCharts!$A75+$A$11,0,1,1) -> 2014-10-13 | C75: =OFFSET(InputPriceData!G$15,CalculationsAndCharts!$A75+$A$11,IF($C$7,8,0),1,1) -> 365300 | D75: =OFFSET(InputPriceData!C$15,CalculationsAndCharts!$A75+$A$11,IF($C$7,8,0),1,1) -> 75.6 | E75: =OFFSET(InputPriceData!D$15,CalculationsAndCharts!$A75+$A$11,IF($C$7,8,0),1,1) -> 77.98 | F75: =OFFSET(InputPriceData!E$15,CalculationsAndCharts!$A75+$A$11,IF($C$7,8,0),1,1) -> 75.17 | G75: =OFFSET(InputPriceData!F$15,CalculationsAndCharts!$A75+$A$11,IF($C$7,8,0),1,1) -> 77.03 | L75: 2.81 | M75: =AVERAGE(OFFSET(L75,0,0,CandleStatControls!$A$17,1)) -> 1.509 | N75: 1.862160371 | O75: 1 | P75: =1/(L75/100)*O75/(100/CandleStatControls!$A$18) -> 1.423487544 | Q75: 2.38 | R75: 3 | S75: 0.95 | T75: 1 | U75: 0.43 | V75: 1 | W75: 3_1_1
A76: 44 | B76: =OFFSET(InputPriceData!B$15,CalculationsAndCharts!$A76+$A$11,0,1,1) -> 2014-10-10 | C76: =OFFSET(InputPriceData!G$15,CalculationsAndCharts!$A76+$A$11,IF($C$7,8,0),1,1) -> 324800 | D76: =OFFSET(InputPriceData!C$15,CalculationsAndCharts!$A76+$A$11,IF($C$7,8,0),1,1) -> 74.08 | E76: =OFFSET(InputPriceData!D$15,CalculationsAndCharts!$A76+$A$11,IF($C$7,8,0),1,1) -> 75.78 | F76: =OFFSET(InputPriceData!E$15,CalculationsAndCharts!$A76+$A$11,IF($C$7,8,0),1,1) -> 73.84 | G76: =OFFSET(InputPriceData!F$15,CalculationsAndCharts!$A76+$A$11,IF($C$7,8,0),1,1) -> 75.4 | L76: 1.94 | M76: =AVERAGE(OFFSET(L76,0,0,CandleStatControls!$A$17,1)) -> 1.446 | N76: 1.341632089 | O76: 1 | P76: =1/(L76/100)*O76/(100/CandleStatControls!$A$18) -> 2.06185567 | Q76: 1.7 | R76: 4 | S76: 0.38 | T76: 1 | U76: 0.24 | V76: 0 | W76: 4_1_0
A77: 45 | B77: =OFFSET(InputPriceData!B$15,CalculationsAndCharts!$A77+$A$11,0,1,1) -> 2014-10-09 | C77: =OFFSET(InputPriceData!G$15,CalculationsAndCharts!$A77+$A$11,IF($C$7,8,0),1,1) -> 274200 | D77: =OFFSET(InputPriceData!C$15,CalculationsAndCharts!$A77+$A$11,IF($C$7,8,0),1,1) -> 74.81 | E77: =OFFSET(InputPriceData!D$15,CalculationsAndCharts!$A77+$A$11,IF($C$7,8,0),1,1) -> 75.52 | F77: =OFFSET(InputPriceData!E$15,CalculationsAndCharts!$A77+$A$11,IF($C$7,8,0),1,1) -> 74.39 | G77: =OFFSET(InputPriceData!F$15,CalculationsAndCharts!$A77+$A$11,IF($C$7,8,0),1,1) -> 74.47 | L77: 1.13 | M77: =AVERAGE(OFFSET(L77,0,0,CandleStatControls!$A$17,1)) -> 1.351 | N77: 0.8364174685 | O77: 0.8364174685 | P77: =1/(L77/100)*O77/(100/CandleStatControls!$A$18) -> 2.9607698 | Q77: 0.71 | R77: 2 | S77: 1.05 | T77: 3 | U77: 0.42 | V77: 1 | W77: 2_3_1
A78: 46 | B78: =OFFSET(InputPriceData!B$15,CalculationsAndCharts!$A78+$A$11,0,1,1) -> 2014-10-08 | C78: =OFFSET(InputPriceData!G$15,CalculationsAndCharts!$A78+$A$11,IF($C$7,8,0),1,1) -> 279600 | D78: =OFFSET(InputPriceData!C$15,CalculationsAndCharts!$A78+$A$11,IF($C$7,8,0),1,1) -> 73.61 | E78: =OFFSET(InputPriceData!D$15,CalculationsAndCharts!$A78+$A$11,IF($C$7,8,0),1,1) -> 75.33 | F78: =OFFSET(InputPriceData!E$15,CalculationsAndCharts!$A78+$A$11,IF($C$7,8,0),1,1) -> 73.21 | G78: =OFFSET(InputPriceData!F$15,CalculationsAndCharts!$A78+$A$11,IF($C$7,8,0),1,1) -> 75.09 | L78: 2.12 | M78: =AVERAGE(OFFSET(L78,0,0,CandleStatControls!$A$17,1)) -> 1.392 | N78: 1.522988506 | O78: 1 | P78: =1/(L78/100)*O78/(100/CandleStatControls!$A$18) -> 1.886792453 | Q78: 1.72 | R78: 3 | S78: 0.24 | T78: 0 | U78: 0.4 | V78: 1 | W78: 3_0_1
A79: 47 | B79: =OFFSET(InputPriceData!B$15,CalculationsAndCharts!$A79+$A$11,0,1,1) -> 2014-10-07 | C79: =OFFSET(InputPriceData!G$15,CalculationsAndCharts!$A79+$A$11,IF($C$7,8,0),1,1) -> 206100 | D79: =OFFSET(InputPriceData!C$15,CalculationsAndCharts!$A79+$A$11,IF($C$7,8,0),1,1) -> 73.19 | E79: =OFFSET(InputPriceData!D$15,CalculationsAndCharts!$A79+$A$11,IF($C$7,8,0),1,1) -> 73.81 | F79: =OFFSET(InputPriceData!E$15,CalculationsAndCharts!$A79+$A$11,IF($C$7,8,0),1,1) -> 72.88 | G79: =OFFSET(InputPriceData!F$15,CalculationsAndCharts!$A79+$A$11,IF($C$7,8,0),1,1) -> 73.62 | L79: 0.93 | M79: =AVERAGE(OFFSET(L79,0,0,CandleStatControls!$A$17,1)) -> 1.267 | N79: 0.7340173639 | O79: 0.7340173639 | P79: =1/(L79/100)*O79/(100/CandleStatControls!$A$18) -> 3.157063931 | Q79: 0.62 | R79: 2 | S79: 0.19 | T79: 1 | U79: 0.31 | V79: 1 | W79: 2_1_1
A80: 48 | B80: =OFFSET(InputPriceData!B$15,CalculationsAndCharts!$A80+$A$11,0,1,1) -> 2014-10-06 | C80: =OFFSET(InputPriceData!G$15,CalculationsAndCharts!$A80+$A$11,IF($C$7,8,0),1,1) -> 236200 | D80: =OFFSET(InputPriceData!C$15,CalculationsAndCharts!$A80+$A$11,IF($C$7,8,0),1,1) -> 73.38 | E80: =OFFSET(InputPriceData!D$15,CalculationsAndCharts!$A80+$A$11,IF($C$7,8,0),1,1) -> 73.9 | F80: =OFFSET(InputPriceData!E$15,CalculationsAndCharts!$A80+$A$11,IF($C$7,8,0),1,1) -> 73.08 | G80: =OFFSET(InputPriceData!F$15,CalculationsAndCharts!$A80+$A$11,IF($C$7,8,0),1,1) -> 73.51 | L80: 0.82 | M80: =AVERAGE(OFFSET(L80,0,0,CandleStatControls!$A$17,1)) -> 1.271 | N80: 0.6451612903 | O80: 0.6451612903 | P80: =1/(L80/100)*O80/(100/CandleStatControls!$A$18) -> 3.147128245 | Q80: 0.52 | R80: 2 | S80: 0.39 | T80: 1 | U80: 0.3 | V80: 1 | W80: 2_1_1
A81: 49 | B81: =OFFSET(InputPriceData!B$15,CalculationsAndCharts!$A81+$A$11,0,1,1) -> 2014-10-03 | C81: =OFFSET(InputPriceData!G$15,CalculationsAndCharts!$A81+$A$11,IF($C$7,8,0),1,1) -> 182500 | D81: =OFFSET(InputPriceData!C$15,CalculationsAndCharts!$A81+$A$11,IF($C$7,8,0),1,1) -> 72.74 | E81: =OFFSET(InputPriceData!D$15,CalculationsAndCharts!$A81+$A$11,IF($C$7,8,0),1,1) -> 73.47 | F81: =OFFSET(InputPriceData!E$15,CalculationsAndCharts!$A81+$A$11,IF($C$7,8,0),1,1) -> 72.61 | G81: =OFFSET(InputPriceData!F$15,CalculationsAndCharts!$A81+$A$11,IF($C$7,8,0),1,1) -> 73.31 | L81: 0.86 | M81: =AVERAGE(OFFSET(L81,0,0,CandleStatControls!$A$17,1)) -> 1.253 | N81: 0.6863527534 | O81: 0.6863527534 | P81: =1/(L81/100)*O81/(100/CandleStatControls!$A$18) -> 3.192338388 | Q81: 0.73 | R81: 2 | S81: 0.16 | T81: 1 | U81: 0.13 | V81: 0 | W81: 2_1_0
A82: 50 | B82: =OFFSET(InputPriceData!B$15,CalculationsAndCharts!$A82+$A$11,0,1,1) -> 2014-10-02 | C82: =OFFSET(InputPriceData!G$15,CalculationsAndCharts!$A82+$A$11,IF($C$7,8,0),1,1) -> 284200 | D82: =OFFSET(InputPriceData!C$15,CalculationsAndCharts!$A82+$A$11,IF($C$7,8,0),1,1) -> 71.1 | E82: =OFFSET(InputPriceData!D$15,CalculationsAndCharts!$A82+$A$11,IF($C$7,8,0),1,1) -> 72.86 | F82: =OFFSET(InputPriceData!E$15,CalculationsAndCharts!$A82+$A$11,IF($C$7,8,0),1,1) -> 71.1 | G82: =OFFSET(InputPriceData!F$15,CalculationsAndCharts!$A82+$A$11,IF($C$7,8,0),1,1) -> 71.98 | L82: 1.76 | M82: =AVERAGE(OFFSET(L82,0,0,CandleStatControls!$A$17,1)) -> 1.305 | N82: 1.348659004 | O82: 1 | P82: =1/(L82/100)*O82/(100/CandleStatControls!$A$18) -> 2.272727273 | Q82: 1.76 | R82: 4 | S82: 0.88 | T82: 2 | U82: 0 | V82: 0 | W82: 4_2_0
A83: 51 | B83: =OFFSET(InputPriceData!B$15,CalculationsAndCharts!$A83+$A$11,0,1,1) -> 2014-10-01 | C83: =OFFSET(InputPriceData!G$15,CalculationsAndCharts!$A83+$A$11,IF($C$7,8,0),1,1) -> 278300 | D83: =OFFSET(InputPriceData!C$15,CalculationsAndCharts!$A83+$A$11,IF($C$7,8,0),1,1) -> 71.3 | E83: =OFFSET(InputPriceData!D$15,CalculationsAndCharts!$A83+$A$11,IF($C$7,8,0),1,1) -> 71.87 | F83: =OFFSET(InputPriceData!E$15,CalculationsAndCharts!$A83+$A$11,IF($C$7,8,0),1,1) -> 70.9 | G83: =OFFSET(InputPriceData!F$15,CalculationsAndCharts!$A83+$A$11,IF($C$7,8,0),1,1) -> 71.2 | L83: 0.97 | M83: =AVERAGE(OFFSET(L83,0,0,CandleStatControls!$A$17,1)) -> 1.207 | N83: 0.8036454018 | O83: 0.8036454018 | P83: =1/(L83/100)*O83/(100/CandleStatControls!$A$18) -> 3.314001657 | Q83: 0.57 | R83: 2 | S83: 0.67 | T83: 2 | U83: 0.4 | V83: 1 | W83: 2_2_1
A84: 52 | B84: =OFFSET(InputPriceData!B$15,CalculationsAndCharts!$A84+$A$11,0,1,1) -> 2014-09-30 | C84: =OFFSET(InputPriceData!G$15,CalculationsAndCharts!$A84+$A$11,IF($C$7,8,0),1,1) -> 410100 | D84: =OFFSET(InputPriceData!C$15,CalculationsAndCharts!$A84+$A$11,IF($C$7,8,0),1,1) -> 70.97 | E84: =OFFSET(InputPriceData!D$15,CalculationsAndCharts!$A84+$A$11,IF($C$7,8,0),1,1) -> 72.21 | F84: =OFFSET(InputPriceData!E$15,CalculationsAndCharts!$A84+$A$11,IF($C$7,8,0),1,1) -> 70.46 | G84: =OFFSET(InputPriceData!F$15,CalculationsAndCharts!$A84+$A$11,IF($C$7,8,0),1,1) -> 71.52 | L84: 1.75 | M84: =AVERAGE(OFFSET(L84,0,0,CandleStatControls!$A$17,1)) -> 1.355 | N84: 1.291512915 | O84: 1 | P84: =1/(L84/100)*O84/(100/CandleStatControls!$A$18) -> 2.285714286 | Q84: 1.24 | R84: 3 | S84: 0.69 | T84: 2 | U84: 0.51 | V84: 1 | W84: 3_2_1
A85: 53 | B85: =OFFSET(InputPriceData!B$15,CalculationsAndCharts!$A85+$A$11,0,1,1) -> 2014-09-29 | C85: =OFFSET(InputPriceData!G$15,CalculationsAndCharts!$A85+$A$11,IF($C$7,8,0),1,1) -> 193200 | D85: =OFFSET(InputPriceData!C$15,CalculationsAndCharts!$A85+$A$11,IF($C$7,8,0),1,1) -> 69.66 | E85: =OFFSET(InputPriceData!D$15,CalculationsAndCharts!$A85+$A$11,IF($C$7,8,0),1,1) -> 71.29 | F85: =OFFSET(InputPriceData!E$15,CalculationsAndCharts!$A85+$A$11,IF($C$7,8,0),1,1) -> 69.11 | G85: =OFFSET(InputPriceData!F$15,CalculationsAndCharts!$A85+$A$11,IF($C$7,8,0),1,1) -> 71.05 | L85: 2.18 | M85: =AVERAGE(OFFSET(L85,0,0,CandleStatControls!$A$17,1)) -> 1.257 | N85: 1.734287987 | O85: 1 | P85: =1/(L85/100)*O85/(100/CandleStatControls!$A$18) -> 1.834862385 | Q85: 1.63 | R85: 3 | S85: 0.24 | T85: 0 | U85: 0.55 | V85: 1 | W85: 3_0_1
A86: 54 | B86: =OFFSET(InputPriceData!B$15,CalculationsAndCharts!$A86+$A$11,0,1,1) -> 2014-09-26 | C86: =OFFSET(InputPriceData!G$15,CalculationsAndCharts!$A86+$A$11,IF($C$7,8,0),1,1) -> 122200 | D86: =OFFSET(InputPriceData!C$15,CalculationsAndCharts!$A86+$A$11,IF($C$7,8,0),1,1) -> 70.05 | E86: =OFFSET(InputPriceData!D$15,CalculationsAndCharts!$A86+$A$11,IF($C$7,8,0),1,1) -> 70.58 | F86: =OFFSET(InputPriceData!E$15,CalculationsAndCharts!$A86+$A$11,IF($C$7,8,0),1,1) -> 69.59 | G86: =OFFSET(InputPriceData!F$15,CalculationsAndCharts!$A86+$A$11,IF($C$7,8,0),1,1) -> 70.27 | L86: 0.99 | M86: =AVERAGE(OFFSET(L86,0,0,CandleStatControls!$A$17,1)) -> 1.15 | N86: 0.8608695652 | O86: 0.8608695652 | P86: =1/(L86/100)*O86/(100/CandleStatControls!$A$18) -> 3.47826087 | Q86: 0.53 | R86: 2 | S86: 0.31 | T86: 1 | U86: 0.46 | V86: 2 | W86: 2_1_2
A87: 55 | B87: =OFFSET(InputPriceData!B$15,CalculationsAndCharts!$A87+$A$11,0,1,1) -> 2014-09-25 | C87: =OFFSET(InputPriceData!G$15,CalculationsAndCharts!$A87+$A$11,IF($C$7,8,0),1,1) -> 168600 | D87: =OFFSET(InputPriceData!C$15,CalculationsAndCharts!$A87+$A$11,IF($C$7,8,0),1,1) -> 70.45 | E87: =OFFSET(InputPriceData!D$15,CalculationsAndCharts!$A87+$A$11,IF($C$7,8,0),1,1) -> 70.86 | F87: =OFFSET(InputPriceData!E$15,CalculationsAndCharts!$A87+$A$11,IF($C$7,8,0),1,1) -> 69.32 | G87: =OFFSET(InputPriceData!F$15,CalculationsAndCharts!$A87+$A$11,IF($C$7,8,0),1,1) -> 69.99 | L87: 1.54 | M87: =AVERAGE(OFFSET(L87,0,0,CandleStatControls!$A$17,1)) -> 1.242 | N87: 1.239935588 | O87: 1 | P87: =1/(L87/100)*O87/(100/CandleStatControls!$A$18) -> 2.597402597 | Q87: 0.41 | R87: 1 | S87: 0.87 | T87: 2 | U87: 1.13 | V87: 3 | W87: 1_2_3
A88: 56 | B88: =OFFSET(InputPriceData!B$15,CalculationsAndCharts!$A88+$A$11,0,1,1) -> 2014-09-24 | C88: =OFFSET(InputPriceData!G$15,CalculationsAndCharts!$A88+$A$11,IF($C$7,8,0),1,1) -> 190600 | D88: =OFFSET(InputPriceData!C$15,CalculationsAndCharts!$A88+$A$11,IF($C$7,8,0),1,1) -> 70.42 | E88: =OFFSET(InputPriceData!D$15,CalculationsAndCharts!$A88+$A$11,IF($C$7,8,0),1,1) -> 70.98 | F88: =OFFSET(InputPriceData!E$15,CalculationsAndCharts!$A88+$A$11,IF($C$7,8,0),1,1) -> 70.11 | G88: =OFFSET(InputPriceData!F$15,CalculationsAndCharts!$A88+$A$11,IF($C$7,8,0),1,1) -> 70.6 | L88: 0.87 | M88: =AVERAGE(OFFSET(L88,0,0,CandleStatControls!$A$17,1)) -> 1.158 | N88: 0.7512953368 | O88: 0.7512953368 | P88: =1/(L88/100)*O88/(100/CandleStatControls!$A$18) -> 3.454231434 | Q88: 0.56 | R88: 2 | S88: 0.38 | T88: 1 | U88: 0.31 | V88: 1 | W88: 2_1_1
A89: 57 | B89: =OFFSET(InputPriceData!B$15,CalculationsAndCharts!$A89+$A$11,0,1,1) -> 2014-09-23 | C89: =OFFSET(InputPriceData!G$15,CalculationsAndCharts!$A89+$A$11,IF($C$7,8,0),1,1) -> 221100 | D89: =OFFSET(InputPriceData!C$15,CalculationsAndCharts!$A89+$A$11,IF($C$7,8,0),1,1) -> 70.28 | E89: =OFFSET(InputPriceData!D$15,CalculationsAndCharts!$A89+$A$11,IF($C$7,8,0),1,1) -> 70.84 | F89: =OFFSET(InputPriceData!E$15,CalculationsAndCharts!$A89+$A$11,IF($C$7,8,0),1,1) -> 69.87 | G89: =OFFSET(InputPriceData!F$15,CalculationsAndCharts!$A89+$A$11,IF($C$7,8,0),1,1) -> 70.1 | L89: 0.97 | M89: =AVERAGE(OFFSET(L89,0,0,CandleStatControls!$A$17,1)) -> 1.25 | N89: 0.776 | O89: 0.776 | P89: =1/(L89/100)*O89/(100/CandleStatControls!$A$18) -> 3.2 | Q89: 0.56 | R89: 2 | S89: 0.74 | T89: 2 | U89: 0.41 | V89: 1 | W89: 2_2_1
A90: 58 | B90: =OFFSET(InputPriceData!B$15,CalculationsAndCharts!$A90+$A$11,0,1,1) -> 2014-09-22 | C90: =OFFSET(InputPriceData!G$15,CalculationsAndCharts!$A90+$A$11,IF($C$7,8,0),1,1) -> 190400 | D90: =OFFSET(InputPriceData!C$15,CalculationsAndCharts!$A90+$A$11,IF($C$7,8,0),1,1) -> 70.39 | E90: =OFFSET(InputPriceData!D$15,CalculationsAndCharts!$A90+$A$11,IF($C$7,8,0),1,1) -> 70.64 | F90: =OFFSET(InputPriceData!E$15,CalculationsAndCharts!$A90+$A$11,IF($C$7,8,0),1,1) -> 70 | G90: =OFFSET(InputPriceData!F$15,CalculationsAndCharts!$A90+$A$11,IF($C$7,8,0),1,1) -> 70.29 | L90: 0.64 | M90: =AVERAGE(OFFSET(L90,0,0,CandleStatControls!$A$17,1)) -> 1.646 | N90: 0.3888213852 | O90: 0.3888213852 | P90: =1/(L90/100)*O90/(100/CandleStatControls!$A$18) -> 2.430133657 | Q90: 0.25 | R90: 1 | S90: 0.35 | T90: 1 | U90: 0.39 | V90: 1 | W90: 1_1_1
A91: 59 | B91: =OFFSET(InputPriceData!B$15,CalculationsAndCharts!$A91+$A$11,0,1,1) -> 2014-09-19 | C91: =OFFSET(InputPriceData!G$15,CalculationsAndCharts!$A91+$A$11,IF($C$7,8,0),1,1) -> 536500 | D91: =OFFSET(InputPriceData!C$15,CalculationsAndCharts!$A91+$A$11,IF($C$7,8,0),1,1) -> 71.29 | E91: =OFFSET(InputPriceData!D$15,CalculationsAndCharts!$A91+$A$11,IF($C$7,8,0),1,1) -> 71.81 | F91: =OFFSET(InputPriceData!E$15,CalculationsAndCharts!$A91+$A$11,IF($C$7,8,0),1,1) -> 70.43 | G91: =OFFSET(InputPriceData!F$15,CalculationsAndCharts!$A91+$A$11,IF($C$7,8,0),1,1) -> 70.77 | L91: 1.38 | M91: =AVERAGE(OFFSET(L91,0,0,CandleStatControls!$A$17,1)) -> 1.708 | N91: 0.8079625293 | O91: 0.8079625293 | P91: =1/(L91/100)*O91/(100/CandleStatControls!$A$18) -> 2.341920375 | Q91: 0.52 | R91: 1 | S91: 1.04 | T91: 2 | U91: 0.86 | V91: 2 | W91: 1_2_2
A92: 60 | B92: =OFFSET(InputPriceData!B$15,CalculationsAndCharts!$A92+$A$11,0,1,1) -> 2014-09-18 | C92: =OFFSET(InputPriceData!G$15,CalculationsAndCharts!$A92+$A$11,IF($C$7,8,0),1,1) -> 192900 | D92: =OFFSET(InputPriceData!C$15,CalculationsAndCharts!$A92+$A$11,IF($C$7,8,0),1,1) -> 70.82 | E92: =OFFSET(InputPriceData!D$15,CalculationsAndCharts!$A92+$A$11,IF($C$7,8,0),1,1) -> 71.39 | F92: =OFFSET(InputPriceData!E$15,CalculationsAndCharts!$A92+$A$11,IF($C$7,8,0),1,1) -> 70.61 | G92: =OFFSET(InputPriceData!F$15,CalculationsAndCharts!$A92+$A$11,IF($C$7,8,0),1,1) -> 71.09 | L92: 0.78 | M92: =AVERAGE(OFFSET(L92,0,0,CandleStatControls!$A$17,1)) -> 1.676 | N92: 0.4653937947 | O92: 0.4653937947 | P92: =1/(L92/100)*O92/(100/CandleStatControls!$A$18) -> 2.386634845 | Q92: 0.57 | R92: 1 | S92: 0.3 | T92: 1 | U92: 0.21 | V92: 1 | W92: 1_1_1
A93: 61 | B93: =OFFSET(InputPriceData!B$15,CalculationsAndCharts!$A93+$A$11,0,1,1) -> 2014-09-17 | C93: =OFFSET(InputPriceData!G$15,CalculationsAndCharts!$A93+$A$11,IF($C$7,8,0),1,1) -> 355600 | D93: =OFFSET(InputPriceData!C$15,CalculationsAndCharts!$A93+$A$11,IF($C$7,8,0),1,1) -> 68.73 | E93: =OFFSET(InputPriceData!D$15,CalculationsAndCharts!$A93+$A$11,IF($C$7,8,0),1,1) -> 70.79 | F93: =OFFSET(InputPriceData!E$15,CalculationsAndCharts!$A93+$A$11,IF($C$7,8,0),1,1) -> 68.34 | G93: =OFFSET(InputPriceData!F$15,CalculationsAndCharts!$A93+$A$11,IF($C$7,8,0),1,1) -> 70.75 | L93: 2.45 | M93: =AVERAGE(OFFSET(L93,0,0,CandleStatControls!$A$17,1)) -> 1.758 | N93: 1.393629124 | O93: 1 | P93: =1/(L93/100)*O93/(100/CandleStatControls!$A$18) -> 1.632653061 | Q93: 2.06 | R93: 3 | S93: 0.04 | T93: 0 | U93: 0.39 | V93: 1 | W93: 3_0_1
A94: 62 | B94: =OFFSET(InputPriceData!B$15,CalculationsAndCharts!$A94+$A$11,0,1,1) -> 2014-09-16 | C94: =OFFSET(InputPriceData!G$15,CalculationsAndCharts!$A94+$A$11,IF($C$7,8,0),1,1) -> 276900 | D94: =OFFSET(InputPriceData!C$15,CalculationsAndCharts!$A94+$A$11,IF($C$7,8,0),1,1) -> 68.27 | E94: =OFFSET(InputPriceData!D$15,CalculationsAndCharts!$A94+$A$11,IF($C$7,8,0),1,1) -> 68.66 | F94: =OFFSET(InputPriceData!E$15,CalculationsAndCharts!$A94+$A$11,IF($C$7,8,0),1,1) -> 67.89 | G94: =OFFSET(InputPriceData!F$15,CalculationsAndCharts!$A94+$A$11,IF($C$7,8,0),1,1) -> 68.4 | L94: 0.77 | M94: =AVERAGE(OFFSET(L94,0,0,CandleStatControls!$A$17,1)) -> 1.595 | N94: 0.4827586207 | O94: 0.4827586207 | P94: =1/(L94/100)*O94/(100/CandleStatControls!$A$18) -> 2.507836991 | Q94: 0.39 | R94: 1 | S94: 0.26 | T94: 1 | U94: 0.38 | V94: 1 | W94: 1_1_1
A95: 63 | B95: =OFFSET(InputPriceData!B$15,CalculationsAndCharts!$A95+$A$11,0,1,1) -> 2014-09-15 | C95: =OFFSET(InputPriceData!G$15,CalculationsAndCharts!$A95+$A$11,IF($C$7,8,0),1,1) -> 240600 | D95: =OFFSET(InputPriceData!C$15,CalculationsAndCharts!$A95+$A$11,IF($C$7,8,0),1,1) -> 68.38 | E95: =OFFSET(InputPriceData!D$15,CalculationsAndCharts!$A95+$A$11,IF($C$7,8,0),1,1) -> 68.72 | F95: =OFFSET(InputPriceData!E$15,CalculationsAndCharts!$A95+$A$11,IF($C$7,8,0),1,1) -> 67.61 | G95: =OFFSET(InputPriceData!F$15,CalculationsAndCharts!$A95+$A$11,IF($C$7,8,0),1,1) -> 68.25 | L95: 1.11 | M95: =AVERAGE(OFFSET(L95,0,0,CandleStatControls!$A$17,1)) -> 1.64 | N95: 0.6768292683 | O95: 0.6768292683 | P95: =1/(L95/100)*O95/(100/CandleStatControls!$A$18) -> 2.43902439 | Q95: 0.34 | R95: 1 | S95: 0.47 | T95: 1 | U95: 0.77 | V95: 2 | W95: 1_1_2
A96: 64 | B96: =OFFSET(InputPriceData!B$15,CalculationsAndCharts!$A96+$A$11,0,1,1) -> 2014-09-12 | C96: =OFFSET(InputPriceData!G$15,CalculationsAndCharts!$A96+$A$11,IF($C$7,8,0),1,1) -> 227600 | D96: =OFFSET(InputPriceData!C$15,CalculationsAndCharts!$A96+$A$11,IF($C$7,8,0),1,1) -> 70.38 | E96: =OFFSET(InputPriceData!D$15,CalculationsAndCharts!$A96+$A$11,IF($C$7,8,0),1,1) -> 70.38 | F96: =OFFSET(InputPriceData!E$15,CalculationsAndCharts!$A96+$A$11,IF($C$7,8,0),1,1) -> 68.47 | G96: =OFFSET(InputPriceData!F$15,CalculationsAndCharts!$A96+$A$11,IF($C$7,8,0),1,1) -> 68.58 | L96: 1.91 | M96: =AVERAGE(OFFSET(L96,0,0,CandleStatControls!$A$17,1)) -> 1.662 | N96: 1.14921781 | O96: 1 | P96: =1/(L96/100)*O96/(100/CandleStatControls!$A$18) -> 2.094240838 | Q96: 0 | R96: 0 | S96: 1.8 | T96: 4 | U96: 1.91 | V96: 4 | W96: 0_4_4
A97: 65 | B97: =OFFSET(InputPriceData!B$15,CalculationsAndCharts!$A97+$A$11,0,1,1) -> 2014-09-11 | C97: =OFFSET(InputPriceData!G$15,CalculationsAndCharts!$A97+$A$11,IF($C$7,8,0),1,1) -> 223900 | D97: =OFFSET(InputPriceData!C$15,CalculationsAndCharts!$A97+$A$11,IF($C$7,8,0),1,1) -> 70.15 | E97: =OFFSET(InputPriceData!D$15,CalculationsAndCharts!$A97+$A$11,IF($C$7,8,0),1,1) -> 70.7 | F97: =OFFSET(InputPriceData!E$15,CalculationsAndCharts!$A97+$A$11,IF($C$7,8,0),1,1) -> 70 | G97: =OFFSET(InputPriceData!F$15,CalculationsAndCharts!$A97+$A$11,IF($C$7,8,0),1,1) -> 70.26 | L97: 0.7 | M97: =AVERAGE(OFFSET(L97,0,0,CandleStatControls!$A$17,1)) -> 1.608 | N97: 0.4353233831 | O97: 0.4353233831 | P97: =1/(L97/100)*O97/(100/CandleStatControls!$A$18) -> 2.487562189 | Q97: 0.55 | R97: 1 | S97: 0.44 | T97: 1 | U97: 0.15 | V97: 0 | W97: 1_1_0
A98: 66 | B98: =OFFSET(InputPriceData!B$15,CalculationsAndCharts!$A98+$A$11,0,1,1) -> 2014-09-10 | C98: =OFFSET(InputPriceData!G$15,CalculationsAndCharts!$A98+$A$11,IF($C$7,8,0),1,1) -> 381900 | D98: =OFFSET(InputPriceData!C$15,CalculationsAndCharts!$A98+$A$11,IF($C$7,8,0),1,1) -> 69.62 | E98: =OFFSET(InputPriceData!D$15,CalculationsAndCharts!$A98+$A$11,IF($C$7,8,0),1,1) -> 70.36 | F98: =OFFSET(InputPriceData!E$15,CalculationsAndCharts!$A98+$A$11,IF($C$7,8,0),1,1) -> 68.57 | G98: =OFFSET(InputPriceData!F$15,CalculationsAndCharts!$A98+$A$11,IF($C$7,8,0),1,1) -> 70.31 | L98: =E98-F98 -> 1.79 | M98: =AVERAGE(OFFSET(L98,0,0,CandleStatControls!$A$17,1)) -> 1.659 | N98: =L98/M98 -> 1.078963231 | O98: =IF(N98>1,1,N98) -> 1 | P98: =1/(L98/100)*O98/(100/CandleStatControls!$A$18) -> 2.234636872 | Q98: =E98-D98 -> 0.74 | R98: =ROUND($P98*Q98,0) -> 2 | S98: =E98-G98 -> 0.05 | T98: =ROUND($P98*S98,0) -> 0 | U98: =D98-F98 -> 1.05 | V98: =ROUND($P98*U98,0) -> 2 | W98: =IF(L98=0,"0_0_0",R98 & "_" & T98 & "_" & V98) -> 2_0_2
A99: 67 | B99: =OFFSET(InputPriceData!B$15,CalculationsAndCharts!$A99+$A$11,0,1,1) -> 2014-09-09 | C99: =OFFSET(InputPriceData!G$15,CalculationsAndCharts!$A99+$A$11,IF($C$7,8,0),1,1) -> 577500 | D99: =OFFSET(InputPriceData!C$15,CalculationsAndCharts!$A99+$A$11,IF($C$7,8,0),1,1) -> 72.82 | E99: =OFFSET(InputPriceData!D$15,CalculationsAndCharts!$A99+$A$11,IF($C$7,8,0),1,1) -> 72.82 | F99: =OFFSET(InputPriceData!E$15,CalculationsAndCharts!$A99+$A$11,IF($C$7,8,0),1,1) -> 67.89 | G99: =OFFSET(InputPriceData!F$15,CalculationsAndCharts!$A99+$A$11,IF($C$7,8,0),1,1) -> 69.05 | L99: 4.93 | M99: =AVERAGE(OFFSET(L99,0,0,CandleStatControls!$A$17,1)) -> 1.585 | N99: 3.110410095 | O99: 1 | P99: =1/(L99/100)*O99/(100/CandleStatControls!$A$18) -> 0.8113590264 | Q99: 0 | R99: 0 | S99: 3.77 | T99: 3 | U99: 4.93 | V99: 4 | W99: 0_3_4
A100: 68 | B100: =OFFSET(InputPriceData!B$15,CalculationsAndCharts!$A100+$A$11,0,1,1) -> 2014-09-08 | C100: =OFFSET(InputPriceData!G$15,CalculationsAndCharts!$A100+$A$11,IF($C$7,8,0),1,1) -> 320900 | D100: =OFFSET(InputPriceData!C$15,CalculationsAndCharts!$A100+$A$11,IF($C$7,8,0),1,1) -> 70.62 | E100: =OFFSET(InputPriceData!D$15,CalculationsAndCharts!$A100+$A$11,IF($C$7,8,0),1,1) -> 71.25 | F100: =OFFSET(InputPriceData!E$15,CalculationsAndCharts!$A100+$A$11,IF($C$7,8,0),1,1) -> 69.99 | G100: =OFFSET(InputPriceData!F$15,CalculationsAndCharts!$A100+$A$11,IF($C$7,8,0),1,1) -> 70.32 | L100: 1.26 | M100: =AVERAGE(OFFSET(L100,0,0,CandleStatControls!$A$17,1)) -> 1.213 | N100: 1.038746908 | O100: 1 | P100: =1/(L100/100)*O100/(100/CandleStatControls!$A$18) -> 3.174603175 | Q100: 0.63 | R100: 2 | S100: 0.93 | T100: 3 | U100: 0.63 | V100: 2 | W100: 2_3_2
A101: 69 | B101: =OFFSET(InputPriceData!B$15,CalculationsAndCharts!$A101+$A$11,0,1,1) -> 2014-09-05 | C101: =OFFSET(InputPriceData!G$15,CalculationsAndCharts!$A101+$A$11,IF($C$7,8,0),1,1) -> 219000 | D101: =OFFSET(InputPriceData!C$15,CalculationsAndCharts!$A101+$A$11,IF($C$7,8,0),1,1) -> 70.53 | E101: =OFFSET(InputPriceData!D$15,CalculationsAndCharts!$A101+$A$11,IF($C$7,8,0),1,1) -> 71.22 | F101: =OFFSET(InputPriceData!E$15,CalculationsAndCharts!$A101+$A$11,IF($C$7,8,0),1,1) -> 70.16 | G101: =OFFSET(InputPriceData!F$15,CalculationsAndCharts!$A101+$A$11,IF($C$7,8,0),1,1) -> 70.7 | L101: 1.06 | M101: =AVERAGE(OFFSET(L101,0,0,CandleStatControls!$A$17,1)) -> 1.23 | N101: 0.8617886179 | O101: 0.8617886179 | P101: =1/(L101/100)*O101/(100/CandleStatControls!$A$18) -> 3.25203252 | Q101: 0.69 | R101: 2 | S101: 0.52 | T101: 2 | U101: 0.37 | V101: 1 | W101: 2_2_1
A102: 70 | B102: =OFFSET(InputPriceData!B$15,CalculationsAndCharts!$A102+$A$11,0,1,1) -> 2014-09-04 | C102: =OFFSET(InputPriceData!G$15,CalculationsAndCharts!$A102+$A$11,IF($C$7,8,0),1,1) -> 163800 | D102: =OFFSET(InputPriceData!C$15,CalculationsAndCharts!$A102+$A$11,IF($C$7,8,0),1,1) -> 71.84 | E102: =OFFSET(InputPriceData!D$15,CalculationsAndCharts!$A102+$A$11,IF($C$7,8,0),1,1) -> 72.17 | F102: =OFFSET(InputPriceData!E$15,CalculationsAndCharts!$A102+$A$11,IF($C$7,8,0),1,1) -> 70.57 | G102: =OFFSET(InputPriceData!F$15,CalculationsAndCharts!$A102+$A$11,IF($C$7,8,0),1,1) -> 70.9 | L102: 1.6 | M102: =AVERAGE(OFFSET(L102,0,0,CandleStatControls!$A$17,1)) -> 1.218 | N102: 1.3136289 | O102: 1 | P102: =1/(L102/100)*O102/(100/CandleStatControls!$A$18) -> 2.5 | Q102: 0.33 | R102: 1 | S102: 1.27 | T102: 3 | U102: 1.27 | V102: 3 | W102: 1_3_3
A103: 71 | B103: =OFFSET(InputPriceData!B$15,CalculationsAndCharts!$A103+$A$11,0,1,1) -> 2014-09-03 | C103: =OFFSET(InputPriceData!G$15,CalculationsAndCharts!$A103+$A$11,IF($C$7,8,0),1,1) -> 179000 | D103: =OFFSET(InputPriceData!C$15,CalculationsAndCharts!$A103+$A$11,IF($C$7,8,0),1,1) -> 71.82 | E103: =OFFSET(InputPriceData!D$15,CalculationsAndCharts!$A103+$A$11,IF($C$7,8,0),1,1) -> 72.32 | F103: =OFFSET(InputPriceData!E$15,CalculationsAndCharts!$A103+$A$11,IF($C$7,8,0),1,1) -> 71.5 | G103: =OFFSET(InputPriceData!F$15,CalculationsAndCharts!$A103+$A$11,IF($C$7,8,0),1,1) -> 71.81 | L103: 0.82 | M103: =AVERAGE(OFFSET(L103,0,0,CandleStatControls!$A$17,1)) -> 1.179 | N103: 0.695504665 | O103: 0.695504665 | P103: =1/(L103/100)*O103/(100/CandleStatControls!$A$18) -> 3.392705683 | Q103: 0.5 | R103: 2 | S103: 0.51 | T103: 2 | U103: 0.32 | V103: 1 | W103: 2_2_1
A104: 72 | B104: =OFFSET(InputPriceData!B$15,CalculationsAndCharts!$A104+$A$11,0,1,1) -> 2014-09-02 | C104: =OFFSET(InputPriceData!G$15,CalculationsAndCharts!$A104+$A$11,IF($C$7,8,0),1,1) -> 151100 | D104: =OFFSET(InputPriceData!C$15,CalculationsAndCharts!$A104+$A$11,IF($C$7,8,0),1,1) -> 71.63 | E104: =OFFSET(InputPriceData!D$15,CalculationsAndCharts!$A104+$A$11,IF($C$7,8,0),1,1) -> 71.63 | F104: =OFFSET(InputPriceData!E$15,CalculationsAndCharts!$A104+$A$11,IF($C$7,8,0),1,1) -> 70.41 | G104: =OFFSET(InputPriceData!F$15,CalculationsAndCharts!$A104+$A$11,IF($C$7,8,0),1,1) -> 71.37 | L104: 1.22 | M104: =AVERAGE(OFFSET(L104,0,0,CandleStatControls!$A$17,1)) -> 1.185 | N104: 1.029535865 | O104: 1 | P104: =1/(L104/100)*O104/(100/CandleStatControls!$A$18) -> 3.278688525 | Q104: 0 | R104: 0 | S104: 0.26 | T104: 1 | U104: 1.22 | V104: 4 | W104: 0_1_4
A105: 73 | B105: =OFFSET(InputPriceData!B$15,CalculationsAndCharts!$A105+$A$11,0,1,1) -> 2014-08-29 | C105: =OFFSET(InputPriceData!G$15,CalculationsAndCharts!$A105+$A$11,IF($C$7,8,0),1,1) -> 167100 | D105: =OFFSET(InputPriceData!C$15,CalculationsAndCharts!$A105+$A$11,IF($C$7,8,0),1,1) -> 70.87 | E105: =OFFSET(InputPriceData!D$15,CalculationsAndCharts!$A105+$A$11,IF($C$7,8,0),1,1) -> 71.81 | F105: =OFFSET(InputPriceData!E$15,CalculationsAndCharts!$A105+$A$11,IF($C$7,8,0),1,1) -> 70.48 | G105: =OFFSET(InputPriceData!F$15,CalculationsAndCharts!$A105+$A$11,IF($C$7,8,0),1,1) -> 71.51 | L105: 1.33 | M105: =AVERAGE(OFFSET(L105,0,0,CandleStatControls!$A$17,1)) -> 1.224 | N105: 1.086601307 | O105: 1 | P105: =1/(L105/100)*O105/(100/CandleStatControls!$A$18) -> 3.007518797 | Q105: 0.94 | R105: 3 | S105: 0.3 | T105: 1 | U105: 0.39 | V105: 1 | W105: 3_1_1
A106: 74 | B106: =OFFSET(InputPriceData!B$15,CalculationsAndCharts!$A106+$A$11,0,1,1) -> 2014-08-28 | C106: =OFFSET(InputPriceData!G$15,CalculationsAndCharts!$A106+$A$11,IF($C$7,8,0),1,1) -> 183300 | D106: =OFFSET(InputPriceData!C$15,CalculationsAndCharts!$A106+$A$11,IF($C$7,8,0),1,1) -> 71.59 | E106: =OFFSET(InputPriceData!D$15,CalculationsAndCharts!$A106+$A$11,IF($C$7,8,0),1,1) -> 71.59 | F106: =OFFSET(InputPriceData!E$15,CalculationsAndCharts!$A106+$A$11,IF($C$7,8,0),1,1) -> 70.22 | G106: =OFFSET(InputPriceData!F$15,CalculationsAndCharts!$A106+$A$11,IF($C$7,8,0),1,1) -> 70.83 | L106: 1.37 | M106: =AVERAGE(OFFSET(L106,0,0,CandleStatControls!$A$17,1)) -> 1.218 | N106: 1.124794745 | O106: 1 | P106: =1/(L106/100)*O106/(100/CandleStatControls!$A$18) -> 2.919708029 | Q106: 0 | R106: 0 | S106: 0.76 | T106: 2 | U106: 1.37 | V106: 4 | W106: 0_2_4
A107: 75 | B107: =OFFSET(InputPriceData!B$15,CalculationsAndCharts!$A107+$A$11,0,1,1) -> 2014-08-27 | C107: =OFFSET(InputPriceData!G$15,CalculationsAndCharts!$A107+$A$11,IF($C$7,8,0),1,1) -> 212000 | D107: =OFFSET(InputPriceData!C$15,CalculationsAndCharts!$A107+$A$11,IF($C$7,8,0),1,1) -> 72.71 | E107: =OFFSET(InputPriceData!D$15,CalculationsAndCharts!$A107+$A$11,IF($C$7,8,0),1,1) -> 72.76 | F107: =OFFSET(InputPriceData!E$15,CalculationsAndCharts!$A107+$A$11,IF($C$7,8,0),1,1) -> 71.55 | G107: =OFFSET(InputPriceData!F$15,CalculationsAndCharts!$A107+$A$11,IF($C$7,8,0),1,1) -> 71.69 | L107: 1.21 | M107: =AVERAGE(OFFSET(L107,0,0,CandleStatControls!$A$17,1)) -> 1.185 | N107: 1.021097046 | O107: 1 | P107: =1/(L107/100)*O107/(100/CandleStatControls!$A$18) -> 3.305785124 | Q107: 0.05 | R107: 0 | S107: 1.07 | T107: 4 | U107: 1.16 | V107: 4 | W107: 0_4_4
A108: 76 | B108: =OFFSET(InputPriceData!B$15,CalculationsAndCharts!$A108+$A$11,0,1,1) -> 2014-08-26 | C108: =OFFSET(InputPriceData!G$15,CalculationsAndCharts!$A108+$A$11,IF($C$7,8,0),1,1) -> 209800 | D108: =OFFSET(InputPriceData!C$15,CalculationsAndCharts!$A108+$A$11,IF($C$7,8,0),1,1) -> 72.19 | E108: =OFFSET(InputPriceData!D$15,CalculationsAndCharts!$A108+$A$11,IF($C$7,8,0),1,1) -> 72.91 | F108: =OFFSET(InputPriceData!E$15,CalculationsAndCharts!$A108+$A$11,IF($C$7,8,0),1,1) -> 71.86 | G108: =OFFSET(InputPriceData!F$15,CalculationsAndCharts!$A108+$A$11,IF($C$7,8,0),1,1) -> 72.47 | L108: 1.05 | M108: =AVERAGE(OFFSET(L108,0,0,CandleStatControls!$A$17,1)) -> 1.266 | N108: 0.8293838863 | O108: 0.8293838863 | P108: =1/(L108/100)*O108/(100/CandleStatControls!$A$18) -> 3.159557662 | Q108: 0.72 | R108: 2 | S108: 0.44 | T108: 1 | U108: 0.33 | V108: 1 | W108: 2_1_1
A109: 77 | B109: =OFFSET(InputPriceData!B$15,CalculationsAndCharts!$A109+$A$11,0,1,1) -> 2014-08-25 | C109: =OFFSET(InputPriceData!G$15,CalculationsAndCharts!$A109+$A$11,IF($C$7,8,0),1,1) -> 202100 | D109: =OFFSET(InputPriceData!C$15,CalculationsAndCharts!$A109+$A$11,IF($C$7,8,0),1,1) -> 72.08 | E109: =OFFSET(InputPriceData!D$15,CalculationsAndCharts!$A109+$A$11,IF($C$7,8,0),1,1) -> 72.87 | F109: =OFFSET(InputPriceData!E$15,CalculationsAndCharts!$A109+$A$11,IF($C$7,8,0),1,1) -> 71.66 | G109: =OFFSET(InputPriceData!F$15,CalculationsAndCharts!$A109+$A$11,IF($C$7,8,0),1,1) -> 71.97 | L109: 1.21 | M109: =AVERAGE(OFFSET(L109,0,0,CandleStatControls!$A$17,1)) -> 1.282 | N109: 0.9438377535 | O109: 0.9438377535 | P109: =1/(L109/100)*O109/(100/CandleStatControls!$A$18) -> 3.120124805 | Q109: 0.79 | R109: 2 | S109: 0.9 | T109: 3 | U109: 0.42 | V109: 1 | W109: 2_3_1
A110: 78 | B110: =OFFSET(InputPriceData!B$15,CalculationsAndCharts!$A110+$A$11,0,1,1) -> 2014-08-22 | C110: =OFFSET(InputPriceData!G$15,CalculationsAndCharts!$A110+$A$11,IF($C$7,8,0),1,1) -> 162600 | D110: =OFFSET(InputPriceData!C$15,CalculationsAndCharts!$A110+$A$11,IF($C$7,8,0),1,1) -> 70.7 | E110: =OFFSET(InputPriceData!D$15,CalculationsAndCharts!$A110+$A$11,IF($C$7,8,0),1,1) -> 71.75 | F110: =OFFSET(InputPriceData!E$15,CalculationsAndCharts!$A110+$A$11,IF($C$7,8,0),1,1) -> 70.32 | G110: =OFFSET(InputPriceData!F$15,CalculationsAndCharts!$A110+$A$11,IF($C$7,8,0),1,1) -> 71.56 | L110: 1.43 | M110: =AVERAGE(OFFSET(L110,0,0,CandleStatControls!$A$17,1)) -> 1.328 | N110: 1.076807229 | O110: 1 | P110: =1/(L110/100)*O110/(100/CandleStatControls!$A$18) -> 2.797202797 | Q110: 1.05 | R110: 3 | S110: 0.19 | T110: 1 | U110: 0.38 | V110: 1 | W110: 3_1_1
A111: 79 | B111: =OFFSET(InputPriceData!B$15,CalculationsAndCharts!$A111+$A$11,0,1,1) -> 2014-08-21 | C111: =OFFSET(InputPriceData!G$15,CalculationsAndCharts!$A111+$A$11,IF($C$7,8,0),1,1) -> 161100 | D111: =OFFSET(InputPriceData!C$15,CalculationsAndCharts!$A111+$A$11,IF($C$7,8,0),1,1) -> 70.4 | E111: =OFFSET(InputPriceData!D$15,CalculationsAndCharts!$A111+$A$11,IF($C$7,8,0),1,1) -> 70.72 | F111: =OFFSET(InputPriceData!E$15,CalculationsAndCharts!$A111+$A$11,IF($C$7,8,0),1,1) -> 69.78 | G111: =OFFSET(InputPriceData!F$15,CalculationsAndCharts!$A111+$A$11,IF($C$7,8,0),1,1) -> 70.62 | L111: 0.94 | M111: =AVERAGE(OFFSET(L111,0,0,CandleStatControls!$A$17,1)) -> 1.384 | N111: 0.6791907514 | O111: 0.6791907514 | P111: =1/(L111/100)*O111/(100/CandleStatControls!$A$18) -> 2.89017341 | Q111: 0.32 | R111: 1 | S111: 0.1 | T111: 0 | U111: 0.62 | V111: 2 | W111: 1_0_2
A112: 80 | B112: =OFFSET(InputPriceData!B$15,CalculationsAndCharts!$A112+$A$11,0,1,1) -> 2014-08-20 | C112: =OFFSET(InputPriceData!G$15,CalculationsAndCharts!$A112+$A$11,IF($C$7,8,0),1,1) -> 131700 | D112: =OFFSET(InputPriceData!C$15,CalculationsAndCharts!$A112+$A$11,IF($C$7,8,0),1,1) -> 71.06 | E112: =OFFSET(InputPriceData!D$15,CalculationsAndCharts!$A112+$A$11,IF($C$7,8,0),1,1) -> 71.06 | F112: =OFFSET(InputPriceData!E$15,CalculationsAndCharts!$A112+$A$11,IF($C$7,8,0),1,1) -> 69.85 | G112: =OFFSET(InputPriceData!F$15,CalculationsAndCharts!$A112+$A$11,IF($C$7,8,0),1,1) -> 70.55 | L112: 1.21 | M112: =AVERAGE(OFFSET(L112,0,0,CandleStatControls!$A$17,1)) -> 1.432 | N112: 0.844972067 | O112: 0.844972067 | P112: =1/(L112/100)*O112/(100/CandleStatControls!$A$18) -> 2.793296089 | Q112: 0 | R112: 0 | S112: 0.51 | T112: 1 | U112: 1.21 | V112: 3 | W112: 0_1_3
A113: 81 | B113: =OFFSET(InputPriceData!B$15,CalculationsAndCharts!$A113+$A$11,0,1,1) -> 2014-08-19 | C113: =OFFSET(InputPriceData!G$15,CalculationsAndCharts!$A113+$A$11,IF($C$7,8,0),1,1) -> 137300 | D113: =OFFSET(InputPriceData!C$15,CalculationsAndCharts!$A113+$A$11,IF($C$7,8,0),1,1) -> 70.8 | E113: =OFFSET(InputPriceData!D$15,CalculationsAndCharts!$A113+$A$11,IF($C$7,8,0),1,1) -> 71.49 | F113: =OFFSET(InputPriceData!E$15,CalculationsAndCharts!$A113+$A$11,IF($C$7,8,0),1,1) -> 70.61 | G113: =OFFSET(InputPriceData!F$15,CalculationsAndCharts!$A113+$A$11,IF($C$7,8,0),1,1) -> 71.13 | L113: 0.88 | M113: =AVERAGE(OFFSET(L113,0,0,CandleStatControls!$A$17,1)) -> 1.435 | N113: 0.6132404181 | O113: 0.6132404181 | P113: =1/(L113/100)*O113/(100/CandleStatControls!$A$18) -> 2.787456446 | Q113: 0.69 | R113: 2 | S113: 0.36 | T113: 1 | U113: 0.19 | V113: 1 | W113: 2_1_1
A114: 82 | B114: =OFFSET(InputPriceData!B$15,CalculationsAndCharts!$A114+$A$11,0,1,1) -> 2014-08-18 | C114: =OFFSET(InputPriceData!G$15,CalculationsAndCharts!$A114+$A$11,IF($C$7,8,0),1,1) -> 172000 | D114: =OFFSET(InputPriceData!C$15,CalculationsAndCharts!$A114+$A$11,IF($C$7,8,0),1,1) -> 69.82 | E114: =OFFSET(InputPriceData!D$15,CalculationsAndCharts!$A114+$A$11,IF($C$7,8,0),1,1) -> 71.08 | F114: =OFFSET(InputPriceData!E$15,CalculationsAndCharts!$A114+$A$11,IF($C$7,8,0),1,1) -> 69.47 | G114: =OFFSET(InputPriceData!F$15,CalculationsAndCharts!$A114+$A$11,IF($C$7,8,0),1,1) -> 70.79 | L114: 1.61 | M114: =AVERAGE(OFFSET(L114,0,0,CandleStatControls!$A$17,1)) -> 1.498 | N114: 1.074766355 | O114: 1 | P114: =1/(L114/100)*O114/(100/CandleStatControls!$A$18) -> 2.48447205 | Q114: 1.26 | R114: 3 | S114: 0.29 | T114: 1 | U114: 0.35 | V114: 1 | W114: 3_1_1
A115: 83 | B115: =OFFSET(InputPriceData!B$15,CalculationsAndCharts!$A115+$A$11,0,1,1) -> 2014-08-15 | C115: =OFFSET(InputPriceData!G$15,CalculationsAndCharts!$A115+$A$11,IF($C$7,8,0),1,1) -> 218400 | D115: =OFFSET(InputPriceData!C$15,CalculationsAndCharts!$A115+$A$11,IF($C$7,8,0),1,1) -> 69.8 | E115: =OFFSET(InputPriceData!D$15,CalculationsAndCharts!$A115+$A$11,IF($C$7,8,0),1,1) -> 69.8 | F115: =OFFSET(InputPriceData!E$15,CalculationsAndCharts!$A115+$A$11,IF($C$7,8,0),1,1) -> 68.53 | G115: =OFFSET(InputPriceData!F$15,CalculationsAndCharts!$A115+$A$11,IF($C$7,8,0),1,1) -> 69.3 | L115: 1.27 | M115: =AVERAGE(OFFSET(L115,0,0,CandleStatControls!$A$17,1)) -> 1.42 | N115: 0.8943661972 | O115: 0.8943661972 | P115: =1/(L115/100)*O115/(100/CandleStatControls!$A$18) -> 2.816901408 | Q115: 0 | R115: 0 | S115: 0.5 | T115: 1 | U115: 1.27 | V115: 4 | W115: 0_1_4
A116: 84 | B116: =OFFSET(InputPriceData!B$15,CalculationsAndCharts!$A116+$A$11,0,1,1) -> 2014-08-14 | C116: =OFFSET(InputPriceData!G$15,CalculationsAndCharts!$A116+$A$11,IF($C$7,8,0),1,1) -> 97000 | D116: =OFFSET(InputPriceData!C$15,CalculationsAndCharts!$A116+$A$11,IF($C$7,8,0),1,1) -> 68.59 | E116: =OFFSET(InputPriceData!D$15,CalculationsAndCharts!$A116+$A$11,IF($C$7,8,0),1,1) -> 69.23 | F116: =OFFSET(InputPriceData!E$15,CalculationsAndCharts!$A116+$A$11,IF($C$7,8,0),1,1) -> 68.19 | G116: =OFFSET(InputPriceData!F$15,CalculationsAndCharts!$A116+$A$11,IF($C$7,8,0),1,1) -> 68.89 | L116: 1.04 | M116: =AVERAGE(OFFSET(L116,0,0,CandleStatControls!$A$17,1)) -> 1.416 | N116: 0.7344632768 | O116: 0.7344632768 | P116: =1/(L116/100)*O116/(100/CandleStatControls!$A$18) -> 2.824858757 | Q116: 0.64 | R116: 2 | S116: 0.34 | T116: 1 | U116: 0.4 | V116: 1 | W116: 2_1_1
A117: 85 | B117: =OFFSET(InputPriceData!B$15,CalculationsAndCharts!$A117+$A$11,0,1,1) -> 2014-08-13 | C117: =OFFSET(InputPriceData!G$15,CalculationsAndCharts!$A117+$A$11,IF($C$7,8,0),1,1) -> 132700 | D117: =OFFSET(InputPriceData!C$15,CalculationsAndCharts!$A117+$A$11,IF($C$7,8,0),1,1) -> 67.84 | E117: =OFFSET(InputPriceData!D$15,CalculationsAndCharts!$A117+$A$11,IF($C$7,8,0),1,1) -> 68.93 | F117: =OFFSET(InputPriceData!E$15,CalculationsAndCharts!$A117+$A$11,IF($C$7,8,0),1,1) -> 66.91 | G117: =OFFSET(InputPriceData!F$15,CalculationsAndCharts!$A117+$A$11,IF($C$7,8,0),1,1) -> 68.49 | L117: 2.02 | M117: =AVERAGE(OFFSET(L117,0,0,CandleStatControls!$A$17,1)) -> 1.443 | N117: 1.3998614 | O117: 1 | P117: =1/(L117/100)*O117/(100/CandleStatControls!$A$18) -> 1.98019802 | Q117: 1.09 | R117: 2 | S117: 0.44 | T117: 1 | U117: 0.93 | V117: 2 | W117: 2_1_2
A118: 86 | B118: =OFFSET(InputPriceData!B$15,CalculationsAndCharts!$A118+$A$11,0,1,1) -> 2014-08-12 | C118: =OFFSET(InputPriceData!G$15,CalculationsAndCharts!$A118+$A$11,IF($C$7,8,0),1,1) -> 94100 | D118: =OFFSET(InputPriceData!C$15,CalculationsAndCharts!$A118+$A$11,IF($C$7,8,0),1,1) -> 68.37 | E118: =OFFSET(InputPriceData!D$15,CalculationsAndCharts!$A118+$A$11,IF($C$7,8,0),1,1) -> 68.78 | F118: =OFFSET(InputPriceData!E$15,CalculationsAndCharts!$A118+$A$11,IF($C$7,8,0),1,1) -> 67.57 | G118: =OFFSET(InputPriceData!F$15,CalculationsAndCharts!$A118+$A$11,IF($C$7,8,0),1,1) -> 67.82 | L118: 1.21 | M118: =AVERAGE(OFFSET(L118,0,0,CandleStatControls!$A$17,1)) -> 1.378 | N118: 0.87808418 | O118: 0.87808418 | P118: =1/(L118/100)*O118/(100/CandleStatControls!$A$18) -> 2.90275762 | Q118: 0.41 | R118: 1 | S118: 0.96 | T118: 3 | U118: 0.8 | V118: 2 | W118: 1_3_2
A119: 87 | B119: =OFFSET(InputPriceData!B$15,CalculationsAndCharts!$A119+$A$11,0,1,1) -> 2014-08-11 | C119: =OFFSET(InputPriceData!G$15,CalculationsAndCharts!$A119+$A$11,IF($C$7,8,0),1,1) -> 138600 | D119: =OFFSET(InputPriceData!C$15,CalculationsAndCharts!$A119+$A$11,IF($C$7,8,0),1,1) -> 67.9 | E119: =OFFSET(InputPriceData!D$15,CalculationsAndCharts!$A119+$A$11,IF($C$7,8,0),1,1) -> 69.35 | F119: =OFFSET(InputPriceData!E$15,CalculationsAndCharts!$A119+$A$11,IF($C$7,8,0),1,1) -> 67.68 | G119: =OFFSET(InputPriceData!F$15,CalculationsAndCharts!$A119+$A$11,IF($C$7,8,0),1,1) -> 68.48 | L119: 1.67 | M119: =AVERAGE(OFFSET(L119,0,0,CandleStatControls!$A$17,1)) -> 1.337 | N119: 1.249065071 | O119: 1 | P119: =1/(L119/100)*O119/(100/CandleStatControls!$A$18) -> 2.395209581 | Q119: 1.45 | R119: 3 | S119: 0.87 | T119: 2 | U119: 0.22 | V119: 1 | W119: 3_2_1
A120: 88 | B120: =OFFSET(InputPriceData!B$15,CalculationsAndCharts!$A120+$A$11,0,1,1) -> 2014-08-08 | C120: =OFFSET(InputPriceData!G$15,CalculationsAndCharts!$A120+$A$11,IF($C$7,8,0),1,1) -> 186000 | D120: =OFFSET(InputPriceData!C$15,CalculationsAndCharts!$A120+$A$11,IF($C$7,8,0),1,1) -> 65.97 | E120: =OFFSET(InputPriceData!D$15,CalculationsAndCharts!$A120+$A$11,IF($C$7,8,0),1,1) -> 67.87 | F120: =OFFSET(InputPriceData!E$15,CalculationsAndCharts!$A120+$A$11,IF($C$7,8,0),1,1) -> 65.88 | G120: =OFFSET(InputPriceData!F$15,CalculationsAndCharts!$A120+$A$11,IF($C$7,8,0),1,1) -> 67.73 | L120: 1.99 | M120: =AVERAGE(OFFSET(L120,0,0,CandleStatControls!$A$17,1)) -> 1.261 | N120: 1.578112609 | O120: 1 | P120: =1/(L120/100)*O120/(100/CandleStatControls!$A$18) -> 2.010050251 | Q120: 1.9 | R120: 4 | S120: 0.14 | T120: 0 | U120: 0.09 | V120: 0 | W120: 4_0_0
A121: 89 | B121: =OFFSET(InputPriceData!B$15,CalculationsAndCharts!$A121+$A$11,0,1,1) -> 2014-08-07 | C121: =OFFSET(InputPriceData!G$15,CalculationsAndCharts!$A121+$A$11,IF($C$7,8,0),1,1) -> 158700 | D121: =OFFSET(InputPriceData!C$15,CalculationsAndCharts!$A121+$A$11,IF($C$7,8,0),1,1) -> 66.65 | E121: =OFFSET(InputPriceData!D$15,CalculationsAndCharts!$A121+$A$11,IF($C$7,8,0),1,1) -> 67.32 | F121: =OFFSET(InputPriceData!E$15,CalculationsAndCharts!$A121+$A$11,IF($C$7,8,0),1,1) -> 65.9 | G121: =OFFSET(InputPriceData!F$15,CalculationsAndCharts!$A121+$A$11,IF($C$7,8,0),1,1) -> 66.04 | L121: 1.42 | M121: =AVERAGE(OFFSET(L121,0,0,CandleStatControls!$A$17,1)) -> 1.168 | N121: 1.215753425 | O121: 1 | P121: =1/(L121/100)*O121/(100/CandleStatControls!$A$18) -> 2.816901408 | Q121: 0.67 | R121: 2 | S121: 1.28 | T121: 4 | U121: 0.75 | V121: 2 | W121: 2_4_2
A122: 90 | B122: =OFFSET(InputPriceData!B$15,CalculationsAndCharts!$A122+$A$11,0,1,1) -> 2014-08-06 | C122: =OFFSET(InputPriceData!G$15,CalculationsAndCharts!$A122+$A$11,IF($C$7,8,0),1,1) -> 189800 | D122: =OFFSET(InputPriceData!C$15,CalculationsAndCharts!$A122+$A$11,IF($C$7,8,0),1,1) -> 66.28 | E122: =OFFSET(InputPriceData!D$15,CalculationsAndCharts!$A122+$A$11,IF($C$7,8,0),1,1) -> 67.37 | F122: =OFFSET(InputPriceData!E$15,CalculationsAndCharts!$A122+$A$11,IF($C$7,8,0),1,1) -> 66.13 | G122: =OFFSET(InputPriceData!F$15,CalculationsAndCharts!$A122+$A$11,IF($C$7,8,0),1,1) -> 66.45 | L122: 1.24 | M122: =AVERAGE(OFFSET(L122,0,0,CandleStatControls!$A$17,1)) -> 1.153 | N122: 1.075455334 | O122: 1 | P122: =1/(L122/100)*O122/(100/CandleStatControls!$A$18) -> 3.225806452 | Q122: 1.09 | R122: 4 | S122: 0.92 | T122: 3 | U122: 0.15 | V122: 0 | W122: 4_3_0
A123: 91 | B123: =OFFSET(InputPriceData!B$15,CalculationsAndCharts!$A123+$A$11,0,1,1) -> 2014-08-05 | C123: =OFFSET(InputPriceData!G$15,CalculationsAndCharts!$A123+$A$11,IF($C$7,8,0),1,1) -> 164200 | D123: =OFFSET(InputPriceData!C$15,CalculationsAndCharts!$A123+$A$11,IF($C$7,8,0),1,1) -> 66.34 | E123: =OFFSET(InputPriceData!D$15,CalculationsAndCharts!$A123+$A$11,IF($C$7,8,0),1,1) -> 67.6 | F123: =OFFSET(InputPriceData!E$15,CalculationsAndCharts!$A123+$A$11,IF($C$7,8,0),1,1) -> 66.09 | G123: =OFFSET(InputPriceData!F$15,CalculationsAndCharts!$A123+$A$11,IF($C$7,8,0),1,1) -> 66.5 | L123: 1.51 | M123: =AVERAGE(OFFSET(L123,0,0,CandleStatControls!$A$17,1)) -> 1.11 | N123: 1.36036036 | O123: 1 | P123: =1/(L123/100)*O123/(100/CandleStatControls!$A$18) -> 2.649006623 | Q123: 1.26 | R123: 3 | S123: 1.1 | T123: 3 | U123: 0.25 | V123: 1 | W123: 3_3_1
A124: 92 | B124: =OFFSET(InputPriceData!B$15,CalculationsAndCharts!$A124+$A$11,0,1,1) -> 2014-08-04 | C124: =OFFSET(InputPriceData!G$15,CalculationsAndCharts!$A124+$A$11,IF($C$7,8,0),1,1) -> 143300 | D124: =OFFSET(InputPriceData!C$15,CalculationsAndCharts!$A124+$A$11,IF($C$7,8,0),1,1) -> 66.87 | E124: =OFFSET(InputPriceData!D$15,CalculationsAndCharts!$A124+$A$11,IF($C$7,8,0),1,1) -> 67.16 | F124: =OFFSET(InputPriceData!E$15,CalculationsAndCharts!$A124+$A$11,IF($C$7,8,0),1,1) -> 66.33 | G124: =OFFSET(InputPriceData!F$15,CalculationsAndCharts!$A124+$A$11,IF($C$7,8,0),1,1) -> 66.62 | L124: 0.83 | M124: =AVERAGE(OFFSET(L124,0,0,CandleStatControls!$A$17,1)) -> 1.044 | N124: 0.7950191571 | O124: 0.7950191571 | P124: =1/(L124/100)*O124/(100/CandleStatControls!$A$18) -> 3.831417625 | Q124: 0.29 | R124: 1 | S124: 0.54 | T124: 2 | U124: 0.54 | V124: 2 | W124: 1_2_2
A125: 93 | B125: =OFFSET(InputPriceData!B$15,CalculationsAndCharts!$A125+$A$11,0,1,1) -> 2014-08-01 | C125: =OFFSET(InputPriceData!G$15,CalculationsAndCharts!$A125+$A$11,IF($C$7,8,0),1,1) -> 165500 | D125: =OFFSET(InputPriceData!C$15,CalculationsAndCharts!$A125+$A$11,IF($C$7,8,0),1,1) -> 66.22 | E125: =OFFSET(InputPriceData!D$15,CalculationsAndCharts!$A125+$A$11,IF($C$7,8,0),1,1) -> 67.03 | F125: =OFFSET(InputPriceData!E$15,CalculationsAndCharts!$A125+$A$11,IF($C$7,8,0),1,1) -> 65.8 | G125: =OFFSET(InputPriceData!F$15,CalculationsAndCharts!$A125+$A$11,IF($C$7,8,0),1,1) -> 66.53 | L125: 1.23 | M125: =AVERAGE(OFFSET(L125,0,0,CandleStatControls!$A$17,1)) -> 1.059 | N125: 1.161473088 | O125: 1 | P125: =1/(L125/100)*O125/(100/CandleStatControls!$A$18) -> 3.25203252 | Q125: 0.81 | R125: 3 | S125: 0.5 | T125: 2 | U125: 0.42 | V125: 1 | W125: 3_2_1
A126: 94 | B126: =OFFSET(InputPriceData!B$15,CalculationsAndCharts!$A126+$A$11,0,1,1) -> 2014-07-31 | C126: =OFFSET(InputPriceData!G$15,CalculationsAndCharts!$A126+$A$11,IF($C$7,8,0),1,1) -> 225100 | D126: =OFFSET(InputPriceData!C$15,CalculationsAndCharts!$A126+$A$11,IF($C$7,8,0),1,1) -> 66.13 | E126: =OFFSET(InputPriceData!D$15,CalculationsAndCharts!$A126+$A$11,IF($C$7,8,0),1,1) -> 66.85 | F126: =OFFSET(InputPriceData!E$15,CalculationsAndCharts!$A126+$A$11,IF($C$7,8,0),1,1) -> 65.54 | G126: =OFFSET(InputPriceData!F$15,CalculationsAndCharts!$A126+$A$11,IF($C$7,8,0),1,1) -> 66.01 | L126: 1.31 | M126: =AVERAGE(OFFSET(L126,0,0,CandleStatControls!$A$17,1)) -> 1.157 | N126: 1.132238548 | O126: 1 | P126: =1/(L126/100)*O126/(100/CandleStatControls!$A$18) -> 3.053435115 | Q126: 0.72 | R126: 2 | S126: 0.84 | T126: 3 | U126: 0.59 | V126: 2 | W126: 2_3_2
A127: 95 | B127: =OFFSET(InputPriceData!B$15,CalculationsAndCharts!$A127+$A$11,0,1,1) -> 2014-07-30 | C127: =OFFSET(InputPriceData!G$15,CalculationsAndCharts!$A127+$A$11,IF($C$7,8,0),1,1) -> 160500 | D127: =OFFSET(InputPriceData!C$15,CalculationsAndCharts!$A127+$A$11,IF($C$7,8,0),1,1) -> 66.71 | E127: =OFFSET(InputPriceData!D$15,CalculationsAndCharts!$A127+$A$11,IF($C$7,8,0),1,1) -> 67.51 | F127: =OFFSET(InputPriceData!E$15,CalculationsAndCharts!$A127+$A$11,IF($C$7,8,0),1,1) -> 66.14 | G127: =OFFSET(InputPriceData!F$15,CalculationsAndCharts!$A127+$A$11,IF($C$7,8,0),1,1) -> 66.61 | L127: 1.37 | M127: =AVERAGE(OFFSET(L127,0,0,CandleStatControls!$A$17,1)) -> 1.122 | N127: 1.221033868 | O127: 1 | P127: =1/(L127/100)*O127/(100/CandleStatControls!$A$18) -> 2.919708029 | Q127: 0.8 | R127: 2 | S127: 0.9 | T127: 3 | U127: 0.57 | V127: 2 | W127: 2_3_2
A128: 96 | B128: =OFFSET(InputPriceData!B$15,CalculationsAndCharts!$A128+$A$11,0,1,1) -> 2014-07-29 | C128: =OFFSET(InputPriceData!G$15,CalculationsAndCharts!$A128+$A$11,IF($C$7,8,0),1,1) -> 257600 | D128: =OFFSET(InputPriceData!C$15,CalculationsAndCharts!$A128+$A$11,IF($C$7,8,0),1,1) -> 66.48 | E128: =OFFSET(InputPriceData!D$15,CalculationsAndCharts!$A128+$A$11,IF($C$7,8,0),1,1) -> 67.01 | F128: =OFFSET(InputPriceData!E$15,CalculationsAndCharts!$A128+$A$11,IF($C$7,8,0),1,1) -> 66.21 | G128: =OFFSET(InputPriceData!F$15,CalculationsAndCharts!$A128+$A$11,IF($C$7,8,0),1,1) -> 66.44 | L128: 0.8 | M128: =AVERAGE(OFFSET(L128,0,0,CandleStatControls!$A$17,1)) -> 1.123 | N128: 0.7123775601 | O128: 0.7123775601 | P128: =1/(L128/100)*O128/(100/CandleStatControls!$A$18) -> 3.561887801 | Q128: 0.53 | R128: 2 | S128: 0.57 | T128: 2 | U128: 0.27 | V128: 1 | W128: 2_2_1
A129: 97 | B129: =OFFSET(InputPriceData!B$15,CalculationsAndCharts!$A129+$A$11,0,1,1) -> 2014-07-28 | C129: =OFFSET(InputPriceData!G$15,CalculationsAndCharts!$A129+$A$11,IF($C$7,8,0),1,1) -> 175700 | D129: =OFFSET(InputPriceData!C$15,CalculationsAndCharts!$A129+$A$11,IF($C$7,8,0),1,1) -> 66.13 | E129: =OFFSET(InputPriceData!D$15,CalculationsAndCharts!$A129+$A$11,IF($C$7,8,0),1,1) -> 66.5 | F129: =OFFSET(InputPriceData!E$15,CalculationsAndCharts!$A129+$A$11,IF($C$7,8,0),1,1) -> 65.59 | G129: =OFFSET(InputPriceData!F$15,CalculationsAndCharts!$A129+$A$11,IF($C$7,8,0),1,1) -> 66.22 | L129: 0.91 | M129: =AVERAGE(OFFSET(L129,0,0,CandleStatControls!$A$17,1)) -> 1.25 | N129: 0.728 | O129: 0.728 | P129: =1/(L129/100)*O129/(100/CandleStatControls!$A$18) -> 3.2 | Q129: 0.37 | R129: 1 | S129: 0.28 | T129: 1 | U129: 0.54 | V129: 2 | W129: 1_1_2
A130: 98 | B130: =OFFSET(InputPriceData!B$15,CalculationsAndCharts!$A130+$A$11,0,1,1) -> 2014-07-25 | C130: =OFFSET(InputPriceData!G$15,CalculationsAndCharts!$A130+$A$11,IF($C$7,8,0),1,1) -> 123900 | D130: =OFFSET(InputPriceData!C$15,CalculationsAndCharts!$A130+$A$11,IF($C$7,8,0),1,1) -> 66.79 | E130: =OFFSET(InputPriceData!D$15,CalculationsAndCharts!$A130+$A$11,IF($C$7,8,0),1,1) -> 67.08 | F130: =OFFSET(InputPriceData!E$15,CalculationsAndCharts!$A130+$A$11,IF($C$7,8,0),1,1) -> 66.02 | G130: =OFFSET(InputPriceData!F$15,CalculationsAndCharts!$A130+$A$11,IF($C$7,8,0),1,1) -> 66.14 | L130: 1.06 | M130: =AVERAGE(OFFSET(L130,0,0,CandleStatControls!$A$17,1)) -> 1.247 | N130: 0.8500400962 | O130: 0.8500400962 | P130: =1/(L130/100)*O130/(100/CandleStatControls!$A$18) -> 3.207698476 | Q130: 0.29 | R130: 1 | S130: 0.94 | T130: 3 | U130: 0.77 | V130: 2 | W130: 1_3_2
A131: 99 | B131: =OFFSET(InputPriceData!B$15,CalculationsAndCharts!$A131+$A$11,0,1,1) -> 2014-07-24 | C131: =OFFSET(InputPriceData!G$15,CalculationsAndCharts!$A131+$A$11,IF($C$7,8,0),1,1) -> 156400 | D131: =OFFSET(InputPriceData!C$15,CalculationsAndCharts!$A131+$A$11,IF($C$7,8,0),1,1) -> 67.18 | E131: =OFFSET(InputPriceData!D$15,CalculationsAndCharts!$A131+$A$11,IF($C$7,8,0),1,1) -> 68.29 | F131: =OFFSET(InputPriceData!E$15,CalculationsAndCharts!$A131+$A$11,IF($C$7,8,0),1,1) -> 67.02 | G131: =OFFSET(InputPriceData!F$15,CalculationsAndCharts!$A131+$A$11,IF($C$7,8,0),1,1) -> 67.18 | L131: 1.27 | M131: =AVERAGE(OFFSET(L131,0,0,CandleStatControls!$A$17,1)) -> 1.215 | N131: 1.04526749 | O131: 1 | P131: =1/(L131/100)*O131/(100/CandleStatControls!$A$18) -> 3.149606299 | Q131: 1.11 | R131: 3 | S131: 1.11 | T131: 3 | U131: 0.16 | V131: 1 | W131: 3_3_1
A132: 100 | B132: =OFFSET(InputPriceData!B$15,CalculationsAndCharts!$A132+$A$11,0,1,1) -> 2014-07-23 | C132: =OFFSET(InputPriceData!G$15,CalculationsAndCharts!$A132+$A$11,IF($C$7,8,0),1,1) -> 100400 | D132: =OFFSET(InputPriceData!C$15,CalculationsAndCharts!$A132+$A$11,IF($C$7,8,0),1,1) -> 67.1 | E132: =OFFSET(InputPriceData!D$15,CalculationsAndCharts!$A132+$A$11,IF($C$7,8,0),1,1) -> 67.47 | F132: =OFFSET(InputPriceData!E$15,CalculationsAndCharts!$A132+$A$11,IF($C$7,8,0),1,1) -> 66.66 | G132: =OFFSET(InputPriceData!F$15,CalculationsAndCharts!$A132+$A$11,IF($C$7,8,0),1,1) -> 66.88 | L132: 0.81 | M132: =AVERAGE(OFFSET(L132,0,0,CandleStatControls!$A$17,1)) -> 1.154 | N132: 0.7019064125 | O132: 0.7019064125 | P132: =1/(L132/100)*O132/(100/CandleStatControls!$A$18) -> 3.466204506 | Q132: 0.37 | R132: 1 | S132: 0.59 | T132: 2 | U132: 0.44 | V132: 2 | W132: 1_2_2
A133: 101 | B133: =OFFSET(InputPriceData!B$15,CalculationsAndCharts!$A133+$A$11,0,1,1) -> 2014-07-22 | C133: =OFFSET(InputPriceData!G$15,CalculationsAndCharts!$A133+$A$11,IF($C$7,8,0),1,1) -> 121100 | D133: =OFFSET(InputPriceData!C$15,CalculationsAndCharts!$A133+$A$11,IF($C$7,8,0),1,1) -> 67.57 | E133: =OFFSET(InputPriceData!D$15,CalculationsAndCharts!$A133+$A$11,IF($C$7,8,0),1,1) -> 67.71 | F133: =OFFSET(InputPriceData!E$15,CalculationsAndCharts!$A133+$A$11,IF($C$7,8,0),1,1) -> 66.86 | G133: =OFFSET(InputPriceData!F$15,CalculationsAndCharts!$A133+$A$11,IF($C$7,8,0),1,1) -> 67.16 | L133: 0.85 | M133: =AVERAGE(OFFSET(L133,0,0,CandleStatControls!$A$17,1)) -> 1.203 | N133: 0.706566916 | O133: 0.706566916 | P133: =1/(L133/100)*O133/(100/CandleStatControls!$A$18) -> 3.325020781 | Q133: 0.14 | R133: 0 | S133: 0.55 | T133: 2 | U133: 0.71 | V133: 2 | W133: 0_2_2
A134: 102 | B134: =OFFSET(InputPriceData!B$15,CalculationsAndCharts!$A134+$A$11,0,1,1) -> 2014-07-21 | C134: =OFFSET(InputPriceData!G$15,CalculationsAndCharts!$A134+$A$11,IF($C$7,8,0),1,1) -> 98700 | D134: =OFFSET(InputPriceData!C$15,CalculationsAndCharts!$A134+$A$11,IF($C$7,8,0),1,1) -> 67.79 | E134: =OFFSET(InputPriceData!D$15,CalculationsAndCharts!$A134+$A$11,IF($C$7,8,0),1,1) -> 67.92 | F134: =OFFSET(InputPriceData!E$15,CalculationsAndCharts!$A134+$A$11,IF($C$7,8,0),1,1) -> 66.94 | G134: =OFFSET(InputPriceData!F$15,CalculationsAndCharts!$A134+$A$11,IF($C$7,8,0),1,1) -> 67.22 | L134: 0.98 | M134: =AVERAGE(OFFSET(L134,0,0,CandleStatControls!$A$17,1)) -> 1.227 | N134: 0.7986960065 | O134: 0.7986960065 | P134: =1/(L134/100)*O134/(100/CandleStatControls!$A$18) -> 3.2599837 | Q134: 0.13 | R134: 0 | S134: 0.7 | T134: 2 | U134: 0.85 | V134: 3 | W134: 0_2_3
A135: 103 | B135: =OFFSET(InputPriceData!B$15,CalculationsAndCharts!$A135+$A$11,0,1,1) -> 2014-07-18 | C135: =OFFSET(InputPriceData!G$15,CalculationsAndCharts!$A135+$A$11,IF($C$7,8,0),1,1) -> 181500 | D135: =OFFSET(InputPriceData!C$15,CalculationsAndCharts!$A135+$A$11,IF($C$7,8,0),1,1) -> 66.2 | E135: =OFFSET(InputPriceData!D$15,CalculationsAndCharts!$A135+$A$11,IF($C$7,8,0),1,1) -> 68.41 | F135: =OFFSET(InputPriceData!E$15,CalculationsAndCharts!$A135+$A$11,IF($C$7,8,0),1,1) -> 66.2 | G135: =OFFSET(InputPriceData!F$15,CalculationsAndCharts!$A135+$A$11,IF($C$7,8,0),1,1) -> 68.09 | L135: 2.21 | M135: =AVERAGE(OFFSET(L135,0,0,CandleStatControls!$A$17,1)) -> 1.204 | N135: 1.835548173 | O135: 1 | P135: =1/(L135/100)*O135/(100/CandleStatControls!$A$18) -> 1.809954751 | Q135: 2.21 | R135: 4 | S135: 0.32 | T135: 1 | U135: 0 | V135: 0 | W135: 4_1_0
A136: 104 | B136: =OFFSET(InputPriceData!B$15,CalculationsAndCharts!$A136+$A$11,0,1,1) -> 2014-07-17 | C136: =OFFSET(InputPriceData!G$15,CalculationsAndCharts!$A136+$A$11,IF($C$7,8,0),1,1) -> 169300 | D136: =OFFSET(InputPriceData!C$15,CalculationsAndCharts!$A136+$A$11,IF($C$7,8,0),1,1) -> 66.28 | E136: =OFFSET(InputPriceData!D$15,CalculationsAndCharts!$A136+$A$11,IF($C$7,8,0),1,1) -> 67.24 | F136: =OFFSET(InputPriceData!E$15,CalculationsAndCharts!$A136+$A$11,IF($C$7,8,0),1,1) -> 66.28 | G136: =OFFSET(InputPriceData!F$15,CalculationsAndCharts!$A136+$A$11,IF($C$7,8,0),1,1) -> 66.4 | L136: 0.96 | M136: =AVERAGE(OFFSET(L136,0,0,CandleStatControls!$A$17,1)) -> 1.126 | N136: 0.8525754885 | O136: 0.8525754885 | P136: =1/(L136/100)*O136/(100/CandleStatControls!$A$18) -> 3.552397869 | Q136: 0.96 | R136: 3 | S136: 0.84 | T136: 3 | U136: 0 | V136: 0 | W136: 3_3_0
A137: 105 | B137: =OFFSET(InputPriceData!B$15,CalculationsAndCharts!$A137+$A$11,0,1,1) -> 2014-07-16 | C137: =OFFSET(InputPriceData!G$15,CalculationsAndCharts!$A137+$A$11,IF($C$7,8,0),1,1) -> 247000 | D137: =OFFSET(InputPriceData!C$15,CalculationsAndCharts!$A137+$A$11,IF($C$7,8,0),1,1) -> 67.36 | E137: =OFFSET(InputPriceData!D$15,CalculationsAndCharts!$A137+$A$11,IF($C$7,8,0),1,1) -> 67.85 | F137: =OFFSET(InputPriceData!E$15,CalculationsAndCharts!$A137+$A$11,IF($C$7,8,0),1,1) -> 66.47 | G137: =OFFSET(InputPriceData!F$15,CalculationsAndCharts!$A137+$A$11,IF($C$7,8,0),1,1) -> 66.54 | L137: 1.38 | M137: =AVERAGE(OFFSET(L137,0,0,CandleStatControls!$A$17,1)) -> 1.128 | N137: 1.223404255 | O137: 1 | P137: =1/(L137/100)*O137/(100/CandleStatControls!$A$18) -> 2.898550725 | Q137: 0.49 | R137: 1 | S137: 1.31 | T137: 4 | U137: 0.89 | V137: 3 | W137: 1_4_3
A138: 106 | B138: =OFFSET(InputPriceData!B$15,CalculationsAndCharts!$A138+$A$11,0,1,1) -> 2014-07-15 | C138: =OFFSET(InputPriceData!G$15,CalculationsAndCharts!$A138+$A$11,IF($C$7,8,0),1,1) -> 213200 | D138: =OFFSET(InputPriceData!C$15,CalculationsAndCharts!$A138+$A$11,IF($C$7,8,0),1,1) -> 68.6 | E138: =OFFSET(InputPriceData!D$15,CalculationsAndCharts!$A138+$A$11,IF($C$7,8,0),1,1) -> 68.88 | F138: =OFFSET(InputPriceData!E$15,CalculationsAndCharts!$A138+$A$11,IF($C$7,8,0),1,1) -> 66.81 | G138: =OFFSET(InputPriceData!F$15,CalculationsAndCharts!$A138+$A$11,IF($C$7,8,0),1,1) -> 66.92 | L138: 2.07 | M138: =AVERAGE(OFFSET(L138,0,0,CandleStatControls!$A$17,1)) -> 1.097 | N138: 1.886964448 | O138: 1 | P138: =1/(L138/100)*O138/(100/CandleStatControls!$A$18) -> 1.93236715 | Q138: 0.28 | R138: 1 | S138: 1.96 | T138: 4 | U138: 1.79 | V138: 3 | W138: 1_4_3
A139: 107 | B139: =OFFSET(InputPriceData!B$15,CalculationsAndCharts!$A139+$A$11,0,1,1) -> 2014-07-14 | C139: =OFFSET(InputPriceData!G$15,CalculationsAndCharts!$A139+$A$11,IF($C$7,8,0),1,1) -> 105300 | D139: =OFFSET(InputPriceData!C$15,CalculationsAndCharts!$A139+$A$11,IF($C$7,8,0),1,1) -> 69.06 | E139: =OFFSET(InputPriceData!D$15,CalculationsAndCharts!$A139+$A$11,IF($C$7,8,0),1,1) -> 69.22 | F139: =OFFSET(InputPriceData!E$15,CalculationsAndCharts!$A139+$A$11,IF($C$7,8,0),1,1) -> 68.34 | G139: =OFFSET(InputPriceData!F$15,CalculationsAndCharts!$A139+$A$11,IF($C$7,8,0),1,1) -> 68.65 | L139: 0.88 | M139: =AVERAGE(OFFSET(L139,0,0,CandleStatControls!$A$17,1)) -> 1.036 | N139: 0.8494208494 | O139: 0.8494208494 | P139: =1/(L139/100)*O139/(100/CandleStatControls!$A$18) -> 3.861003861 | Q139: 0.16 | R139: 1 | S139: 0.57 | T139: 2 | U139: 0.72 | V139: 3 | W139: 1_2_3
A140: 108 | B140: =OFFSET(InputPriceData!B$15,CalculationsAndCharts!$A140+$A$11,0,1,1) -> 2014-07-11 | C140: =OFFSET(InputPriceData!G$15,CalculationsAndCharts!$A140+$A$11,IF($C$7,8,0),1,1) -> 132800 | D140: =OFFSET(InputPriceData!C$15,CalculationsAndCharts!$A140+$A$11,IF($C$7,8,0),1,1) -> 68.33 | E140: =OFFSET(InputPriceData!D$15,CalculationsAndCharts!$A140+$A$11,IF($C$7,8,0),1,1) -> 68.65 | F140: =OFFSET(InputPriceData!E$15,CalculationsAndCharts!$A140+$A$11,IF($C$7,8,0),1,1) -> 67.91 | G140: =OFFSET(InputPriceData!F$15,CalculationsAndCharts!$A140+$A$11,IF($C$7,8,0),1,1) -> 68.51 | L140: 0.74 | M140: =AVERAGE(OFFSET(L140,0,0,CandleStatControls!$A$17,1)) -> 1.027 | N140: 0.7205452775 | O140: 0.7205452775 | P140: =1/(L140/100)*O140/(100/CandleStatControls!$A$18) -> 3.894839338 | Q140: 0.32 | R140: 1 | S140: 0.14 | T140: 1 | U140: 0.42 | V140: 2 | W140: 1_1_2
A141: 109 | B141: =OFFSET(InputPriceData!B$15,CalculationsAndCharts!$A141+$A$11,0,1,1) -> 2014-07-10 | C141: =OFFSET(InputPriceData!G$15,CalculationsAndCharts!$A141+$A$11,IF($C$7,8,0),1,1) -> 138300 | D141: =OFFSET(InputPriceData!C$15,CalculationsAndCharts!$A141+$A$11,IF($C$7,8,0),1,1) -> 68.62 | E141: =OFFSET(InputPriceData!D$15,CalculationsAndCharts!$A141+$A$11,IF($C$7,8,0),1,1) -> 69.15 | F141: =OFFSET(InputPriceData!E$15,CalculationsAndCharts!$A141+$A$11,IF($C$7,8,0),1,1) -> 68.49 | G141: =OFFSET(InputPriceData!F$15,CalculationsAndCharts!$A141+$A$11,IF($C$7,8,0),1,1) -> 68.57 | L141: 0.66 | M141: =AVERAGE(OFFSET(L141,0,0,CandleStatControls!$A$17,1)) -> 1.011 | N141: 0.6528189911 | O141: 0.6528189911 | P141: =1/(L141/100)*O141/(100/CandleStatControls!$A$18) -> 3.956478734 | Q141: 0.53 | R141: 2 | S141: 0.58 | T141: 2 | U141: 0.13 | V141: 1 | W141: 2_2_1
A142: 110 | B142: =OFFSET(InputPriceData!B$15,CalculationsAndCharts!$A142+$A$11,0,1,1) -> 2014-07-09 | C142: =OFFSET(InputPriceData!G$15,CalculationsAndCharts!$A142+$A$11,IF($C$7,8,0),1,1) -> 159400 | D142: =OFFSET(InputPriceData!C$15,CalculationsAndCharts!$A142+$A$11,IF($C$7,8,0),1,1) -> 69.93 | E142: =OFFSET(InputPriceData!D$15,CalculationsAndCharts!$A142+$A$11,IF($C$7,8,0),1,1) -> 70.37 | F142: =OFFSET(InputPriceData!E$15,CalculationsAndCharts!$A142+$A$11,IF($C$7,8,0),1,1) -> 69.07 | G142: =OFFSET(InputPriceData!F$15,CalculationsAndCharts!$A142+$A$11,IF($C$7,8,0),1,1) -> 69.71 | L142: 1.3 | M142: =AVERAGE(OFFSET(L142,0,0,CandleStatControls!$A$17,1)) -> 1.05 | N142: 1.238095238 | O142: 1 | P142: =1/(L142/100)*O142/(100/CandleStatControls!$A$18) -> 3.076923077 | Q142: 0.44 | R142: 1 | S142: 0.66 | T142: 2 | U142: 0.86 | V142: 3 | W142: 1_2_3
A143: 111 | B143: =OFFSET(InputPriceData!B$15,CalculationsAndCharts!$A143+$A$11,0,1,1) -> 2014-07-08 | C143: =OFFSET(InputPriceData!G$15,CalculationsAndCharts!$A143+$A$11,IF($C$7,8,0),1,1) -> 154200 | D143: =OFFSET(InputPriceData!C$15,CalculationsAndCharts!$A143+$A$11,IF($C$7,8,0),1,1) -> 70.26 | E143: =OFFSET(InputPriceData!D$15,CalculationsAndCharts!$A143+$A$11,IF($C$7,8,0),1,1) -> 70.56 | F143: =OFFSET(InputPriceData!E$15,CalculationsAndCharts!$A143+$A$11,IF($C$7,8,0),1,1) -> 69.47 | G143: =OFFSET(InputPriceData!F$15,CalculationsAndCharts!$A143+$A$11,IF($C$7,8,0),1,1) -> 69.63 | L143: 1.09 | M143: =AVERAGE(OFFSET(L143,0,0,CandleStatControls!$A$17,1)) -> 1.059 | N143: 1.029272899 | O143: 1 | P143: =1/(L143/100)*O143/(100/CandleStatControls!$A$18) -> 3.669724771 | Q143: 0.3 | R143: 1 | S143: 0.93 | T143: 3 | U143: 0.79 | V143: 3 | W143: 1_3_3
A144: 112 | B144: =OFFSET(InputPriceData!B$15,CalculationsAndCharts!$A144+$A$11,0,1,1) -> 2014-07-07 | C144: =OFFSET(InputPriceData!G$15,CalculationsAndCharts!$A144+$A$11,IF($C$7,8,0),1,1) -> 144000 | D144: =OFFSET(InputPriceData!C$15,CalculationsAndCharts!$A144+$A$11,IF($C$7,8,0),1,1) -> 70.33 | E144: =OFFSET(InputPriceData!D$15,CalculationsAndCharts!$A144+$A$11,IF($C$7,8,0),1,1) -> 70.88 | F144: =OFFSET(InputPriceData!E$15,CalculationsAndCharts!$A144+$A$11,IF($C$7,8,0),1,1) -> 70.13 | G144: =OFFSET(InputPriceData!F$15,CalculationsAndCharts!$A144+$A$11,IF($C$7,8,0),1,1) -> 70.37 | L144: 0.75 | M144: =AVERAGE(OFFSET(L144,0,0,CandleStatControls!$A$17,1)) -> 1.081 | N144: 0.6938020352 | O144: 0.6938020352 | P144: =1/(L144/100)*O144/(100/CandleStatControls!$A$18) -> 3.700277521 | Q144: 0.55 | R144: 2 | S144: 0.51 | T144: 2 | U144: 0.2 | V144: 1 | W144: 2_2_1
A145: 113 | B145: =OFFSET(InputPriceData!B$15,CalculationsAndCharts!$A145+$A$11,0,1,1) -> 2014-07-03 | C145: =OFFSET(InputPriceData!G$15,CalculationsAndCharts!$A145+$A$11,IF($C$7,8,0),1,1) -> 58000 | D145: =OFFSET(InputPriceData!C$15,CalculationsAndCharts!$A145+$A$11,IF($C$7,8,0),1,1) -> 70.12 | E145: =OFFSET(InputPriceData!D$15,CalculationsAndCharts!$A145+$A$11,IF($C$7,8,0),1,1) -> 71.02 | F145: =OFFSET(InputPriceData!E$15,CalculationsAndCharts!$A145+$A$11,IF($C$7,8,0),1,1) -> 69.59 | G145: =OFFSET(InputPriceData!F$15,CalculationsAndCharts!$A145+$A$11,IF($C$7,8,0),1,1) -> 70.29 | L145: 1.43 | M145: =AVERAGE(OFFSET(L145,0,0,CandleStatControls!$A$17,1)) -> 1.191 | N145: 1.200671704 | O145: 1 | P145: =1/(L145/100)*O145/(100/CandleStatControls!$A$18) -> 2.797202797 | Q145: 0.9 | R145: 3 | S145: 0.73 | T145: 2 | U145: 0.53 | V145: 1 | W145: 3_2_1
A146: 114 | B146: =OFFSET(InputPriceData!B$15,CalculationsAndCharts!$A146+$A$11,0,1,1) -> 2014-07-02 | C146: =OFFSET(InputPriceData!G$15,CalculationsAndCharts!$A146+$A$11,IF($C$7,8,0),1,1) -> 162500 | D146: =OFFSET(InputPriceData!C$15,CalculationsAndCharts!$A146+$A$11,IF($C$7,8,0),1,1) -> 70.3 | E146: =OFFSET(InputPriceData!D$15,CalculationsAndCharts!$A146+$A$11,IF($C$7,8,0),1,1) -> 70.68 | F146: =OFFSET(InputPriceData!E$15,CalculationsAndCharts!$A146+$A$11,IF($C$7,8,0),1,1) -> 69.7 | G146: =OFFSET(InputPriceData!F$15,CalculationsAndCharts!$A146+$A$11,IF($C$7,8,0),1,1) -> 69.85 | L146: 0.98 | M146: =AVERAGE(OFFSET(L146,0,0,CandleStatControls!$A$17,1)) -> 1.257 | N146: 0.7796340493 | O146: 0.7796340493 | P146: =1/(L146/100)*O146/(100/CandleStatControls!$A$18) -> 3.182179793 | Q146: 0.38 | R146: 1 | S146: 0.83 | T146: 3 | U146: 0.6 | V146: 2 | W146: 1_3_2
A147: 115 | B147: =OFFSET(InputPriceData!B$15,CalculationsAndCharts!$A147+$A$11,0,1,1) -> 2014-07-01 | C147: =OFFSET(InputPriceData!G$15,CalculationsAndCharts!$A147+$A$11,IF($C$7,8,0),1,1) -> 178100 | D147: =OFFSET(InputPriceData!C$15,CalculationsAndCharts!$A147+$A$11,IF($C$7,8,0),1,1) -> 70.28 | E147: =OFFSET(InputPriceData!D$15,CalculationsAndCharts!$A147+$A$11,IF($C$7,8,0),1,1) -> 71.09 | F147: =OFFSET(InputPriceData!E$15,CalculationsAndCharts!$A147+$A$11,IF($C$7,8,0),1,1) -> 70.02 | G147: =OFFSET(InputPriceData!F$15,CalculationsAndCharts!$A147+$A$11,IF($C$7,8,0),1,1) -> 70.59 | L147: 1.07 | M147: =AVERAGE(OFFSET(L147,0,0,CandleStatControls!$A$17,1)) -> 1.258 | N147: 0.8505564388 | O147: 0.8505564388 | P147: =1/(L147/100)*O147/(100/CandleStatControls!$A$18) -> 3.179650238 | Q147: 0.81 | R147: 3 | S147: 0.5 | T147: 2 | U147: 0.26 | V147: 1 | W147: 3_2_1
A148: 116 | B148: =OFFSET(InputPriceData!B$15,CalculationsAndCharts!$A148+$A$11,0,1,1) -> 2014-06-30 | C148: =OFFSET(InputPriceData!G$15,CalculationsAndCharts!$A148+$A$11,IF($C$7,8,0),1,1) -> 208400 | D148: =OFFSET(InputPriceData!C$15,CalculationsAndCharts!$A148+$A$11,IF($C$7,8,0),1,1) -> 69.65 | E148: =OFFSET(InputPriceData!D$15,CalculationsAndCharts!$A148+$A$11,IF($C$7,8,0),1,1) -> 70.48 | F148: =OFFSET(InputPriceData!E$15,CalculationsAndCharts!$A148+$A$11,IF($C$7,8,0),1,1) -> 69.02 | G148: =OFFSET(InputPriceData!F$15,CalculationsAndCharts!$A148+$A$11,IF($C$7,8,0),1,1) -> 69.91 | L148: 1.46 | M148: =AVERAGE(OFFSET(L148,0,0,CandleStatControls!$A$17,1)) -> 1.266 | N148: 1.153238547 | O148: 1 | P148: =1/(L148/100)*O148/(100/CandleStatControls!$A$18) -> 2.739726027 | Q148: 0.83 | R148: 2 | S148: 0.57 | T148: 2 | U148: 0.63 | V148: 2 | W148: 2_2_2
A149: 117 | B149: =OFFSET(InputPriceData!B$15,CalculationsAndCharts!$A149+$A$11,0,1,1) -> 2014-06-27 | C149: =OFFSET(InputPriceData!G$15,CalculationsAndCharts!$A149+$A$11,IF($C$7,8,0),1,1) -> 212400 | D149: =OFFSET(InputPriceData!C$15,CalculationsAndCharts!$A149+$A$11,IF($C$7,8,0),1,1) -> 69.02 | E149: =OFFSET(InputPriceData!D$15,CalculationsAndCharts!$A149+$A$11,IF($C$7,8,0),1,1) -> 69.81 | F149: =OFFSET(InputPriceData!E$15,CalculationsAndCharts!$A149+$A$11,IF($C$7,8,0),1,1) -> 69.02 | G149: =OFFSET(InputPriceData!F$15,CalculationsAndCharts!$A149+$A$11,IF($C$7,8,0),1,1) -> 69.57 | L149: 0.79 | M149: =AVERAGE(OFFSET(L149,0,0,CandleStatControls!$A$17,1)) -> 1.201 | N149: 0.657785179 | O149: 0.657785179 | P149: =1/(L149/100)*O149/(100/CandleStatControls!$A$18) -> 3.330557868 | Q149: 0.79 | R149: 3 | S149: 0.24 | T149: 1 | U149: 0 | V149: 0 | W149: 3_1_0
A150: 118 | B150: =OFFSET(InputPriceData!B$15,CalculationsAndCharts!$A150+$A$11,0,1,1) -> 2014-06-26 | C150: =OFFSET(InputPriceData!G$15,CalculationsAndCharts!$A150+$A$11,IF($C$7,8,0),1,1) -> 145400 | D150: =OFFSET(InputPriceData!C$15,CalculationsAndCharts!$A150+$A$11,IF($C$7,8,0),1,1) -> 69.02 | E150: =OFFSET(InputPriceData!D$15,CalculationsAndCharts!$A150+$A$11,IF($C$7,8,0),1,1) -> 69.33 | F150: =OFFSET(InputPriceData!E$15,CalculationsAndCharts!$A150+$A$11,IF($C$7,8,0),1,1) -> 68.75 | G150: =OFFSET(InputPriceData!F$15,CalculationsAndCharts!$A150+$A$11,IF($C$7,8,0),1,1) -> 69.1 | L150: 0.58 | M150: =AVERAGE(OFFSET(L150,0,0,CandleStatControls!$A$17,1)) -> 1.282 | N150: 0.4524180967 | O150: 0.4524180967 | P150: =1/(L150/100)*O150/(100/CandleStatControls!$A$18) -> 3.120124805 | Q150: 0.31 | R150: 1 | S150: 0.23 | T150: 1 | U150: 0.27 | V150: 1 | W150: 1_1_1
A151: 119 | B151: =OFFSET(InputPriceData!B$15,CalculationsAndCharts!$A151+$A$11,0,1,1) -> 2014-06-25 | C151: =OFFSET(InputPriceData!G$15,CalculationsAndCharts!$A151+$A$11,IF($C$7,8,0),1,1) -> 174400 | D151: =OFFSET(InputPriceData!C$15,CalculationsAndCharts!$A151+$A$11,IF($C$7,8,0),1,1) -> 68.31 | E151: =OFFSET(InputPriceData!D$15,CalculationsAndCharts!$A151+$A$11,IF($C$7,8,0),1,1) -> 69.36 | F151: =OFFSET(InputPriceData!E$15,CalculationsAndCharts!$A151+$A$11,IF($C$7,8,0),1,1) -> 68.31 | G151: =OFFSET(InputPriceData!F$15,CalculationsAndCharts!$A151+$A$11,IF($C$7,8,0),1,1) -> 69.12 | L151: 1.05 | M151: =AVERAGE(OFFSET(L151,0,0,CandleStatControls!$A$17,1)) -> 1.384 | N151: 0.7586705202 | O151: 0.7586705202 | P151: =1/(L151/100)*O151/(100/CandleStatControls!$A$18) -> 2.89017341 | Q151: 1.05 | R151: 3 | S151: 0.24 | T151: 1 | U151: 0 | V151: 0 | W151: 3_1_0
A152: 120 | B152: =OFFSET(InputPriceData!B$15,CalculationsAndCharts!$A152+$A$11,0,1,1) -> 2014-06-24 | C152: =OFFSET(InputPriceData!G$15,CalculationsAndCharts!$A152+$A$11,IF($C$7,8,0),1,1) -> 155000 | D152: =OFFSET(InputPriceData!C$15,CalculationsAndCharts!$A152+$A$11,IF($C$7,8,0),1,1) -> 69.5 | E152: =OFFSET(InputPriceData!D$15,CalculationsAndCharts!$A152+$A$11,IF($C$7,8,0),1,1) -> 70.09 | F152: =OFFSET(InputPriceData!E$15,CalculationsAndCharts!$A152+$A$11,IF($C$7,8,0),1,1) -> 68.7 | G152: =OFFSET(InputPriceData!F$15,CalculationsAndCharts!$A152+$A$11,IF($C$7,8,0),1,1) -> 68.73 | L152: 1.39 | M152: =AVERAGE(OFFSET(L152,0,0,CandleStatControls!$A$17,1)) -> 1.353 | N152: 1.027346637 | O152: 1 | P152: =1/(L152/100)*O152/(100/CandleStatControls!$A$18) -> 2.877697842 | Q152: 0.59 | R152: 2 | S152: 1.36 | T152: 4 | U152: 0.8 | V152: 2 | W152: 2_4_2
A153: 121 | B153: =OFFSET(InputPriceData!B$15,CalculationsAndCharts!$A153+$A$11,0,1,1) -> 2014-06-23 | C153: =OFFSET(InputPriceData!G$15,CalculationsAndCharts!$A153+$A$11,IF($C$7,8,0),1,1) -> 290200 | D153: =OFFSET(InputPriceData!C$15,CalculationsAndCharts!$A153+$A$11,IF($C$7,8,0),1,1) -> 69.5 | E153: =OFFSET(InputPriceData!D$15,CalculationsAndCharts!$A153+$A$11,IF($C$7,8,0),1,1) -> 69.92 | F153: =OFFSET(InputPriceData!E$15,CalculationsAndCharts!$A153+$A$11,IF($C$7,8,0),1,1) -> 68.61 | G153: =OFFSET(InputPriceData!F$15,CalculationsAndCharts!$A153+$A$11,IF($C$7,8,0),1,1) -> 69.75 | L153: 1.31 | M153: =AVERAGE(OFFSET(L153,0,0,CandleStatControls!$A$17,1)) -> 1.769 | N153: 0.7405313737 | O153: 0.7405313737 | P153: =1/(L153/100)*O153/(100/CandleStatControls!$A$18) -> 2.2611645 | Q153: 0.42 | R153: 1 | S153: 0.17 | T153: 0 | U153: 0.89 | V153: 2 | W153: 1_0_2
A154: 122 | B154: =OFFSET(InputPriceData!B$15,CalculationsAndCharts!$A154+$A$11,0,1,1) -> 2014-06-20 | C154: =OFFSET(InputPriceData!G$15,CalculationsAndCharts!$A154+$A$11,IF($C$7,8,0),1,1) -> 523800 | D154: =OFFSET(InputPriceData!C$15,CalculationsAndCharts!$A154+$A$11,IF($C$7,8,0),1,1) -> 70.49 | E154: =OFFSET(InputPriceData!D$15,CalculationsAndCharts!$A154+$A$11,IF($C$7,8,0),1,1) -> 70.92 | F154: =OFFSET(InputPriceData!E$15,CalculationsAndCharts!$A154+$A$11,IF($C$7,8,0),1,1) -> 69.07 | G154: =OFFSET(InputPriceData!F$15,CalculationsAndCharts!$A154+$A$11,IF($C$7,8,0),1,1) -> 69.22 | L154: 1.85 | M154: =AVERAGE(OFFSET(L154,0,0,CandleStatControls!$A$17,1)) -> 1.968 | N154: 0.9400406504 | O154: 0.9400406504 | P154: =1/(L154/100)*O154/(100/CandleStatControls!$A$18) -> 2.032520325 | Q154: 0.43 | R154: 1 | S154: 1.7 | T154: 3 | U154: 1.42 | V154: 3 | W154: 1_3_3
A155: 123 | B155: =OFFSET(InputPriceData!B$15,CalculationsAndCharts!$A155+$A$11,0,1,1) -> 2014-06-19 | C155: =OFFSET(InputPriceData!G$15,CalculationsAndCharts!$A155+$A$11,IF($C$7,8,0),1,1) -> 195900 | D155: =OFFSET(InputPriceData!C$15,CalculationsAndCharts!$A155+$A$11,IF($C$7,8,0),1,1) -> 72.15 | E155: =OFFSET(InputPriceData!D$15,CalculationsAndCharts!$A155+$A$11,IF($C$7,8,0),1,1) -> 72.64 | F155: =OFFSET(InputPriceData!E$15,CalculationsAndCharts!$A155+$A$11,IF($C$7,8,0),1,1) -> 70.55 | G155: =OFFSET(InputPriceData!F$15,CalculationsAndCharts!$A155+$A$11,IF($C$7,8,0),1,1) -> 70.64 | L155: 2.09 | M155: =AVERAGE(OFFSET(L155,0,0,CandleStatControls!$A$17,1)) -> 1.877 | N155: 1.113478956 | O155: 1 | P155: =1/(L155/100)*O155/(100/CandleStatControls!$A$18) -> 1.913875598 | Q155: 0.49 | R155: 1 | S155: 2 | T155: 4 | U155: 1.6 | V155: 3 | W155: 1_4_3
A156: 124 | B156: =OFFSET(InputPriceData!B$15,CalculationsAndCharts!$A156+$A$11,0,1,1) -> 2014-06-18 | C156: =OFFSET(InputPriceData!G$15,CalculationsAndCharts!$A156+$A$11,IF($C$7,8,0),1,1) -> 159800 | D156: =OFFSET(InputPriceData!C$15,CalculationsAndCharts!$A156+$A$11,IF($C$7,8,0),1,1) -> 71.75 | E156: =OFFSET(InputPriceData!D$15,CalculationsAndCharts!$A156+$A$11,IF($C$7,8,0),1,1) -> 72.09 | F156: =OFFSET(InputPriceData!E$15,CalculationsAndCharts!$A156+$A$11,IF($C$7,8,0),1,1) -> 71.1 | G156: =OFFSET(InputPriceData!F$15,CalculationsAndCharts!$A156+$A$11,IF($C$7,8,0),1,1) -> 71.85 | L156: 0.99 | M156: =AVERAGE(OFFSET(L156,0,0,CandleStatControls!$A$17,1)) -> 1.87 | N156: 0.5294117647 | O156: 0.5294117647 | P156: =1/(L156/100)*O156/(100/CandleStatControls!$A$18) -> 2.139037433 | Q156: 0.34 | R156: 1 | S156: 0.24 | T156: 1 | U156: 0.65 | V156: 1 | W156: 1_1_1
A157: 125 | B157: =OFFSET(InputPriceData!B$15,CalculationsAndCharts!$A157+$A$11,0,1,1) -> 2014-06-17 | C157: =OFFSET(InputPriceData!G$15,CalculationsAndCharts!$A157+$A$11,IF($C$7,8,0),1,1) -> 208300 | D157: =OFFSET(InputPriceData!C$15,CalculationsAndCharts!$A157+$A$11,IF($C$7,8,0),1,1) -> 72.51 | E157: =OFFSET(InputPriceData!D$15,CalculationsAndCharts!$A157+$A$11,IF($C$7,8,0),1,1) -> 72.67 | F157: =OFFSET(InputPriceData!E$15,CalculationsAndCharts!$A157+$A$11,IF($C$7,8,0),1,1) -> 71.52 | G157: =OFFSET(InputPriceData!F$15,CalculationsAndCharts!$A157+$A$11,IF($C$7,8,0),1,1) -> 71.64 | L157: 1.15 | M157: =AVERAGE(OFFSET(L157,0,0,CandleStatControls!$A$17,1)) -> 1.854 | N157: 0.6202804746 | O157: 0.6202804746 | P157: =1/(L157/100)*O157/(100/CandleStatControls!$A$18) -> 2.157497303 | Q157: 0.16 | R157: 0 | S157: 1.03 | T157: 2 | U157: 0.99 | V157: 2 | W157: 0_2_2
A158: 126 | B158: =OFFSET(InputPriceData!B$15,CalculationsAndCharts!$A158+$A$11,0,1,1) -> 2014-06-16 | C158: =OFFSET(InputPriceData!G$15,CalculationsAndCharts!$A158+$A$11,IF($C$7,8,0),1,1) -> 106200 | D158: =OFFSET(InputPriceData!C$15,CalculationsAndCharts!$A158+$A$11,IF($C$7,8,0),1,1) -> 72.1 | E158: =OFFSET(InputPriceData!D$15,CalculationsAndCharts!$A158+$A$11,IF($C$7,8,0),1,1) -> 72.55 | F158: =OFFSET(InputPriceData!E$15,CalculationsAndCharts!$A158+$A$11,IF($C$7,8,0),1,1) -> 71.74 | G158: =OFFSET(InputPriceData!F$15,CalculationsAndCharts!$A158+$A$11,IF($C$7,8,0),1,1) -> 72.4 | L158: 0.81 | M158: =AVERAGE(OFFSET(L158,0,0,CandleStatControls!$A$17,1)) -> 1.807 | N158: 0.4482567792 | O158: 0.4482567792 | P158: =1/(L158/100)*O158/(100/CandleStatControls!$A$18) -> 2.213613724 | Q158: 0.45 | R158: 1 | S158: 0.15 | T158: 0 | U158: 0.36 | V158: 1 | W158: 1_0_1
A159: 127 | B159: =OFFSET(InputPriceData!B$15,CalculationsAndCharts!$A159+$A$11,0,1,1) -> 2014-06-13 | C159: =OFFSET(InputPriceData!G$15,CalculationsAndCharts!$A159+$A$11,IF($C$7,8,0),1,1) -> 125400 | D159: =OFFSET(InputPriceData!C$15,CalculationsAndCharts!$A159+$A$11,IF($C$7,8,0),1,1) -> 73.61 | E159: =OFFSET(InputPriceData!D$15,CalculationsAndCharts!$A159+$A$11,IF($C$7,8,0),1,1) -> 73.61 | F159: =OFFSET(InputPriceData!E$15,CalculationsAndCharts!$A159+$A$11,IF($C$7,8,0),1,1) -> 72.01 | G159: =OFFSET(InputPriceData!F$15,CalculationsAndCharts!$A159+$A$11,IF($C$7,8,0),1,1) -> 72.28 | L159: 1.6 | M159: =AVERAGE(OFFSET(L159,0,0,CandleStatControls!$A$17,1)) -> 1.813 | N159: 0.8825151682 | O159: 0.8825151682 | P159: =1/(L159/100)*O159/(100/CandleStatControls!$A$18) -> 2.206287921 | Q159: 0 | R159: 0 | S159: 1.33 | T159: 3 | U159: 1.6 | V159: 4 | W159: 0_3_4
A160: 128 | B160: =OFFSET(InputPriceData!B$15,CalculationsAndCharts!$A160+$A$11,0,1,1) -> 2014-06-12 | C160: =OFFSET(InputPriceData!G$15,CalculationsAndCharts!$A160+$A$11,IF($C$7,8,0),1,1) -> 196200 | D160: =OFFSET(InputPriceData!C$15,CalculationsAndCharts!$A160+$A$11,IF($C$7,8,0),1,1) -> 74.27 | E160: =OFFSET(InputPriceData!D$15,CalculationsAndCharts!$A160+$A$11,IF($C$7,8,0),1,1) -> 74.3 | F160: =OFFSET(InputPriceData!E$15,CalculationsAndCharts!$A160+$A$11,IF($C$7,8,0),1,1) -> 72.7 | G160: =OFFSET(InputPriceData!F$15,CalculationsAndCharts!$A160+$A$11,IF($C$7,8,0),1,1) -> 73.26 | L160: 1.6 | M160: =AVERAGE(OFFSET(L160,0,0,CandleStatControls!$A$17,1)) -> 1.76 | N160: 0.9090909091 | O160: 0.9090909091 | P160: =1/(L160/100)*O160/(100/CandleStatControls!$A$18) -> 2.272727273 | Q160: 0.03 | R160: 0 | S160: 1.04 | T160: 2 | U160: 1.57 | V160: 4 | W160: 0_2_4
A161: 129 | B161: =OFFSET(InputPriceData!B$15,CalculationsAndCharts!$A161+$A$11,0,1,1) -> 2014-06-11 | C161: =OFFSET(InputPriceData!G$15,CalculationsAndCharts!$A161+$A$11,IF($C$7,8,0),1,1) -> 306000 | D161: =OFFSET(InputPriceData!C$15,CalculationsAndCharts!$A161+$A$11,IF($C$7,8,0),1,1) -> 74.61 | E161: =OFFSET(InputPriceData!D$15,CalculationsAndCharts!$A161+$A$11,IF($C$7,8,0),1,1) -> 75.08 | F161: =OFFSET(InputPriceData!E$15,CalculationsAndCharts!$A161+$A$11,IF($C$7,8,0),1,1) -> 74.34 | G161: =OFFSET(InputPriceData!F$15,CalculationsAndCharts!$A161+$A$11,IF($C$7,8,0),1,1) -> 74.62 | L161: 0.74 | M161: =AVERAGE(OFFSET(L161,0,0,CandleStatControls!$A$17,1)) -> 1.674 | N161: 0.4420549582 | O161: 0.4420549582 | P161: =1/(L161/100)*O161/(100/CandleStatControls!$A$18) -> 2.38948626 | Q161: 0.47 | R161: 1 | S161: 0.46 | T161: 1 | U161: 0.27 | V161: 1 | W161: 1_1_1
A162: 130 | B162: =OFFSET(InputPriceData!B$15,CalculationsAndCharts!$A162+$A$11,0,1,1) -> 2014-06-10 | C162: =OFFSET(InputPriceData!G$15,CalculationsAndCharts!$A162+$A$11,IF($C$7,8,0),1,1) -> 413300 | D162: =OFFSET(InputPriceData!C$15,CalculationsAndCharts!$A162+$A$11,IF($C$7,8,0),1,1) -> 71.18 | E162: =OFFSET(InputPriceData!D$15,CalculationsAndCharts!$A162+$A$11,IF($C$7,8,0),1,1) -> 75.38 | F162: =OFFSET(InputPriceData!E$15,CalculationsAndCharts!$A162+$A$11,IF($C$7,8,0),1,1) -> 69.83 | G162: =OFFSET(InputPriceData!F$15,CalculationsAndCharts!$A162+$A$11,IF($C$7,8,0),1,1) -> 74.71 | L162: =E162-F162 -> 5.55 | M162: =AVERAGE(OFFSET(L162,0,0,CandleStatControls!$A$17,1)) -> 1.709 | N162: =L162/M162 -> 3.247513166 | O162: =IF(N162>1,1,N162) -> 1 | P162: =1/(L162/100)*O162/(100/CandleStatControls!$A$18) -> 0.7207207207 | Q162: =E162-D162 -> 4.2 | R162: =ROUND($P162*Q162,0) -> 3 | S162: =E162-G162 -> 0.67 | T162: =ROUND($P162*S162,0) -> 0 | U162: =D162-F162 -> 1.35 | V162: =ROUND($P162*U162,0) -> 1 | W162: =IF(L162=0,"0_0_0",R162 & "_" & T162 & "_" & V162) -> 3_0_1
A163: 131 | B163: =OFFSET(InputPriceData!B$15,CalculationsAndCharts!$A163+$A$11,0,1,1) -> 2014-06-09 | C163: =OFFSET(InputPriceData!G$15,CalculationsAndCharts!$A163+$A$11,IF($C$7,8,0),1,1) -> 305100 | D163: =OFFSET(InputPriceData!C$15,CalculationsAndCharts!$A163+$A$11,IF($C$7,8,0),1,1) -> 71.59 | E163: =OFFSET(InputPriceData!D$15,CalculationsAndCharts!$A163+$A$11,IF($C$7,8,0),1,1) -> 74.46 | F163: =OFFSET(InputPriceData!E$15,CalculationsAndCharts!$A163+$A$11,IF($C$7,8,0),1,1) -> 71.16 | G163: =OFFSET(InputPriceData!F$15,CalculationsAndCharts!$A163+$A$11,IF($C$7,8,0),1,1) -> 74.36 | L163: 3.3 | M163: =AVERAGE(OFFSET(L163,0,0,CandleStatControls!$A$17,1)) -> 1.338 | N163: 2.466367713 | O163: 1 | P163: =1/(L163/100)*O163/(100/CandleStatControls!$A$18) -> 1.212121212 | Q163: 2.87 | R163: 3 | S163: 0.1 | T163: 0 | U163: 0.43 | V163: 1 | W163: 3_0_1
A164: 132 | B164: =OFFSET(InputPriceData!B$15,CalculationsAndCharts!$A164+$A$11,0,1,1) -> 2014-06-06 | C164: =OFFSET(InputPriceData!G$15,CalculationsAndCharts!$A164+$A$11,IF($C$7,8,0),1,1) -> 206300 | D164: =OFFSET(InputPriceData!C$15,CalculationsAndCharts!$A164+$A$11,IF($C$7,8,0),1,1) -> 71.7 | E164: =OFFSET(InputPriceData!D$15,CalculationsAndCharts!$A164+$A$11,IF($C$7,8,0),1,1) -> 72.56 | F164: =OFFSET(InputPriceData!E$15,CalculationsAndCharts!$A164+$A$11,IF($C$7,8,0),1,1) -> 71.62 | G164: =OFFSET(InputPriceData!F$15,CalculationsAndCharts!$A164+$A$11,IF($C$7,8,0),1,1) -> 71.95 | L164: 0.94 | M164: =AVERAGE(OFFSET(L164,0,0,CandleStatControls!$A$17,1)) -> 1.096 | N164: 0.8576642336 | O164: 0.8576642336 | P164: =1/(L164/100)*O164/(100/CandleStatControls!$A$18) -> 3.649635036 | Q164: 0.86 | R164: 3 | S164: 0.61 | T164: 2 | U164: 0.08 | V164: 0 | W164: 3_2_0
A165: 133 | B165: =OFFSET(InputPriceData!B$15,CalculationsAndCharts!$A165+$A$11,0,1,1) -> 2014-06-05 | C165: =OFFSET(InputPriceData!G$15,CalculationsAndCharts!$A165+$A$11,IF($C$7,8,0),1,1) -> 170200 | D165: =OFFSET(InputPriceData!C$15,CalculationsAndCharts!$A165+$A$11,IF($C$7,8,0),1,1) -> 70.93 | E165: =OFFSET(InputPriceData!D$15,CalculationsAndCharts!$A165+$A$11,IF($C$7,8,0),1,1) -> 72.4 | F165: =OFFSET(InputPriceData!E$15,CalculationsAndCharts!$A165+$A$11,IF($C$7,8,0),1,1) -> 70.38 | G165: =OFFSET(InputPriceData!F$15,CalculationsAndCharts!$A165+$A$11,IF($C$7,8,0),1,1) -> 71.72 | L165: 2.02 | M165: =AVERAGE(OFFSET(L165,0,0,CandleStatControls!$A$17,1)) -> 1.244 | N165: 1.623794212 | O165: 1 | P165: =1/(L165/100)*O165/(100/CandleStatControls!$A$18) -> 1.98019802 | Q165: 1.47 | R165: 3 | S165: 0.68 | T165: 1 | U165: 0.55 | V165: 1 | W165: 3_1_1
A166: 134 | B166: =OFFSET(InputPriceData!B$15,CalculationsAndCharts!$A166+$A$11,0,1,1) -> 2014-06-04 | C166: =OFFSET(InputPriceData!G$15,CalculationsAndCharts!$A166+$A$11,IF($C$7,8,0),1,1) -> 112000 | D166: =OFFSET(InputPriceData!C$15,CalculationsAndCharts!$A166+$A$11,IF($C$7,8,0),1,1) -> 70.08 | E166: =OFFSET(InputPriceData!D$15,CalculationsAndCharts!$A166+$A$11,IF($C$7,8,0),1,1) -> 70.91 | F166: =OFFSET(InputPriceData!E$15,CalculationsAndCharts!$A166+$A$11,IF($C$7,8,0),1,1) -> 70.08 | G166: =OFFSET(InputPriceData!F$15,CalculationsAndCharts!$A166+$A$11,IF($C$7,8,0),1,1) -> 70.77 | L166: 0.83 | M166: =AVERAGE(OFFSET(L166,0,0,CandleStatControls!$A$17,1)) -> 1.238 | N166: 0.6704361874 | O166: 0.6704361874 | P166: =1/(L166/100)*O166/(100/CandleStatControls!$A$18) -> 3.231017771 | Q166: 0.83 | R166: 3 | S166: 0.14 | T166: 0 | U166: 0 | V166: 0 | W166: 3_0_0
A167: 135 | B167: =OFFSET(InputPriceData!B$15,CalculationsAndCharts!$A167+$A$11,0,1,1) -> 2014-06-03 | C167: =OFFSET(InputPriceData!G$15,CalculationsAndCharts!$A167+$A$11,IF($C$7,8,0),1,1) -> 200900 | D167: =OFFSET(InputPriceData!C$15,CalculationsAndCharts!$A167+$A$11,IF($C$7,8,0),1,1) -> 70.42 | E167: =OFFSET(InputPriceData!D$15,CalculationsAndCharts!$A167+$A$11,IF($C$7,8,0),1,1) -> 70.83 | F167: =OFFSET(InputPriceData!E$15,CalculationsAndCharts!$A167+$A$11,IF($C$7,8,0),1,1) -> 70.15 | G167: =OFFSET(InputPriceData!F$15,CalculationsAndCharts!$A167+$A$11,IF($C$7,8,0),1,1) -> 70.33 | L167: 0.68 | M167: =AVERAGE(OFFSET(L167,0,0,CandleStatControls!$A$17,1)) -> 1.427 | N167: 0.4765241766 | O167: 0.4765241766 | P167: =1/(L167/100)*O167/(100/CandleStatControls!$A$18) -> 2.803083392 | Q167: 0.41 | R167: 1 | S167: 0.5 | T167: 1 | U167: 0.27 | V167: 1 | W167: 1_1_1
A168: 136 | B168: =OFFSET(InputPriceData!B$15,CalculationsAndCharts!$A168+$A$11,0,1,1) -> 2014-06-02 | C168: =OFFSET(InputPriceData!G$15,CalculationsAndCharts!$A168+$A$11,IF($C$7,8,0),1,1) -> 171200 | D168: =OFFSET(InputPriceData!C$15,CalculationsAndCharts!$A168+$A$11,IF($C$7,8,0),1,1) -> 70.97 | E168: =OFFSET(InputPriceData!D$15,CalculationsAndCharts!$A168+$A$11,IF($C$7,8,0),1,1) -> 71.16 | F168: =OFFSET(InputPriceData!E$15,CalculationsAndCharts!$A168+$A$11,IF($C$7,8,0),1,1) -> 70.29 | G168: =OFFSET(InputPriceData!F$15,CalculationsAndCharts!$A168+$A$11,IF($C$7,8,0),1,1) -> 70.7 | L168: 0.87 | M168: =AVERAGE(OFFSET(L168,0,0,CandleStatControls!$A$17,1)) -> 1.456 | N168: 0.5975274725 | O168: 0.5975274725 | P168: =1/(L168/100)*O168/(100/CandleStatControls!$A$18) -> 2.747252747 | Q168: 0.19 | R168: 1 | S168: 0.46 | T168: 1 | U168: 0.68 | V168: 2 | W168: 1_1_2
A169: 137 | B169: =OFFSET(InputPriceData!B$15,CalculationsAndCharts!$A169+$A$11,0,1,1) -> 2014-05-30 | C169: =OFFSET(InputPriceData!G$15,CalculationsAndCharts!$A169+$A$11,IF($C$7,8,0),1,1) -> 168800 | D169: =OFFSET(InputPriceData!C$15,CalculationsAndCharts!$A169+$A$11,IF($C$7,8,0),1,1) -> 69.95 | E169: =OFFSET(InputPriceData!D$15,CalculationsAndCharts!$A169+$A$11,IF($C$7,8,0),1,1) -> 71 | F169: =OFFSET(InputPriceData!E$15,CalculationsAndCharts!$A169+$A$11,IF($C$7,8,0),1,1) -> 69.93 | G169: =OFFSET(InputPriceData!F$15,CalculationsAndCharts!$A169+$A$11,IF($C$7,8,0),1,1) -> 70.84 | L169: 1.07 | M169: =AVERAGE(OFFSET(L169,0,0,CandleStatControls!$A$17,1)) -> 1.448 | N169: 0.7389502762 | O169: 0.7389502762 | P169: =1/(L169/100)*O169/(100/CandleStatControls!$A$18) -> 2.762430939 | Q169: 1.05 | R169: 3 | S169: 0.16 | T169: 0 | U169: 0.02 | V169: 0 | W169: 3_0_0
A170: 138 | B170: =OFFSET(InputPriceData!B$15,CalculationsAndCharts!$A170+$A$11,0,1,1) -> 2014-05-29 | C170: =OFFSET(InputPriceData!G$15,CalculationsAndCharts!$A170+$A$11,IF($C$7,8,0),1,1) -> 193500 | D170: =OFFSET(InputPriceData!C$15,CalculationsAndCharts!$A170+$A$11,IF($C$7,8,0),1,1) -> 69.7 | E170: =OFFSET(InputPriceData!D$15,CalculationsAndCharts!$A170+$A$11,IF($C$7,8,0),1,1) -> 69.87 | F170: =OFFSET(InputPriceData!E$15,CalculationsAndCharts!$A170+$A$11,IF($C$7,8,0),1,1) -> 69.13 | G170: =OFFSET(InputPriceData!F$15,CalculationsAndCharts!$A170+$A$11,IF($C$7,8,0),1,1) -> 69.7 | L170: 0.74 | M170: =AVERAGE(OFFSET(L170,0,0,CandleStatControls!$A$17,1)) -> 1.525 | N170: 0.4852459016 | O170: 0.4852459016 | P170: =1/(L170/100)*O170/(100/CandleStatControls!$A$18) -> 2.62295082 | Q170: 0.17 | R170: 0 | S170: 0.17 | T170: 0 | U170: 0.57 | V170: 1 | W170: 0_0_1
A171: 139 | B171: =OFFSET(InputPriceData!B$15,CalculationsAndCharts!$A171+$A$11,0,1,1) -> 2014-05-28 | C171: =OFFSET(InputPriceData!G$15,CalculationsAndCharts!$A171+$A$11,IF($C$7,8,0),1,1) -> 243200 | D171: =OFFSET(InputPriceData!C$15,CalculationsAndCharts!$A171+$A$11,IF($C$7,8,0),1,1) -> 69.12 | E171: =OFFSET(InputPriceData!D$15,CalculationsAndCharts!$A171+$A$11,IF($C$7,8,0),1,1) -> 69.83 | F171: =OFFSET(InputPriceData!E$15,CalculationsAndCharts!$A171+$A$11,IF($C$7,8,0),1,1) -> 68.74 | G171: =OFFSET(InputPriceData!F$15,CalculationsAndCharts!$A171+$A$11,IF($C$7,8,0),1,1) -> 69.24 | L171: 1.09 | M171: =AVERAGE(OFFSET(L171,0,0,CandleStatControls!$A$17,1)) -> 1.606 | N171: 0.6787048568 | O171: 0.6787048568 | P171: =1/(L171/100)*O171/(100/CandleStatControls!$A$18) -> 2.490660025 | Q171: 0.71 | R171: 2 | S171: 0.59 | T171: 1 | U171: 0.38 | V171: 1 | W171: 2_1_1
A172: 140 | B172: =OFFSET(InputPriceData!B$15,CalculationsAndCharts!$A172+$A$11,0,1,1) -> 2014-05-27 | C172: =OFFSET(InputPriceData!G$15,CalculationsAndCharts!$A172+$A$11,IF($C$7,8,0),1,1) -> 152000 | D172: =OFFSET(InputPriceData!C$15,CalculationsAndCharts!$A172+$A$11,IF($C$7,8,0),1,1) -> 68.02 | E172: =OFFSET(InputPriceData!D$15,CalculationsAndCharts!$A172+$A$11,IF($C$7,8,0),1,1) -> 69.54 | F172: =OFFSET(InputPriceData!E$15,CalculationsAndCharts!$A172+$A$11,IF($C$7,8,0),1,1) -> 67.7 | G172: =OFFSET(InputPriceData!F$15,CalculationsAndCharts!$A172+$A$11,IF($C$7,8,0),1,1) -> 69.31 | L172: 1.84 | M172: =AVERAGE(OFFSET(L172,0,0,CandleStatControls!$A$17,1)) -> 1.661 | N172: 1.107766406 | O172: 1 | P172: =1/(L172/100)*O172/(100/CandleStatControls!$A$18) -> 2.173913043 | Q172: 1.52 | R172: 3 | S172: 0.23 | T172: 1 | U172: 0.32 | V172: 1 | W172: 3_1_1
A173: 141 | B173: =OFFSET(InputPriceData!B$15,CalculationsAndCharts!$A173+$A$11,0,1,1) -> 2014-05-23 | C173: =OFFSET(InputPriceData!G$15,CalculationsAndCharts!$A173+$A$11,IF($C$7,8,0),1,1) -> 81300 | D173: =OFFSET(InputPriceData!C$15,CalculationsAndCharts!$A173+$A$11,IF($C$7,8,0),1,1) -> 67.17 | E173: =OFFSET(InputPriceData!D$15,CalculationsAndCharts!$A173+$A$11,IF($C$7,8,0),1,1) -> 67.57 | F173: =OFFSET(InputPriceData!E$15,CalculationsAndCharts!$A173+$A$11,IF($C$7,8,0),1,1) -> 66.69 | G173: =OFFSET(InputPriceData!F$15,CalculationsAndCharts!$A173+$A$11,IF($C$7,8,0),1,1) -> 67.44 | L173: 0.88 | M173: =AVERAGE(OFFSET(L173,0,0,CandleStatControls!$A$17,1)) -> 1.695 | N173: 0.5191740413 | O173: 0.5191740413 | P173: =1/(L173/100)*O173/(100/CandleStatControls!$A$18) -> 2.359882006 | Q173: 0.4 | R173: 1 | S173: 0.13 | T173: 0 | U173: 0.48 | V173: 1 | W173: 1_0_1
A174: 142 | B174: =OFFSET(InputPriceData!B$15,CalculationsAndCharts!$A174+$A$11,0,1,1) -> 2014-05-22 | C174: =OFFSET(InputPriceData!G$15,CalculationsAndCharts!$A174+$A$11,IF($C$7,8,0),1,1) -> 204000 | D174: =OFFSET(InputPriceData!C$15,CalculationsAndCharts!$A174+$A$11,IF($C$7,8,0),1,1) -> 66.2 | E174: =OFFSET(InputPriceData!D$15,CalculationsAndCharts!$A174+$A$11,IF($C$7,8,0),1,1) -> 68.62 | F174: =OFFSET(InputPriceData!E$15,CalculationsAndCharts!$A174+$A$11,IF($C$7,8,0),1,1) -> 66.2 | G174: =OFFSET(InputPriceData!F$15,CalculationsAndCharts!$A174+$A$11,IF($C$7,8,0),1,1) -> 66.99 | L174: 2.42 | M174: =AVERAGE(OFFSET(L174,0,0,CandleStatControls!$A$17,1)) -> 1.823 | N174: 1.327482172 | O174: 1 | P174: =1/(L174/100)*O174/(100/CandleStatControls!$A$18) -> 1.652892562 | Q174: 2.42 | R174: 4 | S174: 1.63 | T174: 3 | U174: 0 | V174: 0 | W174: 4_3_0
A175: 143 | B175: =OFFSET(InputPriceData!B$15,CalculationsAndCharts!$A175+$A$11,0,1,1) -> 2014-05-21 | C175: =OFFSET(InputPriceData!G$15,CalculationsAndCharts!$A175+$A$11,IF($C$7,8,0),1,1) -> 163700 | D175: =OFFSET(InputPriceData!C$15,CalculationsAndCharts!$A175+$A$11,IF($C$7,8,0),1,1) -> 65.89 | E175: =OFFSET(InputPriceData!D$15,CalculationsAndCharts!$A175+$A$11,IF($C$7,8,0),1,1) -> 66.47 | F175: =OFFSET(InputPriceData!E$15,CalculationsAndCharts!$A175+$A$11,IF($C$7,8,0),1,1) -> 64.51 | G175: =OFFSET(InputPriceData!F$15,CalculationsAndCharts!$A175+$A$11,IF($C$7,8,0),1,1) -> 66.07 | L175: 1.96 | M175: =AVERAGE(OFFSET(L175,0,0,CandleStatControls!$A$17,1)) -> 1.762 | N175: 1.112372304 | O175: 1 | P175: =1/(L175/100)*O175/(100/CandleStatControls!$A$18) -> 2.040816327 | Q175: 0.58 | R175: 1 | S175: 0.4 | T175: 1 | U175: 1.38 | V175: 3 | W175: 1_1_3
A176: 144 | B176: =OFFSET(InputPriceData!B$15,CalculationsAndCharts!$A176+$A$11,0,1,1) -> 2014-05-20 | C176: =OFFSET(InputPriceData!G$15,CalculationsAndCharts!$A176+$A$11,IF($C$7,8,0),1,1) -> 334300 | D176: =OFFSET(InputPriceData!C$15,CalculationsAndCharts!$A176+$A$11,IF($C$7,8,0),1,1) -> 65.87 | E176: =OFFSET(InputPriceData!D$15,CalculationsAndCharts!$A176+$A$11,IF($C$7,8,0),1,1) -> 66.49 | F176: =OFFSET(InputPriceData!E$15,CalculationsAndCharts!$A176+$A$11,IF($C$7,8,0),1,1) -> 63.77 | G176: =OFFSET(InputPriceData!F$15,CalculationsAndCharts!$A176+$A$11,IF($C$7,8,0),1,1) -> 65.57 | L176: 2.72 | M176: =AVERAGE(OFFSET(L176,0,0,CandleStatControls!$A$17,1)) -> 1.695 | N176: 1.604719764 | O176: 1 | P176: =1/(L176/100)*O176/(100/CandleStatControls!$A$18) -> 1.470588235 | Q176: 0.62 | R176: 1 | S176: 0.92 | T176: 1 | U176: 2.1 | V176: 3 | W176: 1_1_3
A177: 145 | B177: =OFFSET(InputPriceData!B$15,CalculationsAndCharts!$A177+$A$11,0,1,1) -> 2014-05-19 | C177: =OFFSET(InputPriceData!G$15,CalculationsAndCharts!$A177+$A$11,IF($C$7,8,0),1,1) -> 126500 | D177: =OFFSET(InputPriceData!C$15,CalculationsAndCharts!$A177+$A$11,IF($C$7,8,0),1,1) -> 66.15 | E177: =OFFSET(InputPriceData!D$15,CalculationsAndCharts!$A177+$A$11,IF($C$7,8,0),1,1) -> 66.67 | F177: =OFFSET(InputPriceData!E$15,CalculationsAndCharts!$A177+$A$11,IF($C$7,8,0),1,1) -> 65.7 | G177: =OFFSET(InputPriceData!F$15,CalculationsAndCharts!$A177+$A$11,IF($C$7,8,0),1,1) -> 66.3 | L177: 0.97 | M177: =AVERAGE(OFFSET(L177,0,0,CandleStatControls!$A$17,1)) -> 1.532 | N177: 0.6331592689 | O177: 0.6331592689 | P177: =1/(L177/100)*O177/(100/CandleStatControls!$A$18) -> 2.610966057 | Q177: 0.52 | R177: 1 | S177: 0.37 | T177: 1 | U177: 0.45 | V177: 1 | W177: 1_1_1
A178: 146 | B178: =OFFSET(InputPriceData!B$15,CalculationsAndCharts!$A178+$A$11,0,1,1) -> 2014-05-16 | C178: =OFFSET(InputPriceData!G$15,CalculationsAndCharts!$A178+$A$11,IF($C$7,8,0),1,1) -> 129000 | D178: =OFFSET(InputPriceData!C$15,CalculationsAndCharts!$A178+$A$11,IF($C$7,8,0),1,1) -> 66.52 | E178: =OFFSET(InputPriceData!D$15,CalculationsAndCharts!$A178+$A$11,IF($C$7,8,0),1,1) -> 66.52 | F178: =OFFSET(InputPriceData!E$15,CalculationsAndCharts!$A178+$A$11,IF($C$7,8,0),1,1) -> 65.73 | G178: =OFFSET(InputPriceData!F$15,CalculationsAndCharts!$A178+$A$11,IF($C$7,8,0),1,1) -> 66.45 | L178: 0.79 | M178: =AVERAGE(OFFSET(L178,0,0,CandleStatControls!$A$17,1)) -> 1.58 | N178: 0.5 | O178: 0.5 | P178: =1/(L178/100)*O178/(100/CandleStatControls!$A$18) -> 2.53164557 | Q178: 0 | R178: 0 | S178: 0.07 | T178: 0 | U178: 0.79 | V178: 2 | W178: 0_0_2
A179: 147 | B179: =OFFSET(InputPriceData!B$15,CalculationsAndCharts!$A179+$A$11,0,1,1) -> 2014-05-15 | C179: =OFFSET(InputPriceData!G$15,CalculationsAndCharts!$A179+$A$11,IF($C$7,8,0),1,1) -> 214200 | D179: =OFFSET(InputPriceData!C$15,CalculationsAndCharts!$A179+$A$11,IF($C$7,8,0),1,1) -> 66.77 | E179: =OFFSET(InputPriceData!D$15,CalculationsAndCharts!$A179+$A$11,IF($C$7,8,0),1,1) -> 66.93 | F179: =OFFSET(InputPriceData!E$15,CalculationsAndCharts!$A179+$A$11,IF($C$7,8,0),1,1) -> 65.09 | G179: =OFFSET(InputPriceData!F$15,CalculationsAndCharts!$A179+$A$11,IF($C$7,8,0),1,1) -> 66.66 | L179: 1.84 | M179: =AVERAGE(OFFSET(L179,0,0,CandleStatControls!$A$17,1)) -> 1.671 | N179: 1.101137044 | O179: 1 | P179: =1/(L179/100)*O179/(100/CandleStatControls!$A$18) -> 2.173913043 | Q179: 0.16 | R179: 0 | S179: 0.27 | T179: 1 | U179: 1.68 | V179: 4 | W179: 0_1_4
A180: 148 | B180: =OFFSET(InputPriceData!B$15,CalculationsAndCharts!$A180+$A$11,0,1,1) -> 2014-05-14 | C180: =OFFSET(InputPriceData!G$15,CalculationsAndCharts!$A180+$A$11,IF($C$7,8,0),1,1) -> 143100 | D180: =OFFSET(InputPriceData!C$15,CalculationsAndCharts!$A180+$A$11,IF($C$7,8,0),1,1) -> 68.5 | E180: =OFFSET(InputPriceData!D$15,CalculationsAndCharts!$A180+$A$11,IF($C$7,8,0),1,1) -> 68.52 | F180: =OFFSET(InputPriceData!E$15,CalculationsAndCharts!$A180+$A$11,IF($C$7,8,0),1,1) -> 66.97 | G180: =OFFSET(InputPriceData!F$15,CalculationsAndCharts!$A180+$A$11,IF($C$7,8,0),1,1) -> 67.02 | L180: 1.55 | M180: =AVERAGE(OFFSET(L180,0,0,CandleStatControls!$A$17,1)) -> 1.626 | N180: 0.9532595326 | O180: 0.9532595326 | P180: =1/(L180/100)*O180/(100/CandleStatControls!$A$18) -> 2.4600246 | Q180: 0.02 | R180: 0 | S180: 1.5 | T180: 4 | U180: 1.53 | V180: 4 | W180: 0_4_4
A181: 149 | B181: =OFFSET(InputPriceData!B$15,CalculationsAndCharts!$A181+$A$11,0,1,1) -> 2014-05-13 | C181: =OFFSET(InputPriceData!G$15,CalculationsAndCharts!$A181+$A$11,IF($C$7,8,0),1,1) -> 225400 | D181: =OFFSET(InputPriceData!C$15,CalculationsAndCharts!$A181+$A$11,IF($C$7,8,0),1,1) -> 69.42 | E181: =OFFSET(InputPriceData!D$15,CalculationsAndCharts!$A181+$A$11,IF($C$7,8,0),1,1) -> 70.35 | F181: =OFFSET(InputPriceData!E$15,CalculationsAndCharts!$A181+$A$11,IF($C$7,8,0),1,1) -> 68.71 | G181: =OFFSET(InputPriceData!F$15,CalculationsAndCharts!$A181+$A$11,IF($C$7,8,0),1,1) -> 68.77 | L181: 1.64 | M181: =AVERAGE(OFFSET(L181,0,0,CandleStatControls!$A$17,1)) -> 1.641 | N181: 0.9993906155 | O181: 0.9993906155 | P181: =1/(L181/100)*O181/(100/CandleStatControls!$A$18) -> 2.437538087 | Q181: 0.93 | R181: 2 | S181: 1.58 | T181: 4 | U181: 0.71 | V181: 2 | W181: 2_4_2
A182: 150 | B182: =OFFSET(InputPriceData!B$15,CalculationsAndCharts!$A182+$A$11,0,1,1) -> 2014-05-12 | C182: =OFFSET(InputPriceData!G$15,CalculationsAndCharts!$A182+$A$11,IF($C$7,8,0),1,1) -> 209400 | D182: =OFFSET(InputPriceData!C$15,CalculationsAndCharts!$A182+$A$11,IF($C$7,8,0),1,1) -> 68.23 | E182: =OFFSET(InputPriceData!D$15,CalculationsAndCharts!$A182+$A$11,IF($C$7,8,0),1,1) -> 69.96 | F182: =OFFSET(InputPriceData!E$15,CalculationsAndCharts!$A182+$A$11,IF($C$7,8,0),1,1) -> 67.78 | G182: =OFFSET(InputPriceData!F$15,CalculationsAndCharts!$A182+$A$11,IF($C$7,8,0),1,1) -> 69.38 | L182: 2.18 | M182: =AVERAGE(OFFSET(L182,0,0,CandleStatControls!$A$17,1)) -> 1.617 | N182: 1.348175634 | O182: 1 | P182: =1/(L182/100)*O182/(100/CandleStatControls!$A$18) -> 1.834862385 | Q182: 1.73 | R182: 3 | S182: 0.58 | T182: 1 | U182: 0.45 | V182: 1 | W182: 3_1_1
A183: 151 | B183: =OFFSET(InputPriceData!B$15,CalculationsAndCharts!$A183+$A$11,0,1,1) -> 2014-05-09 | C183: =OFFSET(InputPriceData!G$15,CalculationsAndCharts!$A183+$A$11,IF($C$7,8,0),1,1) -> 159700 | D183: =OFFSET(InputPriceData!C$15,CalculationsAndCharts!$A183+$A$11,IF($C$7,8,0),1,1) -> 66.11 | E183: =OFFSET(InputPriceData!D$15,CalculationsAndCharts!$A183+$A$11,IF($C$7,8,0),1,1) -> 68.05 | F183: =OFFSET(InputPriceData!E$15,CalculationsAndCharts!$A183+$A$11,IF($C$7,8,0),1,1) -> 65.89 | G183: =OFFSET(InputPriceData!F$15,CalculationsAndCharts!$A183+$A$11,IF($C$7,8,0),1,1) -> 67.99 | L183: 2.16 | M183: =AVERAGE(OFFSET(L183,0,0,CandleStatControls!$A$17,1)) -> 1.643 | N183: 1.31466829 | O183: 1 | P183: =1/(L183/100)*O183/(100/CandleStatControls!$A$18) -> 1.851851852 | Q183: 1.94 | R183: 4 | S183: 0.06 | T183: 0 | U183: 0.22 | V183: 0 | W183: 4_0_0
A184: 152 | B184: =OFFSET(InputPriceData!B$15,CalculationsAndCharts!$A184+$A$11,0,1,1) -> 2014-05-08 | C184: =OFFSET(InputPriceData!G$15,CalculationsAndCharts!$A184+$A$11,IF($C$7,8,0),1,1) -> 157700 | D184: =OFFSET(InputPriceData!C$15,CalculationsAndCharts!$A184+$A$11,IF($C$7,8,0),1,1) -> 66.96 | E184: =OFFSET(InputPriceData!D$15,CalculationsAndCharts!$A184+$A$11,IF($C$7,8,0),1,1) -> 68.07 | F184: =OFFSET(InputPriceData!E$15,CalculationsAndCharts!$A184+$A$11,IF($C$7,8,0),1,1) -> 66.26 | G184: =OFFSET(InputPriceData!F$15,CalculationsAndCharts!$A184+$A$11,IF($C$7,8,0),1,1) -> 66.35 | L184: 1.81 | M184: =AVERAGE(OFFSET(L184,0,0,CandleStatControls!$A$17,1)) -> 1.558 | N184: 1.161745828 | O184: 1 | P184: =1/(L184/100)*O184/(100/CandleStatControls!$A$18) -> 2.209944751 | Q184: 1.11 | R184: 2 | S184: 1.72 | T184: 4 | U184: 0.7 | V184: 2 | W184: 2_4_2
A185: 153 | B185: =OFFSET(InputPriceData!B$15,CalculationsAndCharts!$A185+$A$11,0,1,1) -> 2014-05-07 | C185: =OFFSET(InputPriceData!G$15,CalculationsAndCharts!$A185+$A$11,IF($C$7,8,0),1,1) -> 264800 | D185: =OFFSET(InputPriceData!C$15,CalculationsAndCharts!$A185+$A$11,IF($C$7,8,0),1,1) -> 67.34 | E185: =OFFSET(InputPriceData!D$15,CalculationsAndCharts!$A185+$A$11,IF($C$7,8,0),1,1) -> 67.34 | F185: =OFFSET(InputPriceData!E$15,CalculationsAndCharts!$A185+$A$11,IF($C$7,8,0),1,1) -> 66.05 | G185: =OFFSET(InputPriceData!F$15,CalculationsAndCharts!$A185+$A$11,IF($C$7,8,0),1,1) -> 66.86 | L185: 1.29 | M185: =AVERAGE(OFFSET(L185,0,0,CandleStatControls!$A$17,1)) -> 1.519 | N185: 0.849242923 | O185: 0.849242923 | P185: =1/(L185/100)*O185/(100/CandleStatControls!$A$18) -> 2.633311389 | Q185: 0 | R185: 0 | S185: 0.48 | T185: 1 | U185: 1.29 | V185: 3 | W185: 0_1_3
A186: 154 | B186: =OFFSET(InputPriceData!B$15,CalculationsAndCharts!$A186+$A$11,0,1,1) -> 2014-05-06 | C186: =OFFSET(InputPriceData!G$15,CalculationsAndCharts!$A186+$A$11,IF($C$7,8,0),1,1) -> 204600 | D186: =OFFSET(InputPriceData!C$15,CalculationsAndCharts!$A186+$A$11,IF($C$7,8,0),1,1) -> 67.36 | E186: =OFFSET(InputPriceData!D$15,CalculationsAndCharts!$A186+$A$11,IF($C$7,8,0),1,1) -> 67.72 | F186: =OFFSET(InputPriceData!E$15,CalculationsAndCharts!$A186+$A$11,IF($C$7,8,0),1,1) -> 66.63 | G186: =OFFSET(InputPriceData!F$15,CalculationsAndCharts!$A186+$A$11,IF($C$7,8,0),1,1) -> 67.07 | L186: 1.09 | M186: =AVERAGE(OFFSET(L186,0,0,CandleStatControls!$A$17,1)) -> 1.486 | N186: 0.733512786 | O186: 0.733512786 | P186: =1/(L186/100)*O186/(100/CandleStatControls!$A$18) -> 2.69179004 | Q186: 0.36 | R186: 1 | S186: 0.65 | T186: 2 | U186: 0.73 | V186: 2 | W186: 1_2_2
A187: 155 | B187: =OFFSET(InputPriceData!B$15,CalculationsAndCharts!$A187+$A$11,0,1,1) -> 2014-05-05 | C187: =OFFSET(InputPriceData!G$15,CalculationsAndCharts!$A187+$A$11,IF($C$7,8,0),1,1) -> 183500 | D187: =OFFSET(InputPriceData!C$15,CalculationsAndCharts!$A187+$A$11,IF($C$7,8,0),1,1) -> 67.13 | E187: =OFFSET(InputPriceData!D$15,CalculationsAndCharts!$A187+$A$11,IF($C$7,8,0),1,1) -> 67.93 | F187: =OFFSET(InputPriceData!E$15,CalculationsAndCharts!$A187+$A$11,IF($C$7,8,0),1,1) -> 66.48 | G187: =OFFSET(InputPriceData!F$15,CalculationsAndCharts!$A187+$A$11,IF($C$7,8,0),1,1) -> 67.47 | L187: 1.45 | M187: =AVERAGE(OFFSET(L187,0,0,CandleStatControls!$A$17,1)) -> 1.522 | N187: 0.9526938239 | O187: 0.9526938239 | P187: =1/(L187/100)*O187/(100/CandleStatControls!$A$18) -> 2.628120894 | Q187: 0.8 | R187: 2 | S187: 0.46 | T187: 1 | U187: 0.65 | V187: 2 | W187: 2_1_2
A188: 156 | B188: =OFFSET(InputPriceData!B$15,CalculationsAndCharts!$A188+$A$11,0,1,1) -> 2014-05-02 | C188: =OFFSET(InputPriceData!G$15,CalculationsAndCharts!$A188+$A$11,IF($C$7,8,0),1,1) -> 187400 | D188: =OFFSET(InputPriceData!C$15,CalculationsAndCharts!$A188+$A$11,IF($C$7,8,0),1,1) -> 68.17 | E188: =OFFSET(InputPriceData!D$15,CalculationsAndCharts!$A188+$A$11,IF($C$7,8,0),1,1) -> 69.08 | F188: =OFFSET(InputPriceData!E$15,CalculationsAndCharts!$A188+$A$11,IF($C$7,8,0),1,1) -> 67.38 | G188: =OFFSET(InputPriceData!F$15,CalculationsAndCharts!$A188+$A$11,IF($C$7,8,0),1,1) -> 67.47 | L188: 1.7 | M188: =AVERAGE(OFFSET(L188,0,0,CandleStatControls!$A$17,1)) -> 1.47 | N188: 1.156462585 | O188: 1 | P188: =1/(L188/100)*O188/(100/CandleStatControls!$A$18) -> 2.352941176 | Q188: 0.91 | R188: 2 | S188: 1.61 | T188: 4 | U188: 0.79 | V188: 2 | W188: 2_4_2
A189: 157 | B189: =OFFSET(InputPriceData!B$15,CalculationsAndCharts!$A189+$A$11,0,1,1) -> 2014-05-01 | C189: =OFFSET(InputPriceData!G$15,CalculationsAndCharts!$A189+$A$11,IF($C$7,8,0),1,1) -> 190300 | D189: =OFFSET(InputPriceData!C$15,CalculationsAndCharts!$A189+$A$11,IF($C$7,8,0),1,1) -> 68.01 | E189: =OFFSET(InputPriceData!D$15,CalculationsAndCharts!$A189+$A$11,IF($C$7,8,0),1,1) -> 68.37 | F189: =OFFSET(InputPriceData!E$15,CalculationsAndCharts!$A189+$A$11,IF($C$7,8,0),1,1) -> 66.98 | G189: =OFFSET(InputPriceData!F$15,CalculationsAndCharts!$A189+$A$11,IF($C$7,8,0),1,1) -> 68.04 | L189: 1.39 | M189: =AVERAGE(OFFSET(L189,0,0,CandleStatControls!$A$17,1)) -> 1.427 | N189: 0.9740714786 | O189: 0.9740714786 | P189: =1/(L189/100)*O189/(100/CandleStatControls!$A$18) -> 2.803083392 | Q189: 0.36 | R189: 1 | S189: 0.33 | T189: 1 | U189: 1.03 | V189: 3 | W189: 1_1_3
A190: 158 | B190: =OFFSET(InputPriceData!B$15,CalculationsAndCharts!$A190+$A$11,0,1,1) -> 2014-04-30 | C190: =OFFSET(InputPriceData!G$15,CalculationsAndCharts!$A190+$A$11,IF($C$7,8,0),1,1) -> 181200 | D190: =OFFSET(InputPriceData!C$15,CalculationsAndCharts!$A190+$A$11,IF($C$7,8,0),1,1) -> 67.22 | E190: =OFFSET(InputPriceData!D$15,CalculationsAndCharts!$A190+$A$11,IF($C$7,8,0),1,1) -> 68.33 | F190: =OFFSET(InputPriceData!E$15,CalculationsAndCharts!$A190+$A$11,IF($C$7,8,0),1,1) -> 66.63 | G190: =OFFSET(InputPriceData!F$15,CalculationsAndCharts!$A190+$A$11,IF($C$7,8,0),1,1) -> 68.28 | L190: 1.7 | M190: =AVERAGE(OFFSET(L190,0,0,CandleStatControls!$A$17,1)) -> 1.502 | N190: 1.131824234 | O190: 1 | P190: =1/(L190/100)*O190/(100/CandleStatControls!$A$18) -> 2.352941176 | Q190: 1.11 | R190: 3 | S190: 0.05 | T190: 0 | U190: 0.59 | V190: 1 | W190: 3_0_1
A191: 159 | B191: =OFFSET(InputPriceData!B$15,CalculationsAndCharts!$A191+$A$11,0,1,1) -> 2014-04-29 | C191: =OFFSET(InputPriceData!G$15,CalculationsAndCharts!$A191+$A$11,IF($C$7,8,0),1,1) -> 187600 | D191: =OFFSET(InputPriceData!C$15,CalculationsAndCharts!$A191+$A$11,IF($C$7,8,0),1,1) -> 67.39 | E191: =OFFSET(InputPriceData!D$15,CalculationsAndCharts!$A191+$A$11,IF($C$7,8,0),1,1) -> 68.12 | F191: =OFFSET(InputPriceData!E$15,CalculationsAndCharts!$A191+$A$11,IF($C$7,8,0),1,1) -> 66.72 | G191: =OFFSET(InputPriceData!F$15,CalculationsAndCharts!$A191+$A$11,IF($C$7,8,0),1,1) -> 67.44 | L191: 1.4 | M191: =AVERAGE(OFFSET(L191,0,0,CandleStatControls!$A$17,1)) -> 1.535 | N191: 0.9120521173 | O191: 0.9120521173 | P191: =1/(L191/100)*O191/(100/CandleStatControls!$A$18) -> 2.605863192 | Q191: 0.73 | R191: 2 | S191: 0.68 | T191: 2 | U191: 0.67 | V191: 2 | W191: 2_2_2
A192: 160 | B192: =OFFSET(InputPriceData!B$15,CalculationsAndCharts!$A192+$A$11,0,1,1) -> 2014-04-28 | C192: =OFFSET(InputPriceData!G$15,CalculationsAndCharts!$A192+$A$11,IF($C$7,8,0),1,1) -> 272500 | D192: =OFFSET(InputPriceData!C$15,CalculationsAndCharts!$A192+$A$11,IF($C$7,8,0),1,1) -> 65.25 | E192: =OFFSET(InputPriceData!D$15,CalculationsAndCharts!$A192+$A$11,IF($C$7,8,0),1,1) -> 67.69 | F192: =OFFSET(InputPriceData!E$15,CalculationsAndCharts!$A192+$A$11,IF($C$7,8,0),1,1) -> 65.25 | G192: =OFFSET(InputPriceData!F$15,CalculationsAndCharts!$A192+$A$11,IF($C$7,8,0),1,1) -> 67.24 | L192: 2.44 | M192: =AVERAGE(OFFSET(L192,0,0,CandleStatControls!$A$17,1)) -> 1.56 | N192: 1.564102564 | O192: 1 | P192: =1/(L192/100)*O192/(100/CandleStatControls!$A$18) -> 1.639344262 | Q192: 2.44 | R192: 4 | S192: 0.45 | T192: 1 | U192: 0 | V192: 0 | W192: 4_1_0
A193: 161 | B193: =OFFSET(InputPriceData!B$15,CalculationsAndCharts!$A193+$A$11,0,1,1) -> 2014-04-25 | C193: =OFFSET(InputPriceData!G$15,CalculationsAndCharts!$A193+$A$11,IF($C$7,8,0),1,1) -> 124000 | D193: =OFFSET(InputPriceData!C$15,CalculationsAndCharts!$A193+$A$11,IF($C$7,8,0),1,1) -> 65.76 | E193: =OFFSET(InputPriceData!D$15,CalculationsAndCharts!$A193+$A$11,IF($C$7,8,0),1,1) -> 65.78 | F193: =OFFSET(InputPriceData!E$15,CalculationsAndCharts!$A193+$A$11,IF($C$7,8,0),1,1) -> 64.47 | G193: =OFFSET(InputPriceData!F$15,CalculationsAndCharts!$A193+$A$11,IF($C$7,8,0),1,1) -> 64.81 | L193: 1.31 | M193: =AVERAGE(OFFSET(L193,0,0,CandleStatControls!$A$17,1)) -> 1.508 | N193: 0.8687002653 | O193: 0.8687002653 | P193: =1/(L193/100)*O193/(100/CandleStatControls!$A$18) -> 2.652519894 | Q193: 0.02 | R193: 0 | S193: 0.97 | T193: 3 | U193: 1.29 | V193: 3 | W193: 0_3_3
A194: 162 | B194: =OFFSET(InputPriceData!B$15,CalculationsAndCharts!$A194+$A$11,0,1,1) -> 2014-04-24 | C194: =OFFSET(InputPriceData!G$15,CalculationsAndCharts!$A194+$A$11,IF($C$7,8,0),1,1) -> 93900 | D194: =OFFSET(InputPriceData!C$15,CalculationsAndCharts!$A194+$A$11,IF($C$7,8,0),1,1) -> 66.13 | E194: =OFFSET(InputPriceData!D$15,CalculationsAndCharts!$A194+$A$11,IF($C$7,8,0),1,1) -> 66.71 | F194: =OFFSET(InputPriceData!E$15,CalculationsAndCharts!$A194+$A$11,IF($C$7,8,0),1,1) -> 65.29 | G194: =OFFSET(InputPriceData!F$15,CalculationsAndCharts!$A194+$A$11,IF($C$7,8,0),1,1) -> 66.18 | L194: 1.42 | M194: =AVERAGE(OFFSET(L194,0,0,CandleStatControls!$A$17,1)) -> 1.604 | N194: 0.885286783 | O194: 0.885286783 | P194: =1/(L194/100)*O194/(100/CandleStatControls!$A$18) -> 2.493765586 | Q194: 0.58 | R194: 1 | S194: 0.53 | T194: 1 | U194: 0.84 | V194: 2 | W194: 1_1_2
A195: 163 | B195: =OFFSET(InputPriceData!B$15,CalculationsAndCharts!$A195+$A$11,0,1,1) -> 2014-04-23 | C195: =OFFSET(InputPriceData!G$15,CalculationsAndCharts!$A195+$A$11,IF($C$7,8,0),1,1) -> 146300 | D195: =OFFSET(InputPriceData!C$15,CalculationsAndCharts!$A195+$A$11,IF($C$7,8,0),1,1) -> 65.83 | E195: =OFFSET(InputPriceData!D$15,CalculationsAndCharts!$A195+$A$11,IF($C$7,8,0),1,1) -> 66.38 | F195: =OFFSET(InputPriceData!E$15,CalculationsAndCharts!$A195+$A$11,IF($C$7,8,0),1,1) -> 65.42 | G195: =OFFSET(InputPriceData!F$15,CalculationsAndCharts!$A195+$A$11,IF($C$7,8,0),1,1) -> 65.88 | L195: 0.96 | M195: =AVERAGE(OFFSET(L195,0,0,CandleStatControls!$A$17,1)) -> 1.548 | N195: 0.6201550388 | O195: 0.6201550388 | P195: =1/(L195/100)*O195/(100/CandleStatControls!$A$18) -> 2.583979328 | Q195: 0.55 | R195: 1 | S195: 0.5 | T195: 1 | U195: 0.41 | V195: 1 | W195: 1_1_1
A196: 164 | B196: =OFFSET(InputPriceData!B$15,CalculationsAndCharts!$A196+$A$11,0,1,1) -> 2014-04-22 | C196: =OFFSET(InputPriceData!G$15,CalculationsAndCharts!$A196+$A$11,IF($C$7,8,0),1,1) -> 98400 | D196: =OFFSET(InputPriceData!C$15,CalculationsAndCharts!$A196+$A$11,IF($C$7,8,0),1,1) -> 66.35 | E196: =OFFSET(InputPriceData!D$15,CalculationsAndCharts!$A196+$A$11,IF($C$7,8,0),1,1) -> 67.22 | F196: =OFFSET(InputPriceData!E$15,CalculationsAndCharts!$A196+$A$11,IF($C$7,8,0),1,1) -> 65.77 | G196: =OFFSET(InputPriceData!F$15,CalculationsAndCharts!$A196+$A$11,IF($C$7,8,0),1,1) -> 65.99 | L196: 1.45 | M196: =AVERAGE(OFFSET(L196,0,0,CandleStatControls!$A$17,1)) -> 1.648 | N196: 0.8798543689 | O196: 0.8798543689 | P196: =1/(L196/100)*O196/(100/CandleStatControls!$A$18) -> 2.427184466 | Q196: 0.87 | R196: 2 | S196: 1.23 | T196: 3 | U196: 0.58 | V196: 1 | W196: 2_3_1
A197: 165 | B197: =OFFSET(InputPriceData!B$15,CalculationsAndCharts!$A197+$A$11,0,1,1) -> 2014-04-21 | C197: =OFFSET(InputPriceData!G$15,CalculationsAndCharts!$A197+$A$11,IF($C$7,8,0),1,1) -> 72000 | D197: =OFFSET(InputPriceData!C$15,CalculationsAndCharts!$A197+$A$11,IF($C$7,8,0),1,1) -> 66.32 | E197: =OFFSET(InputPriceData!D$15,CalculationsAndCharts!$A197+$A$11,IF($C$7,8,0),1,1) -> 66.75 | F197: =OFFSET(InputPriceData!E$15,CalculationsAndCharts!$A197+$A$11,IF($C$7,8,0),1,1) -> 65.82 | G197: =OFFSET(InputPriceData!F$15,CalculationsAndCharts!$A197+$A$11,IF($C$7,8,0),1,1) -> 66.44 | L197: 0.93 | M197: =AVERAGE(OFFSET(L197,0,0,CandleStatControls!$A$17,1)) -> 1.629 | N197: 0.5709023941 | O197: 0.5709023941 | P197: =1/(L197/100)*O197/(100/CandleStatControls!$A$18) -> 2.455494168 | Q197: 0.43 | R197: 1 | S197: 0.31 | T197: 1 | U197: 0.5 | V197: 1 | W197: 1_1_1
A198: 166 | B198: =OFFSET(InputPriceData!B$15,CalculationsAndCharts!$A198+$A$11,0,1,1) -> 2014-04-17 | C198: =OFFSET(InputPriceData!G$15,CalculationsAndCharts!$A198+$A$11,IF($C$7,8,0),1,1) -> 119200 | D198: =OFFSET(InputPriceData!C$15,CalculationsAndCharts!$A198+$A$11,IF($C$7,8,0),1,1) -> 65.79 | E198: =OFFSET(InputPriceData!D$15,CalculationsAndCharts!$A198+$A$11,IF($C$7,8,0),1,1) -> 66.56 | F198: =OFFSET(InputPriceData!E$15,CalculationsAndCharts!$A198+$A$11,IF($C$7,8,0),1,1) -> 65.29 | G198: =OFFSET(InputPriceData!F$15,CalculationsAndCharts!$A198+$A$11,IF($C$7,8,0),1,1) -> 66.15 | L198: 1.27 | M198: =AVERAGE(OFFSET(L198,0,0,CandleStatControls!$A$17,1)) -> 1.768 | N198: 0.7183257919 | O198: 0.7183257919 | P198: =1/(L198/100)*O198/(100/CandleStatControls!$A$18) -> 2.262443439 | Q198: 0.77 | R198: 2 | S198: 0.41 | T198: 1 | U198: 0.5 | V198: 1 | W198: 2_1_1
A199: 167 | B199: =OFFSET(InputPriceData!B$15,CalculationsAndCharts!$A199+$A$11,0,1,1) -> 2014-04-16 | C199: =OFFSET(InputPriceData!G$15,CalculationsAndCharts!$A199+$A$11,IF($C$7,8,0),1,1) -> 150300 | D199: =OFFSET(InputPriceData!C$15,CalculationsAndCharts!$A199+$A$11,IF($C$7,8,0),1,1) -> 66.96 | E199: =OFFSET(InputPriceData!D$15,CalculationsAndCharts!$A199+$A$11,IF($C$7,8,0),1,1) -> 67.35 | F199: =OFFSET(InputPriceData!E$15,CalculationsAndCharts!$A199+$A$11,IF($C$7,8,0),1,1) -> 65.21 | G199: =OFFSET(InputPriceData!F$15,CalculationsAndCharts!$A199+$A$11,IF($C$7,8,0),1,1) -> 65.91 | L199: 2.14 | M199: =AVERAGE(OFFSET(L199,0,0,CandleStatControls!$A$17,1)) -> 1.812 | N199: 1.181015453 | O199: 1 | P199: =1/(L199/100)*O199/(100/CandleStatControls!$A$18) -> 1.869158879 | Q199: 0.39 | R199: 1 | S199: 1.44 | T199: 3 | U199: 1.75 | V199: 3 | W199: 1_3_3
A200: 168 | B200: =OFFSET(InputPriceData!B$15,CalculationsAndCharts!$A200+$A$11,0,1,1) -> 2014-04-15 | C200: =OFFSET(InputPriceData!G$15,CalculationsAndCharts!$A200+$A$11,IF($C$7,8,0),1,1) -> 168300 | D200: =OFFSET(InputPriceData!C$15,CalculationsAndCharts!$A200+$A$11,IF($C$7,8,0),1,1) -> 67.39 | E200: =OFFSET(InputPriceData!D$15,CalculationsAndCharts!$A200+$A$11,IF($C$7,8,0),1,1) -> 67.58 | F200: =OFFSET(InputPriceData!E$15,CalculationsAndCharts!$A200+$A$11,IF($C$7,8,0),1,1) -> 65.55 | G200: =OFFSET(InputPriceData!F$15,CalculationsAndCharts!$A200+$A$11,IF($C$7,8,0),1,1) -> 66.65 | L200: 2.03 | M200: =AVERAGE(OFFSET(L200,0,0,CandleStatControls!$A$17,1)) -> 1.768 | N200: 1.148190045 | O200: 1 | P200: =1/(L200/100)*O200/(100/CandleStatControls!$A$18) -> 1.97044335 | Q200: 0.19 | R200: 0 | S200: 0.93 | T200: 2 | U200: 1.84 | V200: 4 | W200: 0_2_4
A201: 169 | B201: =OFFSET(InputPriceData!B$15,CalculationsAndCharts!$A201+$A$11,0,1,1) -> 2014-04-14 | C201: =OFFSET(InputPriceData!G$15,CalculationsAndCharts!$A201+$A$11,IF($C$7,8,0),1,1) -> 129100 | D201: =OFFSET(InputPriceData!C$15,CalculationsAndCharts!$A201+$A$11,IF($C$7,8,0),1,1) -> 68.02 | E201: =OFFSET(InputPriceData!D$15,CalculationsAndCharts!$A201+$A$11,IF($C$7,8,0),1,1) -> 68.15 | F201: =OFFSET(InputPriceData!E$15,CalculationsAndCharts!$A201+$A$11,IF($C$7,8,0),1,1) -> 66.5 | G201: =OFFSET(InputPriceData!F$15,CalculationsAndCharts!$A201+$A$11,IF($C$7,8,0),1,1) -> 67.11 | L201: 1.65 | M201: =AVERAGE(OFFSET(L201,0,0,CandleStatControls!$A$17,1)) -> 1.733 | N201: 0.9521061743 | O201: 0.9521061743 | P201: =1/(L201/100)*O201/(100/CandleStatControls!$A$18) -> 2.30813618 | Q201: 0.13 | R201: 0 | S201: 1.04 | T201: 2 | U201: 1.52 | V201: 4 | W201: 0_2_4
A202: 170 | B202: =OFFSET(InputPriceData!B$15,CalculationsAndCharts!$A202+$A$11,0,1,1) -> 2014-04-11 | C202: =OFFSET(InputPriceData!G$15,CalculationsAndCharts!$A202+$A$11,IF($C$7,8,0),1,1) -> 194900 | D202: =OFFSET(InputPriceData!C$15,CalculationsAndCharts!$A202+$A$11,IF($C$7,8,0),1,1) -> 66.26 | E202: =OFFSET(InputPriceData!D$15,CalculationsAndCharts!$A202+$A$11,IF($C$7,8,0),1,1) -> 67.49 | F202: =OFFSET(InputPriceData!E$15,CalculationsAndCharts!$A202+$A$11,IF($C$7,8,0),1,1) -> 65.57 | G202: =OFFSET(InputPriceData!F$15,CalculationsAndCharts!$A202+$A$11,IF($C$7,8,0),1,1) -> 67.29 | L202: 1.92 | M202: =AVERAGE(OFFSET(L202,0,0,CandleStatControls!$A$17,1)) -> 1.718 | N202: 1.11757858 | O202: 1 | P202: =1/(L202/100)*O202/(100/CandleStatControls!$A$18) -> 2.083333333 | Q202: 1.23 | R202: 3 | S202: 0.2 | T202: 0 | U202: 0.69 | V202: 1 | W202: 3_0_1
A203: 171 | B203: =OFFSET(InputPriceData!B$15,CalculationsAndCharts!$A203+$A$11,0,1,1) -> 2014-04-10 | C203: =OFFSET(InputPriceData!G$15,CalculationsAndCharts!$A203+$A$11,IF($C$7,8,0),1,1) -> 199600 | D203: =OFFSET(InputPriceData!C$15,CalculationsAndCharts!$A203+$A$11,IF($C$7,8,0),1,1) -> 68.51 | E203: =OFFSET(InputPriceData!D$15,CalculationsAndCharts!$A203+$A$11,IF($C$7,8,0),1,1) -> 68.76 | F203: =OFFSET(InputPriceData!E$15,CalculationsAndCharts!$A203+$A$11,IF($C$7,8,0),1,1) -> 66.49 | G203: =OFFSET(InputPriceData!F$15,CalculationsAndCharts!$A203+$A$11,IF($C$7,8,0),1,1) -> 66.95 | L203: 2.27 | M203: =AVERAGE(OFFSET(L203,0,0,CandleStatControls!$A$17,1)) -> 1.682 | N203: 1.349583829 | O203: 1 | P203: =1/(L203/100)*O203/(100/CandleStatControls!$A$18) -> 1.762114537 | Q203: 0.25 | R203: 0 | S203: 1.81 | T203: 3 | U203: 2.02 | V203: 4 | W203: 0_3_4
... 2629 more rows

Sheet CondensedCandleStats
A1: =CandleStatControls!$B$7 -> Daily | B1: Candlestick Signature Index with Statistics | I1: =CandleStatControls!A22 -> 10 | J1: Symbols Evaluated
A2: 77 | B2: ="Unique Signatures encountered out of the " & TEXT( (CandleStatControls!$A$18+1)^3,"#,##0") & " signatures that are" -> Unique Signatures encountered out of the 125 signatures that are | I2: =CandleStatControls!D21 -> 38993 | J2: Bars Evaluated
B3: ="possible when we use a segment count setting of " & TEXT(CandleStatControls!A18,"#,##0") & "." -> possible when we use a segment count setting of 4. | I3: =CandleStatControls!B14 -> 00:01:00 | K3: Elapsed
A4: Look Forward
A5: 1 | B5: Bar Look Forward Results | G5: 2 | H5: Bar Look Forward Results | M5: 3 | N5: Bar Look Forward Results | S5: 4 | T5: Bar Look Forward Results
A6: Signature | B6: Bar Count | C6: Rank | D6: UPs as % of Bars | E6: Avg $ Return | F6: Avg % Return | G6: Signature | H6: Bar Count | I6: Rank | J6: % of Bars UP | K6: Avg $ Return | L6: Avg % Return | M6: Signature | N6: Bar Count | O6: Rank | P6: % of Bars UP | Q6: Avg $ Return | R6: Avg % Return | S6: Signature | T6: Bar Count | U6: Rank | V6: % of Bars UP | W6: Avg $ Return | X6: Avg % Return
A8: 0_0_0 | B8: 4 | C8: -7.428414526 | D8: 25 | E8: -0.1675 | F8: -0.2971365811 | G8: 0_0_0 | H8: 4 | I8: -20.7082954 | J8: 50 | K8: -0.1525 | L8: -0.207082954 | M8: 0_0_0 | N8: 4 | O8: -11.94133761 | P8: 25 | Q8: -0.1875 | R8: -0.4776535042 | S8: 0_0_0 | T8: 4 | U8: 27.02857014 | V8: 50 | W8: 0.005 | X8: 0.2702857014
A9: 0_0_1 | B9: 56 | C9: 7.46472938 | D9: 44.64285714 | E9: -0.01821428571 | F9: 0.006688397525 | G9: 0_0_1 | H9: 56 | I9: 184.5866965 | J9: 57.14285714 | K9: 0.01017857143 | L9: 0.1009458497 | M9: 0_0_1 | N9: 56 | O9: 274.8428041 | P9: 53.57142857 | Q9: 0.03107142857 | R9: 0.1710133003 | S9: 0_0_1 | T9: 56 | U9: 569.6450172 | V9: 55.35714286 | W9: 0.07928571429 | X9: 0.3319471484
A10: 0_0_2 | B10: 250 | C10: -1133.846956 | D10: 48 | E10: -0.049 | F10: -0.1968484298 | G10: 0_0_2 | H10: 250 | I10: -487.3872213 | J10: 55.2 | K10: -0.01868 | L10: -0.06398172932 | M10: 0_0_2 | N10: 250 | O10: -1713.916246 | P10: 54.4 | Q10: -0.04388 | R10: -0.2316603922 | S10: 0_0_2 | T10: 250 | U10: -2054.874448 | V10: 54 | W10: -0.05516 | X10: -0.2818757816
A11: 0_0_3 | B11: 201 | C11: -303.6356609 | D11: 45.27363184 | E11: -0.03134328358 | F11: -0.07369975588 | G11: 0_0_3 | H11: 201 | I11: 74.20705347 | J11: 46.76616915 | K11: -0.002736318408 | L11: 0.01688050899 | M11: 0_0_3 | N11: 201 | O11: 689.6212875 | P11: 48.75621891 | Q11: 0.04034825871 | R11: 0.1443293199 | S11: 0_0_3 | T11: 201 | U11: 1011.106159 | V11: 52.23880597 | W11: 0.0452238806 | X11: 0.1843377214
A12: 0_0_4 | B12: 120 | C12: -369.560193 | D12: 48.33333333 | E12: -0.04325 | F12: -0.1318288441 | G12: 0_0_4 | H12: 120 | I12: -461.2312253 | J12: 50.83333333 | K12: -0.03316666667 | L12: -0.1487442812 | M12: 0_0_4 | N12: 120 | O12: -1514.176769 | P12: 48.33333333 | Q12: -0.1335833333 | R12: -0.5401344005 | S12: 0_0_4 | T12: 120 | U12: -1730.14134 | V12: 49.16666667 | W12: -0.1178333333 | X12: -0.5964290745
A13: 0_1_1 | B13: 108 | C13: 268.5253934 | D13: 56.48148148 | E13: 0.0175 | F13: 0.07793803411 | G13: 0_1_1 | H13: 108 | I13: 232.7939604 | J13: 50 | K13: 3.454027188e-16 | L13: 0.08621998535 | M13: 0_1_1 | N13: 108 | O13: -40.93529176 | P13: 49.07407407 | Q13: -0.07018518519 | R13: -0.01573873802 | S13: 0_1_1 | T13: 108 | U13: 315.4300922 | V13: 50.92592593 | W13: -0.03416666667 | X13: 0.1126163635
A14: 0_1_2 | B14: 674 | C14: -969.9800718 | D14: 46.58753709 | E14: -0.01525222552 | F14: -0.06630761577 | G14: 0_1_2 | H14: 674 | I14: -1334.762156 | J14: 50 | K14: -0.01765578635 | L14: -0.07921437129 | M14: 0_1_2 | N14: 674 | O14: -1664.289907 | P14: 48.66468843 | Q14: -0.03005934718 | R14: -0.1042656341 | S14: 0_1_2 | T14: 674 | U14: -1554.259582 | V14: 50.59347181 | W14: -0.03292284866 | X14: -0.09008960693
A15: 0_1_3 | B15: 660 | C15: 128.9073061 | D15: 51.06060606 | E15: -0.002651515152 | F15: 0.007491377228 | G15: 0_1_3 | H15: 660 | I15: -1430.011278 | J15: 50.60606061 | K15: -0.02916666667 | L15: -0.08460391585 | M15: 0_1_3 | N15: 660 | O15: 617.6913863 | P15: 52.72727273 | Q15: 0.005666666667 | R15: 0.03366332367 | S15: 0_1_3 | T15: 660 | U15: 699.6168998 | V15: 52.12121212 | W15: 0.006348484848 | X15: 0.03902000692
A16: 0_1_4 | B16: 427 | C16: -1555.641479 | D16: 49.18032787 | E16: -0.06606557377 | F16: -0.1506256036 | G16: 0_1_4 | H16: 427 | I16: -411.5194218 | J16: 51.28805621 | K16: -0.03241217799 | L16: -0.03663785015 | M16: 0_1_4 | N16: 427 | O16: 147.3146624 | P16: 54.33255269 | Q16: -0.03761124122 | R16: 0.01168686103 | S16: 0_1_4 | T16: 427 | U16: 633.8207494 | V16: 55.26932084 | W16: -0.03 | X16: 0.04859262065
A17: 0_2_1 | B17: 17 | C17: -54.11537116 | D17: 35.29411765 | E17: -0.01058823529 | F17: -0.2555448082 | G17: 0_2_1 | H17: 17 | I17: 195.8172399 | J17: 47.05882353 | K17: 0.2882352941 | L17: 0.5201395436 | M17: 0_2_1 | N17: 17 | O17: 23.81883483 | P17: 47.05882353 | Q17: 0.1205882353 | R17: 0.06326878001 | S17: 0_2_1 | T17: 17 | U17: 232.3106982 | V17: 58.82352941 | W17: 0.1976470588 | X17: 0.394928187
A18: 0_2_2 | B18: 421 | C18: -492.4407318 | D18: 48.21852732 | E18: -0.01361045131 | F18: -0.05030880344 | G18: 0_2_2 | H18: 421 | I18: -86.84397788 | J18: 51.3064133 | K18: -0.009358669834 | L18: -0.007836358601 | M18: 0_2_2 | N18: 421 | O18: -523.7592049 | P18: 53.68171021 | Q18: -0.005035629454 | R18: -0.04317147491 | S18: 0_2_2 | T18: 421 | U18: 717.813024 | V18: 55.34441805 | W18: 0.01679334917 | X18: 0.0556649198
A19: 0_2_3 | B19: 924 | C19: -1161.242263 | D19: 49.45887446 | E19: -0.01695887446 | F19: -0.05137625033 | G19: 0_2_3 | H19: 924 | I19: 340.0323217 | J19: 54.54545455 | K19: 0.009166666667 | L19: 0.01236890059 | M19: 0_2_3 | N19: 924 | O19: -873.5301991 | P19: 53.46320346 | Q19: -0.004902597403 | R19: -0.03307470635 | S19: 0_2_3 | T19: 924 | U19: -1215.420757 | V19: 51.94805195 | W19: -0.02322510823 | X19: -0.04874343662
A20: 0_2_4 | B20: 969 | C20: -4154.425813 | D20: 49.01960784 | E20: -0.04656346749 | F20: -0.178421656 | G20: 0_2_4 | H20: 969 | I20: -1734.143444 | J20: 51.08359133 | K20: -0.01541795666 | L20: -0.06858014475 | M20: 0_2_4 | N20: 969 | O20: -297.6200152 | P20: 49.84520124 | Q20: 0.003859649123 | R20: -0.01236208285 | S20: 0_2_4 | T20: 969 | U20: 1796.785397 | V20: 51.70278638 | W20: 0.027750258 | X20: 0.06936566187
A21: 0_3_2 | B21: 34 | C21: 244.5326753 | D21: 55.88235294 | E21: 0.1217647059 | F21: 0.2303077828 | G21: 0_3_2 | H21: 34 | I21: 360.2239026 | J21: 52.94117647 | K21: 0.1464705882 | L21: 0.3780127373 | M21: 0_3_2 | N21: 34 | O21: 290.6686514 | P21: 61.76470588 | Q21: 0.1320588235 | R21: 0.22409828 | S21: 0_3_2 | T21: 34 | U21: 1543.181017 | V21: 67.64705882 | W21: 0.3497058824 | X21: 0.9918365705
A22: 0_3_3 | B22: 597 | C22: 2194.59654 | D22: 52.93132328 | E22: 0.0222278057 | F22: 0.1312063506 | G22: 0_3_3 | H22: 597 | I22: 2084.245669 | J22: 51.75879397 | K22: 0.02932998325 | L22: 0.1303185623 | M22: 0_3_3 | N22: 597 | O22: 5363.604419 | P22: 55.10887772 | Q22: 0.07782244556 | R22: 0.2958279985 | S22: 0_3_3 | T22: 597 | U22: 6638.795934 | V22: 53.76884422 | W22: 0.1098492462 | X22: 0.384639238
A23: 0_3_4 | B23: 2005 | C23: -2041.01815 | D23: 52.11970075 | E23: -0.008593516209 | F23: -0.0374738801 | G23: 0_3_4 | H23: 2004 | I23: 20.72528878 | J23: 50.5988024 | K23: 0.0005189620758 | L23: 0.0004039451496 | M23: 0_3_4 | N23: 2004 | O23: 513.9282959 | P23: 51.49700599 | Q23: 0.001442115768 | R23: 0.009670320153 | S23: 0_3_4 | T23: 2002 | U23: 3486.675002 | V23: 52.2977023 | W23: 0.02253746254 | X23: 0.06367693893
A24: 0_4_3 | B24: 33 | C24: 800.0271036 | D24: 66.66666667 | E24: 0.126969697 | F24: 0.5454730252 | G24: 0_4_3 | H24: 33 | I24: 1972.107706 | J24: 69.6969697 | K24: 0.3539393939 | L24: 1.230237321 | M24: 0_4_3 | N24: 33 | O24: 2878.106725 | P24: 69.6969697 | Q24: 0.4533333333 | R24: 1.795416294 | S24: 0_4_3 | T24: 33 | U24: 4387.275416 | V24: 84.84848485 | W24: 0.5336363636 | X24: 1.846684805
A25: 0_4_4 | B25: 1671 | C25: 9208.153004 | D25: 55.71514063 | E25: 0.04944344704 | F25: 0.1775209506 | G25: 0_4_4 | H25: 1666 | I25: 12195.66929 | J25: 56.36254502 | K25: 0.05828331333 | L25: 0.230435535 | M25: 0_4_4 | N25: 1666 | O25: 15762.89643 | P25: 58.34333733 | Q25: 0.0675090036 | R25: 0.2779575591 | S25: 0_4_4 | T25: 1664 | U25: 10728.94494 | V25: 55.94951923 | W25: 0.05018028846 | X25: 0.2059733235
A26: 1_0_0 | B26: 70 | C26: -88.67540793 | D26: 57.14285714 | E26: -0.006714285714 | F26: -0.03879549097 | G26: 1_0_0 | H26: 70 | I26: -556.59547 | J26: 44.28571429 | K26: -0.06042857143 | L26: -0.4054285421 | M26: 1_0_0 | N26: 70 | O26: -611.414899 | P26: 41.42857143 | Q26: -0.1018571429 | R26: -0.5089065746 | S26: 1_0_0 | T26: 70 | U26: -369.2019938 | V26: 47.14285714 | W26: -0.033 | X26: -0.2373199226
A27: 1_0_1 | B27: 539 | C27: -934.9260395 | D27: 50.27829314 | E27: -0.00961038961 | F27: -0.06861632266 | G27: 1_0_1 | H27: 539 | I27: -1992.925904 | J27: 48.97959184 | K27: -0.02649350649 | L27: -0.1541246359 | M27: 1_0_1 | N27: 539 | O27: -2222.150494 | P27: 51.57699443 | Q27: -0.02975881262 | R27: -0.154978924 | S27: 1_0_1 | T27: 539 | U27: -2602.906012 | V27: 49.16512059 | W27: -0.04402597403 | X27: -0.1997816077
A28: 1_0_2 | B28: 589 | C28: -366.795384 | D28: 48.55687606 | E28: -0.01803056027 | F28: -0.02641235282 | G28: 1_0_2 | H28: 589 | I28: -1420.308692 | J28: 51.61290323 | K28: -0.03616298812 | L28: -0.09052131879 | M28: 1_0_2 | N28: 589 | O28: -396.7562185 | P28: 51.10356537 | Q28: -0.0126655348 | R28: -0.02579324871 | S28: 1_0_2 | T28: 589 | U28: 458.9491255 | V28: 50.93378608 | W28: -0.007028862479 | X28: 0.03003567055
A29: 1_0_3 | B29: 419 | C29: -1906.914568 | D29: 42.24343675 | E29: -0.09133651551 | F29: -0.2550343784 | G29: 1_0_3 | H29: 419 | I29: -3071.145221 | J29: 42.48210024 | K29: -0.1276372315 | L29: -0.406138697 | M29: 1_0_3 | N29: 418 | O29: -2959.483286 | P29: 41.86602871 | Q29: -0.134569378 | R29: -0.4039392698 | S29: 1_0_3 | T29: 418 | U29: -3691.12709 | V29: 45.6937799 | W29: -0.1440430622 | X29: -0.4229300522
A30: 1_1_0 | B30: 91 | C30: 164.8866631 | D30: 51.64835165 | E30: 0.02318681319 | F30: 0.06792524375 | G30: 1_1_0 | H30: 91 | I30: 88.72154907 | J30: 54.94505495 | K30: 0.01285714286 | L30: 0.03229464386 | M30: 1_1_0 | N30: 91 | O30: 286.3463219 | P30: 54.94505495 | Q30: 0.01307692308 | R30: 0.1042300612 | S30: 1_1_0 | T30: 91 | U30: 333.2706784 | V30: 51.64835165 | W30: 0.03945054945 | X30: 0.1372912256
A31: 1_1_1 | B31: 1002 | C31: 299.3623652 | D31: 49.4011976 | E31: 0.0007784431138 | F31: 0.0122420606 | G31: 1_1_1 | H31: 1002 | I31: 628.8795135 | J31: 51.59680639 | K31: -0.0004890219561 | L31: 0.02357512926 | M31: 1_1_1 | N31: 1002 | O31: -2198.616868 | P31: 51.29740519 | Q31: -0.03391217565 | R31: -0.08338559637 | S31: 1_1_1 | T31: 1002 | U31: -1663.881224 | V31: 49.8003992 | W31: -0.02783433134 | X31: -0.06695591529
A32: 1_1_2 | B32: 1148 | C32: -508.1724386 | D32: 51.2195122 | E32: 0.002334494774 | F32: -0.01687323452 | G32: 1_1_2 | H32: 1148 | I32: -587.7535153 | J32: 50.34843206 | K32: -0.00181184669 | L32: -0.02019674799 | M32: 1_1_2 | N32: 1148 | O32: -2081.466712 | P32: 52.96167247 | Q32: -0.008022648084 | R32: -0.06464042441 | S32: 1_1_2 | T32: 1148 | U32: -1705.332806 | V32: 51.82926829 | W32: -0.001045296167 | X32: -0.05529897779
A33: 1_1_3 | B33: 697 | C33: 814.7157671 | D33: 50.93256815 | E33: 0.008450502152 | F33: 0.04505906682 | G33: 1_1_3 | H33: 697 | I33: 950.7812254 | J33: 54.66284075 | K33: 0.02763271162 | L33: 0.04565238005 | M33: 1_1_3 | N33: 697 | O33: 868.9094937 | P33: 54.23242468 | Q33: 0.01407460545 | R33: 0.04238612561 | S33: 1_1_3 | T33: 697 | U33: 2018.916563 | V33: 54.51936872 | W33: 0.02281205165 | X33: 0.09745047399
A34: 1_1_4 | B34: 1 | C34: 0 | D34: 0 | E34: -0.1 | F34: -0.100270731 | G34: 1_1_4 | H34: 1 | I34: 0 | J34: 0 | K34: -0.11 | L34: -0.1102978041 | M34: 1_1_4 | N34: 1 | O34: 27.07309736 | P34: 100 | Q34: 0.27 | R34: 0.2707309736 | S34: 1_1_4 | T34: 1 | U34: 41.1109997 | V34: 100 | W34: 0.41 | X34: 0.411109997
A35: 1_2_0 | B35: 8 | C35: 214.1149971 | D35: 87.5 | E35: 0.13625 | F35: 0.3495755054 | G35: 1_2_0 | H35: 8 | I35: 531.8298579 | J35: 87.5 | K35: 0.305 | L35: 0.8682936456 | M35: 1_2_0 | N35: 8 | O35: 391.0678718 | P35: 75 | Q35: 0.3125 | R35: 0.8690397152 | S35: 1_2_0 | T35: 8 | U35: 227.5251177 | V35: 75 | W35: 0.155 | X35: 0.5056113727
A36: 1_2_1 | B36: 469 | C36: 1426.402181 | D36: 54.58422175 | E36: 0.03172707889 | F36: 0.1020786473 | G36: 1_2_1 | H36: 469 | I36: 2799.380656 | J36: 58.20895522 | K36: 0.04880597015 | L36: 0.1761608941 | M36: 1_2_1 | N36: 469 | O36: 2871.090311 | P36: 57.78251599 | Q36: 0.05579957356 | R36: 0.1833500846 | S36: 1_2_1 | T36: 469 | U36: 1782.618773 | V36: 53.9445629 | W36: 0.04089552239 | X36: 0.1306141643
A37: 1_2_2 | B37: 1054 | C37: 958.365403 | D37: 52.65654649 | E37: 0.005332068311 | F37: 0.03279334907 | G37: 1_2_2 | H37: 1054 | I37: 3853.425961 | J37: 54.45920304 | K37: 0.02508538899 | L37: 0.1232718305 | M37: 1_2_2 | N37: 1054 | O37: 6795.367831 | P37: 55.028463 | Q37: 0.05241935484 | R37: 0.2129107519 | S37: 1_2_2 | T37: 1054 | U37: 11565.53661 | V37: 57.96963947 | W37: 0.0855028463 | X37: 0.3265306689
A38: 1_2_3 | B38: 942 | C38: 975.1269012 | D38: 54.35244161 | E38: 0.008662420382 | F38: 0.03504064716 | G38: 1_2_3 | H38: 942 | I38: 4581.533836 | J38: 54.2462845 | K38: 0.02348195329 | L38: 0.1652798846 | M38: 1_2_3 | N38: 941 | O38: 4968.009282 | P38: 55.47290117 | Q38: 0.02804463337 | R38: 0.1715659171 | S38: 1_2_3 | T38: 941 | U38: 5714.013937 | V38: 53.98512221 | W38: 0.03017003188 | X38: 0.2083547924
A39: 1_2_4 | B39: 2 | C39: -28.713942 | D39: 50 | E39: -0.145 | F39: -0.57427884 | G39: 1_2_4 | H39: 2 | I39: -34.32644808 | J39: 50 | K39: -0.18 | L39: -0.6865289616 | M39: 1_2_4 | N39: 2 | O39: -55.92797359 | P39: 50 | Q39: -0.3 | R39: -1.118559472 | S39: 1_2_4 | T39: 2 | U39: 4.877908316 | V39: 50 | W39: 0.025 | X39: 0.09755816632
A40: 1_3_1 | B40: 28 | C40: -134.9854631 | D40: 50 | E40: -0.1278571429 | F40: -0.1928363759 | G40: 1_3_1 | H40: 28 | I40: 194.9181632 | J40: 50 | K40: -0.03035714286 | L40: 0.2784545189 | M40: 1_3_1 | N40: 28 | O40: 892.140499 | P40: 60.71428571 | Q40: 0.2314285714 | R40: 0.8643575769 | S40: 1_3_1 | T40: 28 | U40: 212.3799893 | V40: 46.42857143 | W40: 0.07392857143 | X40: 0.3518721717
A41: 1_3_2 | B41: 555 | C41: 2331.081081 | D41: 53.69369369 | E41: 0.04953153153 | F41: 0.1456860051 | G41: 1_3_2 | H41: 555 | I41: 2866.756657 | J41: 55.13513514 | K41: 0.054 | L41: 0.1699186151 | M41: 1_3_2 | N41: 555 | O41: 4068.840753 | P41: 57.2972973 | Q41: 0.07212612613 | R41: 0.2233106501 | S41: 1_3_2 | T41: 555 | U41: 3958.670747 | V41: 57.83783784 | W41: 0.06798198198 | X41: 0.2132221412
A42: 1_3_3 | B42: 1545 | C42: 4212.636542 | D42: 55.79288026 | E42: 0.02660841424 | F42: 0.08759270591 | G42: 1_3_3 | H42: 1545 | I42: 9517.994794 | J42: 56.82847896 | K42: 0.06028478964 | L42: 0.1907589463 | M42: 1_3_3 | N42: 1545 | O42: 9929.135246 | P42: 55.98705502 | Q42: 0.06158576052 | R42: 0.2050254129 | S42: 1_3_3 | T42: 1544 | U42: 15091.26782 | V42: 58.61398964 | W42: 0.08212435233 | X42: 0.2844958031
A43: 1_3_4 | B43: 1 | C43: 0 | D43: 0 | E43: -0.17 | F43: -0.6017699115 | G43: 1_3_4 | H43: 1 | I43: 0 | J43: 0 | K43: -0.65 | L43: -2.300884956 | M43: 1_3_4 | N43: 1 | O43: 0 | P43: 0 | Q43: -1.43 | R43: -5.061946903 | S43: 1_3_4 | T43: 1 | U43: 0 | V43: 0 | W43: -0.71 | X43: -2.513274336
A44: 1_4_2 | B44: 21 | C44: 208.4905717 | D44: 57.14285714 | E44: 0.1285714286 | F44: 0.3040487504 | G44: 1_4_2 | H44: 21 | I44: 323.9501493 | J44: 47.61904762 | K44: 0.2904761905 | L44: 0.6802953135 | M44: 1_4_2 | N44: 21 | O44: 411.5286293 | P44: 52.38095238 | Q44: 0.3223809524 | R44: 0.714223241 | S44: 1_4_2 | T44: 21 | U44: 411.2876488 | V44: 52.38095238 | W44: 0.3295238095 | X44: 0.7138050103
A45: 1_4_3 | B45: 1186 | C45: 9352.051229 | D45: 58.51602024 | E45: 0.08349072513 | F45: 0.2302886985 | G45: 1_4_3 | H45: 1183 | I45: 8195.135648 | J45: 55.36770921 | K45: 0.08619611158 | L45: 0.2259739053 | M45: 1_4_3 | N45: 1183 | O45: 11309.51084 | P45: 55.79036348 | Q45: 0.1150211327 | R45: 0.3071430515 | S45: 1_4_3 | T45: 1183 | U45: 11248.56011 | V45: 57.05832629 | W45: 0.1085798817 | X45: 0.2920613795
A46: 1_4_4 | B46: 3 | C46: 0 | D46: 0 | E46: -0.32 | F46: -1.611384857 | G46: 1_4_4 | H46: 3 | I46: -72.18586703 | J46: 33.33333333 | K46: -0.5233333333 | L46: -2.165576011 | M46: 1_4_4 | N46: 3 | O46: -19.55571371 | P46: 33.33333333 | Q46: -0.2866666667 | R46: -0.5866714114 | S46: 1_4_4 | T46: 3 | U46: -52.71757879 | V46: 33.33333333 | W46: -0.5333333333 | X46: -1.581527364
A47: 2_0_0 | B47: 422 | C47: -1202.702462 | D47: 47.1563981 | E47: -0.05450236967 | F47: -0.128163541 | G47: 2_0_0 | H47: 422 | I47: -2936.285776 | J47: 48.34123223 | K47: -0.120971564 | L47: -0.2977490863 | M47: 2_0_0 | N47: 422 | O47: -3335.839378 | P47: 47.63033175 | Q47: -0.1339810427 | R47: -0.3484379638 | S47: 2_0_0 | T47: 422 | U47: -3452.168024 | V47: 47.39336493 | W47: -0.1346208531 | X47: -0.3642037266
A48: 2_0_1 | B48: 925 | C48: -2867.494553 | D48: 46.59459459 | E48: -0.04722162162 | F48: -0.1427873699 | G48: 2_0_1 | H48: 925 | I48: -2940.66662 | J48: 49.40540541 | K48: -0.04 | L48: -0.1302432199 | M48: 2_0_1 | N48: 925 | O48: -2399.004736 | P48: 50.16216216 | Q48: -0.03783783784 | R48: -0.1030710919 | S48: 2_0_1 | T48: 925 | U48: -2386.309527 | V48: 49.51351351 | W48: -0.03738378378 | X48: -0.1052295109
A49: 2_0_2 | B49: 935 | C49: -2704.772936 | D49: 45.02673797 | E49: -0.05155080214 | F49: -0.142684971 | G49: 2_0_2 | H49: 935 | I49: -3017.7885 | J49: 48.34224599 | K49: -0.04801069519 | L49: -0.138109496 | M49: 2_0_2 | N49: 933 | O49: -1360.147943 | P49: 50.05359057 | Q49: -0.01389067524 | R49: -0.05818808058 | S49: 2_0_2 | T49: 933 | U49: -782.4098597 | V49: 52.09003215 | W49: 0.0004180064309 | X49: -0.03090604409
A50: 2_1_0 | B50: 618 | C50: -176.8876331 | D50: 49.02912621 | E50: -0.005566343042 | F50: -0.01190695436 | G50: 2_1_0 | H50: 618 | I50: -1060.138372 | J50: 49.6763754 | K50: -0.02108414239 | L50: -0.0695143199 | M50: 2_1_0 | N50: 618 | O50: -1075.561806 | P50: 50.3236246 | Q50: -0.03786407767 | R50: -0.06872315173 | S50: 2_1_0 | T50: 618 | U50: 432.5238343 | V50: 52.58899676 | W50: -0.003948220065 | X50: 0.02530648328
A51: 2_1_1 | B51: 1340 | C51: 844.8939752 | D51: 53.05970149 | E51: 0.01321641791 | F51: 0.02239586341 | G51: 2_1_1 | H51: 1340 | I51: -393.042596 | J51: 52.6119403 | K51: -0.001723880597 | L51: -0.01059659129 | M51: 2_1_1 | N51: 1340 | O51: 1440.178882 | P51: 52.8358209 | Q51: 0.009186567164 | R51: 0.03849946737 | S51: 2_1_1 | T51: 1340 | U51: 1282.531999 | V51: 53.20895522 | W51: 0.00402238806 | X51: 0.03380601254
A52: 2_1_2 | B52: 979 | C52: 3771.628012 | D52: 53.72829418 | E52: 0.04509703779 | F52: 0.1334565999 | G52: 2_1_2 | H52: 979 | I52: 3585.698455 | J52: 54.13687436 | K52: 0.04041879469 | L52: 0.1249696969 | M52: 2_1_2 | N52: 979 | O52: 2817.906301 | P52: 54.23901941 | Q52: 0.0291113381 | R52: 0.09784084566 | S52: 2_1_2 | T52: 978 | U52: 4441.101039 | V52: 54.70347648 | W52: 0.04214723926 | X52: 0.1517476397
A53: 2_1_3 | B53: 3 | C53: 456.5415423 | D53: 100 | E53: 0.3966666667 | F53: 1.521805141 | G53: 2_1_3 | H53: 3 | I53: 11.36969406 | J53: 33.33333333 | K53: 0.18 | L53: 0.3410908219 | M53: 2_1_3 | N53: 3 | O53: -407.6256362 | P53: 66.66666667 | Q53: -0.1766666667 | R53: -3.057192271 | S53: 2_1_3 | T53: 3 | U53: -208.3930632 | V53: 66.66666667 | W53: -0.03 | X53: -1.562947974
A54: 2_2_0 | B54: 265 | C54: 1026.318894 | D54: 61.50943396 | E54: 0.04939622642 | F54: 0.1023653532 | G54: 2_2_0 | H54: 265 | I54: 911.2359605 | J54: 55.8490566 | K54: 0.04169811321 | L54: 0.1102435763 | M54: 2_2_0 | N54: 265 | O54: 194.7261947 | P54: 56.22641509 | Q54: 0.03120754717 | R54: 0.02324329607 | S54: 2_2_0 | T54: 265 | U54: 933.2056068 | V54: 55.09433962 | W54: 0.05769811321 | X54: 0.1160158969
A55: 2_2_1 | B55: 867 | C55: 3705.698556 | D55: 55.24798155 | E55: 0.04600922722 | F55: 0.1400290553 | G55: 2_2_1 | H55: 867 | I55: 4585.621564 | J55: 55.3633218 | K55: 0.06392156863 | L55: 0.1725578948 | M55: 2_2_1 | N55: 867 | O55: 4619.095986 | P55: 55.94002307 | Q55: 0.05136101499 | R55: 0.1702521509 | S55: 2_2_1 | T55: 867 | U55: 6225.758598 | V55: 55.47866205 | W55: 0.06798154556 | X55: 0.2333034826
A56: 2_2_2 | B56: 692 | C56: 1743.884632 | D56: 51.44508671 | E56: 0.01702312139 | F56: 0.09521905107 | G56: 2_2_2 | H56: 692 | I56: 720.9016101 | J56: 50.43352601 | K56: -0.007413294798 | L56: 0.04095729216 | M56: 2_2_2 | N56: 692 | O56: 894.1665154 | P56: 52.4566474 | Q56: 0.005289017341 | R56: 0.04695817898 | S56: 2_2_2 | T56: 692 | U56: 50.44392201 | V56: 52.02312139 | W56: -0.0174132948 | X56: 0.00269345633
A57: 2_2_3 | B57: 1 | C57: 0 | D57: 0 | E57: -0.86 | F57: -1.135463428 | G57: 2_2_3 | H57: 1 | I57: 0 | J57: 0 | K57: -0.14 | L57: -0.1848428835 | M57: 2_2_3 | N57: 1 | O57: 0 | P57: 0 | Q57: -1 | R57: -1.320306311 | S57: 2_2_3 | T57: 1 | U57: 0 | V57: 0 | W57: -1.48 | X57: -1.95405334
A58: 2_3_0 | B58: 17 | C58: 707.0334518 | D58: 76.47058824 | E58: 0.3017647059 | F58: 0.7112170817 | G58: 2_3_0 | H58: 17 | I58: 492.0774696 | J58: 58.82352941 | K58: 0.3647058824 | L58: 0.8365316983 | M58: 2_3_0 | N58: 17 | O58: 746.1875343 | P58: 58.82352941 | Q58: 0.6864705882 | R58: 1.268518808 | S58: 2_3_0 | T58: 17 | U58: 785.0402699 | V58: 58.82352941 | W58: 0.72 | X58: 1.334568459
A59: 2_3_1 | B59: 353 | C59: 1762.984507 | D59: 57.22379603 | E59: 0.01960339943 | F59: 0.1525177755 | G59: 2_3_1 | H59: 353 | I59: 3731.842608 | J59: 57.50708215 | K59: 0.07011331445 | L59: 0.3196729939 | M59: 2_3_1 | N59: 353 | O59: 4094.86867 | P59: 56.94050992 | Q59: 0.09209631728 | R59: 0.3577853619 | S59: 2_3_1 | T59: 353 | U59: 5924.45028 | V59: 58.35694051 | W59: 0.133796034 | X59: 0.4928199992
A60: 2_3_2 | B60: 795 | C60: 4863.60744 | D60: 55.47169811 | E60: 0.05642767296 | F60: 0.198814687 | G60: 2_3_2 | H60: 795 | I60: 9317.398915 | J60: 58.86792453 | K60: 0.1132578616 | L60: 0.3381972815 | M60: 2_3_2 | N60: 795 | O60: 10840.94382 | P60: 59.62264151 | Q60: 0.1261132075 | R60: 0.3835990643 | S60: 2_3_2 | T60: 794 | U60: 12888.02186 | V60: 57.68261965 | W60: 0.1543198992 | X60: 0.4878382065
A61: 2_4_1 | B61: 13 | C61: 514.5710358 | D61: 61.53846154 | E61: 0.3061538462 | F61: 1.045222416 | G61: 2_4_1 | H61: 13 | I61: 664.1580507 | J61: 61.53846154 | K61: 0.5046153846 | L61: 1.349071041 | M61: 2_4_1 | N61: 13 | O61: 1893.05924 | P61: 76.92307692 | Q61: 0.82 | R61: 2.460977013 | S61: 2_4_1 | T61: 13 | U61: 2009.588097 | V61: 76.92307692 | W61: 0.8284615385 | X61: 2.612464526
A62: 2_4_2 | B62: 523 | C62: 4208.213312 | D62: 59.65583174 | E62: 0.07099426386 | F62: 0.2260946296 | G62: 2_4_2 | H62: 523 | I62: 5805.299405 | J62: 56.21414914 | K62: 0.07757170172 | L62: 0.3512623894 | M62: 2_4_2 | N62: 523 | O62: 10896.73349 | P62: 60.22944551 | Q62: 0.1423518164 | R62: 0.5743503771 | S62: 2_4_2 | T62: 523 | U62: 10257.8954 | V62: 56.78776291 | W62: 0.1522944551 | X62: 0.6082008973
A63: 2_4_3 | B63: 1 | C63: 6.131207848 | D63: 100 | E63: 0.01 | F63: 0.06131207848 | G63: 2_4_3 | H63: 1 | I63: 0 | J63: 0 | K63: -0.2 | L63: -1.22624157 | M63: 2_4_3 | N63: 1 | O63: 484.36542 | P63: 100 | Q63: 0.79 | R63: 4.8436542 | S63: 2_4_3 | T63: 1 | U63: 649.9080319 | V63: 100 | W63: 1.06 | X63: 6.499080319
A64: 3_0_0 | B64: 667 | C64: -1336.081103 | D64: 47.97601199 | E64: -0.03616191904 | F64: -0.08702793905 | G64: 3_0_0 | H64: 667 | I64: -2719.831157 | J64: 51.27436282 | K64: -0.05236881559 | L64: -0.1551013459 | M64: 3_0_0 | N64: 667 | O64: -1301.469341 | P64: 51.72413793 | Q64: -0.02373313343 | R64: -0.07293258141 | S64: 3_0_0 | T64: 667 | U64: 489.9192258 | V64: 53.52323838 | W64: 0.01937031484 | X64: 0.02563975579
A65: 3_0_1 | B65: 1590 | C65: -1642.4234 | D65: 46.60377358 | E65: -0.02708176101 | F65: -0.04756043654 | G65: 3_0_1 | H65: 1590 | I65: -2071.211075 | J65: 49.81132075 | K65: -0.03371698113 | L65: -0.05250142857 | M65: 3_0_1 | N65: 1586 | O65: -1171.542605 | P65: 51.45018916 | Q65: -0.01983606557 | R65: -0.02790493098 | S65: 3_0_1 | T65: 1586 | U65: 1111.19794 | V65: 52.5220681 | W65: -0.004968474149 | X65: 0.02539829762
A66: 3_0_2 | B66: 2 | C66: 0 | D66: 0 | E66: -0.195 | F66: -0.7458425874 | G66: 3_0_2 | H66: 2 | I66: 13.99377965 | J66: 50 | K66: 0.02 | L66: 0.279875593 | M66: 3_0_2 | N66: 2 | O66: 188.0907511 | P66: 100 | Q66: 0.23 | R66: 0.9404537556 | S66: 3_0_2 | T66: 2 | U66: 9.127248768 | V66: 50 | W66: 0.125 | X66: 0.1825449754
A67: 3_1_0 | B67: 910 | C67: 441.0155524 | D67: 52.1978022 | E67: 0.007934065934 | F67: 0.01778722006 | G67: 3_1_0 | H67: 910 | I67: 3101.427186 | J67: 53.62637363 | K67: 0.03052747253 | L67: 0.1185122757 | M67: 3_1_0 | N67: 910 | O67: 4441.794359 | P67: 54.83516484 | Q67: 0.04873626374 | R67: 0.1623299853 | S67: 3_1_0 | T67: 910 | U67: 5452.044578 | V67: 55.16483516 | W67: 0.05102197802 | X67: 0.1968762625
A68: 3_1_1 | B68: 1525 | C68: -140.6529417 | D68: 48.13114754 | E68: 0.001160655738 | F68: -0.003981315032 | G68: 3_1_1 | H68: 1525 | I68: -803.7589793 | J68: 50.03278689 | K68: -0.002163934426 | L68: -0.02105458112 | M68: 3_1_1 | N68: 1524 | O68: 1171.783073 | P68: 52.16535433 | Q68: 0.0007086614173 | R68: 0.02825517034 | S68: 3_1_1 | T68: 1524 | U68: -2041.220192 | V68: 50.32808399 | W68: -0.02442257218 | X68: -0.05287910488
A69: 3_1_2 | B69: 3 | C69: 471.8581436 | D69: 100 | E69: 0.63 | F69: 1.572860479 | G69: 3_1_2 | H69: 3 | I69: 174.3512547 | J69: 66.66666667 | K69: 0.85 | L69: 1.30763441 | M69: 3_1_2 | N69: 3 | O69: 168.2820057 | P69: 66.66666667 | Q69: 1.07 | R69: 1.262115043 | S69: 3_1_2 | T69: 3 | U69: 285.291174 | V69: 66.66666667 | W69: 1.446666667 | X69: 2.139683805
A70: 3_2_0 | B70: 427 | C70: 2009.935256 | D70: 54.80093677 | E70: 0.05388758782 | F70: 0.1567394175 | G70: 3_2_0 | H70: 427 | I70: 3148.019065 | J70: 53.62997658 | K70: 0.07419203747 | L70: 0.2563269466 | M70: 3_2_0 | N70: 427 | O70: 2657.788434 | P70: 53.16159251 | Q70: 0.08470725995 | R70: 0.2202401873 | S70: 3_2_0 | T70: 427 | U70: 3112.970485 | V70: 55.73770492 | W70: 0.0924824356 | X70: 0.2346653479
A71: 3_2_1 | B71: 680 | C71: 3675.57181 | D71: 55 | E71: 0.05876470588 | F71: 0.1786860384 | G71: 3_2_1 | H71: 680 | I71: 3227.382887 | J71: 54.41176471 | K71: 0.06380882353 | L71: 0.1603082807 | M71: 3_2_1 | N71: 680 | O71: 1054.221388 | P71: 53.67647059 | Q71: 0.03158823529 | R71: 0.05380901062 | S71: 3_2_1 | T71: 680 | U71: 1395.19615 | V71: 50.88235294 | W71: 0.04083823529 | X71: 0.07924867035
A72: 3_2_2 | B72: 1 | C72: 0 | D72: 0 | E72: -0.03 | F72: -0.1290877797 | G72: 3_2_2 | H72: 1 | I72: 0 | J72: 0 | K72: -0.06 | L72: -0.2581755594 | M72: 3_2_2 | N72: 1 | O72: 98.96729776 | P72: 100 | Q72: 0.23 | R72: 0.9896729776 | S72: 3_2_2 | T72: 1 | U72: 163.5111876 | V72: 100 | W72: 0.38 | X72: 1.635111876
A73: 3_3_0 | B73: 164 | C73: 1429.696444 | D73: 60.36585366 | E73: 0.04951219512 | F73: 0.2392309119 | G73: 3_3_0 | H73: 164 | I73: 3896.101252 | J73: 60.36585366 | K73: 0.1467073171 | L73: 0.6519340937 | M73: 3_3_0 | N73: 164 | O73: 2791.200445 | P73: 56.09756098 | Q73: 0.1227439024 | R73: 0.5408280636 | S73: 3_3_0 | T73: 164 | U73: 3002.021007 | V73: 62.80487805 | W73: 0.1179268293 | X73: 0.4640696061
A74: 3_3_1 | B74: 473 | C74: 1037.663781 | D74: 50.31712474 | E74: 0.01437632135 | F74: 0.08664906579 | G74: 3_3_1 | H74: 473 | I74: 1460.494057 | J74: 54.75687104 | K74: 0.02930232558 | L74: 0.1029820201 | M74: 3_3_1 | N74: 473 | O74: 2819.498001 | P74: 54.12262156 | Q74: 0.05365750529 | R74: 0.2034946525 | S74: 3_3_1 | T74: 473 | U74: 3988.785689 | V74: 56.23678647 | W74: 0.07427061311 | X74: 0.2666481473
A75: 3_3_2 | B75: 1 | C75: 0 | D75: 0 | E75: -0.06 | F75: -0.2957121735 | G75: 3_3_2 | H75: 1 | I75: 0 | J75: 0 | K75: -0.66 | L75: -3.252833908 | M75: 3_3_2 | N75: 1 | O75: 0 | P75: 0 | Q75: -0.37 | R75: -1.823558403 | S75: 3_3_2 | T75: 1 | U75: 0 | V75: 0 | W75: -0.1 | X75: -0.4928536225
A76: 3_4_0 | B76: 8 | C76: 6.115790545 | D76: 50 | E76: 0.03625 | F76: 0.03057895273 | G76: 3_4_0 | H76: 8 | I76: 64.61277168 | J76: 50 | K76: 0.05375 | L76: 0.3230638584 | M76: 3_4_0 | N76: 8 | O76: -52.06078206 | P76: 50 | Q76: -0.06 | R76: -0.2603039103 | S76: 3_4_0 | T76: 8 | U76: -20.69270692 | V76: 62.5 | W76: -0.00625 | X76: -0.06621666215
A77: 3_4_1 | B77: 217 | C77: 1797.007236 | D77: 57.60368664 | E77: 0.06216589862 | F77: 0.2495683649 | G77: 3_4_1 | H77: 217 | I77: 1526.093235 | J77: 51.15207373 | K77: 0.06 | L77: 0.2687786966 | M77: 3_4_1 | N77: 217 | O77: 1359.385101 | P77: 54.83870968 | Q77: 0.04437788018 | R77: 0.2083091356 | S77: 3_4_1 | T77: 217 | U77: 1996.493926 | V77: 53.4562212 | W77: 0.08041474654 | X77: 0.3219672874
A78: 4_0_0 | B78: 1665 | C78: -1339.256177 | D78: 49.54954955 | E78: -0.01887087087 | F78: -0.03276196928 | G78: 4_0_0 | H78: 1665 | I78: -90.14901249 | J78: 52.73273273 | K78: -0.00806006006 | L78: -0.001947090688 | M78: 4_0_0 | N78: 1665 | O78: -57.46067744 | P78: 52.91291291 | Q78: -0.01896696697 | R78: -0.001232631219 | S78: 4_0_0 | T78: 1665 | U78: 2633.322086 | V78: 52.61261261 | W78: -0.002816816817 | X78: 0.05713602293
A79: 4_0_1 | B79: 1 | C79: 6.363347121 | D79: 100 | E79: 0.02 | F79: 0.06363347121 | G79: 4_0_1 | H79: 1 | I79: 50.90677696 | J79: 100 | K79: 0.16 | L79: 0.5090677696 | M79: 4_0_1 | N79: 1 | O79: 50.90677696 | P79: 100 | Q79: 0.16 | R79: 0.5090677696 | S79: 4_0_1 | T79: 1 | U79: 41.36175628 | V79: 100 | W79: 0.13 | X79: 0.4136175628
A80: 4_1_0 | B80: 1479 | C80: 2338.213546 | D80: 51.25084517 | E80: 0.01804597701 | F80: 0.06018855748 | G80: 4_1_0 | H80: 1478 | I80: 2616.968985 | J80: 52.84167794 | K80: 0.0199255751 | L80: 0.06341192568 | M80: 4_1_0 | N80: 1477 | O80: 5096.46178 | P80: 53.08056872 | Q80: 0.03217332431 | R80: 0.1224664536 | S80: 4_1_0 | T80: 1476 | U80: 6448.661051 | V80: 55.01355014 | W80: 0.04056233062 | X80: 0.1443589949
A81: 4_1_1 | B81: 3 | C81: 20.10186796 | D81: 66.66666667 | E81: 0.08666666667 | F81: 0.1507640097 | G81: 4_1_1 | H81: 3 | I81: 79.75565931 | J81: 66.66666667 | K81: 0.1233333333 | L81: 0.5981674448 | M81: 4_1_1 | N81: 3 | O81: 115.0510035 | P81: 66.66666667 | Q81: 0.2133333333 | R81: 0.862882526 | S81: 4_1_1 | T81: 3 | U81: -12.65158207 | V81: 33.33333333 | W81: 0.04666666667 | X81: -0.3795474622
A82: 4_2_0 | B82: 585 | C82: 1007.393977 | D82: 51.28205128 | E82: 0.01866666667 | F82: 0.06548060852 | G82: 4_2_0 | H82: 585 | I82: 1216.524356 | J82: 51.79487179 | K82: 0.005042735043 | L82: 0.0775160113 | M82: 4_2_0 | N82: 585 | O82: 3822.745296 | P82: 55.04273504 | Q82: 0.04996581197 | R82: 0.2156847728 | S82: 4_2_0 | T82: 583 | U82: 936.5891034 | V82: 51.97255575 | W82: -0.001869639794 | X82: 0.05947471896
A83: 4_3_0 | B83: 246 | C83: 436.2794465 | D83: 53.65853659 | E83: 0.03166666667 | F83: 0.06159592736 | G83: 4_3_0 | H83: 246 | I83: 1259.921145 | J83: 52.84552846 | K83: 0.06390243902 | L83: 0.1833968057 | M83: 4_3_0 | N83: 246 | O83: 2226.303996 | P83: 58.53658537 | Q83: 0.08808943089 | R83: 0.2641159254 | S83: 4_3_0 | T83: 246 | U83: 1030.873256 | V83: 54.87804878 | W83: 0.05317073171 | X83: 0.1391466782
A84: 4_4_0 | B84: 46 | C84: -86.8967195 | D84: 63.04347826 | E84: -0.02086956522 | F84: -0.04752971578 | G84: 4_4_0 | H84: 46 | I84: -48.46650432 | J84: 63.04347826 | K84: -0.0647826087 | L84: -0.02650962187 | M84: 4_4_0 | N84: 46 | O84: 236.1543255 | P84: 56.52173913 | Q84: 0.005869565217 | R84: 0.1606967303 | S84: 4_4_0 | T84: 46 | U84: -100.7269633 | V84: 63.04347826 | W84: -0.1513043478 | X84: -0.05509441512

Sheet RankedCandleStats
A1: =CandleStatControls!$B$7 -> Daily | B1: Candlestick Signatures by Rank | I1: =CandleStatControls!A22 -> 10 | J1: Symbols Evaluated
A2: 77 | B2: ="Unique Signatures encountered out of the " & TEXT( (CandleStatControls!$A$18+1)^3,"#,##0") & " signatures that are" -> Unique Signatures encountered out of the 125 signatures that are | I2: =CandleStatControls!D21 -> 38993 | J2: Bars Evaluated
B3: ="possible when we use a segment count setting of " & TEXT(CandleStatControls!A18,"#,##0") & "." -> possible when we use a segment count setting of 4. | I3: =CandleStatControls!B14 -> 00:01:00 | K3: Elapsed
A4: Look Forward
A5: 1 | B5: Bar Look Forward Results | G5: 2 | H5: Bar Look Forward Results | M5: 3 | N5: Bar Look Forward Results | S5: 4 | T5: Bar Look Forward Results
A6: Signature | B6: Bar Count | C6: Rank | D6: UPs as % of Bars | E6: Avg $ Return | F6: Avg % Return | G6: Signature | H6: Bar Count | I6: Rank | J6: % of Bars UP | K6: Avg $ Return | L6: Avg % Return | M6: Signature | N6: Bar Count | O6: Rank | P6: % of Bars UP | Q6: Avg $ Return | R6: Avg % Return | S6: Signature | T6: Bar Count | U6: Rank | V6: % of Bars UP | W6: Avg $ Return | X6: Avg % Return
A8: 1_4_3 | B8: 1186 | C8: 9352.051229 | D8: 58.51602024 | E8: 0.08349072513 | F8: 0.2302886985 | G8: 0_4_4 | H8: 1666 | I8: 12195.66929 | J8: 56.36254502 | K8: 0.05828331333 | L8: 0.230435535 | M8: 0_4_4 | N8: 1666 | O8: 15762.89643 | P8: 58.34333733 | Q8: 0.0675090036 | R8: 0.2779575591 | S8: 1_3_3 | T8: 1544 | U8: 15091.26782 | V8: 58.61398964 | W8: 0.08212435233 | X8: 0.2844958031
A9: 0_4_4 | B9: 1671 | C9: 9208.153004 | D9: 55.71514063 | E9: 0.04944344704 | F9: 0.1775209506 | G9: 1_3_3 | H9: 1545 | I9: 9517.994794 | J9: 56.82847896 | K9: 0.06028478964 | L9: 0.1907589463 | M9: 1_4_3 | N9: 1183 | O9: 11309.51084 | P9: 55.79036348 | Q9: 0.1150211327 | R9: 0.3071430515 | S9: 2_3_2 | T9: 794 | U9: 12888.02186 | V9: 57.68261965 | W9: 0.1543198992 | X9: 0.4878382065
A10: 2_3_2 | B10: 795 | C10: 4863.60744 | D10: 55.47169811 | E10: 0.05642767296 | F10: 0.198814687 | G10: 2_3_2 | H10: 795 | I10: 9317.398915 | J10: 58.86792453 | K10: 0.1132578616 | L10: 0.3381972815 | M10: 2_4_2 | N10: 523 | O10: 10896.73349 | P10: 60.22944551 | Q10: 0.1423518164 | R10: 0.5743503771 | S10: 1_2_2 | T10: 1054 | U10: 11565.53661 | V10: 57.96963947 | W10: 0.0855028463 | X10: 0.3265306689
A11: 1_3_3 | B11: 1545 | C11: 4212.636542 | D11: 55.79288026 | E11: 0.02660841424 | F11: 0.08759270591 | G11: 1_4_3 | H11: 1183 | I11: 8195.135648 | J11: 55.36770921 | K11: 0.08619611158 | L11: 0.2259739053 | M11: 2_3_2 | N11: 795 | O11: 10840.94382 | P11: 59.62264151 | Q11: 0.1261132075 | R11: 0.3835990643 | S11: 1_4_3 | T11: 1183 | U11: 11248.56011 | V11: 57.05832629 | W11: 0.1085798817 | X11: 0.2920613795
A12: 2_4_2 | B12: 523 | C12: 4208.213312 | D12: 59.65583174 | E12: 0.07099426386 | F12: 0.2260946296 | G12: 2_4_2 | H12: 523 | I12: 5805.299405 | J12: 56.21414914 | K12: 0.07757170172 | L12: 0.3512623894 | M12: 1_3_3 | N12: 1545 | O12: 9929.135246 | P12: 55.98705502 | Q12: 0.06158576052 | R12: 0.2050254129 | S12: 0_4_4 | T12: 1664 | U12: 10728.94494 | V12: 55.94951923 | W12: 0.05018028846 | X12: 0.2059733235
A13: 2_1_2 | B13: 979 | C13: 3771.628012 | D13: 53.72829418 | E13: 0.04509703779 | F13: 0.1334565999 | G13: 2_2_1 | H13: 867 | I13: 4585.621564 | J13: 55.3633218 | K13: 0.06392156863 | L13: 0.1725578948 | M13: 1_2_2 | N13: 1054 | O13: 6795.367831 | P13: 55.028463 | Q13: 0.05241935484 | R13: 0.2129107519 | S13: 2_4_2 | T13: 523 | U13: 10257.8954 | V13: 56.78776291 | W13: 0.1522944551 | X13: 0.6082008973
A14: 2_2_1 | B14: 867 | C14: 3705.698556 | D14: 55.24798155 | E14: 0.04600922722 | F14: 0.1400290553 | G14: 1_2_3 | H14: 942 | I14: 4581.533836 | J14: 54.2462845 | K14: 0.02348195329 | L14: 0.1652798846 | M14: 0_3_3 | N14: 597 | O14: 5363.604419 | P14: 55.10887772 | Q14: 0.07782244556 | R14: 0.2958279985 | S14: 0_3_3 | T14: 597 | U14: 6638.795934 | V14: 53.76884422 | W14: 0.1098492462 | X14: 0.384639238
A15: 3_2_1 | B15: 680 | C15: 3675.57181 | D15: 55 | E15: 0.05876470588 | F15: 0.1786860384 | G15: 3_3_0 | H15: 164 | I15: 3896.101252 | J15: 60.36585366 | K15: 0.1467073171 | L15: 0.6519340937 | M15: 4_1_0 | N15: 1477 | O15: 5096.46178 | P15: 53.08056872 | Q15: 0.03217332431 | R15: 0.1224664536 | S15: 2_2_1 | T15: 867 | U15: 6225.758598 | V15: 55.47866205 | W15: 0.06798154556 | X15: 0.2333034826
A16: 1_3_2 | B16: 555 | C16: 2331.081081 | D16: 53.69369369 | E16: 0.04953153153 | F16: 0.1456860051 | G16: 1_2_2 | H16: 1054 | I16: 3853.425961 | J16: 54.45920304 | K16: 0.02508538899 | L16: 0.1232718305 | M16: 1_2_3 | N16: 941 | O16: 4968.009282 | P16: 55.47290117 | Q16: 0.02804463337 | R16: 0.1715659171 | S16: 2_3_1 | T16: 353 | U16: 5924.45028 | V16: 58.35694051 | W16: 0.133796034 | X16: 0.4928199992
A17: 0_3_3 | B17: 597 | C17: 2194.59654 | D17: 52.93132328 | E17: 0.0222278057 | F17: 0.1312063506 | G17: 2_3_1 | H17: 353 | I17: 3731.842608 | J17: 57.50708215 | K17: 0.07011331445 | L17: 0.3196729939 | M17: 2_2_1 | N17: 867 | O17: 4619.095986 | P17: 55.94002307 | Q17: 0.05136101499 | R17: 0.1702521509 | S17: 1_2_3 | T17: 941 | U17: 5714.013937 | V17: 53.98512221 | W17: 0.03017003188 | X17: 0.2083547924
A18: 3_2_0 | B18: 427 | C18: 2009.935256 | D18: 54.80093677 | E18: 0.05388758782 | F18: 0.1567394175 | G18: 2_1_2 | H18: 979 | I18: 3585.698455 | J18: 54.13687436 | K18: 0.04041879469 | L18: 0.1249696969 | M18: 3_1_0 | N18: 910 | O18: 4441.794359 | P18: 54.83516484 | Q18: 0.04873626374 | R18: 0.1623299853 | S18: 3_1_0 | T18: 910 | U18: 5452.044578 | V18: 55.16483516 | W18: 0.05102197802 | X18: 0.1968762625
A19: 3_4_1 | B19: 217 | C19: 1797.007236 | D19: 57.60368664 | E19: 0.06216589862 | F19: 0.2495683649 | G19: 3_2_1 | H19: 680 | I19: 3227.382887 | J19: 54.41176471 | K19: 0.06380882353 | L19: 0.1603082807 | M19: 2_3_1 | N19: 353 | O19: 4094.86867 | P19: 56.94050992 | Q19: 0.09209631728 | R19: 0.3577853619 | S19: 2_1_2 | T19: 978 | U19: 4441.101039 | V19: 54.70347648 | W19: 0.04214723926 | X19: 0.1517476397
A20: 2_3_1 | B20: 353 | C20: 1762.984507 | D20: 57.22379603 | E20: 0.01960339943 | F20: 0.1525177755 | G20: 3_2_0 | H20: 427 | I20: 3148.019065 | J20: 53.62997658 | K20: 0.07419203747 | L20: 0.2563269466 | M20: 1_3_2 | N20: 555 | O20: 4068.840753 | P20: 57.2972973 | Q20: 0.07212612613 | R20: 0.2233106501 | S20: 0_4_3 | T20: 33 | U20: 4387.275416 | V20: 84.84848485 | W20: 0.5336363636 | X20: 1.846684805
A21: 2_2_2 | B21: 692 | C21: 1743.884632 | D21: 51.44508671 | E21: 0.01702312139 | F21: 0.09521905107 | G21: 3_1_0 | H21: 910 | I21: 3101.427186 | J21: 53.62637363 | K21: 0.03052747253 | L21: 0.1185122757 | M21: 4_2_0 | N21: 585 | O21: 3822.745296 | P21: 55.04273504 | Q21: 0.04996581197 | R21: 0.2156847728 | S21: 3_3_1 | T21: 473 | U21: 3988.785689 | V21: 56.23678647 | W21: 0.07427061311 | X21: 0.2666481473
A22: 3_3_0 | B22: 164 | C22: 1429.696444 | D22: 60.36585366 | E22: 0.04951219512 | F22: 0.2392309119 | G22: 1_3_2 | H22: 555 | I22: 2866.756657 | J22: 55.13513514 | K22: 0.054 | L22: 0.1699186151 | M22: 0_4_3 | N22: 33 | O22: 2878.106725 | P22: 69.6969697 | Q22: 0.4533333333 | R22: 1.795416294 | S22: 1_3_2 | T22: 555 | U22: 3958.670747 | V22: 57.83783784 | W22: 0.06798198198 | X22: 0.2132221412
A23: 1_2_1 | B23: 469 | C23: 1426.402181 | D23: 54.58422175 | E23: 0.03172707889 | F23: 0.1020786473 | G23: 1_2_1 | H23: 469 | I23: 2799.380656 | J23: 58.20895522 | K23: 0.04880597015 | L23: 0.1761608941 | M23: 1_2_1 | N23: 469 | O23: 2871.090311 | P23: 57.78251599 | Q23: 0.05579957356 | R23: 0.1833500846 | S23: 0_3_4 | T23: 2002 | U23: 3486.675002 | V23: 52.2977023 | W23: 0.02253746254 | X23: 0.06367693893
A24: 3_3_1 | B24: 473 | C24: 1037.663781 | D24: 50.31712474 | E24: 0.01437632135 | F24: 0.08664906579 | G24: 0_3_3 | H24: 597 | I24: 2084.245669 | J24: 51.75879397 | K24: 0.02932998325 | L24: 0.1303185623 | M24: 3_3_1 | N24: 473 | O24: 2819.498001 | P24: 54.12262156 | Q24: 0.05365750529 | R24: 0.2034946525 | S24: 3_2_0 | T24: 427 | U24: 3112.970485 | V24: 55.73770492 | W24: 0.0924824356 | X24: 0.2346653479
A25: 2_2_0 | B25: 265 | C25: 1026.318894 | D25: 61.50943396 | E25: 0.04939622642 | F25: 0.1023653532 | G25: 0_4_3 | H25: 33 | I25: 1972.107706 | J25: 69.6969697 | K25: 0.3539393939 | L25: 1.230237321 | M25: 2_1_2 | N25: 979 | O25: 2817.906301 | P25: 54.23901941 | Q25: 0.0291113381 | R25: 0.09784084566 | S25: 3_3_0 | T25: 164 | U25: 3002.021007 | V25: 62.80487805 | W25: 0.1179268293 | X25: 0.4640696061
A26: 1_2_3 | B26: 942 | C26: 975.1269012 | D26: 54.35244161 | E26: 0.008662420382 | F26: 0.03504064716 | G26: 3_4_1 | H26: 217 | I26: 1526.093235 | J26: 51.15207373 | K26: 0.06 | L26: 0.2687786966 | M26: 3_3_0 | N26: 164 | O26: 2791.200445 | P26: 56.09756098 | Q26: 0.1227439024 | R26: 0.5408280636 | S26: 1_1_3 | T26: 697 | U26: 2018.916563 | V26: 54.51936872 | W26: 0.02281205165 | X26: 0.09745047399
A27: 1_2_2 | B27: 1054 | C27: 958.365403 | D27: 52.65654649 | E27: 0.005332068311 | F27: 0.03279334907 | G27: 3_3_1 | H27: 473 | I27: 1460.494057 | J27: 54.75687104 | K27: 0.02930232558 | L27: 0.1029820201 | M27: 3_2_0 | N27: 427 | O27: 2657.788434 | P27: 53.16159251 | Q27: 0.08470725995 | R27: 0.2202401873 | S27: 2_4_1 | T27: 13 | U27: 2009.588097 | V27: 76.92307692 | W27: 0.8284615385 | X27: 2.612464526
A28: 2_1_1 | B28: 1340 | C28: 844.8939752 | D28: 53.05970149 | E28: 0.01321641791 | F28: 0.02239586341 | G28: 1_1_3 | H28: 697 | I28: 950.7812254 | J28: 54.66284075 | K28: 0.02763271162 | L28: 0.04565238005 | M28: 4_3_0 | N28: 246 | O28: 2226.303996 | P28: 58.53658537 | Q28: 0.08808943089 | R28: 0.2641159254 | S28: 3_4_1 | T28: 217 | U28: 1996.493926 | V28: 53.4562212 | W28: 0.08041474654 | X28: 0.3219672874
A29: 1_1_3 | B29: 697 | C29: 814.7157671 | D29: 50.93256815 | E29: 0.008450502152 | F29: 0.04505906682 | G29: 2_2_0 | H29: 265 | I29: 911.2359605 | J29: 55.8490566 | K29: 0.04169811321 | L29: 0.1102435763 | M29: 2_4_1 | N29: 13 | O29: 1893.05924 | P29: 76.92307692 | Q29: 0.82 | R29: 2.460977013 | S29: 0_2_4 | T29: 969 | U29: 1796.785397 | V29: 51.70278638 | W29: 0.027750258 | X29: 0.06936566187
A30: 0_4_3 | B30: 33 | C30: 800.0271036 | D30: 66.66666667 | E30: 0.126969697 | F30: 0.5454730252 | G30: 2_2_2 | H30: 692 | I30: 720.9016101 | J30: 50.43352601 | K30: -0.007413294798 | L30: 0.04095729216 | M30: 2_1_1 | N30: 1340 | O30: 1440.178882 | P30: 52.8358209 | Q30: 0.009186567164 | R30: 0.03849946737 | S30: 1_2_1 | T30: 469 | U30: 1782.618773 | V30: 53.9445629 | W30: 0.04089552239 | X30: 0.1306141643
A31: 2_3_0 | B31: 17 | C31: 707.0334518 | D31: 76.47058824 | E31: 0.3017647059 | F31: 0.7112170817 | G31: 2_4_1 | H31: 13 | I31: 664.1580507 | J31: 61.53846154 | K31: 0.5046153846 | L31: 1.349071041 | M31: 3_4_1 | N31: 217 | O31: 1359.385101 | P31: 54.83870968 | Q31: 0.04437788018 | R31: 0.2083091356 | S31: 0_3_2 | T31: 34 | U31: 1543.181017 | V31: 67.64705882 | W31: 0.3497058824 | X31: 0.9918365705
A32: 2_4_1 | B32: 13 | C32: 514.5710358 | D32: 61.53846154 | E32: 0.3061538462 | F32: 1.045222416 | G32: 1_1_1 | H32: 1002 | I32: 628.8795135 | J32: 51.59680639 | K32: -0.0004890219561 | L32: 0.02357512926 | M32: 3_1_1 | N32: 1524 | O32: 1171.783073 | P32: 52.16535433 | Q32: 0.0007086614173 | R32: 0.02825517034 | S32: 3_2_1 | T32: 680 | U32: 1395.19615 | V32: 50.88235294 | W32: 0.04083823529 | X32: 0.07924867035
A33: 3_1_2 | B33: 3 | C33: 471.8581436 | D33: 100 | E33: 0.63 | F33: 1.572860479 | G33: 1_2_0 | H33: 8 | I33: 531.8298579 | J33: 87.5 | K33: 0.305 | L33: 0.8682936456 | M33: 3_2_1 | N33: 680 | O33: 1054.221388 | P33: 53.67647059 | Q33: 0.03158823529 | R33: 0.05380901062 | S33: 2_1_1 | T33: 1340 | U33: 1282.531999 | V33: 53.20895522 | W33: 0.00402238806 | X33: 0.03380601254
A34: 2_1_3 | B34: 3 | C34: 456.5415423 | D34: 100 | E34: 0.3966666667 | F34: 1.521805141 | G34: 2_3_0 | H34: 17 | I34: 492.0774696 | J34: 58.82352941 | K34: 0.3647058824 | L34: 0.8365316983 | M34: 2_2_2 | N34: 692 | O34: 894.1665154 | P34: 52.4566474 | Q34: 0.005289017341 | R34: 0.04695817898 | S34: 3_0_1 | T34: 1586 | U34: 1111.19794 | V34: 52.5220681 | W34: -0.004968474149 | X34: 0.02539829762
A35: 3_1_0 | B35: 910 | C35: 441.0155524 | D35: 52.1978022 | E35: 0.007934065934 | F35: 0.01778722006 | G35: 0_3_2 | H35: 34 | I35: 360.2239026 | J35: 52.94117647 | K35: 0.1464705882 | L35: 0.3780127373 | M35: 1_3_1 | N35: 28 | O35: 892.140499 | P35: 60.71428571 | Q35: 0.2314285714 | R35: 0.8643575769 | S35: 0_0_3 | T35: 201 | U35: 1011.106159 | V35: 52.23880597 | W35: 0.0452238806 | X35: 0.1843377214
A36: 1_1_1 | B36: 1002 | C36: 299.3623652 | D36: 49.4011976 | E36: 0.0007784431138 | F36: 0.0122420606 | G36: 0_2_3 | H36: 924 | I36: 340.0323217 | J36: 54.54545455 | K36: 0.009166666667 | L36: 0.01236890059 | M36: 1_1_3 | N36: 697 | O36: 868.9094937 | P36: 54.23242468 | Q36: 0.01407460545 | R36: 0.04238612561 | S36: 2_2_0 | T36: 265 | U36: 933.2056068 | V36: 55.09433962 | W36: 0.05769811321 | X36: 0.1160158969
A37: 0_1_1 | B37: 108 | C37: 268.5253934 | D37: 56.48148148 | E37: 0.0175 | F37: 0.07793803411 | G37: 1_4_2 | H37: 21 | I37: 323.9501493 | J37: 47.61904762 | K37: 0.2904761905 | L37: 0.6802953135 | M37: 2_3_0 | N37: 17 | O37: 746.1875343 | P37: 58.82352941 | Q37: 0.6864705882 | R37: 1.268518808 | S37: 2_3_0 | T37: 17 | U37: 785.0402699 | V37: 58.82352941 | W37: 0.72 | X37: 1.334568459
A38: 0_3_2 | B38: 34 | C38: 244.5326753 | D38: 55.88235294 | E38: 0.1217647059 | F38: 0.2303077828 | G38: 0_1_1 | H38: 108 | I38: 232.7939604 | J38: 50 | K38: 3.454027188e-16 | L38: 0.08621998535 | M38: 0_0_3 | N38: 201 | O38: 689.6212875 | P38: 48.75621891 | Q38: 0.04034825871 | R38: 0.1443293199 | S38: 0_2_2 | T38: 421 | U38: 717.813024 | V38: 55.34441805 | W38: 0.01679334917 | X38: 0.0556649198
A39: 1_2_0 | B39: 8 | C39: 214.1149971 | D39: 87.5 | E39: 0.13625 | F39: 0.3495755054 | G39: 0_2_1 | H39: 17 | I39: 195.8172399 | J39: 47.05882353 | K39: 0.2882352941 | L39: 0.5201395436 | M39: 0_1_3 | N39: 660 | O39: 617.6913863 | P39: 52.72727273 | Q39: 0.005666666667 | R39: 0.03366332367 | S39: 0_1_3 | T39: 660 | U39: 699.6168998 | V39: 52.12121212 | W39: 0.006348484848 | X39: 0.03902000692
A40: 1_4_2 | B40: 21 | C40: 208.4905717 | D40: 57.14285714 | E40: 0.1285714286 | F40: 0.3040487504 | G40: 1_3_1 | H40: 28 | I40: 194.9181632 | J40: 50 | K40: -0.03035714286 | L40: 0.2784545189 | M40: 0_3_4 | N40: 2004 | O40: 513.9282959 | P40: 51.49700599 | Q40: 0.001442115768 | R40: 0.009670320153 | S40: 2_4_3 | T40: 1 | U40: 649.9080319 | V40: 100 | W40: 1.06 | X40: 6.499080319
A41: 1_1_0 | B41: 91 | C41: 164.8866631 | D41: 51.64835165 | E41: 0.02318681319 | F41: 0.06792524375 | G41: 0_0_1 | H41: 56 | I41: 184.5866965 | J41: 57.14285714 | K41: 0.01017857143 | L41: 0.1009458497 | M41: 2_4_3 | N41: 1 | O41: 484.36542 | P41: 100 | Q41: 0.79 | R41: 4.8436542 | S41: 0_1_4 | T41: 427 | U41: 633.8207494 | V41: 55.26932084 | W41: -0.03 | X41: 0.04859262065
A42: 0_1_3 | B42: 660 | C42: 128.9073061 | D42: 51.06060606 | E42: -0.002651515152 | F42: 0.007491377228 | G42: 3_1_2 | H42: 3 | I42: 174.3512547 | J42: 66.66666667 | K42: 0.85 | L42: 1.30763441 | M42: 1_4_2 | N42: 21 | O42: 411.5286293 | P42: 52.38095238 | Q42: 0.3223809524 | R42: 0.714223241 | S42: 0_0_1 | T42: 56 | U42: 569.6450172 | V42: 55.35714286 | W42: 0.07928571429 | X42: 0.3319471484
A43: 0_0_1 | B43: 56 | C43: 7.46472938 | D43: 44.64285714 | E43: -0.01821428571 | F43: 0.006688397525 | G43: 1_1_0 | H43: 91 | I43: 88.72154907 | J43: 54.94505495 | K43: 0.01285714286 | L43: 0.03229464386 | M43: 1_2_0 | N43: 8 | O43: 391.0678718 | P43: 75 | Q43: 0.3125 | R43: 0.8690397152 | S43: 3_0_0 | T43: 667 | U43: 489.9192258 | V43: 53.52323838 | W43: 0.01937031484 | X43: 0.02563975579
A44: 2_4_3 | B44: 1 | C44: 6.131207848 | D44: 100 | E44: 0.01 | F44: 0.06131207848 | G44: 0_0_3 | H44: 201 | I44: 74.20705347 | J44: 46.76616915 | K44: -0.002736318408 | L44: 0.01688050899 | M44: 0_3_2 | N44: 34 | O44: 290.6686514 | P44: 61.76470588 | Q44: 0.1320588235 | R44: 0.22409828 | S44: 1_0_2 | T44: 589 | U44: 458.9491255 | V44: 50.93378608 | W44: -0.007028862479 | X44: 0.03003567055
A45: 3_4_0 | B45: 8 | C45: 6.115790545 | D45: 50 | E45: 0.03625 | F45: 0.03057895273 | G45: 3_4_0 | H45: 8 | I45: 64.61277168 | J45: 50 | K45: 0.05375 | L45: 0.3230638584 | M45: 1_1_0 | N45: 91 | O45: 286.3463219 | P45: 54.94505495 | Q45: 0.01307692308 | R45: 0.1042300612 | S45: 2_1_0 | T45: 618 | U45: 432.5238343 | V45: 52.58899676 | W45: -0.003948220065 | X45: 0.02530648328
A46: 1_1_4 | B46: 1 | C46: 0 | D46: 0 | E46: -0.1 | F46: -0.100270731 | G46: 0_3_4 | H46: 2004 | I46: 20.72528878 | J46: 50.5988024 | K46: 0.0005189620758 | L46: 0.0004039451496 | M46: 0_0_1 | N46: 56 | O46: 274.8428041 | P46: 53.57142857 | Q46: 0.03107142857 | R46: 0.1710133003 | S46: 1_4_2 | T46: 21 | U46: 411.2876488 | V46: 52.38095238 | W46: 0.3295238095 | X46: 0.7138050103
A47: 1_3_4 | B47: 1 | C47: 0 | D47: 0 | E47: -0.17 | F47: -0.6017699115 | G47: 3_0_2 | H47: 2 | I47: 13.99377965 | J47: 50 | K47: 0.02 | L47: 0.279875593 | M47: 4_4_0 | N47: 46 | O47: 236.1543255 | P47: 56.52173913 | Q47: 0.005869565217 | R47: 0.1606967303 | S47: 1_1_0 | T47: 91 | U47: 333.2706784 | V47: 51.64835165 | W47: 0.03945054945 | X47: 0.1372912256
A48: 1_4_4 | B48: 3 | C48: 0 | D48: 0 | E48: -0.32 | F48: -1.611384857 | G48: 2_1_3 | H48: 3 | I48: 11.36969406 | J48: 33.33333333 | K48: 0.18 | L48: 0.3410908219 | M48: 2_2_0 | N48: 265 | O48: 194.7261947 | P48: 56.22641509 | Q48: 0.03120754717 | R48: 0.02324329607 | S48: 0_1_1 | T48: 108 | U48: 315.4300922 | V48: 50.92592593 | W48: -0.03416666667 | X48: 0.1126163635
A49: 2_2_3 | B49: 1 | C49: 0 | D49: 0 | E49: -0.86 | F49: -1.135463428 | G49: 1_1_4 | H49: 1 | I49: 0 | J49: 0 | K49: -0.11 | L49: -0.1102978041 | M49: 3_0_2 | N49: 2 | O49: 188.0907511 | P49: 100 | Q49: 0.23 | R49: 0.9404537556 | S49: 3_1_2 | T49: 3 | U49: 285.291174 | V49: 66.66666667 | W49: 1.446666667 | X49: 2.139683805
A50: 3_0_2 | B50: 2 | C50: 0 | D50: 0 | E50: -0.195 | F50: -0.7458425874 | G50: 1_3_4 | H50: 1 | I50: 0 | J50: 0 | K50: -0.65 | L50: -2.300884956 | M50: 3_1_2 | N50: 3 | O50: 168.2820057 | P50: 66.66666667 | Q50: 1.07 | R50: 1.262115043 | S50: 0_2_1 | T50: 17 | U50: 232.3106982 | V50: 58.82352941 | W50: 0.1976470588 | X50: 0.394928187
A51: 3_2_2 | B51: 1 | C51: 0 | D51: 0 | E51: -0.03 | F51: -0.1290877797 | G51: 2_2_3 | H51: 1 | I51: 0 | J51: 0 | K51: -0.14 | L51: -0.1848428835 | M51: 0_1_4 | N51: 427 | O51: 147.3146624 | P51: 54.33255269 | Q51: -0.03761124122 | R51: 0.01168686103 | S51: 1_2_0 | T51: 8 | U51: 227.5251177 | V51: 75 | W51: 0.155 | X51: 0.5056113727
A52: 3_3_2 | B52: 1 | C52: 0 | D52: 0 | E52: -0.06 | F52: -0.2957121735 | G52: 2_4_3 | H52: 1 | I52: 0 | J52: 0 | K52: -0.2 | L52: -1.22624157 | M52: 4_1_1 | N52: 3 | O52: 115.0510035 | P52: 66.66666667 | Q52: 0.2133333333 | R52: 0.862882526 | S52: 1_3_1 | T52: 28 | U52: 212.3799893 | V52: 46.42857143 | W52: 0.07392857143 | X52: 0.3518721717
A53: 0_0_0 | B53: 4 | C53: -7.428414526 | D53: 25 | E53: -0.1675 | F53: -0.2971365811 | G53: 3_2_2 | H53: 1 | I53: 0 | J53: 0 | K53: -0.06 | L53: -0.2581755594 | M53: 3_2_2 | N53: 1 | O53: 98.96729776 | P53: 100 | Q53: 0.23 | R53: 0.9896729776 | S53: 3_2_2 | T53: 1 | U53: 163.5111876 | V53: 100 | W53: 0.38 | X53: 1.635111876
A54: 1_2_4 | B54: 2 | C54: -28.713942 | D54: 50 | E54: -0.145 | F54: -0.57427884 | G54: 3_3_2 | H54: 1 | I54: 0 | J54: 0 | K54: -0.66 | L54: -3.252833908 | M54: 4_0_1 | N54: 1 | O54: 50.90677696 | P54: 100 | Q54: 0.16 | R54: 0.5090677696 | S54: 2_2_2 | T54: 692 | U54: 50.44392201 | V54: 52.02312139 | W54: -0.0174132948 | X54: 0.00269345633
A55: 0_2_1 | B55: 17 | C55: -54.11537116 | D55: 35.29411765 | E55: -0.01058823529 | F55: -0.2555448082 | G55: 0_0_0 | H55: 4 | I55: -20.7082954 | J55: 50 | K55: -0.1525 | L55: -0.207082954 | M55: 1_1_4 | N55: 1 | O55: 27.07309736 | P55: 100 | Q55: 0.27 | R55: 0.2707309736 | S55: 1_1_4 | T55: 1 | U55: 41.1109997 | V55: 100 | W55: 0.41 | X55: 0.411109997
A56: 1_0_0 | B56: 70 | C56: -88.67540793 | D56: 57.14285714 | E56: -0.006714285714 | F56: -0.03879549097 | G56: 1_2_4 | H56: 2 | I56: -34.32644808 | J56: 50 | K56: -0.18 | L56: -0.6865289616 | M56: 0_2_1 | N56: 17 | O56: 23.81883483 | P56: 47.05882353 | Q56: 0.1205882353 | R56: 0.06326878001 | S56: 0_0_0 | T56: 4 | U56: 27.02857014 | V56: 50 | W56: 0.005 | X56: 0.2702857014
A57: 1_3_1 | B57: 28 | C57: -134.9854631 | D57: 50 | E57: -0.1278571429 | F57: -0.1928363759 | G57: 1_4_4 | H57: 3 | I57: -72.18586703 | J57: 33.33333333 | K57: -0.5233333333 | L57: -2.165576011 | M57: 1_3_4 | N57: 1 | O57: 0 | P57: 0 | Q57: -1.43 | R57: -5.061946903 | S57: 3_0_2 | T57: 2 | U57: 9.127248768 | V57: 50 | W57: 0.125 | X57: 0.1825449754
A58: 3_1_1 | B58: 1525 | C58: -140.6529417 | D58: 48.13114754 | E58: 0.001160655738 | F58: -0.003981315032 | G58: 0_2_2 | H58: 421 | I58: -86.84397788 | J58: 51.3064133 | K58: -0.009358669834 | L58: -0.007836358601 | M58: 2_2_3 | N58: 1 | O58: 0 | P58: 0 | Q58: -1 | R58: -1.320306311 | S58: 1_2_4 | T58: 2 | U58: 4.877908316 | V58: 50 | W58: 0.025 | X58: 0.09755816632
A59: 2_1_0 | B59: 618 | C59: -176.8876331 | D59: 49.02912621 | E59: -0.005566343042 | F59: -0.01190695436 | G59: 2_1_1 | H59: 1340 | I59: -393.042596 | J59: 52.6119403 | K59: -0.001723880597 | L59: -0.01059659129 | M59: 3_3_2 | N59: 1 | O59: 0 | P59: 0 | Q59: -0.37 | R59: -1.823558403 | S59: 1_3_4 | T59: 1 | U59: 0 | V59: 0 | W59: -0.71 | X59: -2.513274336
A60: 0_0_3 | B60: 201 | C60: -303.6356609 | D60: 45.27363184 | E60: -0.03134328358 | F60: -0.07369975588 | G60: 0_1_4 | H60: 427 | I60: -411.5194218 | J60: 51.28805621 | K60: -0.03241217799 | L60: -0.03663785015 | M60: 0_0_0 | N60: 4 | O60: -11.94133761 | P60: 25 | Q60: -0.1875 | R60: -0.4776535042 | S60: 2_2_3 | T60: 1 | U60: 0 | V60: 0 | W60: -1.48 | X60: -1.95405334
A61: 1_0_2 | B61: 589 | C61: -366.795384 | D61: 48.55687606 | E61: -0.01803056027 | F61: -0.02641235282 | G61: 0_0_4 | H61: 120 | I61: -461.2312253 | J61: 50.83333333 | K61: -0.03316666667 | L61: -0.1487442812 | M61: 1_4_4 | N61: 3 | O61: -19.55571371 | P61: 33.33333333 | Q61: -0.2866666667 | R61: -0.5866714114 | S61: 3_3_2 | T61: 1 | U61: 0 | V61: 0 | W61: -0.1 | X61: -0.4928536225
A62: 0_0_4 | B62: 120 | C62: -369.560193 | D62: 48.33333333 | E62: -0.04325 | F62: -0.1318288441 | G62: 0_0_2 | H62: 250 | I62: -487.3872213 | J62: 55.2 | K62: -0.01868 | L62: -0.06398172932 | M62: 0_1_1 | N62: 108 | O62: -40.93529176 | P62: 49.07407407 | Q62: -0.07018518519 | R62: -0.01573873802 | S62: 3_4_0 | T62: 8 | U62: -20.69270692 | V62: 62.5 | W62: -0.00625 | X62: -0.06621666215
A63: 0_2_2 | B63: 421 | C63: -492.4407318 | D63: 48.21852732 | E63: -0.01361045131 | F63: -0.05030880344 | G63: 1_0_0 | H63: 70 | I63: -556.59547 | J63: 44.28571429 | K63: -0.06042857143 | L63: -0.4054285421 | M63: 3_4_0 | N63: 8 | O63: -52.06078206 | P63: 50 | Q63: -0.06 | R63: -0.2603039103 | S63: 1_4_4 | T63: 3 | U63: -52.71757879 | V63: 33.33333333 | W63: -0.5333333333 | X63: -1.581527364
A64: 1_1_2 | B64: 1148 | C64: -508.1724386 | D64: 51.2195122 | E64: 0.002334494774 | F64: -0.01687323452 | G64: 1_1_2 | H64: 1148 | I64: -587.7535153 | J64: 50.34843206 | K64: -0.00181184669 | L64: -0.02019674799 | M64: 1_2_4 | N64: 2 | O64: -55.92797359 | P64: 50 | Q64: -0.3 | R64: -1.118559472 | S64: 2_1_3 | T64: 3 | U64: -208.3930632 | V64: 66.66666667 | W64: -0.03 | X64: -1.562947974
A65: 1_0_1 | B65: 539 | C65: -934.9260395 | D65: 50.27829314 | E65: -0.00961038961 | F65: -0.06861632266 | G65: 3_1_1 | H65: 1525 | I65: -803.7589793 | J65: 50.03278689 | K65: -0.002163934426 | L65: -0.02105458112 | M65: 4_0_0 | N65: 1665 | O65: -57.46067744 | P65: 52.91291291 | Q65: -0.01896696697 | R65: -0.001232631219 | S65: 1_0_0 | T65: 70 | U65: -369.2019938 | V65: 47.14285714 | W65: -0.033 | X65: -0.2373199226
A66: 0_1_2 | B66: 674 | C66: -969.9800718 | D66: 46.58753709 | E66: -0.01525222552 | F66: -0.06630761577 | G66: 2_1_0 | H66: 618 | I66: -1060.138372 | J66: 49.6763754 | K66: -0.02108414239 | L66: -0.0695143199 | M66: 0_2_4 | N66: 969 | O66: -297.6200152 | P66: 49.84520124 | Q66: 0.003859649123 | R66: -0.01236208285 | S66: 2_0_2 | T66: 933 | U66: -782.4098597 | V66: 52.09003215 | W66: 0.0004180064309 | X66: -0.03090604409
A67: 0_0_2 | B67: 250 | C67: -1133.846956 | D67: 48 | E67: -0.049 | F67: -0.1968484298 | G67: 0_1_2 | H67: 674 | I67: -1334.762156 | J67: 50 | K67: -0.01765578635 | L67: -0.07921437129 | M67: 1_0_2 | N67: 589 | O67: -396.7562185 | P67: 51.10356537 | Q67: -0.0126655348 | R67: -0.02579324871 | S67: 0_2_3 | T67: 924 | U67: -1215.420757 | V67: 51.94805195 | W67: -0.02322510823 | X67: -0.04874343662
A68: 0_2_3 | B68: 924 | C68: -1161.242263 | D68: 49.45887446 | E68: -0.01695887446 | F68: -0.05137625033 | G68: 1_0_2 | H68: 589 | I68: -1420.308692 | J68: 51.61290323 | K68: -0.03616298812 | L68: -0.09052131879 | M68: 2_1_3 | N68: 3 | O68: -407.6256362 | P68: 66.66666667 | Q68: -0.1766666667 | R68: -3.057192271 | S68: 0_1_2 | T68: 674 | U68: -1554.259582 | V68: 50.59347181 | W68: -0.03292284866 | X68: -0.09008960693
A69: 2_0_0 | B69: 422 | C69: -1202.702462 | D69: 47.1563981 | E69: -0.05450236967 | F69: -0.128163541 | G69: 0_1_3 | H69: 660 | I69: -1430.011278 | J69: 50.60606061 | K69: -0.02916666667 | L69: -0.08460391585 | M69: 0_2_2 | N69: 421 | O69: -523.7592049 | P69: 53.68171021 | Q69: -0.005035629454 | R69: -0.04317147491 | S69: 1_1_1 | T69: 1002 | U69: -1663.881224 | V69: 49.8003992 | W69: -0.02783433134 | X69: -0.06695591529
A70: 3_0_0 | B70: 667 | C70: -1336.081103 | D70: 47.97601199 | E70: -0.03616191904 | F70: -0.08702793905 | G70: 0_2_4 | H70: 969 | I70: -1734.143444 | J70: 51.08359133 | K70: -0.01541795666 | L70: -0.06858014475 | M70: 1_0_0 | N70: 70 | O70: -611.414899 | P70: 41.42857143 | Q70: -0.1018571429 | R70: -0.5089065746 | S70: 1_1_2 | T70: 1148 | U70: -1705.332806 | V70: 51.82926829 | W70: -0.001045296167 | X70: -0.05529897779
A71: 0_1_4 | B71: 427 | C71: -1555.641479 | D71: 49.18032787 | E71: -0.06606557377 | F71: -0.1506256036 | G71: 1_0_1 | H71: 539 | I71: -1992.925904 | J71: 48.97959184 | K71: -0.02649350649 | L71: -0.1541246359 | M71: 0_2_3 | N71: 924 | O71: -873.5301991 | P71: 53.46320346 | Q71: -0.004902597403 | R71: -0.03307470635 | S71: 0_0_4 | T71: 120 | U71: -1730.14134 | V71: 49.16666667 | W71: -0.1178333333 | X71: -0.5964290745
A72: 3_0_1 | B72: 1590 | C72: -1642.4234 | D72: 46.60377358 | E72: -0.02708176101 | F72: -0.04756043654 | G72: 3_0_1 | H72: 1590 | I72: -2071.211075 | J72: 49.81132075 | K72: -0.03371698113 | L72: -0.05250142857 | M72: 2_1_0 | N72: 618 | O72: -1075.561806 | P72: 50.3236246 | Q72: -0.03786407767 | R72: -0.06872315173 | S72: 3_1_1 | T72: 1524 | U72: -2041.220192 | V72: 50.32808399 | W72: -0.02442257218 | X72: -0.05287910488
A73: 1_0_3 | B73: 419 | C73: -1906.914568 | D73: 42.24343675 | E73: -0.09133651551 | F73: -0.2550343784 | G73: 3_0_0 | H73: 667 | I73: -2719.831157 | J73: 51.27436282 | K73: -0.05236881559 | L73: -0.1551013459 | M73: 3_0_1 | N73: 1586 | O73: -1171.542605 | P73: 51.45018916 | Q73: -0.01983606557 | R73: -0.02790493098 | S73: 0_0_2 | T73: 250 | U73: -2054.874448 | V73: 54 | W73: -0.05516 | X73: -0.2818757816
A74: 0_3_4 | B74: 2005 | C74: -2041.01815 | D74: 52.11970075 | E74: -0.008593516209 | F74: -0.0374738801 | G74: 2_0_0 | H74: 422 | I74: -2936.285776 | J74: 48.34123223 | K74: -0.120971564 | L74: -0.2977490863 | M74: 3_0_0 | N74: 667 | O74: -1301.469341 | P74: 51.72413793 | Q74: -0.02373313343 | R74: -0.07293258141 | S74: 2_0_1 | T74: 925 | U74: -2386.309527 | V74: 49.51351351 | W74: -0.03738378378 | X74: -0.1052295109
A75: 2_0_2 | B75: 935 | C75: -2704.772936 | D75: 45.02673797 | E75: -0.05155080214 | F75: -0.142684971 | G75: 2_0_1 | H75: 925 | I75: -2940.66662 | J75: 49.40540541 | K75: -0.04 | L75: -0.1302432199 | M75: 2_0_2 | N75: 933 | O75: -1360.147943 | P75: 50.05359057 | Q75: -0.01389067524 | R75: -0.05818808058 | S75: 1_0_1 | T75: 539 | U75: -2602.906012 | V75: 49.16512059 | W75: -0.04402597403 | X75: -0.1997816077
A76: 2_0_1 | B76: 925 | C76: -2867.494553 | D76: 46.59459459 | E76: -0.04722162162 | F76: -0.1427873699 | G76: 2_0_2 | H76: 935 | I76: -3017.7885 | J76: 48.34224599 | K76: -0.04801069519 | L76: -0.138109496 | M76: 0_0_4 | N76: 120 | O76: -1514.176769 | P76: 48.33333333 | Q76: -0.1335833333 | R76: -0.5401344005 | S76: 2_0_0 | T76: 422 | U76: -3452.168024 | V76: 47.39336493 | W76: -0.1346208531 | X76: -0.3642037266
A77: 0_2_4 | B77: 969 | C77: -4154.425813 | D77: 49.01960784 | E77: -0.04656346749 | F77: -0.178421656 | G77: 1_0_3 | H77: 419 | I77: -3071.145221 | J77: 42.48210024 | K77: -0.1276372315 | L77: -0.406138697 | M77: 0_1_2 | N77: 674 | O77: -1664.289907 | P77: 48.66468843 | Q77: -0.03005934718 | R77: -0.1042656341 | S77: 1_0_3 | T77: 418 | U77: -3691.12709 | V77: 45.6937799 | W77: -0.1440430622 | X77: -0.4229300522
A78: 4_0_0 | B78: 1665 | C78: -1339.256177 | D78: 49.54954955 | E78: -0.01887087087 | F78: -0.03276196928 | G78: 4_0_0 | H78: 1665 | I78: -90.14901249 | J78: 52.73273273 | K78: -0.00806006006 | L78: -0.001947090688 | M78: 0_0_2 | N78: 250 | O78: -1713.916246 | P78: 54.4 | Q78: -0.04388 | R78: -0.2316603922 | S78: 4_0_0 | T78: 1665 | U78: 2633.322086 | V78: 52.61261261 | W78: -0.002816816817 | X78: 0.05713602293
A79: 4_0_1 | B79: 1 | C79: 6.363347121 | D79: 100 | E79: 0.02 | F79: 0.06363347121 | G79: 4_0_1 | H79: 1 | I79: 50.90677696 | J79: 100 | K79: 0.16 | L79: 0.5090677696 | M79: 1_1_2 | N79: 1148 | O79: -2081.466712 | P79: 52.96167247 | Q79: -0.008022648084 | R79: -0.06464042441 | S79: 4_0_1 | T79: 1 | U79: 41.36175628 | V79: 100 | W79: 0.13 | X79: 0.4136175628
A80: 4_1_0 | B80: 1479 | C80: 2338.213546 | D80: 51.25084517 | E80: 0.01804597701 | F80: 0.06018855748 | G80: 4_1_0 | H80: 1478 | I80: 2616.968985 | J80: 52.84167794 | K80: 0.0199255751 | L80: 0.06341192568 | M80: 1_1_1 | N80: 1002 | O80: -2198.616868 | P80: 51.29740519 | Q80: -0.03391217565 | R80: -0.08338559637 | S80: 4_1_0 | T80: 1476 | U80: 6448.661051 | V80: 55.01355014 | W80: 0.04056233062 | X80: 0.1443589949
A81: 4_1_1 | B81: 3 | C81: 20.10186796 | D81: 66.66666667 | E81: 0.08666666667 | F81: 0.1507640097 | G81: 4_1_1 | H81: 3 | I81: 79.75565931 | J81: 66.66666667 | K81: 0.1233333333 | L81: 0.5981674448 | M81: 1_0_1 | N81: 539 | O81: -2222.150494 | P81: 51.57699443 | Q81: -0.02975881262 | R81: -0.154978924 | S81: 4_1_1 | T81: 3 | U81: -12.65158207 | V81: 33.33333333 | W81: 0.04666666667 | X81: -0.3795474622
A82: 4_2_0 | B82: 585 | C82: 1007.393977 | D82: 51.28205128 | E82: 0.01866666667 | F82: 0.06548060852 | G82: 4_2_0 | H82: 585 | I82: 1216.524356 | J82: 51.79487179 | K82: 0.005042735043 | L82: 0.0775160113 | M82: 2_0_1 | N82: 925 | O82: -2399.004736 | P82: 50.16216216 | Q82: -0.03783783784 | R82: -0.1030710919 | S82: 4_2_0 | T82: 583 | U82: 936.5891034 | V82: 51.97255575 | W82: -0.001869639794 | X82: 0.05947471896
A83: 4_3_0 | B83: 246 | C83: 436.2794465 | D83: 53.65853659 | E83: 0.03166666667 | F83: 0.06159592736 | G83: 4_3_0 | H83: 246 | I83: 1259.921145 | J83: 52.84552846 | K83: 0.06390243902 | L83: 0.1833968057 | M83: 1_0_3 | N83: 418 | O83: -2959.483286 | P83: 41.86602871 | Q83: -0.134569378 | R83: -0.4039392698 | S83: 4_3_0 | T83: 246 | U83: 1030.873256 | V83: 54.87804878 | W83: 0.05317073171 | X83: 0.1391466782
A84: 4_4_0 | B84: 46 | C84: -86.8967195 | D84: 63.04347826 | E84: -0.02086956522 | F84: -0.04752971578 | G84: 4_4_0 | H84: 46 | I84: -48.46650432 | J84: 63.04347826 | K84: -0.0647826087 | L84: -0.02650962187 | M84: 2_0_0 | N84: 422 | O84: -3335.839378 | P84: 47.63033175 | Q84: -0.1339810427 | R84: -0.3484379638 | S84: 4_4_0 | T84: 46 | U84: -100.7269633 | V84: 63.04347826 | W84: -0.1513043478 | X84: -0.05509441512

Sheet SigBuilderPriceData
A1: iShares Core U.S. (AGG) -PCX (Daily)
A2: Last Trade: | B2: 2014-12-11 | C2: 110.15 | D2: 110.17 | E2: 110.08 | F2: 110.1 | G2: 172961 | H2: 10:44am
A3: Request Online Yahoo History for:
A4: Symbol | B4: AGG
A5: From | B5: 1977-01-07
A6: To | B6: =TODAY() -> 2014-12-11
A7: Data Type | B7: =CandleStatControls!$B$7 -> Daily
A9: Available Data
A10: Bar Count: | B10: =COUNTA(B15:B40874)-1 -> 2822
A11: From: | B11: =IF(B10<=0,"",OFFSET(B15,B10,IF(HistReqDataType="v",1,0),1,1)) -> 2003-09-29
A12: To: | B12: =IF(B10<=0,"",IF(HistReqDataType="v",OFFSET(B15,2,1,1,1),OFFSET(B15,1,0,1,1))) -> 2014-12-11 | U12: Candle Signature Calculations
Q13: Split History | S13: =COUNT(Q16:Q10996) -> 0 | T13: Running | U13: Candle Range | V13: ="SMA(" & CandleStatControls!$A$17 & ") of Candle Range" -> SMA(10) of Candle Range | W13: Range Multiplier | X13: Capped Range Multiplier | Y13: Factor | Z13: HO Range | AA13: HO | AB13: HC Range | AC13: HC | AD13: OL Range | AE13: OL | AF13: Candle Signature
B14: Raw Data Values | H14: Adjusted | I14: Price Adjust | J14: Vol Adjust | K14: Adjusted Values | P14: Last | Q14: Effective | R14: Shares | T14: Vol Adjust | AG14: $ Returns for "x" Bars Forward | AK14: % Returns for "x" Bars Forward
A15: RelRow | B15: Date | C15: Open | D15: High | E15: Low | F15: Close | G15: Volume | H15: Close | I15: Factor | J15: Factor | K15: Open | L15: High | M15: Low | N15: Close | O15: Volume | P15: Trade | Q15: 41985 | R15: New | S15: Old | T15: 1 | AG15: 1 | AH15: 2 | AI15: 3 | AJ15: 4 | AK15: 1 | AL15: 2 | AM15: 3 | AN15: 4
A16: 1 | B16: 2014-12-11 | C16: 110.15 | D16: 110.17 | E16: 110.08 | F16: 110.1 | G16: 172961 | H16: 110.1 | I16: =H16/F16 -> 1 | J16: =INDEX(OFFSET($T$15,0,0,$S$13+1,1),MATCH(B16,OFFSET($Q$15,0,0,$S$13+1,1),-1)) -> 1 | K16: =ROUND($I16*C16,2) -> 110.15 | L16: =ROUND($I16*D16,2) -> 110.17 | M16: =ROUND($I16*E16,2) -> 110.08 | N16: =ROUND($I16*F16,2) -> 110.1 | O16: =G16*J16 -> 172961 | P16: 10:44am | U16: =L16-M16 -> 0.09 | V16: =AVERAGE(OFFSET(U16,0,0,CandleStatControls!$A$17,1)) -> 0.286 | W16: =U16/V16 -> 0.3146853147 | X16: =IF(W16>1,1,W16) -> 0.3146853147 | Y16: =1/(U16/100)*X16/(100/CandleStatControls!$A$18) -> 13.98601399 | Z16: =L16-K16 -> 0.02 | AA16: =ROUND($Y16*Z16,0) -> 0 | AB16: =L16-N16 -> 0.07 | AC16: =ROUND($Y16*AB16,0) -> 1 | AD16: =K16-M16 -> 0.07 | AE16: =ROUND($Y16*AD16,0) -> 1 | AF16: =IF(U16=0,"0_0_0",AA16 & "_" & AC16 & "_" & AE16) -> 0_1_1 | AG16: =IF($A16<=AG$15,"",OFFSET($F16,-AG$15,0,1,1)-$F16) ->  | AH16: =IF($A16<=AH$15,"",OFFSET($F16,-AH$15,0,1,1)-$F16) ->  | AI16: =IF($A16<=AI$15,"",OFFSET($F16,-AI$15,0,1,1)-$F16) ->  | AJ16: =IF($A16<=AJ$15,"",OFFSET($F16,-AJ$15,0,1,1)-$F16) ->  | AK16: =IF($A16<=AG$15,"",(OFFSET($F16,-AK$15,0,1,1)-$F16)/$F16) ->  | AL16: =IF($A16<=AH$15,"",(OFFSET($F16,-AL$15,0,1,1)-$F16)/$F16) ->  | AM16: =IF($A16<=AI$15,"",(OFFSET($F16,-AM$15,0,1,1)-$F16)/$F16) ->  | AN16: =IF($A16<=AJ$15,"",(OFFSET($F16,-AN$15,0,1,1)-$F16)/$F16) -> 
A17: 2 | B17: 2014-12-10 | C17: 110 | D17: 110.31 | E17: 109.98 | F17: 110.25 | G17: 1207900 | H17: 110.25 | I17: =H17/F17 -> 1 | J17: =INDEX(OFFSET($T$15,0,0,$S$13+1,1),MATCH(B17,OFFSET($Q$15,0,0,$S$13+1,1),-1)) -> 1 | K17: =ROUND($I17*C17,2) -> 110 | L17: =ROUND($I17*D17,2) -> 110.31 | M17: =ROUND($I17*E17,2) -> 109.98 | N17: =ROUND($I17*F17,2) -> 110.25 | O17: =G17*J17 -> 1207900 | U17: =L17-M17 -> 0.33 | V17: =AVERAGE(OFFSET(U17,0,0,CandleStatControls!$A$17,1)) -> 0.287 | W17: =U17/V17 -> 1.149825784 | X17: =IF(W17>1,1,W17) -> 1 | Y17: =1/(U17/100)*X17/(100/CandleStatControls!$A$18) -> 12.12121212 | Z17: =L17-K17 -> 0.31 | AA17: =ROUND($Y17*Z17,0) -> 4 | AB17: =L17-N17 -> 0.06 | AC17: =ROUND($Y17*AB17,0) -> 1 | AD17: =K17-M17 -> 0.02 | AE17: =ROUND($Y17*AD17,0) -> 0 | AF17: =IF(U17=0,"0_0_0",AA17 & "_" & AC17 & "_" & AE17) -> 4_1_0 | AG17: =IF($A17<=AG$15,"",OFFSET($F17,-AG$15,0,1,1)-$F17) -> -0.15 | AK17: =IF($A17<=AG$15,"",(OFFSET($F17,-AK$15,0,1,1)-$F17)/$F17) -> -0.001360544218 | AL17: =IF($A17<=AH$15,"",(OFFSET($F17,-AL$15,0,1,1)-$F17)/$F17) ->  | AM17: =IF($A17<=AI$15,"",(OFFSET($F17,-AM$15,0,1,1)-$F17)/$F17) ->  | AN17: =IF($A17<=AJ$15,"",(OFFSET($F17,-AN$15,0,1,1)-$F17)/$F17) -> 
A18: 3 | B18: 2014-12-09 | C18: 110.14 | D18: 110.23 | E18: 109.95 | F18: 110.06 | G18: 1203000 | H18: 110.06 | I18: =H18/F18 -> 1 | J18: =INDEX(OFFSET($T$15,0,0,$S$13+1,1),MATCH(B18,OFFSET($Q$15,0,0,$S$13+1,1),-1)) -> 1 | K18: =ROUND($I18*C18,2) -> 110.14 | L18: =ROUND($I18*D18,2) -> 110.23 | M18: =ROUND($I18*E18,2) -> 109.95 | N18: =ROUND($I18*F18,2) -> 110.06 | O18: =G18*J18 -> 1203000 | U18: 0.28 | V18: =AVERAGE(OFFSET(U18,0,0,CandleStatControls!$A$17,1)) -> 0.28 | W18: 1 | X18: 1 | Y18: =1/(U18/100)*X18/(100/CandleStatControls!$A$18) -> 14.28571429 | Z18: 0.09 | AA18: 1 | AB18: 0.17 | AC18: 2 | AD18: 0.19 | AE18: 3 | AF18: 1_2_3 | AG18: 0.19 | AH18: 0.04 | AK18: 0.001726331092 | AL18: 0.0003634381247
A19: 4 | B19: 2014-12-08 | C19: 109.81 | D19: 110 | E19: 109.56 | F19: 109.89 | G19: 984100 | H19: 109.89 | I19: 1 | J19: 1 | K19: =ROUND($I19*C19,2) -> 109.81 | L19: =ROUND($I19*D19,2) -> 110 | M19: =ROUND($I19*E19,2) -> 109.56 | N19: =ROUND($I19*F19,2) -> 109.89 | O19: 984100 | U19: 0.44 | V19: =AVERAGE(OFFSET(U19,0,0,CandleStatControls!$A$17,1)) -> 0.272 | W19: 1.617647059 | X19: 1 | Y19: =1/(U19/100)*X19/(100/CandleStatControls!$A$18) -> 9.090909091 | Z19: 0.19 | AA19: 2 | AB19: 0.11 | AC19: 1 | AD19: 0.25 | AE19: 2 | AF19: 2_1_2 | AG19: 0.17 | AH19: 0.36 | AI19: 0.21 | AK19: 0.001547001547 | AL19: 0.003276003276 | AM19: 0.001911001911
